Workbook

Sheet CT + WCattle Roughage
A1: Total in feed | C1: Product | D1: Based on Dry Matter | E1: Compound diet (Gram/Day) | F1: Roughage (Gram/Day) | G1: Total (Gram/Day)
A2: DS | B2: g/kg | C2: =(Hold!Q1) -> 905.12
A3: RE | B3: g/kg | C3: =(Hold!Q2) -> 235.6186452 | D3: =(Hold!R2) -> 260.3175769 | E3: 1843.767023 | F3: 817.9650011 | G3: 2661.732024
A4: RVETh | B4: g/kg | C4: =(Hold!Q3) -> 109.0790832 | D4: =(Hold!R3) -> 120.5133941 | E4: 1007.246508 | G4: 1007.246508
A5: RC | B5: g/kg | C5: =(Hold!Q4) -> 90.4465605 | D5: =(Hold!R4) -> 99.92770075 | E5: 590.4373632 | G5: 590.4373632 | GE5: 900.6697432
A6: ZETam | B6: g/kg | C6: =(Hold!Q5) -> 19.90548575 | D6: =(Hold!R5) -> 21.9920958 | U6: Availability (Gram/Day) | AU6: Availability (Gram/Day)
A7: NSP | B7: g/kg | C7: =(Hold!Q6) -> 383.0846531 | D7: =(Hold!R6) -> 423.2418387
A8: Okh | B8: g/kg | C8: =(Hold!Q7) -> 417.5859271 | D8: =(Hold!R7) -> 461.3597391 | E8: 3565.62699 | G8: 3565.62699 | S8: Price € /1000 kg of Mixture | T8: Amount Diet (Kg) | U8: RE (Gram/Day) | V8: RVETh (Gram/Day) | W8: RC (Gram/Day) | X8: OKh (Gram/Day) | Y8: Ca (Gram/Day) | Z8: P (Gram/Day) | AA8: DVE2007 | AB8: OEB2007 | AC8: DVMeth | AD8: DVELysh | AE8: VEM | AF8: CO2 | AT8: Amount Diet (Kg) | AU8: RE (Gram/Day) | AV8: RVETh (Gram/Day) | AW8: RC (Gram/Day) | AX8: OKh (Gram/Day) | AY8: Ca (Gram/Day) | AZ8: P (Gram/Day) | BA8: DVE2007 | BB8: OEB2007 | BC8: DVMeth | BD8: DVELysh | BE8: VEM | BF8: CO2
A9: Ca | B9: g/kg | C9: =(Hold!Q8) -> 0.5166429 | D9: =(Hold!R8) -> 0.5708004463 | E9: 5.166429 | F9: 42.84 | G9: 48.006429 | Q9: % in Feed | R9: Price € / 1000 kg
A10: P | B10: g/kg | C10: =(Hold!Q9) -> 6.8577046 | D10: =(Hold!R9) -> 7.576569516 | E10: 44.4261052 | F10: 27 | G10: 71.4261052 | J10: Selected Compounds | AJ10: Selected Daily WET Product
A11: LYS | B11: g/kg | C11: =(Hold!Q10) -> 5.756616059 | D11: =(Hold!R10) -> 6.3600584
A12: MET | B12: g/kg | C12: =(Hold!Q11) -> 2.865029323 | D12: =(Hold!R11) -> 3.165358541
A13: DVE2007 | E13: 1782.944912 | F13: 502.745517 | G13: 2285.690429 | I13: Copra cake - Kokosschilfers | Q13: 50 | R13: 240 | S13: 235 | T13: 10 | U13: 737.0958406 | V13: 429.9880837 | W13: 375.082695 | X13: 1912.690184 | Y13: 4.173074 | Z13: 16.5471456 | AA13: 791.3300889 | AB13: -24.66087152 | AC13: 14.54874211 | AD13: 29.54522784 | AE13: 5328.451044 | AF13: 4183.5381
A14: OEB2007 | E14: 113.6355468 | F14: 303.842817 | G14: 417.4783638 | I14: DDGS, Maize - DDGS, Mais | Q14: 50 | R14: 230 | U14: 1106.671182 | V14: 577.2584239 | W14: 215.3546681 | X14: 1652.936805 | Y14: 0.993355 | Z14: 27.8789596 | AA14: 991.6148227 | AB14: 138.2964183 | AC14: 12.42809017 | AD14: 29.59859256 | AE14: 5908.089622 | AF14: 26.2017
A15: DVMeth | E15: 26.97683228 | F15: 10.549152 | G15: 37.52598428
A16: DVELysh | E16: 59.1438204 | F16: 28.977669 | G16: 88.1214894 | T16: SUM= | U16: 1843.767023 | V16: 1007.246508 | W16: 590.4373632 | X16: 3565.62699 | Y16: 5.166429 | Z16: 44.4261052 | AA16: 1782.944912 | AB16: 113.6355468 | AC16: 26.97683228 | AD16: 59.1438204 | AE16: 11236.54067 | AF16: 4209.7398
A17: VEM | E17: 11236.54067 | F17: 8166.271167 | G17: 19402.81183
A18: CO2 | E18: 4209.7398 | F18: 4314.5466 | G18: 8524.2864
U20: Availability (Gram/Day)
S22: Price € /1000 kg of Mixture | T22: Amount Diet (Kg) | U22: RE (Gram/Day) | V22: RVETh (Gram/Day) | W22: RC (Gram/Day) | X22: OKh (Gram/Day) | Y22: Ca (Gram/Day) | Z22: P (Gram/Day) | AA22: DVE2007 | AB22: OEB2007 | AC22: DVMeth | AD22: DVELysh | AE22: VEM | AF22: CO2
Q23: % in Feed | R23: Price € / 1000 kg
J24: Selected Roughage
I27: Grass silage, c) peat soil, before 21 June - Graskuil, c) veengrond, vóór 21 juni | Q27: 10 | S27: 0 | T27: 20 | U27: 117.9937811 | V27: 0 | W27: 0 | X27: 0 | Y27: 4.77 | Z27: 3.024 | AA27: 62.199234 | AB27: 60.578514 | AC27: 1.238769 | AD27: 3.439746 | AE27: 860.412825 | AF27: 431.45466
I28: Grass silage, e) sandy soil, 21 June - 21 August - Graskuil, e) zandgrond, 21 juni - 21 augustus | Q28: 90 | U28: 699.97122 | V28: 0 | W28: 0 | X28: 0 | Y28: 38.07 | Z28: 23.976 | AA28: 440.546283 | AB28: 243.264303 | AC28: 9.310383 | AD28: 25.537923 | AE28: 7305.858342 | AF28: 3883.09194
T30: SUM= | U30: 817.9650011 | V30: 0 | W30: 0 | X30: 0 | Y30: 42.84 | Z30: 27 | AA30: 502.745517 | AB30: 303.842817 | AC30: 10.549152 | AD30: 28.977669 | AE30: 8166.271167 | AF30: 4314.5466

Sheet CT + WCattle
A1: Total in feed | C1: Product | D1: Based on Dry Matter | E1: Compound diet (Gram/Day) | F1: Roughage (Gram/Day) | G1: Total (Gram/Day)
A2: DS | B2: g/kg | C2: =SUM('Fill in'!$O$4:$O$61) -> 866.6225
A3: RE | B3: g/kg | C3: =SUM('Fill in'!$R$4:$R$61) -> 173.0236665 | D3: =(1000/$C$2)*C3 -> 199.6528667 | E3: 1843.767023
A4: RVETh | B4: g/kg | C4: =SUM('Fill in'!$T$4:$T$61) -> 34.8430798 | D4: =(1000/$C$2)*C4 -> 40.20560255 | E4: 1007.246508
A5: RC | B5: g/kg | C5: =SUM('Fill in'!$U$4:$U$61) -> 30.04892257 | D5: 34.67360076 | E5: 590.4373632
A6: ZETam | B6: g/kg | C6: =SUM('Fill in'!$Y$4:$Y$61) -> 463.7186742 | D6: 535.0872776 | U6: Availability (Gram/Day) | AU6: Availability (Gram/Day)
A7: NSP | B7: g/kg | C7: =SUM('Fill in'!$AE$4:$AE$61) -> 144.4537783 | D7: 166.6859311
A8: Okh | B8: g/kg | C8: =SUM('Fill in'!$W$4:$W$61) -> 603.8885225 | D8: 696.8299606 | E8: 3565.62699 | S8: Price € /1000 kg of Mixture | T8: Amount Diet (Kg) | U8: RE (Gram/Day) | V8: RVETh (Gram/Day) | W8: RC (Gram/Day) | X8: OKh (Gram/Day) | Y8: Ca (Gram/Day) | Z8: P (Gram/Day) | AA8: DVE2007 | AB8: OEB2007 | AC8: DVMeth | AD8: DVELysh | AE8: VEM | AF8: CO2 | AS8: Price € /1000 kg of Mixture | AT8: Amount Diet (Kg) | AU8: Ca (Gram/Day) | AV8: P (Gram/Day) | AW8: Lys (Gram/Day) | AX8: Met (Gram/Day) | AY8: Cys (Gram/Day) | AZ8: Thr (Gram/Day) | BA8: Trp (Gram/Day)
A9: Ca | B9: g/kg | C9: =SUM('Fill in'!$AG$4:$AG$61) -> 0.751783175 | D9: 0.8674863334 | E9: 5.166429 | Q9: % in Feed | R9: Price € / 1000 kg | AQ9: % in Feed | AR9: Price € / 1000 kg
A10: P | B10: g/kg | C10: =SUM('Fill in'!$AH$4:$AH$61) -> 3.44800105 | D10: =(1000/$C$2)*C10 -> 3.978665509 | E10: 44.4261052 | J10: Selected Compounds | AJ10: Selected Additives
A11: LYS | B11: g/kg | C11: =SUM('Fill in'!$HR$4:$HR$61) -> 8.872095376 | D11: =(1000/$C$2)*C11 -> 10.23755485
A12: MET | B12: g/kg | C12: =SUM('Fill in'!$HS$4:$HS$61) -> 2.815895076 | D12: =(1000/$C$2)*C12 -> 3.249275291
A13: DVE2007 | E13: 1782.944912 | I13: Copra cake - Kokosschilfers | Q13: 50 | R13: 240 | S13: 235 | T13: 10 | U13: 737.0958406 | V13: 429.9880837 | W13: 375.082695 | X13: 1912.690184 | Y13: 4.173074 | Z13: 16.5471456 | AA13: 791.3300889 | AB13: -24.66087152 | AC13: 14.54874211 | AD13: 29.54522784 | AE13: 5328.451044 | AF13: 4183.5381
A14: OEB2007 | E14: 113.6355468 | I14: DDGS, Maize - DDGS, Mais | Q14: 50 | R14: 230 | U14: 1106.671182 | V14: 577.2584239 | W14: 215.3546681 | X14: 1652.936805 | Y14: 0.993355 | Z14: 27.8789596 | AA14: 991.6148227 | AB14: 138.2964183 | AC14: 12.42809017 | AD14: 29.59859256 | AE14: 5908.089622 | AF14: 26.2017
A15: DVMeth | E15: 26.97683228
A16: DVELysh | E16: 59.1438204 | T16: SUM= | U16: 1843.767023 | V16: 1007.246508 | W16: 590.4373632 | X16: 3565.62699 | Y16: 5.166429 | Z16: 44.4261052 | AA16: 1782.944912 | AB16: 113.6355468 | AC16: 26.97683228 | AD16: 59.1438204 | AE16: 11236.54067 | AF16: 4209.7398
A17: VEM | E17: 11236.54067
A18: CO2 | E18: 4209.7398

Sheet CT + WLayinghen
A1: Total in feed | C1: Product | D1: Based on Dry Matter | E1: Compound diet (Gram/Day) | F1: Additives (Gram/Day) | G1: Total (Gram/Day)
A2: DS | B2: g/kg | C2: =SUM('Fill in'!$O$4:$O$61) -> 866.6225
A3: RE | B3: g/kg | C3: =SUM('Fill in'!$R$4:$R$61) -> 173.0236665 | D3: =(1000/$C$2)*C3 -> 199.6528667 | E3: 735.4029519 | G3: 735.4029519
A4: RVETh | B4: g/kg | C4: =SUM('Fill in'!$T$4:$T$61) -> 34.8430798 | D4: =(1000/$C$2)*C4 -> 40.20560255 | E4: 407.8125017 | G4: 407.8125017
A5: RC | B5: g/kg | C5: =SUM('Fill in'!$U$4:$U$61) -> 30.04892257 | D5: 34.67360076
A6: ZETam | B6: g/kg | C6: =SUM('Fill in'!$Y$4:$Y$61) -> 463.7186742 | D6: 535.0872776 | U6: Availability (Gram/Day) | AU6: Availability (Gram/Day)
A7: NSP | B7: g/kg | C7: =SUM('Fill in'!$AE$4:$AE$61) -> 144.4537783 | D7: 166.6859311
A8: Okh | B8: g/kg | C8: =SUM('Fill in'!$W$4:$W$61) -> 603.8885225 | D8: 696.8299606 | E8: 4645.562245 | G8: 4645.562245 | S8: Price € /1000 kg of Mixture | T8: Amount Diet (Kg) | U8: RE (Gram/Day) | V8: RVETh (Gram/Day) | W8: Okh (Gram/Day) | X8: Ca (Gram/Day) | Y8: P (Gram/Day) | Z8: LYS (Gram/Day) | AA8: MET (Gram/Day) | AB8: CYS (Gram/Day) | AC8: THR (Gram/Day) | AD8: TRP (Gram/Day) | AE8: OElh (MJ/Kg) | AU8: Ca (Gram/Day) | AV8: P (Gram/Day) | AW8: Lys (Gram/Day) | AX8: Met (Gram/Day) | AY8: Cys (Gram/Day) | AZ8: Thr (Gram/Day) | BA8: Trp (Gram/Day)
A9: Ca | B9: g/kg | C9: =SUM('Fill in'!$AG$4:$AG$61) -> 0.751783175 | D9: 0.8674863334 | E9: 5.8941623 | F9: 160 | G9: 165.8941623 | Q9: % in Feed | R9: Price € / 1000 kg | AS9: Price € / 1000 kg | AT9: Content (g/Kg)
A10: P | B10: g/kg | C10: =SUM('Fill in'!$AH$4:$AH$61) -> 3.44800105 | D10: =(1000/$C$2)*C10 -> 3.978665509 | E10: 10.90848952 | F10: 80 | G10: 90.90848952 | J10: Selected Compounds | AJ10: Selected Additives
A11: LYS | B11: g/kg | C11: =SUM('Fill in'!$HR$4:$HR$61) -> 8.872095376 | D11: 10.23755485 | E11: 23.40648631 | F11: 228 | G11: 251.4064863
A12: MET | B12: g/kg | C12: =SUM('Fill in'!$HS$4:$HS$61) -> 2.815895076 | D12: 3.249275291 | E12: 12.98204339 | F12: 380 | G12: 392.9820434
A13: CYS | B13: g/kg | C13: =SUM('Fill in'!$HT$4:$HT$61) -> 2.988918742 | D13: 3.448928158 | E13: 18.47035239 | F13: 95 | G13: 113.4703524 | I13: Maize - Mais | Q13: 10 | R13: 197 | S13: 145.7 | T13: 10 | U13: 62.22055409 | V13: 31.78233408 | W13: 650.1416927 | X13: 0.0431525 | Y13: 0.6109099425 | Z13: 1.326119478 | AA13: 1.385341969 | AB13: 1.236914629 | AC13: 2.024042121 | AD13: 0.419804781 | AE13: 13.78034524 | AI13: Cysteine | AS13: 4350 | AT13: 10 | AU13: 0 | AV13: 0 | AW13: 0 | AX13: 0 | AY13: 95 | AZ13: 0 | BA13: 0
A14: THR | B14: g/kg | C14: =SUM('Fill in'!$HU$4:$HU$61) -> 6.579252815 | D14: 7.591832447 | E14: 21.81563624 | F14: 570 | G14: 591.8156362 | I14: Oats - Haver | Q14: 90 | R14: 140 | U14: 673.1823978 | V14: 376.0301677 | W14: 3995.420552 | X14: 5.8510098 | Y14: 10.29757958 | Z14: 22.08036683 | AA14: 11.59670142 | AB14: 17.23343776 | AC14: 19.79159412 | AD14: 7.862808359 | AE14: 96.08939446 | AI14: Limestone(CaCO3) | AS14: 35 | AT14: 20 | AU14: 80 | AV14: 0 | AW14: 0 | AX14: 0 | AY14: 0 | AZ14: 0 | BA14: 0
A15: TRP | B15: g/kg | C15: =SUM('Fill in'!$HV$4:$HV$61) -> 1.91196731 | D15: 2.20622856 | E15: 8.28261314 | F15: 665 | G15: 673.2826131 | AI15: Lysine*HCL | AS15: 1300 | AT15: 30 | AU15: 0 | AV15: 0 | AW15: 228 | AX15: 0 | AY15: 0 | AZ15: 0 | BA15: 0
A16: OElh (MJ/Kg) | E16: 109.8697397 | T16: SUM= | U16: 735.4029519 | V16: 407.8125017 | W16: 4645.562245 | X16: 5.8941623 | Y16: 10.90848952 | Z16: 23.40648631 | AA16: 12.98204339 | AB16: 18.47035239 | AC16: 21.81563624 | AD16: 8.28261314 | AE16: 109.8697397 | AI16: Methionine | AS16: 4350 | AT16: 40 | AU16: 0 | AV16: 0 | AW16: 0 | AX16: 380 | AY16: 0 | AZ16: 0 | BA16: 0
AI17: Monocalciumphosphate(CaH2PO4) | AS17: 545 | AT17: 50 | AU17: 80 | AV17: 80 | AW17: 0 | AX17: 0 | AY17: 0 | AZ17: 0 | BA17: 0
C18: P | D18: =Hold!$M$1 -> 0 | E18: - Phytase | AI18: Threonine | AS18: 1850 | AT18: 60 | AU18: 0 | AV18: 0 | AW18: 0 | AX18: 0 | AY18: 0 | AZ18: 570 | BA18: 0
D19: =Hold!$M$2 -> 0 | E19: + Phytase | AI19: Tryptophan | AS19: 5000 | AT19: 70 | AU19: 0 | AV19: 0 | AW19: 0 | AX19: 0 | AY19: 0 | AZ19: 0 | BA19: 665
AT21: SUM= | AU21: 160 | AV21: 80 | AW21: 228 | AX21: 380 | AY21: 95 | AZ21: 570 | BA21: 665

Sheet CT + WBroiler
A1: Total in feed | C1: Product | D1: Based on Dry Matter | E1: Compound diet (Gram/Day) | F1: Additives (Gram/Day) | G1: Total (Gram/Day)
A2: DS | B2: g/kg | C2: =SUM('Fill in'!$O$4:$O$61) -> 866.6225
A3: RE | B3: g/kg | C3: =SUM('Fill in'!$R$4:$R$61) -> 173.0236665 | D3: =(1000/$C$2)*C3 -> 199.6528667 | E3: 735.4029519 | G3: 735.4029519
A4: RVETh | B4: g/kg | C4: =SUM('Fill in'!$T$4:$T$61) -> 34.8430798 | D4: =(1000/$C$2)*C4 -> 40.20560255 | E4: 407.8125017 | G4: 407.8125017
A5: RC | B5: g/kg | C5: =SUM('Fill in'!$U$4:$U$61) -> 30.04892257 | D5: 34.67360076
A6: ZETam | B6: g/kg | C6: =SUM('Fill in'!$Y$4:$Y$61) -> 463.7186742 | D6: 535.0872776 | U6: Availability (Gram/Day) | AU6: Availability (Gram/Day)
A7: NSP | B7: g/kg | C7: =SUM('Fill in'!$AE$4:$AE$61) -> 144.4537783 | D7: 166.6859311
A8: Okh | B8: g/kg | C8: =SUM('Fill in'!$W$4:$W$61) -> 603.8885225 | D8: 696.8299606 | E8: 4645.562245 | G8: 4645.562245 | S8: Price € /1000 kg of Mixture | T8: Amount Diet (Kg) | U8: RE (Gram/Day) | V8: RVETh (Gram/Day) | W8: Okh (Gram/Day) | X8: Ca (Gram/Day) | Y8: P (Gram/Day) | Z8: LYS (Gram/Day) | AA8: MET (Gram/Day) | AB8: CYS (Gram/Day) | AC8: THR (Gram/Day) | AD8: TRP (Gram/Day) | AE8: OEpl (MJ/Kg) | AU8: Ca (Gram/Day) | AV8: P (Gram/Day) | AW8: Lys (Gram/Day) | AX8: Met (Gram/Day) | AY8: Cys (Gram/Day) | AZ8: Thr (Gram/Day) | BA8: Trp (Gram/Day)
A9: Ca | B9: g/kg | C9: =SUM('Fill in'!$AG$4:$AG$61) -> 0.751783175 | D9: 0.8674863334 | E9: 5.8941623 | G9: 5.8941623 | Q9: % in Feed | R9: Price € / 1000 kg | AS9: Price € / 1000 kg | AT9: Content (g/Kg)
A10: P | B10: g/kg | C10: =SUM('Fill in'!$AH$4:$AH$61) -> 3.44800105 | D10: =(1000/$C$2)*C10 -> 3.978665509 | E10: 12.89139015 | G10: 12.89139015 | J10: Selected Compounds | AJ10: Selected Additives
A11: LYS | B11: g/kg | C11: =SUM('Fill in'!$HR$4:$HR$61) -> 8.872095376 | D11: 10.23755485 | E11: 23.40648631 | F11: 380 | G11: 403.4064863
A12: MET | B12: g/kg | C12: =SUM('Fill in'!$HS$4:$HS$61) -> 2.815895076 | D12: 3.249275291 | E12: 12.98204339 | G12: 12.98204339
A13: CYS | B13: g/kg | C13: =SUM('Fill in'!$HT$4:$HT$61) -> 2.988918742 | D13: 3.448928158 | E13: 18.47035239 | F13: 475 | G13: 493.4703524 | I13: Maize - Mais | Q13: 10 | R13: 197 | S13: 145.7 | T13: 10 | U13: 62.22055409 | V13: 31.78233408 | W13: 650.1416927 | X13: 0.0431525 | Y13: 0.8207173975 | Z13: 1.326119478 | AA13: 1.385341969 | AB13: 1.236914629 | AC13: 2.024042121 | AD13: 0.419804781 | AE13: 13.59995916 | AI13: Cysteine | AS13: 4350 | AT13: 50 | AU13: 0 | AV13: 0 | AW13: 0 | AX13: 0 | AY13: 475 | AZ13: 0 | BA13: 0
A14: THR | B14: g/kg | C14: =SUM('Fill in'!$HU$4:$HU$61) -> 6.579252815 | D14: 7.591832447 | E14: 21.81563624 | G14: 21.81563624 | I14: Oats - Haver | Q14: 90 | R14: 140 | U14: 673.1823978 | V14: 376.0301677 | W14: 3995.420552 | X14: 5.8510098 | Y14: 12.07067275 | Z14: 22.08036683 | AA14: 11.59670142 | AB14: 17.23343776 | AC14: 19.79159412 | AD14: 7.862808359 | AE14: 94.16773308 | AI14: Lysine*HCL | AS14: 1300 | AT14: 50 | AU14: 0 | AV14: 0 | AW14: 380 | AX14: 0 | AY14: 0 | AZ14: 0 | BA14: 0
A15: TRP | B15: g/kg | C15: =SUM('Fill in'!$HV$4:$HV$61) -> 1.91196731 | D15: 2.20622856 | E15: 8.28261314 | G15: 8.28261314
A16: OEpl (MJ/Kg) | E16: 107.7676922 | T16: SUM= | U16: 735.4029519 | V16: 407.8125017 | W16: 4645.562245 | X16: 5.8941623 | Y16: 12.89139015 | Z16: 23.40648631 | AA16: 12.98204339 | AB16: 18.47035239 | AC16: 21.81563624 | AD16: 8.28261314 | AE16: 107.7676922 | AT16: SUM= | AU16: 0 | AV16: 0 | AW16: 380 | AX16: 0 | AY16: 475 | AZ16: 0 | BA16: 0
C18: P | D18: =Hold!$M$1 -> 0 | E18: - Phytase
D19: =Hold!$M$2 -> 0 | E19: + Phytase

Sheet CT + WPig
A1: Total in feed | C1: Product | D1: Based on Dry Matter | E1: Compound diet (Gram/Day) | F1: Additives (Gram/Day) | G1: Total (Gram/Day)
A2: DS | B2: g/kg | C2: =SUM('Fill in'!$O$4:$O$61) -> 866.6225
A3: RE | B3: g/kg | C3: =SUM('Fill in'!$R$4:$R$61) -> 173.0236665 | D3: =(1000/$C$2)*C3 -> 199.6528667 | E3: 1185.722907 | G3: 1185.722907
A4: RVETh | B4: g/kg | C4: =SUM('Fill in'!$T$4:$T$61) -> 34.8430798 | D4: =(1000/$C$2)*C4 -> 40.20560255 | E4: 1757.867956 | G4: 1757.867956
A5: RC | B5: g/kg | C5: =SUM('Fill in'!$U$4:$U$61) -> 30.04892257 | D5: 34.67360076 | E5: 186.2169915 | G5: 186.2169915
A6: ZETam | B6: g/kg | C6: =SUM('Fill in'!$Y$4:$Y$61) -> 463.7186742 | D6: 535.0872776 | E6: 2582.034463 | G6: 2582.034463 | U6: Availability (Gram/Day) | AV6: Availability (Gram/Day)
A7: NSP | B7: g/kg | C7: =SUM('Fill in'!$AE$4:$AE$61) -> 144.4537783 | D7: 166.6859311 | E7: 1303.794697 | G7: 1303.794697
A8: Ca | B8: g/kg | C8: =SUM('Fill in'!$AG$4:$AG$61) -> 0.751783175 | D8: 0.8674863334 | E8: 14.7373235 | G8: 14.7373235 | S8: Price € /1000 kg of Mixture | T8: Amount Diet (Kg) | U8: RE (Gram/Day) | V8: RVETh (Gram/Day) | W8: RC (Gram/Day) | X8: ZETam (Gram/Day) | Y8: NSP (Gram/Day) | Z8: Ca (Gram/Day) | AA8: P (Gram/Day) | AB8: LYS (Gram/Day) | AC8: MET (Gram/Day) | AD8: CYS (Gram/Day) | AE8: THR (Gram/Day) | AF8: TRP (Gram/Day) | AG8: NE2015 (MJ/Kg) | AH8: EW2015 (g/Kg) | AV8: Ca (Gram/Day) | AW8: P (Gram/Day) | AX8: Lys (Gram/Day) | AY8: Met (Gram/Day) | AZ8: Cys (Gram/Day) | BA8: Thr (Gram/Day) | BB8: Trp (Gram/Day)
A9: P | B9: g/kg | C9: =SUM('Fill in'!$AH$4:$AH$61) -> 3.44800105 | D9: =(1000/$C$2)*C9 -> 3.978665509 | E9: 14.20219784 | G9: 14.20219784 | Q9: % in Feed | R9: Price € / 1000 kg | AT9: Price € / 1000 kg | AU9: Content (g/Kg)
A10: LYS | B10: g/kg | C10: =SUM('Fill in'!$HR$4:$HR$61) -> 8.872095376 | D10: 10.23755485 | E10: 43.07395005 | F10: 380 | G10: 423.07395 | J10: Selected Compounds | AK10: Selected Additives
A11: MET | B11: g/kg | C11: =SUM('Fill in'!$HS$4:$HS$61) -> 2.815895076 | D11: 3.249275291 | E11: 23.33655362 | G11: 23.33655362
A12: CYS | B12: g/kg | C12: =SUM('Fill in'!$HT$4:$HT$61) -> 2.988918742 | D12: 3.448928158 | E12: 23.70265492 | F12: 475 | G12: 498.7026549
A13: THR | B13: g/kg | C13: =SUM('Fill in'!$HU$4:$HU$61) -> 6.579252815 | D13: 7.591832447 | E13: 39.67384749 | G13: 39.67384749 | I13: Barley - Gerst | Q13: 50 | R13: 160 | S13: 308.5 | T13: 10 | U13: 375.2032902 | V13: 74.76908007 | W13: 34.69384565 | X13: 2512.911463 | Y13: 590.6535496 | Z13: 2.6638395 | AA13: 5.076579375 | AB13: 12.16854984 | AC13: 6.644270756 | AD13: 8.09021157 | AE13: 11.15484974 | AF13: 4.106155746 | AG13: 49.38968047 | AH13: 5.612447809 | AJ13: Cysteine | AT13: 4350 | AU13: 50 | AV13: 0 | AW13: 0 | AX13: 0 | AY13: 0 | AZ13: 475 | BA13: 0 | BB13: 0
A14: TRP | B14: g/kg | C14: =SUM('Fill in'!$HV$4:$HV$61) -> 1.91196731 | D14: 2.20622856 | E14: 17.97845062 | G14: 17.97845062 | I14: Linseed - Lijnzaad | Q14: 50 | R14: 457 | U14: 810.519617 | V14: 1683.098876 | W14: 151.5231458 | X14: 69.123 | Y14: 713.1411477 | Z14: 12.073484 | AA14: 9.12561846 | AB14: 30.9054002 | AC14: 16.69228286 | AD14: 15.61244335 | AE14: 28.51899775 | AF14: 13.87229487 | AG14: 78.64234307 | AH14: 8.936636178 | AJ14: Lysine*HCL | AT14: 1300 | AU14: 50 | AV14: 0 | AW14: 0 | AX14: 380 | AY14: 0 | AZ14: 0 | BA14: 0 | BB14: 0
A15: NE2015 (MJ/Kg) | E15: 128.0320235
A16: EW2015 (g/Kg) | E16: 14.54908399 | T16: SUM= | U16: 1185.722907 | V16: 1757.867956 | W16: 186.2169915 | X16: 2582.034463 | Y16: 1303.794697 | Z16: 14.7373235 | AA16: 14.20219784 | AB16: 43.07395005 | AC16: 23.33655362 | AD16: 23.70265492 | AE16: 39.67384749 | AF16: 17.97845062 | AG16: 128.0320235 | AH16: 14.54908399 | AU16: SUM= | AV16: 0 | AW16: 0 | AX16: 380 | AY16: 0 | AZ16: 475 | BA16: 0 | BB16: 0
A17: Ca / EW2015 | E17: 1.012938238
A18: P / EW2015 | E18: 0.9761575263
A19: LYS / EW 2015 | E19: 2.960595326
A20: MET / EW2015 | E20: 1.603987827
A21: CYS / EW2015 | E21: 1.629151014
A22: THR / EW2015 | E22: 2.726896588
A23: TRP / EW2015 | E23: 1.23571014
C25: P | D25: =Hold!$M$1 -> 0 | E25: - Phytase
D26: =Hold!$M$2 -> 0 | E26: + Phytase

Sheet Composition Total
A1: Total in feed | C1: Product | D1: Based on Dry Matter
A2: DS | B2: g/kg | C2: =SUM('Fill in'!$O$4:$O$61) -> 866.6225
A3: RAS | B3: g/kg | C3: =SUM('Fill in'!$P$4:$P$61) -> 24.81830865 | D3: =(1000/$C$2)*C3 -> 28.63796942
A4: RE | B4: g/kg | C4: =SUM('Fill in'!$R$4:$R$61) -> 173.0236665 | D4: =(1000/$C$2)*C4 -> 199.6528667
A5: RVET | B5: g/kg | C5: =SUM('Fill in'!$S$4:$S$61) -> 31.49706455 | D5: 36.34461897
A6: RVETh | B6: g/kg | C6: =SUM('Fill in'!$T$4:$T$61) -> 34.8430798 | D6: 40.20560255
A7: RC | B7: g/kg | C7: =SUM('Fill in'!$U$4:$U$61) -> 30.04892257 | D7: 34.67360076
A8: ZETam | B8: g/kg | C8: =SUM('Fill in'!$Y$4:$Y$61) -> 463.7186742 | D8: 535.0872776 | P8: Price € /1000 kg of Mixture
A9: SUI | B9: g/kg | C9: =SUM('Fill in'!$AA$4:$AA$61) -> 30.54341575 | D9: 35.24419889 | N9: % in Feed | O9: Price € / 1000 kg
A10: NDF | B10: g/kg | C10: =SUM('Fill in'!$AB$4:$AB$61) -> 109.435544 | D10: 126.2782169 | G10: Selected Compounds
A11: ADF | B11: g/kg | C11: =SUM('Fill in'!$AC$4:$AC$61) -> 39.40389685 | D11: 45.46835196
A12: ADL | B12: g/kg | C12: =SUM('Fill in'!$AD$4:$AD$61) -> 3.50384175 | D12: 4.04310037
A13: NSP | B13: g/kg | C13: =SUM('Fill in'!$AE$4:$AE$61) -> 144.4537783 | D13: 166.6859311 | F13: Maize - Mais | N13: 75 | O13: 197 | P13: 250.25
A14: Ca | B14: g/kg | C14: =SUM('Fill in'!$AG$4:$AG$61) -> 0.751783175 | D14: 0.8674863334 | F14: Soya bean meal, solvent extracted - Sojaschroot | N14: 25 | O14: 410
A15: P | B15: g/kg | C15: =SUM('Fill in'!$AH$4:$AH$61) -> 3.44800105 | D15: 3.978665509
A16: IP | B16: g/kg | C16: =SUM('Fill in'!$AI$4:$AI$61) -> 2.691287073 | D16: 3.105489498
A17: Mg | B17: g/kg | C17: =SUM('Fill in'!$AJ$4:$AJ$61) -> 1.418810825 | D17: 1.637172846
A18: K | B18: g/kg | C18: =SUM('Fill in'!$AK$4:$AK$61) -> 7.975860575 | D18: 9.203385067
A19: Na | B19: g/kg | C19: =SUM('Fill in'!$AL$4:$AL$61) -> 0.0282992 | D19: 0.0326545872
A20: Cl | B20: g/kg | C20: =SUM('Fill in'!$AM$4:$AM$61) -> 0.49145995 | D20: 0.5670980733
A21: Fe | B21: mg/kg | C21: =SUM('Fill in'!$AQ$4:$AQ$61) -> 48.2192795 | D21: 55.64046572
A22: Mn | B22: mg/kg | C22: =SUM('Fill in'!$AR$4:$AR$61) -> 13.59190585 | D22: 15.68376756
A23: Zn | B23: mg/kg | C23: =SUM('Fill in'!$AS$4:$AS$61) -> 28.060414 | D23: 32.37905086
A24: Cu | B24: mg/kg | C24: =SUM('Fill in'!$AT$4:$AT$61) -> 4.602533125 | D24: 5.310885795
A25: Mo | B25: mg/kg | C25: =SUM('Fill in'!$AU$4:$AU$61) -> 1.1822655 | D25: 1.364222023
A26: J | B26: mg/kg | C26: =SUM('Fill in'!$AV$4:$AV$61) -> 0.08666225 | D26: 0.1
A27: Co | B27: mg/kg | C27: =SUM('Fill in'!$AW$4:$AW$61) -> 0.13052925 | D27: 0.1506183488
A28: LYS | B28: g/kg | C28: =SUM('Fill in'!$HR$4:$HR$61) -> 8.872095376 | D28: 10.23755485
A29: MET | B29: g/kg | C29: =SUM('Fill in'!$HS$4:$HS$61) -> 2.815895076 | D29: 3.249275291
A30: CYS | B30: g/kg | C30: =SUM('Fill in'!$HT$4:$HT$61) -> 2.988918742 | D30: 3.448928158
A31: THR | B31: g/kg | C31: =SUM('Fill in'!$HU$4:$HU$61) -> 6.579252815 | D31: 7.591832447
A32: TRP | B32: g/kg | C32: =SUM('Fill in'!$HV$4:$HV$61) -> 1.91196731 | D32: 2.20622856
A33: ILE | B33: g/kg | C33: =SUM('Fill in'!$HW$4:$HW$61) -> 7.28440795 | D33: 8.405514454
A34: ARG | B34: g/kg | C34: =SUM('Fill in'!$HX$4:$HX$61) -> 11.40252 | D34: 13.15742437
A35: PHE | B35: g/kg | C35: =SUM('Fill in'!$HY$4:$HY$61) -> 8.772337086 | D35: 10.12244326
A36: HIS | B36: g/kg | C36: =SUM('Fill in'!$HZ$4:$HZ$61) -> 4.840309171 | D36: 5.585256754
A37: LEU | B37: g/kg | C37: =SUM('Fill in'!$IA$4:$IA$61) -> 15.79665158 | D37: 18.22783458
A38: TYR | B38: g/kg | C38: =SUM('Fill in'!$IB$4:$IB$61) -> 6.401875659 | D38: 7.387156067
A39: VAL | B39: g/kg | C39: =SUM('Fill in'!$IC$4:$IC$61) -> 8.30513599 | D39: 9.5833376
A40: ALA | B40: g/kg | C40: =SUM('Fill in'!$ID$4:$ID$61) -> 9.355966484 | D40: 10.79589612
A41: ASP | B41: g/kg | C41: =SUM('Fill in'!$IE$4:$IE$61) -> 17.31579909 | D41: 19.98078643
A42: GLU | B42: g/kg | C42: =SUM('Fill in'!$IF$4:$IF$61) -> 30.9668828 | D42: 35.73283962
A43: GLY | B43: g/kg | C43: =SUM('Fill in'!$IG$4:$IG$61) -> 7.215124088 | D43: 8.325567463
A44: PRO | B44: g/kg | C44: =SUM('Fill in'!$IH$4:$IH$61) -> 10.96069589 | D44: 12.64760134
A45: SER | B45: g/kg | C45: =SUM('Fill in'!$II$4:$II$61) -> 8.655536812 | D45: 9.987666847
A46: SOM AZ | B46: g/kg | C46: =SUM('Fill in'!$IJ$4:$IJ$61) -> 170.4413719 | D46: 196.6731442
A47: <=C10 | B47: g/kg | C47: =SUM('Fill in'!$LH$4:$LH$61) -> 0 | D47: 0
A48: C12:0 | B48: g/kg | C48: =SUM('Fill in'!$LI$4:$LI$61) -> 0.04977640875 | D48: 0.05743724488
A49: C14:0 | B49: g/kg | C49: =SUM('Fill in'!$LJ$4:$LJ$61) -> 0.0547750534 | D49: 0.06320520573
A50: C16:0 | B50: g/kg | C50: =SUM('Fill in'!$LK$4:$LK$61) -> 3.261343665 | D50: 3.763280627
A51: C16:1 | B51: g/kg | C51: =SUM('Fill in'!$LL$4:$LL$61) -> 0.0547750534 | D51: 0.06320520573
A52: C18:0 | B52: g/kg | C52: =SUM('Fill in'!$LM$4:$LM$61) -> 0.5977067023 | D52: 0.6896967276
A53: C18:1 | B53: g/kg | C53: =SUM('Fill in'!$LN$4:$LN$61) -> 7.518161529 | D53: 8.675243868
A54: C18:2 | B54: g/kg | C54: =SUM('Fill in'!$LO$4:$LO$61) -> 15.03737523 | D54: 17.35170184
A55: C18:3 | B55: g/kg | C55: =SUM('Fill in'!$LP$4:$LP$61) -> 0.4488061106 | D55: 0.5178795965
A56: >=C20 | B56: g/kg | C56: =SUM('Fill in'!$LQ$4:$LQ$61) -> 0.2588663873 | D56: 0.2987072079
A57: Som VZ | B57: g/kg | C57: =SUM('Fill in'!$LR$4:$LR$61) -> 27.28157747 | D57: 31.48034752
A58: RVET(h) | B58: g/kg | C58: =SUM('Fill in'!$LS$4:$LS$61) -> 31.49706455 | D58: 36.34461897

Sheet Hold
A1: Fat/oil, Palm oil, chemically refined - Vet/olie, Palmolie, chem. geraffineerd | B1: 10 | C1: 508 | D1: 344,4 | E1: 4 | H1: 16 | L1: - Phytase | M1: 0 | P1: Past Wcattle Waarden => | Q1: 905.12
A2: Fat/oil, Palmkernel oil, chemically refined - Vet/olie, Palmpitolie, chem. geraf. | B2: 10 | C2: 508 | H2: 16 | L2: + Phytase | M2: 0 | Q2: 235.6186452 | R2: 260.3175769
A3: Fat/oil, Soya oil - Vet/olie, Sojaolie | B3: 20 | C3: 704 | Q3: 109.0790832 | R3: 120.5133941
A4: Wheat milling by-products - Tarwemaalderijproducten | B4: 60 | C4: 170 | Q4: 90.4465605 | R4: 99.92770075
Q5: 19.90548575 | R5: 21.9920958
Q6: 383.0846531 | R6: 423.2418387
Q7: 417.5859271 | R7: 461.3597391
Q8: 0.5166429 | R8: 0.5708004463
Q9: 6.8577046 | R9: 7.576569516
Q10: 5.756616059 | R10: 6.3600584
Q11: 2.865029323 | R11: 3.165358541

Sheet Fill in
I1: Diersoort | J1: * (DS uit CVB Table 2019 /1000) | M1: Prijs per ton | N1: Percentage in | O1: DS | P1: RAS | Q1: Rein | R1: RE | S1: RVET | T1: RVETh | U1: RC | V1: OK | W1: Okh | X1: ZETew | Y1: ZETam | Z1: GOS | AA1: SUI | AB1: NDF | AC1: ADF | AD1: ADL | AE1: NSP | AF1: RNSP | AG1: Ca | AH1: P | AI1: IP | AJ1: Mg | AK1: K | AL1: Na | AM1: Cl | AN1: S-a | AO1: S-o | AP1: S | AQ1: Fe | AR1: Mn | AS1: Zn | AT1: Cu | AU1: Mo | AV1: J | AW1: Co | AX1: FP | AY1: MELKZ | AZ1: AZZ | BA1: ALC | BB1: PRZ | BC1: BZ | BD1: VCRE herk. | BE1: VCRVET herk. | BF1: VCRC herk. | BG1: VCOK herk. | BH1: VCOS herk. | BI1: VCRE vark. | BJ1: VCRVETh vark. | BK1: VCRC vark. | BL1: VCOK vark. | BM1: VCOS vark. | BN1: VCNSP vark. | BO1: VCiZET vark. | BP1: StaVCP varken | BQ1: SchVCP vark. | BR1: VCRE hanen | BS1: VCRVET hanen | BT1: VCOK hanen | BU1: OCP | BV1: VCRE vlk | BW1: VCRVETh vlk | BX1: VCZ+S vlk | BY1: VCOKh vlk | BZ1: VCRE konijn | CA1: VCRVET konijn | CB1: VCRC konijn | CC1: VCOK konijn | CD1: VCRE paard | CE1: VCOS paard | CF1: %BRE-91 | CG1: %DVBE-91 | CH1: %BZET-91 | CI1: %VRAS | CJ1: MVRAS | CK1: FOS-91 | CL1: DVE-91 | CM1: OEB-91 | CN1: DVMET-91 | CO1: DVLYS-91 | CP1: %BRE-07 | CQ1: %DVBE-07 | CR1: %BZET-07 | CS1: FOSp-07 | CT1: FOSp2-07 | CU1: FOSp2/FOSp | CV1: DVE-07 | CW1: OEB-07 | CX1: OEB2-07 | CY1: DVMET-07 | CZ1: DVLYS-07 | DC1: SW | DD1: VW | DE1: VEM | DF1: VEVI | DG1: OEk | DH1: OEk kcal | DI1: NEm paard | DJ1: NEm kcal paard | DK1: EWpa | DL1: VREp | DM1: OEpl | DN1: OEpl kcal | DO1: OElh | DP1: OElh kcal | DQ1: oP | DR1: OEvlk | DS1: OEvlk | DT1: NE2015 | DU1: NE2015 | DV1: EW2015 | DW1: StavP vark. | DX1: SchVP vark. | DY1: VC-RE gest. Varken | DZ1: VC-LYS gest. Varken | EA1: VC-MET gest. Varken | EB1: VC-CYS gest. Varken | EC1: VC-THR gest. Varken | ED1: VC-TRP gest. Varken | EE1: VC-ILE gest. Varken | EF1: VC-ARG gest. Varken | EG1: VC-PHE gest. Varken | EH1: VC-HIS gest. Varken | EI1: VC-LEU gest. Varken | EJ1: VC-TYR gest. Varken | EK1: VC-VAL gest. Varken | EL1: VC-ALA gest. Varken | EM1: VC-ASP gest. Varken | EN1: VC-GLU gest. Varken | EO1: VC-GLY gest. Varken | EP1: VC-PRO gest. Varken | EQ1: VC-SER gest. Varken | ER1: VC-RE sch. varken | ES1: VC-LYS sch. varken | ET1: VC-MET sch. varken | EU1: VC-CYS sch. varken | EV1: VC-THR sch. varken | EW1: VC-TRP sch. varken | EX1: VC-ILE sch. varken | EY1: VC-ARG sch. varken | EZ1: VC-PHE sch. varken | FA1: VC-HIS sch. varken | FB1: VC-LEU sch. varken | FC1: VC-TYR sch. varken | FD1: VC-VAL sch. varken | FE1: VC-ALA sch. varken | FF1: VC-ASP sch. varken | FG1: VC-GLU sch. varken | FH1: VC-GLY sch. varken | FI1: VC-PRO sch. varken | FJ1: VC-SER sch. varken | FK1: Vert. RE gest. varken | FL1: Vert. LYS gest. varken | FM1: Vert. MET gest. varken | FN1: Vert. CYS gest. varken | FO1: Vert. THR gest. varken | FP1: Vert. TRP gest. varken | FQ1: Vert. ILE gest. varken | FR1: Vert. ARG gest. varken | FS1: Vert. PHE gest. varken | FT1: Vert. HIS gest. varken | FU1: Vert. LEU gest. varken | FV1: Vert. TYR gest. varken | FW1: Vert. VAL gest. varken | FX1: Vert. ALA gest. varken | FY1: Vert. ASP gest. varken | FZ1: Vert. GLU gest. varken | GA1: Vert. GLY gest. varken | GB1: Vert. PRO gest. varken | GC1: Vert. SER gest. varken | GD1: 'Vert. AZ gest. varken | GE1: Vert. RE sch. Varken | GF1: Vert. LYS sch. Varken | GG1: Vert. MET sch. Varken | GH1: Vert. CYS sch. Varken | GI1: Vert. THR sch. Varken | GJ1: Vert. TRP sch. Varken | GK1: Vert. ILE sch. Varken | GL1: Vert. ARG sch. Varken | GM1: Vert. PHE sch. Varken | GN1: Vert. HIS sch. Varken | GO1: Vert. LEU sch. Varken | GP1: Vert. TYR sch. Varken | GQ1: Vert. VAL sch. Varken | GR1: Vert. ALA sch. Varken | GS1: Vert. ASP sch. Varken | GT1: Vert. GLU sch. Varken | GU1: Vert. GLY sch. Varken | GV1: Vert. PRO sch. Varken | GW1: Vert. SER sch. Varken | GX1: Vert. AZ sch. Varken | GY1: LYS | GZ1: MET | HA1: CYS | HB1: THR | HC1: TRP | HD1: ILE | HE1: ARG | HF1: PHE | HG1: HIS | HH1: LEU | HI1: TYR | HJ1: VAL | HK1: ALA | HL1: ASP | HM1: GLU | HN1: GLY | HO1: PRO | HP1: SER | HQ1: SOM AZ | HR1: LYS | HS1: MET | HT1: CYS | HU1: THR | HV1: TRP | HW1: ILE | HX1: ARG | HY1: PHE | HZ1: HIS | IA1: LEU | IB1: TYR | IC1: VAL | ID1: ALA | IE1: ASP | IF1: GLU | IG1: GLY | IH1: PRO | II1: SER | IJ1: SOM AZ | IK1: VC-LYS hanen | IL1: VC-MET hanen | IM1: VC-CYS hanen | IN1: VC_THR hanen | IO1: VC-TRP hanen | IP1: VC-ILE hanen | IQ1: VC-ARG hanen | IR1: VC-PHE hanen | IS1: VC-HIS hanen | IT1: VC-LEU hanen | IU1: VC-TYR hanen | IV1: VC-VAL hanen | IW1: VC-ALA hanen | IX1: VC-ASP hanen | IY1: VC-GLU hanen | IZ1: VC-GLY hanen | JA1: VC-PRO hanen | JB1: VC-SER hanen | JC1: VC-LYS gest. Pluimvee | JD1: VC-MET gest. Pluimvee | JE1: VC-CYS gest. Pluimvee | JF1: VC-THR gest. Pluimvee | JG1: VC-TRP gest. Pluimvee | JH1: VC-ILE gest. Pluimvee | JI1: VC-ARG gest. Pluimvee | JJ1: VC-PHE gest. Pluimvee | JK1: VC-HIS gest. Pluimvee | JL1: VC-LEU gest. Pluimvee | JM1: VC-TYR gest. Pluimvee | JN1: VC-VAL gest. Pluimvee | JO1: VC-ALA gest. Pluimvee | JP1: VC-ASP gest. Pluimvee | JQ1: VC-GLU gest. Pluimvee | JR1: VC-GLY gest. Pluimvee | JS1: VC-PRO gest. Pluimvee | JT1: VC-SER gest. Pluimvee | JU1: Vert. RE pl. | JV1: Vert. LYS pl. | JW1: Vert. MET pl. | JX1: Vert. CYS pl. | JY1: Vert. THR pl. | JZ1: Vert. TRP pl. | KA1: Vert. ILE pl. | KB1: Vert. ARG pl. | KC1: Vert. PHE pl. | KD1: Vert. HIS pl. | KE1: Vert. LEU pl. | KF1: Vert. TYR pl. | KG1: Vert. VAL pl. | KH1: Vert. ALA pl. | KI1: Vert. ASP pl. | KJ1: Vert. GLU pl. | KK1: Vert. GLY pl. | KL1: Vert. PRO pl. | KM1: Vert. SER pl. | KN1: Vert. AZ pl. | KO1: Vert. LYS gest. varken | KP1: Vert. MET gest. varken | KQ1: Vert. CYS gest. varken | KR1: Vert. THR gest. varken | KS1: Vert. TRP gest. varken | KT1: Vert. ILE gest. varken | KU1: Vert. ARG gest. varken | KV1: Vert. PHE gest. varken | KW1: Vert. HIS gest. varken | KX1: Vert. LEU gest. varken | KY1: Vert. TYR gest. varken | KZ1: Vert. VAL gest. varken | LA1: Vert. ALA gest. varken | LB1: Vert. ASP gest. varken | LC1: Vert. GLU gest. varken | LD1: Vert. GLY gest. varken | LE1: Vert. PRO gest. varken | LF1: Vert. SER gest. varken | LG1: Vert. AZ gest. varken | LH1: <=C10 | LI1: C12:0 | LJ1: C14:0 | LK1: C16:0 | LL1: C16:1 | LM1: C18:0 | LN1: C18:1 | LO1: C18:2 | LP1: C18:3 | LQ1: >=C20 | LR1: Som VZ | LS1: RVET(h) | LT1: <=C10 | LU1: C12:0 | LV1: C14:0 | LW1: C16:0 | LX1: C16:1 | LY1: C18:0 | LZ1: C18:1 | MA1: C18:2 | MB1: C18:3 | MC1: >=C20 | MD1: Som VZ | ME1: VZ | MF1: IP/P | MG1: SUIe/SUI | MH1: CF_DI | MI1: EB | MJ1: KAV | MK1: Glycerol | MM1: Amount ToTal Diet (Kg) | MN1: Availability P (g/Kg) | MT1: Additives Phytase | MX1: CO2 eq/kg in DS
N2: Feed % | O2: g/kg in DS | P2: g/kg in DS | Q2: g/kg in DS | R2: g/kg in DS | S2: g/kg in DS | T2: g/kg in DS | U2: g/kg in DS | V2: g/kg in DS | W2: g/kg in DS | X2: g/kg in DS | Y2: g/kg in DS | Z2: g/kg in DS | AA2: g/kg in DS | AB2: g/kg in DS | AC2: g/kg in DS | AD2: g/kg in DS | AE2: g/kg in DS | AF2: g/kg in DS | AG2: g/kg in DS | AH2: g/kg in DS | AI2: g/kg in DS | AJ2: g/kg in DS | AK2: g/kg in DS | AL2: g/kg in DS | AM2: g/kg in DS | AN2: g/kg in DS | AO2: g/kg in DS | AP2: g/kg in DS | AQ2: mg/kg in DS in DS | AR2: mg/kg in DS in DS | AS2: mg/kg in DS in DS | AT2: mg/kg in DS in DS | AU2: mg/kg in DS in DS | AV2: mg/kg in DS in DS | AW2: mg/kg in DS in DS | AX2: g/kg in DS | AY2: g/kg in DS | AZ2: g/kg in DS | BA2: g/kg in DS | BB2: g/kg in DS | BC2: g/kg in DS | BD2: % | BE2: % | BF2: % | BG2: % | BH2: % | BI2: % | BJ2: % | BK2: % | BL2: % | BM2: % | BN2: % | BO2: % | BP2: % | BQ2: % | BR2: % | BS2: % | BT2: % | BU2: % | BV2: % | BW2: % | BX2: % | BY2: % | BZ2: % | CA2: % | CB2: % | CC2: % | CD2: % | CE2: % | CF2: % van RE | CG2: % van BRE | CH2: % van ZET | CI2: % | CJ2: g/kg in DS | CK2: g/kg in DS | CL2: g/kg in DS | CM2: g/kg in DS | CN2: g/kg in DS | CO2: g/kg in DS | CP2: % van RE | CQ2: % van BRE | CR2: % van ZET | CS2: g/kg in DS | CT2: g/kg in DS | CU2: - | CV2: g/kg in DS | CW2: g/kg in DS | CX2: g/kg in DS | CY2: g/kg in DS | CZ2: g/kg in DS | DC2: /kg in DS | DD2: /kg in DS | DE2: /kg in DS | DF2: /kg in DS | DG2: MJ/kg in DS | DH2: Kcal/kg in DS | DI2: MJ/kg in DS | DJ2: Kcal/kg in DS | DK2: /kg in DS | DL2: g/kg in DS | DM2: MJ/kg in DS | DN2: Kcal/kg in DS | DO2: MJ/kg in DS | DP2: Kcal/kg in DS | DQ2: g/kg in DS | DR2: MJ/kg in DS | DS2: MJ/kg in DS | DT2: MJ/kg in DS | DU2: Kcal/kg in DS | DV2: /kg in DS | DW2: g/kg in DS | DX2: g/kg in DS | DY2: % | DZ2: % | EA2: % | EB2: % | EC2: % | ED2: % | EE2: % | EF2: % | EG2: % | EH2: % | EI2: % | EJ2: % | EK2: % | EL2: % | EM2: % | EN2: % | EO2: % | EP2: % | EQ2: % | ER2: % | ES2: % | ET2: % | EU2: % | EV2: % | EW2: % | EX2: % | EY2: % | EZ2: % | FA2: % | FB2: % | FC2: % | FD2: % | FE2: % | FF2: % | FG2: % | FH2: % | FI2: % | FJ2: % | FK2: g/kg in DS | FL2: g/kg in DS | FM2: g/kg in DS | FN2: g/kg in DS | FO2: g/kg in DS | FP2: g/kg in DS | FQ2: g/kg in DS | FR2: g/kg in DS | FS2: g/kg in DS | FT2: g/kg in DS | FU2: g/kg in DS | FV2: g/kg in DS | FW2: g/kg in DS | FX2: g/kg in DS | FY2: g/kg in DS | FZ2: g/kg in DS | GA2: g/kg in DS | GB2: g/kg in DS | GC2: g/kg in DS | GD2: g/kg in DS | GE2: g/kg in DS | GF2: g/kg in DS | GG2: g/kg in DS | GH2: g/kg in DS | GI2: g/kg in DS | GJ2: g/kg in DS | GK2: g/kg in DS | GL2: g/kg in DS | GM2: g/kg in DS | GN2: g/kg in DS | GO2: g/kg in DS | GP2: g/kg in DS | GQ2: g/kg in DS | GR2: g/kg in DS | GS2: g/kg in DS | GT2: g/kg in DS | GU2: g/kg in DS | GV2: g/kg in DS | GW2: g/kg in DS | GX2: g/kg in DS | GY2: g/16g N | GZ2: g/16g N | HA2: g/16g N | HB2: g/16g N | HC2: g/16g N | HD2: g/16g N | HE2: g/16g N | HF2: g/16g N | HG2: g/16g N | HH2: g/16g N | HI2: g/16g N | HJ2: g/16g N | HK2: g/16g N | HL2: g/16g N | HM2: g/16g N | HN2: g/16g N | HO2: g/16g N | HP2: g/16g N | HQ2: g/16g N | HR2: g/kg in DS | HS2: g/kg in DS | HT2: g/kg in DS | HU2: g/kg in DS | HV2: g/kg in DS | HW2: g/kg in DS | HX2: g/kg in DS | HY2: g/kg in DS | HZ2: g/kg in DS | IA2: g/kg in DS | IB2: g/kg in DS | IC2: g/kg in DS | ID2: g/kg in DS | IE2: g/kg in DS | IF2: g/kg in DS | IG2: g/kg in DS | IH2: g/kg in DS | II2: g/kg in DS | IJ2: g/kg in DS | IK2: % | IL2: % | IM2: % | IN2: % | IO2: % | IP2: % | IQ2: % | IR2: % | IS2: % | IT2: % | IU2: % | IV2: % | IW2: % | IX2: % | IY2: % | IZ2: % | JA2: % | JB2: % | JC2: % | JD2: % | JE2: % | JF2: % | JG2: % | JH2: % | JI2: % | JJ2: % | JK2: % | JL2: % | JM2: % | JN2: % | JO2: % | JP2: % | JQ2: % | JR2: % | JS2: % | JT2: % | JU2: g/kg in DS | JV2: g/kg in DS | JW2: g/kg in DS | JX2: g/kg in DS | JY2: g/kg in DS | JZ2: g/kg in DS | KA2: g/kg in DS | KB2: g/kg in DS | KC2: g/kg in DS | KD2: g/kg in DS | KE2: g/kg in DS | KF2: g/kg in DS | KG2: g/kg in DS | KH2: g/kg in DS | KI2: g/kg in DS | KJ2: g/kg in DS | KK2: g/kg in DS | KL2: g/kg in DS | KM2: g/kg in DS | KN2: g/kg in DS | KO2: g/kg in DS | KP2: g/kg in DS | KQ2: g/kg in DS | KR2: g/kg in DS | KS2: g/kg in DS | KT2: g/kg in DS | KU2: g/kg in DS | KV2: g/kg in DS | KW2: g/kg in DS | KX2: g/kg in DS | KY2: g/kg in DS | KZ2: g/kg in DS | LA2: g/kg in DS | LB2: g/kg in DS | LC2: g/kg in DS | LD2: g/kg in DS | LE2: g/kg in DS | LF2: g/kg in DS | LG2: g/kg in DS | LH2: g/kg in DS | LI2: g/kg in DS | LJ2: g/kg in DS | LK2: g/kg in DS | LL2: g/kg in DS | LM2: g/kg in DS | LN2: g/kg in DS | LO2: g/kg in DS | LP2: g/kg in DS | LQ2: g/kg in DS | LR2: g/kg in DS | LS2: g/kg in DS | LT2: % VZ | LU2: % VZ | LV2: % VZ | LW2: % VZ | LX2: % VZ | LY2: % VZ | LZ2: % VZ | MA2: % VZ | MB2: % VZ | MC2: % VZ | MD2: % van VZ | ME2: % van RVET(h) | MF2: - | MG2: % | MH2: - | MI2: meq/kg in DS | MJ2: meq/kg in DS | MK2: g/kg in DS | MN2: Pig,Broiler,Laying Hen | MQ2: Dairy Cattle | MT2: Pig,Broiler,Laying Hen
A3: product code | B3: soort_product | C3: productnaam | D3: klassenaam | E3: subklassenaam | F3: product name | G3: class name | H3: sub class name | I3: Dairy cattle | J3: Laying hen | K3: Broiler | L3: Pig | M3: euro // tons | N3: =SUM(N4:N61) -> 100 | O3: DS | P3: RAS | Q3: REin | R3: RE | S3: RVET | T3: RVETh | U3: RC | V3: fOK | W3: OKh | X3: ZETew | Y3: t_ZETam | Z3: GOS | AA3: SUI | AB3: NDF | AC3: ADF | AD3: ADL | AE3: NSP | AF3: RNSP | AG3: Ca | AH3: P | AI3: t_IP | AJ3: Mg | AK3: K | AL3: Na | AM3: Cl | AN3: S-a | AO3: S_o1 | AP3: S | AQ3: Fe | AR3: Mn | AS3: Zn | AT3: Cu | AU3: Mo | AV3: J | AW3: Co | AX3: FP2 | AY3: MELKZ | AZ3: AZYNZ | BA3: ALC | BB3: PRZ | BC3: BTRZR | BD3: A_VC_RE | BE3: A_VC_RV | BF3: A_VC_RC | BG3: A_VC_OK | BH3: A_VC_OS | BI3: C_VC_RE | BJ3: C_VC_RV | BK3: C_VC_RC | BL3: C_VC_OK | BM3: C_VC_OS | BN3: C_VC_NSP | BO3: C_VCI_ZET | BP3: C_VC_P | BQ3: SchVCP | BR3: D_VC_RE | BS3: D_VC_RV | BT3: D_VC_OK | BU3: D_OC_P | BV3: VCREvlk | BW3: VCRVvlk | BX3: VCZ+Svlk | BY3: VCOKhvlk | BZ3: E_VCRE | CA3: E_VCRV | CB3: E_VCRC | CC3: E_VCOK | CD3: B_VC_RE | CE3: B_VC_OS | CF3: pBRE91 | CG3: pDVBE1 | CH3: pBZET91 | CI3: A_%VRAS | CJ3: A_MVRAS | CK3: t_FOS | CL3: t_DVE_91 | CM3: OEB_91 | CN3: DVMET_91 | CO3: DVLYS_91 | CP3: pBRE | CQ3: pDVBE | CR3: pBZET07 | CS3: FOS | CT3: FOS_2 | CU3: ratioFOS | CV3: DVE | CW3: OEB | CX3: OEB_2 | CY3: DVMETh | CZ3: DVLYSh | DC3: SW | DD3: VW | DE3: VEM_bas | DF3: VEVI_bas | DG3: OEk | DH3: OEKkcal | DI3: NEm | DJ3: NEmkcal | DK3: EWpa | DL3: VREp | DM3: OEpl | DN3: OEplkcal | DO3: OElh | DP3: OElhkcal | DQ3: oP | DR3: OEvlk | DS3: OEvlkkca | DT3: NE2015 | DU3: NE2015kc | DV3: EW2015 | DW3: vP | DX3: SchVP | DY3: C_STVC_RE | DZ3: C_STVC_LYS | EA3: C_STVC_MET | EB3: C_STVC_CYS | EC3: C_STVC_THR | ED3: C_STVC_TRP | EE3: C_STVC_ILE | EF3: C_STVC_ARG | EG3: C_STVC_PHE | EH3: C_STVC_HIS | EI3: C_STVC_LEU | EJ3: C_STVC_TYR | EK3: C_STVC_VAL | EL3: C_STVC_ALA | EM3: C_STVC_ASP | EN3: C_STVC_GLU | EO3: C_STVC_GLY | EP3: C_STVC_PRO | EQ3: C_STVC_SER | ER3: C_DVC_RE | ES3: C_DVC_LY | ET3: C_DVC_ME | EU3: C_DVC_CY | EV3: C_DVC_TH | EW3: C_DVC_TR | EX3: C_DVC_IL | EY3: C_DVC_AR | EZ3: C_DVC_PH | FA3: C_DVC_HI | FB3: C_DVC_LE | FC3: C_DVC_TY | FD3: C_DVC_VA | FE3: C_DVC_AL | FF3: C_DVC_AS | FG3: C_DVC_GU | FH3: C_DVC_GY | FI3: C_DVC_PR | FJ3: C_DVC_SE | FK3: sta_REv | FL3: staLYSv | FM3: staMETv | FN3: staCYSv | FO3: staTHRv | FP3: staTRPv | FQ3: staILEv | FR3: staARGv | FS3: staPHEv | FT3: staHISv | FU3: staLEUv | FV3: staTYRv | FW3: staVALv | FX3: staALAv | FY3: staASPv | FZ3: staGLUv | GA3: staGLYv | GB3: staPROv | GC3: staSERv | GD3: sta_AZ_v | GE3: schdREv | GF3: schdLYSv | GG3: schdMETv | GH3: schdCYSv | GI3: schdTHRv | GJ3: schdTRPv | GK3: schdILEv | GL3: schdARGv | GM3: schdPHEv | GN3: schdHISv | GO3: schdLEUv | GP3: schdTYRv | GQ3: schdVALv | GR3: schdALAv | GS3: schdASPv | GT3: schdGLUv | GU3: schdGLYv | GV3: schdPROv | GW3: schdSERv | GX3: sch_AZ_v | GY3: LYS | GZ3: MET | HA3: CYS | HB3: THR | HC3: TRP | HD3: ILE | HE3: ARG | HF3: PHE | HG3: HIS | HH3: LEU | HI3: TYR | HJ3: VAL | HK3: ALA | HL3: ASP | HM3: GLU | HN3: GLY | HO3: PRO | HP3: SER | HQ3: SOM_AZ1 | HR3: gLYS | HS3: gMET | HT3: gCYS | HU3: gTHR | HV3: gTRP | HW3: gILE | HX3: gARG | HY3: gPHE | HZ3: gHIS | IA3: gLEU | IB3: gTYR | IC3: gVAL | ID3: gALA | IE3: gASP | IF3: gGLU | IG3: gGLY | IH3: gPRO | II3: gSER | IJ3: SOM_AZ2 | IK3: D_VC_LYS | IL3: D_VC_MET | IM3: D_VC_CYS | IN3: D_VC_THR | IO3: D_VC_TRP | IP3: D_VC_ILE | IQ3: D_VC_ARG | IR3: D_VC_FEN | IS3: D_VC_HIS | IT3: D_VC_LEU | IU3: D_VC_TYR | IV3: D_VC_VAL | IW3: D_VC_ALA | IX3: D_VC_ASP | IY3: D_VC_GLU | IZ3: D_VC_GLY | JA3: D_VC_PRO | JB3: D_VC_SER | JC3: G_SIDC_LYS | JD3: G_SIDC_MET | JE3: G_SIDC_CYS | JF3: G_SIDC_THR | JG3: G_SIDC_TRP | JH3: G_SIDC_ILE | JI3: G_SIDC_ARG | JJ3: G_SIDC_PHE | JK3: G_SIDC_HIS | JL3: G_SIDC_LEU | JM3: G_SIDC_TYR | JN3: G_SIDC_VAL | JO3: G_SIDC_ALA | JP3: G_SIDC_ASP | JQ3: G_SIDC_GLU | JR3: G_SIDC_GLY | JS3: G_SIDC_PRO | JT3: G_SIDC_SER | JU3: D_VRE_pl | JV3: v_LYS_pl | JW3: v_MET_pl | JX3: v_CYS_pl | JY3: v_THR_pl | JZ3: v_TRP_pl | KA3: v_ILE_pl | KB3: v_ARG_pl | KC3: v_PHE_pl | KD3: v_HIS_pl | KE3: v_LEU_pl | KF3: v_TYR_pl | KG3: v_VAL_pl | KH3: v_ALA_pl | KI3: v_ASP_pl | KJ3: v_GLU_pl | KK3: v_GLY_pl | KL3: v_PRO_pl | KM3: v_SER_pl | KN3: D_AZ_pl | KO3: G_SID_LY | KP3: G_SID_ME | KQ3: G_SID_CY | KR3: G_SID_TH | KS3: G_SID_TR | KT3: G_SID_IL | KU3: G_SID_AR | KV3: G_SID_PH | KW3: G_SID_HI | KX3: G_SID_LE | KY3: G_SID_TY | KZ3: G_SID_VA | LA3: G_SID_AL | LB3: G_SID_AS | LC3: G_SID_GU | LD3: G_SID_GY | LE3: G_SID_PR | LF3: G_SID_SE | LG3: G_SID_AZ | LH3: t_K_C10 | LI3: t_C12_0 | LJ3: t_C14_0 | LK3: t_C16_0 | LL3: t_C16_1 | LM3: t_C18_0 | LN3: t_C18_1 | LO3: t_C18_2 | LP3: t_C18_3 | LQ3: t_K_C20 | LR3: t_VETZ | LS3: RVETber | LT3: <=C10 | LU3: C12:0 | LV3: C14:0 | LW3: C16:0 | LX3: C16:1 | LY3: C18:0 | LZ3: C18:1 | MA3: C18:2 | MB3: C18:3 | MC3: >=C20 | MD3: tot_VETZ | ME3: VZ_RV | MF3: IPPratio | MG3: C_VCI_SUI | MH3: C_CF_DI | MI3: EB | MJ3: KAV | MK3: glyce | MN3: P1 | MO3: P2 | MP3: Pt1-2 | MQ3: P3 | MR3: P4 | MS3: Pt3-4 | MT3: P5 | MU3: P6 | MV3: Pt6-7
A4: 1005 | B4: mengvoergrondstoffen | C4: Gerst | F4: Barley | I4: X | L4: X | M4: 149.5 | O4: =IF($N$4,($N$4*'CVB Table 2019'!O4)/100," ") ->  | P4: =IF($N$4,(($N$4*'CVB Table 2019'!P4)/100)*('CVB Table 2019'!$O$4)/1000," ") ->  | Q4: =IF($N$4,(($N$4*'CVB Table 2019'!Q4)/100)*('CVB Table 2019'!$O$4)/1000," ") ->  | R4: =IF($N$4,(($N$4*'CVB Table 2019'!R4)/100)*('CVB Table 2019'!$O$4)/1000," ") ->  | S4: =IF($N$4,(($N$4*'CVB Table 2019'!S4)/100)*('CVB Table 2019'!$O$4)/1000," ") ->  | T4: =IF($N$4,(($N$4*'CVB Table 2019'!T4)/100)*('CVB Table 2019'!$O$4)/1000," ") ->  | U4: =IF($N$4,(($N$4*'CVB Table 2019'!U4)/100)*('CVB Table 2019'!$O$4)/1000," ") ->  | V4: =IF($N$4,(($N$4*'CVB Table 2019'!V4)/100)*('CVB Table 2019'!$O$4)/1000," ") ->  | W4: =IF($N$4,(($N$4*'CVB Table 2019'!W4)/100)*('CVB Table 2019'!$O$4)/1000," ") ->  | X4: =IF($N$4,(($N$4*'CVB Table 2019'!X4)/100)*('CVB Table 2019'!$O$4)/1000," ") ->  | Y4: =IF($N$4,(($N$4*'CVB Table 2019'!Y4)/100)*('CVB Table 2019'!$O$4)/1000," ") ->  | Z4: =IF($N$4,(($N$4*'CVB Table 2019'!Z4)/100)*('CVB Table 2019'!$O$4)/1000," ") ->  | AA4: =IF($N$4,(($N$4*'CVB Table 2019'!AA4)/100)*('CVB Table 2019'!$O$4)/1000," ") ->  | AB4: =IF($N$4,(($N$4*'CVB Table 2019'!AB4)/100)*('CVB Table 2019'!$O$4)/1000," ") ->  | AC4: =IF($N$4,(($N$4*'CVB Table 2019'!AC4)/100)*('CVB Table 2019'!$O$4)/1000," ") ->  | AD4: =IF($N$4,(($N$4*'CVB Table 2019'!AD4)/100)*('CVB Table 2019'!$O$4)/1000," ") ->  | AE4: =IF($N$4,(($N$4*'CVB Table 2019'!AE4)/100)*('CVB Table 2019'!$O$4)/1000," ") ->  | AF4: =IF($N$4,(($N$4*'CVB Table 2019'!AF4)/100)*('CVB Table 2019'!$O$4)/1000," ") ->  | AG4: =IF($N$4,(($N$4*'CVB Table 2019'!AG4)/100)*('CVB Table 2019'!$O$4)/1000," ") ->  | AH4: =IF($N$4,(($N$4*'CVB Table 2019'!AH4)/100)*('CVB Table 2019'!$O$4)/1000," ") ->  | AI4: =IF($N$4,(($N$4*'CVB Table 2019'!AI4)/100)*('CVB Table 2019'!$O$4)/1000," ") ->  | AJ4: =IF($N$4,(($N$4*'CVB Table 2019'!AJ4)/100)*('CVB Table 2019'!$O$4)/1000," ") ->  | AK4: =IF($N$4,(($N$4*'CVB Table 2019'!AK4)/100)*('CVB Table 2019'!$O$4)/1000," ") ->  | AL4: =IF($N$4,(($N$4*'CVB Table 2019'!AL4)/100)*('CVB Table 2019'!$O$4)/1000," ") ->  | AM4: =IF($N$4,(($N$4*'CVB Table 2019'!AM4)/100)*('CVB Table 2019'!$O$4)/1000," ") ->  | AN4: =IF($N$4,(($N$4*'CVB Table 2019'!AN4)/100)*('CVB Table 2019'!$O$4)/1000," ") ->  | AO4: =IF($N$4,(($N$4*'CVB Table 2019'!AO4)/100)*('CVB Table 2019'!$O$4)/1000," ") ->  | AP4: =IF($N$4,(($N$4*'CVB Table 2019'!AP4)/100)*('CVB Table 2019'!$O$4)/1000," ") ->  | AQ4: =IF($N$4,(($N$4*'CVB Table 2019'!AQ4)/100)*('CVB Table 2019'!$O$4)/1000," ") ->  | AR4: =IF($N$4,(($N$4*'CVB Table 2019'!AR4)/100)*('CVB Table 2019'!$O$4)/1000," ") ->  | AS4: =IF($N$4,(($N$4*'CVB Table 2019'!AS4)/100)*('CVB Table 2019'!$O$4)/1000," ") ->  | AT4: =IF($N$4,(($N$4*'CVB Table 2019'!AT4)/100)*('CVB Table 2019'!$O$4)/1000," ") ->  | AU4: =IF($N$4,(($N$4*'CVB Table 2019'!AU4)/100)*('CVB Table 2019'!$O$4)/1000," ") ->  | AV4: =IF($N$4,(($N$4*'CVB Table 2019'!AV4)/100)*('CVB Table 2019'!$O$4)/1000," ") ->  | AW4: =IF($N$4,(($N$4*'CVB Table 2019'!AW4)/100)*('CVB Table 2019'!$O$4)/1000," ") ->  | AX4: =IF($N$4,(($N$4*'CVB Table 2019'!AX4)/100)*('CVB Table 2019'!$O$4)/1000," ") ->  | AY4: =IF($N$4,(($N$4*'CVB Table 2019'!AY4)/100)*('CVB Table 2019'!$O$4)/1000," ") ->  | AZ4: =IF($N$4,(($N$4*'CVB Table 2019'!AZ4)/100)*('CVB Table 2019'!$O$4)/1000," ") ->  | BA4: =IF($N$4,(($N$4*'CVB Table 2019'!BA4)/100)*('CVB Table 2019'!$O$4)/1000," ") ->  | BB4: =IF($N$4,(($N$4*'CVB Table 2019'!BB4)/100)*('CVB Table 2019'!$O$4)/1000," ") ->  | BC4: =IF($N$4,(($N$4*'CVB Table 2019'!BC4)/100)*('CVB Table 2019'!$O$4)/1000," ") ->  | BD4: =IF($N$4,($N$4*'CVB Table 2019'!BD4)/100," ") ->  | BE4: =IF($N$4,($N$4*'CVB Table 2019'!BE4)/100," ") ->  | BF4: =IF($N$4,($N$4*'CVB Table 2019'!BF4)/100," ") ->  | BG4: =IF($N$4,($N$4*'CVB Table 2019'!BG4)/100," ") ->  | BH4: =IF($N$4,($N$4*'CVB Table 2019'!BH4)/100," ") ->  | BI4: =IF($N$4,($N$4*'CVB Table 2019'!BI4)/100," ") ->  | BJ4: =IF($N$4,($N$4*'CVB Table 2019'!BJ4)/100," ") ->  | BK4: =IF($N$4,($N$4*'CVB Table 2019'!BK4)/100," ") ->  | BL4: =IF($N$4,($N$4*'CVB Table 2019'!BL4)/100," ") ->  | BM4: =IF($N$4,($N$4*'CVB Table 2019'!BM4)/100," ") ->  | BN4: =IF($N$4,($N$4*'CVB Table 2019'!BN4)/100," ") ->  | BO4: =IF($N$4,($N$4*'CVB Table 2019'!BO4)/100," ") ->  | BP4: =IF($N$4,($N$4*'CVB Table 2019'!BP4)/100," ") ->  | BQ4: =IF($N$4,($N$4*'CVB Table 2019'!BQ4)/100," ") ->  | BR4: =IF($N$4,($N$4*'CVB Table 2019'!BR4)/100," ") ->  | BS4: =IF($N$4,($N$4*'CVB Table 2019'!BS4)/100," ") ->  | BT4: =IF($N$4,($N$4*'CVB Table 2019'!BT4)/100," ") ->  | BU4: =IF($N$4,($N$4*'CVB Table 2019'!BU4)/100," ") ->  | BV4: =IF($N$4,($N$4*'CVB Table 2019'!BV4)/100," ") ->  | BW4: =IF($N$4,($N$4*'CVB Table 2019'!BW4)/100," ") ->  | BX4: =IF($N$4,($N$4*'CVB Table 2019'!BX4)/100," ") ->  | BY4: =IF($N$4,($N$4*'CVB Table 2019'!BY4)/100," ") ->  | BZ4: =IF($N$4,($N$4*'CVB Table 2019'!BZ4)/100," ") ->  | CA4: =IF($N$4,($N$4*'CVB Table 2019'!CA4)/100," ") ->  | CB4: =IF($N$4,($N$4*'CVB Table 2019'!CB4)/100," ") ->  | CC4: =IF($N$4,($N$4*'CVB Table 2019'!CC4)/100," ") ->  | CD4: =IF($N$4,($N$4*'CVB Table 2019'!CD4)/100," ") ->  | CE4: =IF($N$4,($N$4*'CVB Table 2019'!CE4)/100," ") ->  | CF4: =IF($N$4,($N$4*'CVB Table 2019'!CF4)/100," ") ->  | CG4: =IF($N$4,($N$4*'CVB Table 2019'!CG4)/100," ") ->  | CH4: =IF($N$4,($N$4*'CVB Table 2019'!CH4)/100," ") ->  | CI4: =IF($N$4,($N$4*'CVB Table 2019'!CI4)/100," ") ->  | CJ4: =IF($N$4,(($N$4*'CVB Table 2019'!CJ4)/100)*('CVB Table 2019'!$O$4)/1000," ") ->  | CK4: =IF($N$4,(($N$4*'CVB Table 2019'!CK4)/100)*('CVB Table 2019'!$O$4)/1000," ") ->  | CL4: =IF($N$4,(($N$4*'CVB Table 2019'!CL4)/100)*('CVB Table 2019'!$O$4)/1000," ") ->  | CM4: =IF($N$4,(($N$4*'CVB Table 2019'!CM4)/100)*('CVB Table 2019'!$O$4)/1000," ") ->  | CN4: =IF($N$4,(($N$4*'CVB Table 2019'!CN4)/100)*('CVB Table 2019'!$O$4)/1000," ") ->  | CO4: =IF($N$4,(($N$4*'CVB Table 2019'!CO4)/100)*('CVB Table 2019'!$O$4)/1000," ") ->  | CP4: =IF($N$4,($N$4*'CVB Table 2019'!CP4)/100," ") ->  | CQ4: =IF($N$4,($N$4*'CVB Table 2019'!CQ4)/100," ") ->  | CR4: =IF($N$4,($N$4*'CVB Table 2019'!CR4)/100," ") ->  | CS4: =IF($N$4,(($N$4*'CVB Table 2019'!CS4)/100)*('CVB Table 2019'!$O$4)/1000," ") ->  | CT4: =IF($N$4,(($N$4*'CVB Table 2019'!CT4)/100)*('CVB Table 2019'!$O$4)/1000," ") ->  | CU4: =IF($N$4,($N$4*'CVB Table 2019'!CU4)/100," ") ->  | CV4: =IF($N$4,(($N$4*'CVB Table 2019'!CV4)/100)*('CVB Table 2019'!$O$4)/1000," ") ->  | CW4: =IF($N$4,(($N$4*'CVB Table 2019'!CW4)/100)*('CVB Table 2019'!$O$4)/1000," ") ->  | CX4: =IF($N$4,(($N$4*'CVB Table 2019'!CX4)/100)*('CVB Table 2019'!$O$4)/1000," ") ->  | CY4: =IF($N$4,(($N$4*'CVB Table 2019'!CY4)/100)*('CVB Table 2019'!$O$4)/1000," ") ->  | CZ4: =IF($N$4,(($N$4*'CVB Table 2019'!CZ4)/100)*('CVB Table 2019'!$O$4)/1000," ") ->  | DA4: =IF($N$4,($N$4*'CVB Table 2019'!DA4)/100," ") ->  | DB4: =IF($N$4,($N$4*'CVB Table 2019'!DB4)/100," ") ->  | DC4: =IF($N$4,($N$4*'CVB Table 2019'!DC4)/100," ") ->  | DD4: =IF($N$4,($N$4*'CVB Table 2019'!DD4)/100," ") ->  | DE4: =IF(N4,((N4*'CVB Table 2019'!DE4)/100)*('CVB Table 2019'!O4)/1000," ") ->  | DF4: =IF($N$4,($N$4*'CVB Table 2019'!DF4)/100," ") ->  | DG4: =IF($N$4,($N$4*'CVB Table 2019'!DG4)/100," ") ->  | DH4: =IF($N$4,($N$4*'CVB Table 2019'!DH4)/100," ") ->  | DI4: =IF($N$4,($N$4*'CVB Table 2019'!DI4)/100," ") ->  | DJ4: =IF($N$4,($N$4*'CVB Table 2019'!DJ4)/100," ") ->  | DK4: =IF($N$4,($N$4*'CVB Table 2019'!DK4)/100," ") ->  | DL4: =IF($N$4,($N$4*'CVB Table 2019'!DL4)/100," ") ->  | DM4: =IF(N4,((N4*'CVB Table 2019'!DM4)/100)*('CVB Table 2019'!O4)/1000," ") ->  | DN4: =IF($N$4,($N$4*'CVB Table 2019'!DN4)/100," ") ->  | DO4: =IF(N4,((N4*'CVB Table 2019'!DO4)/100)*('CVB Table 2019'!O4)/1000," ") ->  | DP4: =IF($N$4,($N$4*'CVB Table 2019'!DP4)/100," ") ->  | DQ4: =IF($N$4,($N$4*'CVB Table 2019'!DQ4)/100," ") ->  | DR4: =IF($N$4,($N$4*'CVB Table 2019'!DR4)/100," ") ->  | DS4: =IF($N$4,($N$4*'CVB Table 2019'!DS4)/100," ") ->  | DT4: =IF(N4,((N4*'CVB Table 2019'!DT4)/100)*('CVB Table 2019'!O4)/1000," ") ->  | DU4: =IF($N$4,($N$4*'CVB Table 2019'!DU4)/100," ") ->  | DV4: =IF(N4,((N4*'CVB Table 2019'!DV4)/100)*('CVB Table 2019'!O4)/1000," ") ->  | DW4: =IF($N$4,(($N$4*'CVB Table 2019'!DW4)/100)*('CVB Table 2019'!$O$4)/1000," ") ->  | DX4: =IF($N$4,(($N$4*'CVB Table 2019'!DX4)/100)*('CVB Table 2019'!$O$4)/1000," ") ->  | DY4: =IF($N$4,($N$4*'CVB Table 2019'!DY4)/100," ") ->  | DZ4: =IF($N$4,($N$4*'CVB Table 2019'!DZ4)/100," ") ->  | EA4: =IF($N$4,($N$4*'CVB Table 2019'!EA4)/100," ") ->  | EB4: =IF($N$4,($N$4*'CVB Table 2019'!EB4)/100," ") ->  | EC4: =IF($N$4,($N$4*'CVB Table 2019'!EC4)/100," ") ->  | ED4: =IF($N$4,($N$4*'CVB Table 2019'!ED4)/100," ") ->  | EE4: =IF($N$4,($N$4*'CVB Table 2019'!EE4)/100," ") ->  | EF4: =IF($N$4,($N$4*'CVB Table 2019'!EF4)/100," ") ->  | EG4: =IF($N$4,($N$4*'CVB Table 2019'!EG4)/100," ") ->  | EH4: =IF($N$4,($N$4*'CVB Table 2019'!EH4)/100," ") ->  | EI4: =IF($N$4,($N$4*'CVB Table 2019'!EI4)/100," ") ->  | EJ4: =IF($N$4,($N$4*'CVB Table 2019'!EJ4)/100," ") ->  | EK4: =IF($N$4,($N$4*'CVB Table 2019'!EK4)/100," ") ->  | EL4: =IF($N$4,($N$4*'CVB Table 2019'!EL4)/100," ") ->  | EM4: =IF($N$4,($N$4*'CVB Table 2019'!EM4)/100," ") ->  | EN4: =IF($N$4,($N$4*'CVB Table 2019'!EN4)/100," ") ->  | EO4: =IF($N$4,($N$4*'CVB Table 2019'!EO4)/100," ") ->  | EP4: =IF($N$4,($N$4*'CVB Table 2019'!EP4)/100," ") ->  | EQ4: =IF($N$4,($N$4*'CVB Table 2019'!EQ4)/100," ") ->  | ER4: =IF($N$4,($N$4*'CVB Table 2019'!ER4)/100," ") ->  | ES4: =IF($N$4,($N$4*'CVB Table 2019'!ES4)/100," ") ->  | ET4: =IF($N$4,($N$4*'CVB Table 2019'!ET4)/100," ") ->  | EU4: =IF($N$4,($N$4*'CVB Table 2019'!EU4)/100," ") ->  | EV4: =IF($N$4,($N$4*'CVB Table 2019'!EV4)/100," ") ->  | EW4: =IF($N$4,($N$4*'CVB Table 2019'!EW4)/100," ") ->  | EX4: =IF($N$4,($N$4*'CVB Table 2019'!EX4)/100," ") ->  | EY4: =IF($N$4,($N$4*'CVB Table 2019'!EY4)/100," ") ->  | EZ4: =IF($N$4,($N$4*'CVB Table 2019'!EZ4)/100," ") ->  | FA4: =IF($N$4,($N$4*'CVB Table 2019'!FA4)/100," ") ->  | FB4: =IF($N$4,($N$4*'CVB Table 2019'!FB4)/100," ") ->  | FC4: =IF($N$4,($N$4*'CVB Table 2019'!FC4)/100," ") ->  | FD4: =IF($N$4,($N$4*'CVB Table 2019'!FD4)/100," ") ->  | FE4: =IF($N$4,($N$4*'CVB Table 2019'!FE4)/100," ") ->  | FF4: =IF($N$4,($N$4*'CVB Table 2019'!FF4)/100," ") ->  | FG4: =IF($N$4,($N$4*'CVB Table 2019'!FG4)/100," ") ->  | FH4: =IF($N$4,($N$4*'CVB Table 2019'!FH4)/100," ") ->  | FI4: =IF($N$4,($N$4*'CVB Table 2019'!FI4)/100," ") ->  | FJ4: =IF($N$4,($N$4*'CVB Table 2019'!FJ4)/100," ") ->  | FK4: =IF($N$4,(($N$4*'CVB Table 2019'!FK4)/100)*('CVB Table 2019'!$O$4)/1000," ") ->  | FL4: =IF($N$4,(($N$4*'CVB Table 2019'!FL4)/100)*('CVB Table 2019'!$O$4)/1000," ") ->  | FM4: =IF($N$4,(($N$4*'CVB Table 2019'!FM4)/100)*('CVB Table 2019'!$O$4)/1000," ") ->  | FN4: =IF($N$4,(($N$4*'CVB Table 2019'!FN4)/100)*('CVB Table 2019'!$O$4)/1000," ") ->  | FO4: =IF($N$4,(($N$4*'CVB Table 2019'!FO4)/100)*('CVB Table 2019'!$O$4)/1000," ") ->  | FP4: =IF($N$4,(($N$4*'CVB Table 2019'!FP4)/100)*('CVB Table 2019'!$O$4)/1000," ") ->  | FQ4: =IF($N$4,(($N$4*'CVB Table 2019'!FQ4)/100)*('CVB Table 2019'!$O$4)/1000," ") ->  | FR4: =IF($N$4,(($N$4*'CVB Table 2019'!FR4)/100)*('CVB Table 2019'!$O$4)/1000," ") ->  | FS4: =IF($N$4,(($N$4*'CVB Table 2019'!FS4)/100)*('CVB Table 2019'!$O$4)/1000," ") ->  | FT4: =IF($N$4,(($N$4*'CVB Table 2019'!FT4)/100)*('CVB Table 2019'!$O$4)/1000," ") ->  | FU4: =IF($N$4,(($N$4*'CVB Table 2019'!FU4)/100)*('CVB Table 2019'!$O$4)/1000," ") ->  | FV4: =IF($N$4,(($N$4*'CVB Table 2019'!FV4)/100)*('CVB Table 2019'!$O$4)/1000," ") ->  | FW4: =IF($N$4,(($N$4*'CVB Table 2019'!FW4)/100)*('CVB Table 2019'!$O$4)/1000," ") ->  | FX4: =IF($N$4,(($N$4*'CVB Table 2019'!FX4)/100)*('CVB Table 2019'!$O$4)/1000," ") ->  | FY4: =IF($N$4,(($N$4*'CVB Table 2019'!FY4)/100)*('CVB Table 2019'!$O$4)/1000," ") ->  | FZ4: =IF($N$4,(($N$4*'CVB Table 2019'!FZ4)/100)*('CVB Table 2019'!$O$4)/1000," ") ->  | GA4: =IF($N$4,(($N$4*'CVB Table 2019'!GA4)/100)*('CVB Table 2019'!$O$4)/1000," ") ->  | GB4: =IF($N$4,(($N$4*'CVB Table 2019'!GB4)/100)*('CVB Table 2019'!$O$4)/1000," ") ->  | GC4: =IF($N$4,(($N$4*'CVB Table 2019'!GC4)/100)*('CVB Table 2019'!$O$4)/1000," ") ->  | GD4: =IF($N$4,(($N$4*'CVB Table 2019'!GD4)/100)*('CVB Table 2019'!$O$4)/1000," ") ->  | GE4: =IF($N$4,(($N$4*'CVB Table 2019'!GE4)/100)*('CVB Table 2019'!$O$4)/1000," ") ->  | GF4: =IF($N$4,(($N$4*'CVB Table 2019'!GF4)/100)*('CVB Table 2019'!$O$4)/1000," ") ->  | GG4: =IF($N$4,(($N$4*'CVB Table 2019'!GG4)/100)*('CVB Table 2019'!$O$4)/1000," ") ->  | GH4: =IF($N$4,(($N$4*'CVB Table 2019'!GH4)/100)*('CVB Table 2019'!$O$4)/1000," ") ->  | GI4: =IF($N$4,(($N$4*'CVB Table 2019'!GI4)/100)*('CVB Table 2019'!$O$4)/1000," ") ->  | GJ4: =IF($N$4,(($N$4*'CVB Table 2019'!GJ4)/100)*('CVB Table 2019'!$O$4)/1000," ") ->  | GK4: =IF($N$4,(($N$4*'CVB Table 2019'!GK4)/100)*('CVB Table 2019'!$O$4)/1000," ") ->  | GL4: =IF($N$4,(($N$4*'CVB Table 2019'!GL4)/100)*('CVB Table 2019'!$O$4)/1000," ") ->  | GM4: =IF($N$4,(($N$4*'CVB Table 2019'!GM4)/100)*('CVB Table 2019'!$O$4)/1000," ") ->  | GN4: =IF($N$4,(($N$4*'CVB Table 2019'!GN4)/100)*('CVB Table 2019'!$O$4)/1000," ") ->  | GO4: =IF($N$4,(($N$4*'CVB Table 2019'!GO4)/100)*('CVB Table 2019'!$O$4)/1000," ") ->  | GP4: =IF($N$4,(($N$4*'CVB Table 2019'!GP4)/100)*('CVB Table 2019'!$O$4)/1000," ") ->  | GQ4: =IF($N$4,(($N$4*'CVB Table 2019'!GQ4)/100)*('CVB Table 2019'!$O$4)/1000," ") ->  | GR4: =IF($N$4,(($N$4*'CVB Table 2019'!GR4)/100)*('CVB Table 2019'!$O$4)/1000," ") ->  | GS4: =IF($N$4,(($N$4*'CVB Table 2019'!GS4)/100)*('CVB Table 2019'!$O$4)/1000," ") ->  | GT4: =IF($N$4,(($N$4*'CVB Table 2019'!GT4)/100)*('CVB Table 2019'!$O$4)/1000," ") ->  | GU4: =IF($N$4,(($N$4*'CVB Table 2019'!GU4)/100)*('CVB Table 2019'!$O$4)/1000," ") ->  | GV4: =IF($N$4,(($N$4*'CVB Table 2019'!GV4)/100)*('CVB Table 2019'!$O$4)/1000," ") ->  | GW4: =IF($N$4,(($N$4*'CVB Table 2019'!GW4)/100)*('CVB Table 2019'!$O$4)/1000," ") ->  | GX4: =IF($N$4,(($N$4*'CVB Table 2019'!GX4)/100)*('CVB Table 2019'!$O$4)/1000," ") ->  | GY4: =IF($N$4,($N$4*'CVB Table 2019'!GY4)/100," ") ->  | GZ4: =IF($N$4,($N$4*'CVB Table 2019'!GZ4)/100," ") ->  | HA4: =IF($N$4,($N$4*'CVB Table 2019'!HA4)/100," ") ->  | HB4: =IF($N$4,($N$4*'CVB Table 2019'!HB4)/100," ") ->  | HC4: =IF($N$4,($N$4*'CVB Table 2019'!HC4)/100," ") ->  | HD4: =IF($N$4,($N$4*'CVB Table 2019'!HD4)/100," ") ->  | HE4: =IF($N$4,($N$4*'CVB Table 2019'!HE4)/100," ") ->  | HF4: =IF($N$4,($N$4*'CVB Table 2019'!HF4)/100," ") ->  | HG4: =IF($N$4,($N$4*'CVB Table 2019'!HG4)/100," ") ->  | HH4: =IF($N$4,($N$4*'CVB Table 2019'!HH4)/100," ") ->  | HI4: =IF($N$4,($N$4*'CVB Table 2019'!HI4)/100," ") ->  | HJ4: =IF($N$4,($N$4*'CVB Table 2019'!HJ4)/100," ") ->  | HK4: =IF($N$4,($N$4*'CVB Table 2019'!HK4)/100," ") ->  | HL4: =IF($N$4,($N$4*'CVB Table 2019'!HL4)/100," ") ->  | HM4: =IF($N$4,($N$4*'CVB Table 2019'!HM4)/100," ") ->  | HN4: =IF($N$4,($N$4*'CVB Table 2019'!HN4)/100," ") ->  | HO4: =IF($N$4,($N$4*'CVB Table 2019'!HO4)/100," ") ->  | HP4: =IF($N$4,($N$4*'CVB Table 2019'!HP4)/100," ") ->  | HQ4: =IF($N$4,($N$4*'CVB Table 2019'!HQ4)/100," ") ->  | HR4: =IF($N$4,(($N$4*'CVB Table 2019'!HR4)/100)*('CVB Table 2019'!$O$4)/1000," ") ->  | HS4: =IF($N$4,(($N$4*'CVB Table 2019'!HS4)/100)*('CVB Table 2019'!$O$4)/1000," ") ->  | HT4: =IF($N$4,(($N$4*'CVB Table 2019'!HT4)/100)*('CVB Table 2019'!$O$4)/1000," ") ->  | HU4: =IF($N$4,(($N$4*'CVB Table 2019'!HU4)/100)*('CVB Table 2019'!$O$4)/1000," ") ->  | HV4: =IF($N$4,(($N$4*'CVB Table 2019'!HV4)/100)*('CVB Table 2019'!$O$4)/1000," ") ->  | HW4: =IF($N$4,(($N$4*'CVB Table 2019'!HW4)/100)*('CVB Table 2019'!$O$4)/1000," ") ->  | HX4: =IF($N$4,(($N$4*'CVB Table 2019'!HX4)/100)*('CVB Table 2019'!$O$4)/1000," ") ->  | HY4: =IF($N$4,(($N$4*'CVB Table 2019'!HY4)/100)*('CVB Table 2019'!$O$4)/1000," ") ->  | HZ4: =IF($N$4,(($N$4*'CVB Table 2019'!HZ4)/100)*('CVB Table 2019'!$O$4)/1000," ") ->  | IA4: =IF($N$4,(($N$4*'CVB Table 2019'!IA4)/100)*('CVB Table 2019'!$O$4)/1000," ") ->  | IB4: =IF($N$4,(($N$4*'CVB Table 2019'!IB4)/100)*('CVB Table 2019'!$O$4)/1000," ") ->  | IC4: =IF($N$4,(($N$4*'CVB Table 2019'!IC4)/100)*('CVB Table 2019'!$O$4)/1000," ") ->  | ID4: =IF($N$4,(($N$4*'CVB Table 2019'!ID4)/100)*('CVB Table 2019'!$O$4)/1000," ") ->  | IE4: =IF($N$4,(($N$4*'CVB Table 2019'!IE4)/100)*('CVB Table 2019'!$O$4)/1000," ") ->  | IF4: =IF($N$4,(($N$4*'CVB Table 2019'!IF4)/100)*('CVB Table 2019'!$O$4)/1000," ") ->  | IG4: =IF($N$4,(($N$4*'CVB Table 2019'!IG4)/100)*('CVB Table 2019'!$O$4)/1000," ") ->  | IH4: =IF($N$4,(($N$4*'CVB Table 2019'!IH4)/100)*('CVB Table 2019'!$O$4)/1000," ") ->  | II4: =IF($N$4,(($N$4*'CVB Table 2019'!II4)/100)*('CVB Table 2019'!$O$4)/1000," ") ->  | IJ4: =IF($N$4,(($N$4*'CVB Table 2019'!IJ4)/100)*('CVB Table 2019'!$O$4)/1000," ") ->  | IK4: =IF($N$4,($N$4*'CVB Table 2019'!IK4)/100," ") ->  | IL4: =IF($N$4,($N$4*'CVB Table 2019'!IL4)/100," ") ->  | IM4: =IF($N$4,($N$4*'CVB Table 2019'!IM4)/100," ") ->  | IN4: =IF($N$4,($N$4*'CVB Table 2019'!IN4)/100," ") ->  | IO4: =IF($N$4,($N$4*'CVB Table 2019'!IO4)/100," ") ->  | IP4: =IF($N$4,($N$4*'CVB Table 2019'!IP4)/100," ") ->  | IQ4: =IF($N$4,($N$4*'CVB Table 2019'!IQ4)/100," ") ->  | IR4: =IF($N$4,($N$4*'CVB Table 2019'!IR4)/100," ") ->  | IS4: =IF($N$4,($N$4*'CVB Table 2019'!IS4)/100," ") ->  | IT4: =IF($N$4,($N$4*'CVB Table 2019'!IT4)/100," ") ->  | IU4: =IF($N$4,($N$4*'CVB Table 2019'!IU4)/100," ") ->  | IV4: =IF($N$4,($N$4*'CVB Table 2019'!IV4)/100," ") ->  | IW4: =IF($N$4,($N$4*'CVB Table 2019'!IW4)/100," ") ->  | IX4: =IF($N$4,($N$4*'CVB Table 2019'!IX4)/100," ") ->  | IY4: =IF($N$4,($N$4*'CVB Table 2019'!IY4)/100," ") ->  | IZ4: =IF($N$4,($N$4*'CVB Table 2019'!IZ4)/100," ") ->  | JA4: =IF($N$4,($N$4*'CVB Table 2019'!JA4)/100," ") ->  | JB4: =IF($N$4,($N$4*'CVB Table 2019'!JB4)/100," ") ->  | JC4: =IF($N$4,($N$4*'CVB Table 2019'!JC4)/100," ") ->  | JD4: =IF($N$4,($N$4*'CVB Table 2019'!JD4)/100," ") ->  | JE4: =IF($N$4,($N$4*'CVB Table 2019'!JE4)/100," ") ->  | JF4: =IF($N$4,($N$4*'CVB Table 2019'!JF4)/100," ") ->  | JG4: =IF($N$4,($N$4*'CVB Table 2019'!JG4)/100," ") ->  | JH4: =IF($N$4,($N$4*'CVB Table 2019'!JH4)/100," ") ->  | JI4: =IF($N$4,($N$4*'CVB Table 2019'!JI4)/100," ") ->  | JJ4: =IF($N$4,($N$4*'CVB Table 2019'!JJ4)/100," ") ->  | JK4: =IF($N$4,($N$4*'CVB Table 2019'!JK4)/100," ") ->  | JL4: =IF($N$4,($N$4*'CVB Table 2019'!JL4)/100," ") ->  | JM4: =IF($N$4,($N$4*'CVB Table 2019'!JM4)/100," ") ->  | JN4: =IF($N$4,($N$4*'CVB Table 2019'!JN4)/100," ") ->  | JO4: =IF($N$4,($N$4*'CVB Table 2019'!JO4)/100," ") ->  | JP4: =IF($N$4,($N$4*'CVB Table 2019'!JP4)/100," ") ->  | JQ4: =IF($N$4,($N$4*'CVB Table 2019'!JQ4)/100," ") ->  | JR4: =IF($N$4,($N$4*'CVB Table 2019'!JR4)/100," ") ->  | JS4: =IF($N$4,($N$4*'CVB Table 2019'!JS4)/100," ") ->  | JT4: =IF($N$4,($N$4*'CVB Table 2019'!JT4)/100," ") ->  | JU4: =IF($N$4,(($N$4*'CVB Table 2019'!JU4)/100)*('CVB Table 2019'!$O$4)/1000," ") ->  | JV4: =IF($N$4,(($N$4*'CVB Table 2019'!JV4)/100)*('CVB Table 2019'!$O$4)/1000," ") ->  | JW4: =IF($N$4,(($N$4*'CVB Table 2019'!JW4)/100)*('CVB Table 2019'!$O$4)/1000," ") ->  | JX4: =IF($N$4,(($N$4*'CVB Table 2019'!JX4)/100)*('CVB Table 2019'!$O$4)/1000," ") ->  | JY4: =IF($N$4,(($N$4*'CVB Table 2019'!JY4)/100)*('CVB Table 2019'!$O$4)/1000," ") ->  | JZ4: =IF($N$4,(($N$4*'CVB Table 2019'!JZ4)/100)*('CVB Table 2019'!$O$4)/1000," ") ->  | KA4: =IF($N$4,(($N$4*'CVB Table 2019'!KA4)/100)*('CVB Table 2019'!$O$4)/1000," ") ->  | KB4: =IF($N$4,(($N$4*'CVB Table 2019'!KB4)/100)*('CVB Table 2019'!$O$4)/1000," ") ->  | KC4: =IF($N$4,(($N$4*'CVB Table 2019'!KC4)/100)*('CVB Table 2019'!$O$4)/1000," ") ->  | KD4: =IF($N$4,(($N$4*'CVB Table 2019'!KD4)/100)*('CVB Table 2019'!$O$4)/1000," ") ->  | KE4: =IF($N$4,(($N$4*'CVB Table 2019'!KE4)/100)*('CVB Table 2019'!$O$4)/1000," ") ->  | KF4: =IF($N$4,(($N$4*'CVB Table 2019'!KF4)/100)*('CVB Table 2019'!$O$4)/1000," ") ->  | KG4: =IF($N$4,(($N$4*'CVB Table 2019'!KG4)/100)*('CVB Table 2019'!$O$4)/1000," ") ->  | KH4: =IF($N$4,(($N$4*'CVB Table 2019'!KH4)/100)*('CVB Table 2019'!$O$4)/1000," ") ->  | KI4: =IF($N$4,(($N$4*'CVB Table 2019'!KI4)/100)*('CVB Table 2019'!$O$4)/1000," ") ->  | KJ4: =IF($N$4,(($N$4*'CVB Table 2019'!KJ4)/100)*('CVB Table 2019'!$O$4)/1000," ") ->  | KK4: =IF($N$4,(($N$4*'CVB Table 2019'!KK4)/100)*('CVB Table 2019'!$O$4)/1000," ") ->  | KL4: =IF($N$4,(($N$4*'CVB Table 2019'!KL4)/100)*('CVB Table 2019'!$O$4)/1000," ") ->  | KM4: =IF($N$4,(($N$4*'CVB Table 2019'!KM4)/100)*('CVB Table 2019'!$O$4)/1000," ") ->  | KN4: =IF($N$4,(($N$4*'CVB Table 2019'!KN4)/100)*('CVB Table 2019'!$O$4)/1000," ") ->  | KO4: =IF($N$4,(($N$4*'CVB Table 2019'!KO4)/100)*('CVB Table 2019'!$O$4)/1000," ") ->  | KP4: =IF($N$4,(($N$4*'CVB Table 2019'!KP4)/100)*('CVB Table 2019'!$O$4)/1000," ") ->  | KQ4: =IF($N$4,(($N$4*'CVB Table 2019'!KQ4)/100)*('CVB Table 2019'!$O$4)/1000," ") ->  | KR4: =IF($N$4,(($N$4*'CVB Table 2019'!KR4)/100)*('CVB Table 2019'!$O$4)/1000," ") ->  | KS4: =IF($N$4,(($N$4*'CVB Table 2019'!KS4)/100)*('CVB Table 2019'!$O$4)/1000," ") ->  | KT4: =IF($N$4,(($N$4*'CVB Table 2019'!KT4)/100)*('CVB Table 2019'!$O$4)/1000," ") ->  | KU4: =IF($N$4,(($N$4*'CVB Table 2019'!KU4)/100)*('CVB Table 2019'!$O$4)/1000," ") ->  | KV4: =IF($N$4,(($N$4*'CVB Table 2019'!KV4)/100)*('CVB Table 2019'!$O$4)/1000," ") ->  | KW4: =IF($N$4,(($N$4*'CVB Table 2019'!KW4)/100)*('CVB Table 2019'!$O$4)/1000," ") ->  | KX4: =IF($N$4,(($N$4*'CVB Table 2019'!KX4)/100)*('CVB Table 2019'!$O$4)/1000," ") ->  | KY4: =IF($N$4,(($N$4*'CVB Table 2019'!KY4)/100)*('CVB Table 2019'!$O$4)/1000," ") ->  | KZ4: =IF($N$4,(($N$4*'CVB Table 2019'!KZ4)/100)*('CVB Table 2019'!$O$4)/1000," ") ->  | LA4: =IF($N$4,(($N$4*'CVB Table 2019'!LA4)/100)*('CVB Table 2019'!$O$4)/1000," ") ->  | LB4: =IF($N$4,(($N$4*'CVB Table 2019'!LB4)/100)*('CVB Table 2019'!$O$4)/1000," ") ->  | LC4: =IF($N$4,(($N$4*'CVB Table 2019'!LC4)/100)*('CVB Table 2019'!$O$4)/1000," ") ->  | LD4: =IF($N$4,(($N$4*'CVB Table 2019'!LD4)/100)*('CVB Table 2019'!$O$4)/1000," ") ->  | LE4: =IF($N$4,(($N$4*'CVB Table 2019'!LE4)/100)*('CVB Table 2019'!$O$4)/1000," ") ->  | LF4: =IF($N$4,(($N$4*'CVB Table 2019'!LF4)/100)*('CVB Table 2019'!$O$4)/1000," ") ->  | LG4: =IF($N$4,(($N$4*'CVB Table 2019'!LG4)/100)*('CVB Table 2019'!$O$4)/1000," ") ->  | LH4: =IF($N$4,(($N$4*'CVB Table 2019'!LH4)/100)*('CVB Table 2019'!$O$4)/1000," ") ->  | LI4: =IF($N$4,(($N$4*'CVB Table 2019'!LI4)/100)*('CVB Table 2019'!$O$4)/1000," ") ->  | LJ4: =IF($N$4,(($N$4*'CVB Table 2019'!LJ4)/100)*('CVB Table 2019'!$O$4)/1000," ") ->  | LK4: =IF($N$4,(($N$4*'CVB Table 2019'!LK4)/100)*('CVB Table 2019'!$O$4)/1000," ") ->  | LL4: =IF($N$4,(($N$4*'CVB Table 2019'!LL4)/100)*('CVB Table 2019'!$O$4)/1000," ") ->  | LM4: =IF($N$4,(($N$4*'CVB Table 2019'!LM4)/100)*('CVB Table 2019'!$O$4)/1000," ") ->  | LN4: =IF($N$4,(($N$4*'CVB Table 2019'!LN4)/100)*('CVB Table 2019'!$O$4)/1000," ") ->  | LO4: =IF($N$4,(($N$4*'CVB Table 2019'!LO4)/100)*('CVB Table 2019'!$O$4)/1000," ") ->  | LP4: =IF($N$4,(($N$4*'CVB Table 2019'!LP4)/100)*('CVB Table 2019'!$O$4)/1000," ") ->  | LQ4: =IF($N$4,(($N$4*'CVB Table 2019'!LQ4)/100)*('CVB Table 2019'!$O$4)/1000," ") ->  | LR4: =IF($N$4,(($N$4*'CVB Table 2019'!LR4)/100)*('CVB Table 2019'!$O$4)/1000," ") ->  | LS4: =IF($N$4,(($N$4*'CVB Table 2019'!LS4)/100)*('CVB Table 2019'!$O$4)/1000," ") ->  | LT4: =IF($N$4,($N$4*'CVB Table 2019'!LT4)/100," ") ->  | LU4: =IF($N$4,($N$4*'CVB Table 2019'!LU4)/100," ") ->  | LV4: =IF($N$4,($N$4*'CVB Table 2019'!LV4)/100," ") ->  | LW4: =IF($N$4,($N$4*'CVB Table 2019'!LW4)/100," ") ->  | LX4: =IF($N$4,($N$4*'CVB Table 2019'!LX4)/100," ") ->  | LY4: =IF($N$4,($N$4*'CVB Table 2019'!LY4)/100," ") ->  | LZ4: =IF($N$4,($N$4*'CVB Table 2019'!LZ4)/100," ") ->  | MA4: =IF($N$4,($N$4*'CVB Table 2019'!MA4)/100," ") ->  | MB4: =IF($N$4,($N$4*'CVB Table 2019'!MB4)/100," ") ->  | MC4: =IF($N$4,($N$4*'CVB Table 2019'!MC4)/100," ") ->  | MD4: =IF($N$4,($N$4*'CVB Table 2019'!MD4)/100," ") ->  | ME4: =IF($N$4,($N$4*'CVB Table 2019'!ME4)/100," ") ->  | MF4: =IF($N$4,($N$4*'CVB Table 2019'!MF4)/100," ") ->  | MG4: =IF($N$4,($N$4*'CVB Table 2019'!MG4)/100," ") ->  | MH4: =IF($N$4,($N$4*'CVB Table 2019'!MH4)/100," ") ->  | MI4: =IF($N$4,($N$4*'CVB Table 2019'!MI4)/100," ") ->  | MJ4: =IF($N$4,($N$4*'CVB Table 2019'!MJ4)/100," ") ->  | MK4: =IF($N$4,(($N$4*'CVB Table 2019'!MK4)/100)*('CVB Table 2019'!$O$4)/1000," ") ->  | ML4: =IF($N$4,($N$4*'CVB Table 2019'!ML4)/100," ") ->  | MM4: 20 | MN4: =IF(N4,($MM$4*('CVB Table 2019'!AI4*0.15)*(N4/100)*(('CVB Table 2019'!O4)/1000)),"") ->  | MO4: =IF(N4,($MM$4*((('CVB Table 2019'!AH4)-('CVB Table 2019'!AI4))*0.8)*(N4/100)*(('CVB Table 2019'!O4)/1000)),"") ->  | MP4: =IF(N4,(MN4+MO4),"") ->  | MQ4: =IF(N4,($MM$4*('CVB Table 2019'!AI4*0.4)*(N4/100)*(('CVB Table 2019'!O4)/1000)),"") ->  | MR4: =IF(N4,($MM$4*((('CVB Table 2019'!AH4)-('CVB Table 2019'!AI4))*0.8)*(N4/100)*(('CVB Table 2019'!O4)/1000)),"") ->  | MS4: =IF(N4,(MQ4+MR4),"") ->  | MT4: =IF(N4,($MM$4*('CVB Table 2019'!AI4*0.25)*(N4/100)*(('CVB Table 2019'!O4)/1000)),"") ->  | MU4: =IF(N4,($MM$4*((('CVB Table 2019'!AH4)-('CVB Table 2019'!AI4))*0.8)*(N4/100)*(('CVB Table 2019'!O4)/1000)),"") ->  | MV4: =IF(N4,(MT4+MU4),"") ->  | MX4: =IF(N4,((N4*'CVB Table 2019'!MX4)/100)*('CVB Table 2019'!$O$4)/1000," ") -> 
A5: 1005.508 | B5: ruwvoeders | C5: Gerstestro | F5: Barley straw | I5: X | O5: =IF($N$5,($N$5*'CVB Table 2019'!O5)/100," ") ->  | P5: =IF($N$5,(($N$5*'CVB Table 2019'!P5)/100)*('CVB Table 2019'!$O$5)/1000," ") ->  | Q5: =IF($N$5,(($N$5*'CVB Table 2019'!Q5)/100)*('CVB Table 2019'!$O$5)/1000," ") ->  | R5: =IF($N$5,(($N$5*'CVB Table 2019'!R5)/100)*('CVB Table 2019'!$O$5)/1000," ") ->  | S5: =IF($N$5,(($N$5*'CVB Table 2019'!S5)/100)*('CVB Table 2019'!$O$5)/1000," ") ->  | T5: =IF($N$5,(($N$5*'CVB Table 2019'!T5)/100)*('CVB Table 2019'!$O$5)/1000," ") ->  | U5: =IF($N$5,(($N$5*'CVB Table 2019'!U5)/100)*('CVB Table 2019'!$O$5)/1000," ") ->  | V5: =IF($N$5,(($N$5*'CVB Table 2019'!V5)/100)*('CVB Table 2019'!$O$5)/1000," ") ->  | W5: =IF($N$5,(($N$5*'CVB Table 2019'!W5)/100)*('CVB Table 2019'!$O$5)/1000," ") ->  | X5: =IF($N$5,(($N$5*'CVB Table 2019'!X5)/100)*('CVB Table 2019'!$O$5)/1000," ") ->  | Y5: =IF($N$5,(($N$5*'CVB Table 2019'!Y5)/100)*('CVB Table 2019'!$O$5)/1000," ") ->  | Z5: =IF($N$5,(($N$5*'CVB Table 2019'!Z5)/100)*('CVB Table 2019'!$O$5)/1000," ") ->  | AA5: =IF($N$5,(($N$5*'CVB Table 2019'!AA5)/100)*('CVB Table 2019'!$O$5)/1000," ") ->  | AB5: =IF($N$5,(($N$5*'CVB Table 2019'!AB5)/100)*('CVB Table 2019'!$O$5)/1000," ") ->  | AC5: =IF($N$5,(($N$5*'CVB Table 2019'!AC5)/100)*('CVB Table 2019'!$O$5)/1000," ") ->  | AD5: =IF($N$5,(($N$5*'CVB Table 2019'!AD5)/100)*('CVB Table 2019'!$O$5)/1000," ") ->  | AE5: =IF($N$5,(($N$5*'CVB Table 2019'!AE5)/100)*('CVB Table 2019'!$O$5)/1000," ") ->  | AF5: =IF($N$5,(($N$5*'CVB Table 2019'!AF5)/100)*('CVB Table 2019'!$O$5)/1000," ") ->  | AG5: =IF($N$5,(($N$5*'CVB Table 2019'!AG5)/100)*('CVB Table 2019'!$O$5)/1000," ") ->  | AH5: =IF($N$5,(($N$5*'CVB Table 2019'!AH5)/100)*('CVB Table 2019'!$O$5)/1000," ") ->  | AI5: =IF($N$5,(($N$5*'CVB Table 2019'!AI5)/100)*('CVB Table 2019'!$O$5)/1000," ") ->  | AJ5: =IF($N$5,(($N$5*'CVB Table 2019'!AJ5)/100)*('CVB Table 2019'!$O$5)/1000," ") ->  | AK5: =IF($N$5,(($N$5*'CVB Table 2019'!AK5)/100)*('CVB Table 2019'!$O$5)/1000," ") ->  | AL5: =IF($N$5,(($N$5*'CVB Table 2019'!AL5)/100)*('CVB Table 2019'!$O$5)/1000," ") ->  | AM5: =IF($N$5,(($N$5*'CVB Table 2019'!AM5)/100)*('CVB Table 2019'!$O$5)/1000," ") ->  | AN5: =IF($N$5,(($N$5*'CVB Table 2019'!AN5)/100)*('CVB Table 2019'!$O$5)/1000," ") ->  | AO5: =IF($N$5,(($N$5*'CVB Table 2019'!AO5)/100)*('CVB Table 2019'!$O$5)/1000," ") ->  | AP5: =IF($N$5,(($N$5*'CVB Table 2019'!AP5)/100)*('CVB Table 2019'!$O$5)/1000," ") ->  | AQ5: =IF($N$5,(($N$5*'CVB Table 2019'!AQ5)/100)*('CVB Table 2019'!$O$5)/1000," ") ->  | AR5: =IF($N$5,(($N$5*'CVB Table 2019'!AR5)/100)*('CVB Table 2019'!$O$5)/1000," ") ->  | AS5: =IF($N$5,(($N$5*'CVB Table 2019'!AS5)/100)*('CVB Table 2019'!$O$5)/1000," ") ->  | AT5: =IF($N$5,(($N$5*'CVB Table 2019'!AT5)/100)*('CVB Table 2019'!$O$5)/1000," ") ->  | AU5: =IF($N$5,(($N$5*'CVB Table 2019'!AU5)/100)*('CVB Table 2019'!$O$5)/1000," ") ->  | AV5: =IF($N$5,(($N$5*'CVB Table 2019'!AV5)/100)*('CVB Table 2019'!$O$5)/1000," ") ->  | AW5: =IF($N$5,(($N$5*'CVB Table 2019'!AW5)/100)*('CVB Table 2019'!$O$5)/1000," ") ->  | AX5: =IF($N$5,(($N$5*'CVB Table 2019'!AX5)/100)*('CVB Table 2019'!$O$5)/1000," ") ->  | AY5: =IF($N$5,(($N$5*'CVB Table 2019'!AY5)/100)*('CVB Table 2019'!$O$5)/1000," ") ->  | AZ5: =IF($N$5,(($N$5*'CVB Table 2019'!AZ5)/100)*('CVB Table 2019'!$O$5)/1000," ") ->  | BA5: =IF($N$5,(($N$5*'CVB Table 2019'!BA5)/100)*('CVB Table 2019'!$O$5)/1000," ") ->  | BB5: =IF($N$5,(($N$5*'CVB Table 2019'!BB5)/100)*('CVB Table 2019'!$O$5)/1000," ") ->  | BC5: =IF($N$5,(($N$5*'CVB Table 2019'!BC5)/100)*('CVB Table 2019'!$O$5)/1000," ") ->  | BD5: =IF($N$5,($N$5*'CVB Table 2019'!BD5)/100," ") ->  | BE5: =IF($N$5,($N$5*'CVB Table 2019'!BE5)/100," ") ->  | BF5: =IF($N$5,($N$5*'CVB Table 2019'!BF5)/100," ") ->  | BG5: =IF($N$5,($N$5*'CVB Table 2019'!BG5)/100," ") ->  | BH5: =IF($N$5,($N$5*'CVB Table 2019'!BH5)/100," ") ->  | BI5: =IF($N$5,($N$5*'CVB Table 2019'!BI5)/100," ") ->  | BJ5: =IF($N$5,($N$5*'CVB Table 2019'!BJ5)/100," ") ->  | BK5: =IF($N$5,($N$5*'CVB Table 2019'!BK5)/100," ") ->  | BL5: =IF($N$5,($N$5*'CVB Table 2019'!BL5)/100," ") ->  | BM5: =IF($N$5,($N$5*'CVB Table 2019'!BM5)/100," ") ->  | BN5: =IF($N$5,($N$5*'CVB Table 2019'!BN5)/100," ") ->  | BO5: =IF($N$5,($N$5*'CVB Table 2019'!BO5)/100," ") ->  | BP5: =IF($N$5,($N$5*'CVB Table 2019'!BP5)/100," ") ->  | BQ5: =IF($N$5,($N$5*'CVB Table 2019'!BQ5)/100," ") ->  | BR5: =IF($N$5,($N$5*'CVB Table 2019'!BR5)/100," ") ->  | BS5: =IF($N$5,($N$5*'CVB Table 2019'!BS5)/100," ") ->  | BT5: =IF($N$5,($N$5*'CVB Table 2019'!BT5)/100," ") ->  | BU5: =IF($N$5,($N$5*'CVB Table 2019'!BU5)/100," ") ->  | BV5: =IF($N$5,($N$5*'CVB Table 2019'!BV5)/100," ") ->  | BW5: =IF($N$5,($N$5*'CVB Table 2019'!BW5)/100," ") ->  | BX5: =IF($N$5,($N$5*'CVB Table 2019'!BX5)/100," ") ->  | BY5: =IF($N$5,($N$5*'CVB Table 2019'!BY5)/100," ") ->  | BZ5: =IF($N$5,($N$5*'CVB Table 2019'!BZ5)/100," ") ->  | CA5: =IF($N$5,($N$5*'CVB Table 2019'!CA5)/100," ") ->  | CB5: =IF($N$5,($N$5*'CVB Table 2019'!CB5)/100," ") ->  | CC5: =IF($N$5,($N$5*'CVB Table 2019'!CC5)/100," ") ->  | CD5: =IF($N$5,($N$5*'CVB Table 2019'!CD5)/100," ") ->  | CE5: =IF($N$5,($N$5*'CVB Table 2019'!CE5)/100," ") ->  | CF5: =IF($N$5,($N$5*'CVB Table 2019'!CF5)/100," ") ->  | CG5: =IF($N$5,($N$5*'CVB Table 2019'!CG5)/100," ") ->  | CH5: =IF($N$5,($N$5*'CVB Table 2019'!CH5)/100," ") ->  | CI5: =IF($N$5,($N$5*'CVB Table 2019'!CI5)/100," ") ->  | CJ5: =IF($N$5,(($N$5*'CVB Table 2019'!CJ5)/100)*('CVB Table 2019'!$O$5)/1000," ") ->  | CK5: =IF($N$5,(($N$5*'CVB Table 2019'!CK5)/100)*('CVB Table 2019'!$O$5)/1000," ") ->  | CL5: =IF($N$5,(($N$5*'CVB Table 2019'!CL5)/100)*('CVB Table 2019'!$O$5)/1000," ") ->  | CM5: =IF($N$5,(($N$5*'CVB Table 2019'!CM5)/100)*('CVB Table 2019'!$O$5)/1000," ") ->  | CN5: =IF($N$5,(($N$5*'CVB Table 2019'!CN5)/100)*('CVB Table 2019'!$O$5)/1000," ") ->  | CO5: =IF($N$5,(($N$5*'CVB Table 2019'!CO5)/100)*('CVB Table 2019'!$O$5)/1000," ") ->  | CP5: =IF($N$5,($N$5*'CVB Table 2019'!CP5)/100," ") ->  | CQ5: =IF($N$5,($N$5*'CVB Table 2019'!CQ5)/100," ") ->  | CR5: =IF($N$5,($N$5*'CVB Table 2019'!CR5)/100," ") ->  | CS5: =IF($N$5,(($N$5*'CVB Table 2019'!CS5)/100)*('CVB Table 2019'!$O$5)/1000," ") ->  | CT5: =IF($N$5,(($N$5*'CVB Table 2019'!CT5)/100)*('CVB Table 2019'!$O$5)/1000," ") ->  | CU5: =IF($N$5,($N$5*'CVB Table 2019'!CU5)/100," ") ->  | CV5: =IF($N$5,(($N$5*'CVB Table 2019'!CV5)/100)*('CVB Table 2019'!$O$5)/1000," ") ->  | CW5: =IF($N$5,(($N$5*'CVB Table 2019'!CW5)/100)*('CVB Table 2019'!$O$5)/1000," ") ->  | CX5: =IF($N$5,(($N$5*'CVB Table 2019'!CX5)/100)*('CVB Table 2019'!$O$5)/1000," ") ->  | CY5: =IF($N$5,(($N$5*'CVB Table 2019'!CY5)/100)*('CVB Table 2019'!$O$5)/1000," ") ->  | CZ5: =IF($N$5,(($N$5*'CVB Table 2019'!CZ5)/100)*('CVB Table 2019'!$O$5)/1000," ") ->  | DA5: =IF($N$5,($N$5*'CVB Table 2019'!DA5)/100," ") ->  | DB5: =IF($N$5,($N$5*'CVB Table 2019'!DB5)/100," ") ->  | DC5: =IF($N$5,($N$5*'CVB Table 2019'!DC5)/100," ") ->  | DD5: =IF($N$5,($N$5*'CVB Table 2019'!DD5)/100," ") ->  | DE5: =IF(N5,((N5*'CVB Table 2019'!DE5)/100)*('CVB Table 2019'!O5)/1000," ") ->  | DF5: =IF($N$5,($N$5*'CVB Table 2019'!DF5)/100," ") ->  | DG5: =IF($N$5,($N$5*'CVB Table 2019'!DG5)/100," ") ->  | DH5: =IF($N$5,($N$5*'CVB Table 2019'!DH5)/100," ") ->  | DI5: =IF($N$5,($N$5*'CVB Table 2019'!DI5)/100," ") ->  | DJ5: =IF($N$5,($N$5*'CVB Table 2019'!DJ5)/100," ") ->  | DK5: =IF($N$5,($N$5*'CVB Table 2019'!DK5)/100," ") ->  | DL5: =IF($N$5,($N$5*'CVB Table 2019'!DL5)/100," ") ->  | DM5: =IF(N5,((N5*'CVB Table 2019'!DM5)/100)*('CVB Table 2019'!O5)/1000," ") ->  | DN5: =IF($N$5,($N$5*'CVB Table 2019'!DN5)/100," ") ->  | DO5: =IF(N5,((N5*'CVB Table 2019'!DO5)/100)*('CVB Table 2019'!O5)/1000," ") ->  | DP5: =IF($N$5,($N$5*'CVB Table 2019'!DP5)/100," ") ->  | DQ5: =IF($N$5,($N$5*'CVB Table 2019'!DQ5)/100," ") ->  | DR5: =IF($N$5,($N$5*'CVB Table 2019'!DR5)/100," ") ->  | DS5: =IF($N$5,($N$5*'CVB Table 2019'!DS5)/100," ") ->  | DT5: =IF(N5,((N5*'CVB Table 2019'!DT5)/100)*('CVB Table 2019'!O5)/1000," ") ->  | DU5: =IF($N$5,($N$5*'CVB Table 2019'!DU5)/100," ") ->  | DV5: =IF(N5,((N5*'CVB Table 2019'!DV5)/100)*('CVB Table 2019'!O5)/1000," ") ->  | DW5: =IF($N$5,(($N$5*'CVB Table 2019'!DW5)/100)*('CVB Table 2019'!$O$5)/1000," ") ->  | DX5: =IF($N$5,(($N$5*'CVB Table 2019'!DX5)/100)*('CVB Table 2019'!$O$5)/1000," ") ->  | DY5: =IF($N$5,($N$5*'CVB Table 2019'!DY5)/100," ") ->  | DZ5: =IF($N$5,($N$5*'CVB Table 2019'!DZ5)/100," ") ->  | EA5: =IF($N$5,($N$5*'CVB Table 2019'!EA5)/100," ") ->  | EB5: =IF($N$5,($N$5*'CVB Table 2019'!EB5)/100," ") ->  | EC5: =IF($N$5,($N$5*'CVB Table 2019'!EC5)/100," ") ->  | ED5: =IF($N$5,($N$5*'CVB Table 2019'!ED5)/100," ") ->  | EE5: =IF($N$5,($N$5*'CVB Table 2019'!EE5)/100," ") ->  | EF5: =IF($N$5,($N$5*'CVB Table 2019'!EF5)/100," ") ->  | EG5: =IF($N$5,($N$5*'CVB Table 2019'!EG5)/100," ") ->  | EH5: =IF($N$5,($N$5*'CVB Table 2019'!EH5)/100," ") ->  | EI5: =IF($N$5,($N$5*'CVB Table 2019'!EI5)/100," ") ->  | EJ5: =IF($N$5,($N$5*'CVB Table 2019'!EJ5)/100," ") ->  | EK5: =IF($N$5,($N$5*'CVB Table 2019'!EK5)/100," ") ->  | EL5: =IF($N$5,($N$5*'CVB Table 2019'!EL5)/100," ") ->  | EM5: =IF($N$5,($N$5*'CVB Table 2019'!EM5)/100," ") ->  | EN5: =IF($N$5,($N$5*'CVB Table 2019'!EN5)/100," ") ->  | EO5: =IF($N$5,($N$5*'CVB Table 2019'!EO5)/100," ") ->  | EP5: =IF($N$5,($N$5*'CVB Table 2019'!EP5)/100," ") ->  | EQ5: =IF($N$5,($N$5*'CVB Table 2019'!EQ5)/100," ") ->  | ER5: =IF($N$5,($N$5*'CVB Table 2019'!ER5)/100," ") ->  | ES5: =IF($N$5,($N$5*'CVB Table 2019'!ES5)/100," ") ->  | ET5: =IF($N$5,($N$5*'CVB Table 2019'!ET5)/100," ") ->  | EU5: =IF($N$5,($N$5*'CVB Table 2019'!EU5)/100," ") ->  | EV5: =IF($N$5,($N$5*'CVB Table 2019'!EV5)/100," ") ->  | EW5: =IF($N$5,($N$5*'CVB Table 2019'!EW5)/100," ") ->  | EX5: =IF($N$5,($N$5*'CVB Table 2019'!EX5)/100," ") ->  | EY5: =IF($N$5,($N$5*'CVB Table 2019'!EY5)/100," ") ->  | EZ5: =IF($N$5,($N$5*'CVB Table 2019'!EZ5)/100," ") ->  | FA5: =IF($N$5,($N$5*'CVB Table 2019'!FA5)/100," ") ->  | FB5: =IF($N$5,($N$5*'CVB Table 2019'!FB5)/100," ") ->  | FC5: =IF($N$5,($N$5*'CVB Table 2019'!FC5)/100," ") ->  | FD5: =IF($N$5,($N$5*'CVB Table 2019'!FD5)/100," ") ->  | FE5: =IF($N$5,($N$5*'CVB Table 2019'!FE5)/100," ") ->  | FF5: =IF($N$5,($N$5*'CVB Table 2019'!FF5)/100," ") ->  | FG5: =IF($N$5,($N$5*'CVB Table 2019'!FG5)/100," ") ->  | FH5: =IF($N$5,($N$5*'CVB Table 2019'!FH5)/100," ") ->  | FI5: =IF($N$5,($N$5*'CVB Table 2019'!FI5)/100," ") ->  | FJ5: =IF($N$5,($N$5*'CVB Table 2019'!FJ5)/100," ") ->  | FK5: =IF($N$5,(($N$5*'CVB Table 2019'!FK5)/100)*('CVB Table 2019'!$O$5)/1000," ") ->  | FL5: =IF($N$5,(($N$5*'CVB Table 2019'!FL5)/100)*('CVB Table 2019'!$O$5)/1000," ") ->  | FM5: =IF($N$5,(($N$5*'CVB Table 2019'!FM5)/100)*('CVB Table 2019'!$O$5)/1000," ") ->  | FN5: =IF($N$5,(($N$5*'CVB Table 2019'!FN5)/100)*('CVB Table 2019'!$O$5)/1000," ") ->  | FO5: =IF($N$5,(($N$5*'CVB Table 2019'!FO5)/100)*('CVB Table 2019'!$O$5)/1000," ") ->  | FP5: =IF($N$5,(($N$5*'CVB Table 2019'!FP5)/100)*('CVB Table 2019'!$O$5)/1000," ") ->  | FQ5: =IF($N$5,(($N$5*'CVB Table 2019'!FQ5)/100)*('CVB Table 2019'!$O$5)/1000," ") ->  | FR5: =IF($N$5,(($N$5*'CVB Table 2019'!FR5)/100)*('CVB Table 2019'!$O$5)/1000," ") ->  | FS5: =IF($N$5,(($N$5*'CVB Table 2019'!FS5)/100)*('CVB Table 2019'!$O$5)/1000," ") ->  | FT5: =IF($N$5,(($N$5*'CVB Table 2019'!FT5)/100)*('CVB Table 2019'!$O$5)/1000," ") ->  | FU5: =IF($N$5,(($N$5*'CVB Table 2019'!FU5)/100)*('CVB Table 2019'!$O$5)/1000," ") ->  | FV5: =IF($N$5,(($N$5*'CVB Table 2019'!FV5)/100)*('CVB Table 2019'!$O$5)/1000," ") ->  | FW5: =IF($N$5,(($N$5*'CVB Table 2019'!FW5)/100)*('CVB Table 2019'!$O$5)/1000," ") ->  | FX5: =IF($N$5,(($N$5*'CVB Table 2019'!FX5)/100)*('CVB Table 2019'!$O$5)/1000," ") ->  | FY5: =IF($N$5,(($N$5*'CVB Table 2019'!FY5)/100)*('CVB Table 2019'!$O$5)/1000," ") ->  | FZ5: =IF($N$5,(($N$5*'CVB Table 2019'!FZ5)/100)*('CVB Table 2019'!$O$5)/1000," ") ->  | GA5: =IF($N$5,(($N$5*'CVB Table 2019'!GA5)/100)*('CVB Table 2019'!$O$5)/1000," ") ->  | GB5: =IF($N$5,(($N$5*'CVB Table 2019'!GB5)/100)*('CVB Table 2019'!$O$5)/1000," ") ->  | GC5: =IF($N$5,(($N$5*'CVB Table 2019'!GC5)/100)*('CVB Table 2019'!$O$5)/1000," ") ->  | GD5: =IF($N$5,(($N$5*'CVB Table 2019'!GD5)/100)*('CVB Table 2019'!$O$5)/1000," ") ->  | GE5: =IF($N$5,(($N$5*'CVB Table 2019'!GE5)/100)*('CVB Table 2019'!$O$5)/1000," ") ->  | GF5: =IF($N$5,(($N$5*'CVB Table 2019'!GF5)/100)*('CVB Table 2019'!$O$5)/1000," ") ->  | GG5: =IF($N$5,(($N$5*'CVB Table 2019'!GG5)/100)*('CVB Table 2019'!$O$5)/1000," ") ->  | GH5: =IF($N$5,(($N$5*'CVB Table 2019'!GH5)/100)*('CVB Table 2019'!$O$5)/1000," ") ->  | GI5: =IF($N$5,(($N$5*'CVB Table 2019'!GI5)/100)*('CVB Table 2019'!$O$5)/1000," ") ->  | GJ5: =IF($N$5,(($N$5*'CVB Table 2019'!GJ5)/100)*('CVB Table 2019'!$O$5)/1000," ") ->  | GK5: =IF($N$5,(($N$5*'CVB Table 2019'!GK5)/100)*('CVB Table 2019'!$O$5)/1000," ") ->  | GL5: =IF($N$5,(($N$5*'CVB Table 2019'!GL5)/100)*('CVB Table 2019'!$O$5)/1000," ") ->  | GM5: =IF($N$5,(($N$5*'CVB Table 2019'!GM5)/100)*('CVB Table 2019'!$O$5)/1000," ") ->  | GN5: =IF($N$5,(($N$5*'CVB Table 2019'!GN5)/100)*('CVB Table 2019'!$O$5)/1000," ") ->  | GO5: =IF($N$5,(($N$5*'CVB Table 2019'!GO5)/100)*('CVB Table 2019'!$O$5)/1000," ") ->  | GP5: =IF($N$5,(($N$5*'CVB Table 2019'!GP5)/100)*('CVB Table 2019'!$O$5)/1000," ") ->  | GQ5: =IF($N$5,(($N$5*'CVB Table 2019'!GQ5)/100)*('CVB Table 2019'!$O$5)/1000," ") ->  | GR5: =IF($N$5,(($N$5*'CVB Table 2019'!GR5)/100)*('CVB Table 2019'!$O$5)/1000," ") ->  | GS5: =IF($N$5,(($N$5*'CVB Table 2019'!GS5)/100)*('CVB Table 2019'!$O$5)/1000," ") ->  | GT5: =IF($N$5,(($N$5*'CVB Table 2019'!GT5)/100)*('CVB Table 2019'!$O$5)/1000," ") ->  | GU5: =IF($N$5,(($N$5*'CVB Table 2019'!GU5)/100)*('CVB Table 2019'!$O$5)/1000," ") ->  | GV5: =IF($N$5,(($N$5*'CVB Table 2019'!GV5)/100)*('CVB Table 2019'!$O$5)/1000," ") ->  | GW5: =IF($N$5,(($N$5*'CVB Table 2019'!GW5)/100)*('CVB Table 2019'!$O$5)/1000," ") ->  | GX5: =IF($N$5,(($N$5*'CVB Table 2019'!GX5)/100)*('CVB Table 2019'!$O$5)/1000," ") ->  | GY5: =IF($N$5,($N$5*'CVB Table 2019'!GY5)/100," ") ->  | GZ5: =IF($N$5,($N$5*'CVB Table 2019'!GZ5)/100," ") ->  | HA5: =IF($N$5,($N$5*'CVB Table 2019'!HA5)/100," ") ->  | HB5: =IF($N$5,($N$5*'CVB Table 2019'!HB5)/100," ") ->  | HC5: =IF($N$5,($N$5*'CVB Table 2019'!HC5)/100," ") ->  | HD5: =IF($N$5,($N$5*'CVB Table 2019'!HD5)/100," ") ->  | HE5: =IF($N$5,($N$5*'CVB Table 2019'!HE5)/100," ") ->  | HF5: =IF($N$5,($N$5*'CVB Table 2019'!HF5)/100," ") ->  | HG5: =IF($N$5,($N$5*'CVB Table 2019'!HG5)/100," ") ->  | HH5: =IF($N$5,($N$5*'CVB Table 2019'!HH5)/100," ") ->  | HI5: =IF($N$5,($N$5*'CVB Table 2019'!HI5)/100," ") ->  | HJ5: =IF($N$5,($N$5*'CVB Table 2019'!HJ5)/100," ") ->  | HK5: =IF($N$5,($N$5*'CVB Table 2019'!HK5)/100," ") ->  | HL5: =IF($N$5,($N$5*'CVB Table 2019'!HL5)/100," ") ->  | HM5: =IF($N$5,($N$5*'CVB Table 2019'!HM5)/100," ") ->  | HN5: =IF($N$5,($N$5*'CVB Table 2019'!HN5)/100," ") ->  | HO5: =IF($N$5,($N$5*'CVB Table 2019'!HO5)/100," ") ->  | HP5: =IF($N$5,($N$5*'CVB Table 2019'!HP5)/100," ") ->  | HQ5: =IF($N$5,($N$5*'CVB Table 2019'!HQ5)/100," ") ->  | HR5: =IF($N$5,(($N$5*'CVB Table 2019'!HR5)/100)*('CVB Table 2019'!$O$5)/1000," ") ->  | HS5: =IF($N$5,(($N$5*'CVB Table 2019'!HS5)/100)*('CVB Table 2019'!$O$5)/1000," ") ->  | HT5: =IF($N$5,(($N$5*'CVB Table 2019'!HT5)/100)*('CVB Table 2019'!$O$5)/1000," ") ->  | HU5: =IF($N$5,(($N$5*'CVB Table 2019'!HU5)/100)*('CVB Table 2019'!$O$5)/1000," ") ->  | HV5: =IF($N$5,(($N$5*'CVB Table 2019'!HV5)/100)*('CVB Table 2019'!$O$5)/1000," ") ->  | HW5: =IF($N$5,(($N$5*'CVB Table 2019'!HW5)/100)*('CVB Table 2019'!$O$5)/1000," ") ->  | HX5: =IF($N$5,(($N$5*'CVB Table 2019'!HX5)/100)*('CVB Table 2019'!$O$5)/1000," ") ->  | HY5: =IF($N$5,(($N$5*'CVB Table 2019'!HY5)/100)*('CVB Table 2019'!$O$5)/1000," ") ->  | HZ5: =IF($N$5,(($N$5*'CVB Table 2019'!HZ5)/100)*('CVB Table 2019'!$O$5)/1000," ") ->  | IA5: =IF($N$5,(($N$5*'CVB Table 2019'!IA5)/100)*('CVB Table 2019'!$O$5)/1000," ") ->  | IB5: =IF($N$5,(($N$5*'CVB Table 2019'!IB5)/100)*('CVB Table 2019'!$O$5)/1000," ") ->  | IC5: =IF($N$5,(($N$5*'CVB Table 2019'!IC5)/100)*('CVB Table 2019'!$O$5)/1000," ") ->  | ID5: =IF($N$5,(($N$5*'CVB Table 2019'!ID5)/100)*('CVB Table 2019'!$O$5)/1000," ") ->  | IE5: =IF($N$5,(($N$5*'CVB Table 2019'!IE5)/100)*('CVB Table 2019'!$O$5)/1000," ") ->  | IF5: =IF($N$5,(($N$5*'CVB Table 2019'!IF5)/100)*('CVB Table 2019'!$O$5)/1000," ") ->  | IG5: =IF($N$5,(($N$5*'CVB Table 2019'!IG5)/100)*('CVB Table 2019'!$O$5)/1000," ") ->  | IH5: =IF($N$5,(($N$5*'CVB Table 2019'!IH5)/100)*('CVB Table 2019'!$O$5)/1000," ") ->  | II5: =IF($N$5,(($N$5*'CVB Table 2019'!II5)/100)*('CVB Table 2019'!$O$5)/1000," ") ->  | IJ5: =IF($N$5,(($N$5*'CVB Table 2019'!IJ5)/100)*('CVB Table 2019'!$O$5)/1000," ") ->  | IK5: =IF($N$5,($N$5*'CVB Table 2019'!IK5)/100," ") ->  | IL5: =IF($N$5,($N$5*'CVB Table 2019'!IL5)/100," ") ->  | IM5: =IF($N$5,($N$5*'CVB Table 2019'!IM5)/100," ") ->  | IN5: =IF($N$5,($N$5*'CVB Table 2019'!IN5)/100," ") ->  | IO5: =IF($N$5,($N$5*'CVB Table 2019'!IO5)/100," ") ->  | IP5: =IF($N$5,($N$5*'CVB Table 2019'!IP5)/100," ") ->  | IQ5: =IF($N$5,($N$5*'CVB Table 2019'!IQ5)/100," ") ->  | IR5: =IF($N$5,($N$5*'CVB Table 2019'!IR5)/100," ") ->  | IS5: =IF($N$5,($N$5*'CVB Table 2019'!IS5)/100," ") ->  | IT5: =IF($N$5,($N$5*'CVB Table 2019'!IT5)/100," ") ->  | IU5: =IF($N$5,($N$5*'CVB Table 2019'!IU5)/100," ") ->  | IV5: =IF($N$5,($N$5*'CVB Table 2019'!IV5)/100," ") ->  | IW5: =IF($N$5,($N$5*'CVB Table 2019'!IW5)/100," ") ->  | IX5: =IF($N$5,($N$5*'CVB Table 2019'!IX5)/100," ") ->  | IY5: =IF($N$5,($N$5*'CVB Table 2019'!IY5)/100," ") ->  | IZ5: =IF($N$5,($N$5*'CVB Table 2019'!IZ5)/100," ") ->  | JA5: =IF($N$5,($N$5*'CVB Table 2019'!JA5)/100," ") ->  | JB5: =IF($N$5,($N$5*'CVB Table 2019'!JB5)/100," ") ->  | JC5: =IF($N$5,($N$5*'CVB Table 2019'!JC5)/100," ") ->  | JD5: =IF($N$5,($N$5*'CVB Table 2019'!JD5)/100," ") ->  | JE5: =IF($N$5,($N$5*'CVB Table 2019'!JE5)/100," ") ->  | JF5: =IF($N$5,($N$5*'CVB Table 2019'!JF5)/100," ") ->  | JG5: =IF($N$5,($N$5*'CVB Table 2019'!JG5)/100," ") ->  | JH5: =IF($N$5,($N$5*'CVB Table 2019'!JH5)/100," ") ->  | JI5: =IF($N$5,($N$5*'CVB Table 2019'!JI5)/100," ") ->  | JJ5: =IF($N$5,($N$5*'CVB Table 2019'!JJ5)/100," ") ->  | JK5: =IF($N$5,($N$5*'CVB Table 2019'!JK5)/100," ") ->  | JL5: =IF($N$5,($N$5*'CVB Table 2019'!JL5)/100," ") ->  | JM5: =IF($N$5,($N$5*'CVB Table 2019'!JM5)/100," ") ->  | JN5: =IF($N$5,($N$5*'CVB Table 2019'!JN5)/100," ") ->  | JO5: =IF($N$5,($N$5*'CVB Table 2019'!JO5)/100," ") ->  | JP5: =IF($N$5,($N$5*'CVB Table 2019'!JP5)/100," ") ->  | JQ5: =IF($N$5,($N$5*'CVB Table 2019'!JQ5)/100," ") ->  | JR5: =IF($N$5,($N$5*'CVB Table 2019'!JR5)/100," ") ->  | JS5: =IF($N$5,($N$5*'CVB Table 2019'!JS5)/100," ") ->  | JT5: =IF($N$5,($N$5*'CVB Table 2019'!JT5)/100," ") ->  | JU5: =IF($N$5,(($N$5*'CVB Table 2019'!JU5)/100)*('CVB Table 2019'!$O$5)/1000," ") ->  | JV5: =IF($N$5,(($N$5*'CVB Table 2019'!JV5)/100)*('CVB Table 2019'!$O$5)/1000," ") ->  | JW5: =IF($N$5,(($N$5*'CVB Table 2019'!JW5)/100)*('CVB Table 2019'!$O$5)/1000," ") ->  | JX5: =IF($N$5,(($N$5*'CVB Table 2019'!JX5)/100)*('CVB Table 2019'!$O$5)/1000," ") ->  | JY5: =IF($N$5,(($N$5*'CVB Table 2019'!JY5)/100)*('CVB Table 2019'!$O$5)/1000," ") ->  | JZ5: =IF($N$5,(($N$5*'CVB Table 2019'!JZ5)/100)*('CVB Table 2019'!$O$5)/1000," ") ->  | KA5: =IF($N$5,(($N$5*'CVB Table 2019'!KA5)/100)*('CVB Table 2019'!$O$5)/1000," ") ->  | KB5: =IF($N$5,(($N$5*'CVB Table 2019'!KB5)/100)*('CVB Table 2019'!$O$5)/1000," ") ->  | KC5: =IF($N$5,(($N$5*'CVB Table 2019'!KC5)/100)*('CVB Table 2019'!$O$5)/1000," ") ->  | KD5: =IF($N$5,(($N$5*'CVB Table 2019'!KD5)/100)*('CVB Table 2019'!$O$5)/1000," ") ->  | KE5: =IF($N$5,(($N$5*'CVB Table 2019'!KE5)/100)*('CVB Table 2019'!$O$5)/1000," ") ->  | KF5: =IF($N$5,(($N$5*'CVB Table 2019'!KF5)/100)*('CVB Table 2019'!$O$5)/1000," ") ->  | KG5: =IF($N$5,(($N$5*'CVB Table 2019'!KG5)/100)*('CVB Table 2019'!$O$5)/1000," ") ->  | KH5: =IF($N$5,(($N$5*'CVB Table 2019'!KH5)/100)*('CVB Table 2019'!$O$5)/1000," ") ->  | KI5: =IF($N$5,(($N$5*'CVB Table 2019'!KI5)/100)*('CVB Table 2019'!$O$5)/1000," ") ->  | KJ5: =IF($N$5,(($N$5*'CVB Table 2019'!KJ5)/100)*('CVB Table 2019'!$O$5)/1000," ") ->  | KK5: =IF($N$5,(($N$5*'CVB Table 2019'!KK5)/100)*('CVB Table 2019'!$O$5)/1000," ") ->  | KL5: =IF($N$5,(($N$5*'CVB Table 2019'!KL5)/100)*('CVB Table 2019'!$O$5)/1000," ") ->  | KM5: =IF($N$5,(($N$5*'CVB Table 2019'!KM5)/100)*('CVB Table 2019'!$O$5)/1000," ") ->  | KN5: =IF($N$5,(($N$5*'CVB Table 2019'!KN5)/100)*('CVB Table 2019'!$O$5)/1000," ") ->  | KO5: =IF($N$5,(($N$5*'CVB Table 2019'!KO5)/100)*('CVB Table 2019'!$O$5)/1000," ") ->  | KP5: =IF($N$5,(($N$5*'CVB Table 2019'!KP5)/100)*('CVB Table 2019'!$O$5)/1000," ") ->  | KQ5: =IF($N$5,(($N$5*'CVB Table 2019'!KQ5)/100)*('CVB Table 2019'!$O$5)/1000," ") ->  | KR5: =IF($N$5,(($N$5*'CVB Table 2019'!KR5)/100)*('CVB Table 2019'!$O$5)/1000," ") ->  | KS5: =IF($N$5,(($N$5*'CVB Table 2019'!KS5)/100)*('CVB Table 2019'!$O$5)/1000," ") ->  | KT5: =IF($N$5,(($N$5*'CVB Table 2019'!KT5)/100)*('CVB Table 2019'!$O$5)/1000," ") ->  | KU5: =IF($N$5,(($N$5*'CVB Table 2019'!KU5)/100)*('CVB Table 2019'!$O$5)/1000," ") ->  | KV5: =IF($N$5,(($N$5*'CVB Table 2019'!KV5)/100)*('CVB Table 2019'!$O$5)/1000," ") ->  | KW5: =IF($N$5,(($N$5*'CVB Table 2019'!KW5)/100)*('CVB Table 2019'!$O$5)/1000," ") ->  | KX5: =IF($N$5,(($N$5*'CVB Table 2019'!KX5)/100)*('CVB Table 2019'!$O$5)/1000," ") ->  | KY5: =IF($N$5,(($N$5*'CVB Table 2019'!KY5)/100)*('CVB Table 2019'!$O$5)/1000," ") ->  | KZ5: =IF($N$5,(($N$5*'CVB Table 2019'!KZ5)/100)*('CVB Table 2019'!$O$5)/1000," ") ->  | LA5: =IF($N$5,(($N$5*'CVB Table 2019'!LA5)/100)*('CVB Table 2019'!$O$5)/1000," ") ->  | LB5: =IF($N$5,(($N$5*'CVB Table 2019'!LB5)/100)*('CVB Table 2019'!$O$5)/1000," ") ->  | LC5: =IF($N$5,(($N$5*'CVB Table 2019'!LC5)/100)*('CVB Table 2019'!$O$5)/1000," ") ->  | LD5: =IF($N$5,(($N$5*'CVB Table 2019'!LD5)/100)*('CVB Table 2019'!$O$5)/1000," ") ->  | LE5: =IF($N$5,(($N$5*'CVB Table 2019'!LE5)/100)*('CVB Table 2019'!$O$5)/1000," ") ->  | LF5: =IF($N$5,(($N$5*'CVB Table 2019'!LF5)/100)*('CVB Table 2019'!$O$5)/1000," ") ->  | LG5: =IF($N$5,(($N$5*'CVB Table 2019'!LG5)/100)*('CVB Table 2019'!$O$5)/1000," ") ->  | LH5: =IF($N$5,(($N$5*'CVB Table 2019'!LH5)/100)*('CVB Table 2019'!$O$5)/1000," ") ->  | LI5: =IF($N$5,(($N$5*'CVB Table 2019'!LI5)/100)*('CVB Table 2019'!$O$5)/1000," ") ->  | LJ5: =IF($N$5,(($N$5*'CVB Table 2019'!LJ5)/100)*('CVB Table 2019'!$O$5)/1000," ") ->  | LK5: =IF($N$5,(($N$5*'CVB Table 2019'!LK5)/100)*('CVB Table 2019'!$O$5)/1000," ") ->  | LL5: =IF($N$5,(($N$5*'CVB Table 2019'!LL5)/100)*('CVB Table 2019'!$O$5)/1000," ") ->  | LM5: =IF($N$5,(($N$5*'CVB Table 2019'!LM5)/100)*('CVB Table 2019'!$O$5)/1000," ") ->  | LN5: =IF($N$5,(($N$5*'CVB Table 2019'!LN5)/100)*('CVB Table 2019'!$O$5)/1000," ") ->  | LO5: =IF($N$5,(($N$5*'CVB Table 2019'!LO5)/100)*('CVB Table 2019'!$O$5)/1000," ") ->  | LP5: =IF($N$5,(($N$5*'CVB Table 2019'!LP5)/100)*('CVB Table 2019'!$O$5)/1000," ") ->  | LQ5: =IF($N$5,(($N$5*'CVB Table 2019'!LQ5)/100)*('CVB Table 2019'!$O$5)/1000," ") ->  | LR5: =IF($N$5,(($N$5*'CVB Table 2019'!LR5)/100)*('CVB Table 2019'!$O$5)/1000," ") ->  | LS5: =IF($N$5,(($N$5*'CVB Table 2019'!LS5)/100)*('CVB Table 2019'!$O$5)/1000," ") ->  | LT5: =IF($N$5,($N$5*'CVB Table 2019'!LT5)/100," ") ->  | LU5: =IF($N$5,($N$5*'CVB Table 2019'!LU5)/100," ") ->  | LV5: =IF($N$5,($N$5*'CVB Table 2019'!LV5)/100," ") ->  | LW5: =IF($N$5,($N$5*'CVB Table 2019'!LW5)/100," ") ->  | LX5: =IF($N$5,($N$5*'CVB Table 2019'!LX5)/100," ") ->  | LY5: =IF($N$5,($N$5*'CVB Table 2019'!LY5)/100," ") ->  | LZ5: =IF($N$5,($N$5*'CVB Table 2019'!LZ5)/100," ") ->  | MA5: =IF($N$5,($N$5*'CVB Table 2019'!MA5)/100," ") ->  | MB5: =IF($N$5,($N$5*'CVB Table 2019'!MB5)/100," ") ->  | MC5: =IF($N$5,($N$5*'CVB Table 2019'!MC5)/100," ") ->  | MD5: =IF($N$5,($N$5*'CVB Table 2019'!MD5)/100," ") ->  | ME5: =IF($N$5,($N$5*'CVB Table 2019'!ME5)/100," ") ->  | MF5: =IF($N$5,($N$5*'CVB Table 2019'!MF5)/100," ") ->  | MG5: =IF($N$5,($N$5*'CVB Table 2019'!MG5)/100," ") ->  | MH5: =IF($N$5,($N$5*'CVB Table 2019'!MH5)/100," ") ->  | MI5: =IF($N$5,($N$5*'CVB Table 2019'!MI5)/100," ") ->  | MJ5: =IF($N$5,($N$5*'CVB Table 2019'!MJ5)/100," ") ->  | MK5: =IF($N$5,(($N$5*'CVB Table 2019'!MK5)/100)*('CVB Table 2019'!$O$5)/1000," ") ->  | ML5: =IF($N$5,($N$5*'CVB Table 2019'!ML5)/100," ") ->  | MN5: =IF(N5,($MM$4*('CVB Table 2019'!AI5*0.15)*(N5/100)*(('CVB Table 2019'!O5)/1000)),"") ->  | MO5: =IF(N5,($MM$4*((('CVB Table 2019'!AH5)-('CVB Table 2019'!AI5))*0.8)*(N5/100)*(('CVB Table 2019'!O5)/1000)),"") ->  | MP5: =IF(N5,(MN5+MO5),"") ->  | MQ5: =IF(N5,($MM$4*('CVB Table 2019'!AI5*0.4)*(N5/100)*(('CVB Table 2019'!O5)/1000)),"") ->  | MR5: =IF(N5,($MM$4*((('CVB Table 2019'!AH5)-('CVB Table 2019'!AI5))*0.8)*(N5/100)*(('CVB Table 2019'!O5)/1000)),"") ->  | MS5: =IF(N5,(MQ5+MR5),"") ->  | MT5: =IF(N5,($MM$4*('CVB Table 2019'!AI5*0.25)*(N5/100)*(('CVB Table 2019'!O5)/1000)),"") ->  | MU5: =IF(N5,($MM$4*((('CVB Table 2019'!AH5)-('CVB Table 2019'!AI5))*0.8)*(N5/100)*(('CVB Table 2019'!O5)/1000)),"") ->  | MV5: =IF(N5,(MT5+MU5),"") ->  | MX5: =IF(N5,((N5*'CVB Table 2019'!MX5)/100)*('CVB Table 2019'!$O$4)/1000," ") -> 
A6: 1005.301 | B6: mengvoergrondstoffen | C6: Bierbostel, gedroogd | F6: Brewer's grains, dried | I6: X | M6: 130 | O6: =IF($N$6,($N$6*'CVB Table 2019'!O6)/100," ") ->  | P6: =IF($N$6,(($N$6*'CVB Table 2019'!P6)/100)*('CVB Table 2019'!$O$6)/1000," ") ->  | Q6: =IF($N$6,(($N$6*'CVB Table 2019'!Q6)/100)*('CVB Table 2019'!$O$6)/1000," ") ->  | R6: =IF($N$6,(($N$6*'CVB Table 2019'!R6)/100)*('CVB Table 2019'!$O$6)/1000," ") ->  | S6: =IF($N$6,(($N$6*'CVB Table 2019'!S6)/100)*('CVB Table 2019'!$O$6)/1000," ") ->  | T6: =IF($N$6,(($N$6*'CVB Table 2019'!T6)/100)*('CVB Table 2019'!$O$6)/1000," ") ->  | U6: =IF($N$6,(($N$6*'CVB Table 2019'!U6)/100)*('CVB Table 2019'!$O$6)/1000," ") ->  | V6: =IF($N$6,(($N$6*'CVB Table 2019'!V6)/100)*('CVB Table 2019'!$O$6)/1000," ") ->  | W6: =IF($N$6,(($N$6*'CVB Table 2019'!W6)/100)*('CVB Table 2019'!$O$6)/1000," ") ->  | X6: =IF($N$6,(($N$6*'CVB Table 2019'!X6)/100)*('CVB Table 2019'!$O$6)/1000," ") ->  | Y6: =IF($N$6,(($N$6*'CVB Table 2019'!Y6)/100)*('CVB Table 2019'!$O$6)/1000," ") ->  | Z6: =IF($N$6,(($N$6*'CVB Table 2019'!Z6)/100)*('CVB Table 2019'!$O$6)/1000," ") ->  | AA6: =IF($N$6,(($N$6*'CVB Table 2019'!AA6)/100)*('CVB Table 2019'!$O$6)/1000," ") ->  | AB6: =IF($N$6,(($N$6*'CVB Table 2019'!AB6)/100)*('CVB Table 2019'!$O$6)/1000," ") ->  | AC6: =IF($N$6,(($N$6*'CVB Table 2019'!AC6)/100)*('CVB Table 2019'!$O$6)/1000," ") ->  | AD6: =IF($N$6,(($N$6*'CVB Table 2019'!AD6)/100)*('CVB Table 2019'!$O$6)/1000," ") ->  | AE6: =IF($N$6,(($N$6*'CVB Table 2019'!AE6)/100)*('CVB Table 2019'!$O$6)/1000," ") ->  | AF6: =IF($N$6,(($N$6*'CVB Table 2019'!AF6)/100)*('CVB Table 2019'!$O$6)/1000," ") ->  | AG6: =IF($N$6,(($N$6*'CVB Table 2019'!AG6)/100)*('CVB Table 2019'!$O$6)/1000," ") ->  | AH6: =IF($N$6,(($N$6*'CVB Table 2019'!AH6)/100)*('CVB Table 2019'!$O$6)/1000," ") ->  | AI6: =IF($N$6,(($N$6*'CVB Table 2019'!AI6)/100)*('CVB Table 2019'!$O$6)/1000," ") ->  | AJ6: =IF($N$6,(($N$6*'CVB Table 2019'!AJ6)/100)*('CVB Table 2019'!$O$6)/1000," ") ->  | AK6: =IF($N$6,(($N$6*'CVB Table 2019'!AK6)/100)*('CVB Table 2019'!$O$6)/1000," ") ->  | AL6: =IF($N$6,(($N$6*'CVB Table 2019'!AL6)/100)*('CVB Table 2019'!$O$6)/1000," ") ->  | AM6: =IF($N$6,(($N$6*'CVB Table 2019'!AM6)/100)*('CVB Table 2019'!$O$6)/1000," ") ->  | AN6: =IF($N$6,(($N$6*'CVB Table 2019'!AN6)/100)*('CVB Table 2019'!$O$6)/1000," ") ->  | AO6: =IF($N$6,(($N$6*'CVB Table 2019'!AO6)/100)*('CVB Table 2019'!$O$6)/1000," ") ->  | AP6: =IF($N$6,(($N$6*'CVB Table 2019'!AP6)/100)*('CVB Table 2019'!$O$6)/1000," ") ->  | AQ6: =IF($N$6,(($N$6*'CVB Table 2019'!AQ6)/100)*('CVB Table 2019'!$O$6)/1000," ") ->  | AR6: =IF($N$6,(($N$6*'CVB Table 2019'!AR6)/100)*('CVB Table 2019'!$O$6)/1000," ") ->  | AS6: =IF($N$6,(($N$6*'CVB Table 2019'!AS6)/100)*('CVB Table 2019'!$O$6)/1000," ") ->  | AT6: =IF($N$6,(($N$6*'CVB Table 2019'!AT6)/100)*('CVB Table 2019'!$O$6)/1000," ") ->  | AU6: =IF($N$6,(($N$6*'CVB Table 2019'!AU6)/100)*('CVB Table 2019'!$O$6)/1000," ") ->  | AV6: =IF($N$6,(($N$6*'CVB Table 2019'!AV6)/100)*('CVB Table 2019'!$O$6)/1000," ") ->  | AW6: =IF($N$6,(($N$6*'CVB Table 2019'!AW6)/100)*('CVB Table 2019'!$O$6)/1000," ") ->  | AX6: =IF($N$6,(($N$6*'CVB Table 2019'!AX6)/100)*('CVB Table 2019'!$O$6)/1000," ") ->  | AY6: =IF($N$6,(($N$6*'CVB Table 2019'!AY6)/100)*('CVB Table 2019'!$O$6)/1000," ") ->  | AZ6: =IF($N$6,(($N$6*'CVB Table 2019'!AZ6)/100)*('CVB Table 2019'!$O$6)/1000," ") ->  | BA6: =IF($N$6,(($N$6*'CVB Table 2019'!BA6)/100)*('CVB Table 2019'!$O$6)/1000," ") ->  | BB6: =IF($N$6,(($N$6*'CVB Table 2019'!BB6)/100)*('CVB Table 2019'!$O$6)/1000," ") ->  | BC6: =IF($N$6,(($N$6*'CVB Table 2019'!BC6)/100)*('CVB Table 2019'!$O$6)/1000," ") ->  | BD6: =IF($N$6,($N$6*'CVB Table 2019'!BD6)/100," ") ->  | BE6: =IF($N$6,($N$6*'CVB Table 2019'!BE6)/100," ") ->  | BF6: =IF($N$6,($N$6*'CVB Table 2019'!BF6)/100," ") ->  | BG6: =IF($N$6,($N$6*'CVB Table 2019'!BG6)/100," ") ->  | BH6: =IF($N$6,($N$6*'CVB Table 2019'!BH6)/100," ") ->  | BI6: =IF($N$6,($N$6*'CVB Table 2019'!BI6)/100," ") ->  | BJ6: =IF($N$6,($N$6*'CVB Table 2019'!BJ6)/100," ") ->  | BK6: =IF($N$6,($N$6*'CVB Table 2019'!BK6)/100," ") ->  | BL6: =IF($N$6,($N$6*'CVB Table 2019'!BL6)/100," ") ->  | BM6: =IF($N$6,($N$6*'CVB Table 2019'!BM6)/100," ") ->  | BN6: =IF($N$6,($N$6*'CVB Table 2019'!BN6)/100," ") ->  | BO6: =IF($N$6,($N$6*'CVB Table 2019'!BO6)/100," ") ->  | BP6: =IF($N$6,($N$6*'CVB Table 2019'!BP6)/100," ") ->  | BQ6: =IF($N$6,($N$6*'CVB Table 2019'!BQ6)/100," ") ->  | BR6: =IF($N$6,($N$6*'CVB Table 2019'!BR6)/100," ") ->  | BS6: =IF($N$6,($N$6*'CVB Table 2019'!BS6)/100," ") ->  | BT6: =IF($N$6,($N$6*'CVB Table 2019'!BT6)/100," ") ->  | BU6: =IF($N$6,($N$6*'CVB Table 2019'!BU6)/100," ") ->  | BV6: =IF($N$6,($N$6*'CVB Table 2019'!BV6)/100," ") ->  | BW6: =IF($N$6,($N$6*'CVB Table 2019'!BW6)/100," ") ->  | BX6: =IF($N$6,($N$6*'CVB Table 2019'!BX6)/100," ") ->  | BY6: =IF($N$6,($N$6*'CVB Table 2019'!BY6)/100," ") ->  | BZ6: =IF($N$6,($N$6*'CVB Table 2019'!BZ6)/100," ") ->  | CA6: =IF($N$6,($N$6*'CVB Table 2019'!CA6)/100," ") ->  | CB6: =IF($N$6,($N$6*'CVB Table 2019'!CB6)/100," ") ->  | CC6: =IF($N$6,($N$6*'CVB Table 2019'!CC6)/100," ") ->  | CD6: =IF($N$6,($N$6*'CVB Table 2019'!CD6)/100," ") ->  | CE6: =IF($N$6,($N$6*'CVB Table 2019'!CE6)/100," ") ->  | CF6: =IF($N$6,($N$6*'CVB Table 2019'!CF6)/100," ") ->  | CG6: =IF($N$6,($N$6*'CVB Table 2019'!CG6)/100," ") ->  | CH6: =IF($N$6,($N$6*'CVB Table 2019'!CH6)/100," ") ->  | CI6: =IF($N$6,($N$6*'CVB Table 2019'!CI6)/100," ") ->  | CJ6: =IF($N$6,(($N$6*'CVB Table 2019'!CJ6)/100)*('CVB Table 2019'!$O$6)/1000," ") ->  | CK6: =IF($N$6,(($N$6*'CVB Table 2019'!CK6)/100)*('CVB Table 2019'!$O$6)/1000," ") ->  | CL6: =IF($N$6,(($N$6*'CVB Table 2019'!CL6)/100)*('CVB Table 2019'!$O$6)/1000," ") ->  | CM6: =IF($N$6,(($N$6*'CVB Table 2019'!CM6)/100)*('CVB Table 2019'!$O$6)/1000," ") ->  | CN6: =IF($N$6,(($N$6*'CVB Table 2019'!CN6)/100)*('CVB Table 2019'!$O$6)/1000," ") ->  | CO6: =IF($N$6,(($N$6*'CVB Table 2019'!CO6)/100)*('CVB Table 2019'!$O$6)/1000," ") ->  | CP6: =IF($N$6,($N$6*'CVB Table 2019'!CP6)/100," ") ->  | CQ6: =IF($N$6,($N$6*'CVB Table 2019'!CQ6)/100," ") ->  | CR6: =IF($N$6,($N$6*'CVB Table 2019'!CR6)/100," ") ->  | CS6: =IF($N$6,(($N$6*'CVB Table 2019'!CS6)/100)*('CVB Table 2019'!$O$6)/1000," ") ->  | CT6: =IF($N$6,(($N$6*'CVB Table 2019'!CT6)/100)*('CVB Table 2019'!$O$6)/1000," ") ->  | CU6: =IF($N$6,($N$6*'CVB Table 2019'!CU6)/100," ") ->  | CV6: =IF($N$6,(($N$6*'CVB Table 2019'!CV6)/100)*('CVB Table 2019'!$O$6)/1000," ") ->  | CW6: =IF($N$6,(($N$6*'CVB Table 2019'!CW6)/100)*('CVB Table 2019'!$O$6)/1000," ") ->  | CX6: =IF($N$6,(($N$6*'CVB Table 2019'!CX6)/100)*('CVB Table 2019'!$O$6)/1000," ") ->  | CY6: =IF($N$6,(($N$6*'CVB Table 2019'!CY6)/100)*('CVB Table 2019'!$O$6)/1000," ") ->  | CZ6: =IF($N$6,(($N$6*'CVB Table 2019'!CZ6)/100)*('CVB Table 2019'!$O$6)/1000," ") ->  | DA6: =IF($N$6,($N$6*'CVB Table 2019'!DA6)/100," ") ->  | DB6: =IF($N$6,($N$6*'CVB Table 2019'!DB6)/100," ") ->  | DC6: =IF($N$6,($N$6*'CVB Table 2019'!DC6)/100," ") ->  | DD6: =IF($N$6,($N$6*'CVB Table 2019'!DD6)/100," ") ->  | DE6: =IF(N6,((N6*'CVB Table 2019'!DE6)/100)*('CVB Table 2019'!O6)/1000," ") ->  | DF6: =IF($N$6,($N$6*'CVB Table 2019'!DF6)/100," ") ->  | DG6: =IF($N$6,($N$6*'CVB Table 2019'!DG6)/100," ") ->  | DH6: =IF($N$6,($N$6*'CVB Table 2019'!DH6)/100," ") ->  | DI6: =IF($N$6,($N$6*'CVB Table 2019'!DI6)/100," ") ->  | DJ6: =IF($N$6,($N$6*'CVB Table 2019'!DJ6)/100," ") ->  | DK6: =IF($N$6,($N$6*'CVB Table 2019'!DK6)/100," ") ->  | DL6: =IF($N$6,($N$6*'CVB Table 2019'!DL6)/100," ") ->  | DM6: =IF(N6,((N6*'CVB Table 2019'!DM6)/100)*('CVB Table 2019'!O6)/1000," ") ->  | DN6: =IF($N$6,($N$6*'CVB Table 2019'!DN6)/100," ") ->  | DO6: =IF(N6,((N6*'CVB Table 2019'!DO6)/100)*('CVB Table 2019'!O6)/1000," ") ->  | DP6: =IF($N$6,($N$6*'CVB Table 2019'!DP6)/100," ") ->  | DQ6: =IF($N$6,($N$6*'CVB Table 2019'!DQ6)/100," ") ->  | DR6: =IF($N$6,($N$6*'CVB Table 2019'!DR6)/100," ") ->  | DS6: =IF($N$6,($N$6*'CVB Table 2019'!DS6)/100," ") ->  | DT6: =IF(N6,((N6*'CVB Table 2019'!DT6)/100)*('CVB Table 2019'!O6)/1000," ") ->  | DU6: =IF($N$6,($N$6*'CVB Table 2019'!DU6)/100," ") ->  | DV6: =IF(N6,((N6*'CVB Table 2019'!DV6)/100)*('CVB Table 2019'!O6)/1000," ") ->  | DW6: =IF($N$6,(($N$6*'CVB Table 2019'!DW6)/100)*('CVB Table 2019'!$O$6)/1000," ") ->  | DX6: =IF($N$6,(($N$6*'CVB Table 2019'!DX6)/100)*('CVB Table 2019'!$O$6)/1000," ") ->  | DY6: =IF($N$6,($N$6*'CVB Table 2019'!DY6)/100," ") ->  | DZ6: =IF($N$6,($N$6*'CVB Table 2019'!DZ6)/100," ") ->  | EA6: =IF($N$6,($N$6*'CVB Table 2019'!EA6)/100," ") ->  | EB6: =IF($N$6,($N$6*'CVB Table 2019'!EB6)/100," ") ->  | EC6: =IF($N$6,($N$6*'CVB Table 2019'!EC6)/100," ") ->  | ED6: =IF($N$6,($N$6*'CVB Table 2019'!ED6)/100," ") ->  | EE6: =IF($N$6,($N$6*'CVB Table 2019'!EE6)/100," ") ->  | EF6: =IF($N$6,($N$6*'CVB Table 2019'!EF6)/100," ") ->  | EG6: =IF($N$6,($N$6*'CVB Table 2019'!EG6)/100," ") ->  | EH6: =IF($N$6,($N$6*'CVB Table 2019'!EH6)/100," ") ->  | EI6: =IF($N$6,($N$6*'CVB Table 2019'!EI6)/100," ") ->  | EJ6: =IF($N$6,($N$6*'CVB Table 2019'!EJ6)/100," ") ->  | EK6: =IF($N$6,($N$6*'CVB Table 2019'!EK6)/100," ") ->  | EL6: =IF($N$6,($N$6*'CVB Table 2019'!EL6)/100," ") ->  | EM6: =IF($N$6,($N$6*'CVB Table 2019'!EM6)/100," ") ->  | EN6: =IF($N$6,($N$6*'CVB Table 2019'!EN6)/100," ") ->  | EO6: =IF($N$6,($N$6*'CVB Table 2019'!EO6)/100," ") ->  | EP6: =IF($N$6,($N$6*'CVB Table 2019'!EP6)/100," ") ->  | EQ6: =IF($N$6,($N$6*'CVB Table 2019'!EQ6)/100," ") ->  | ER6: =IF($N$6,($N$6*'CVB Table 2019'!ER6)/100," ") ->  | ES6: =IF($N$6,($N$6*'CVB Table 2019'!ES6)/100," ") ->  | ET6: =IF($N$6,($N$6*'CVB Table 2019'!ET6)/100," ") ->  | EU6: =IF($N$6,($N$6*'CVB Table 2019'!EU6)/100," ") ->  | EV6: =IF($N$6,($N$6*'CVB Table 2019'!EV6)/100," ") ->  | EW6: =IF($N$6,($N$6*'CVB Table 2019'!EW6)/100," ") ->  | EX6: =IF($N$6,($N$6*'CVB Table 2019'!EX6)/100," ") ->  | EY6: =IF($N$6,($N$6*'CVB Table 2019'!EY6)/100," ") ->  | EZ6: =IF($N$6,($N$6*'CVB Table 2019'!EZ6)/100," ") ->  | FA6: =IF($N$6,($N$6*'CVB Table 2019'!FA6)/100," ") ->  | FB6: =IF($N$6,($N$6*'CVB Table 2019'!FB6)/100," ") ->  | FC6: =IF($N$6,($N$6*'CVB Table 2019'!FC6)/100," ") ->  | FD6: =IF($N$6,($N$6*'CVB Table 2019'!FD6)/100," ") ->  | FE6: =IF($N$6,($N$6*'CVB Table 2019'!FE6)/100," ") ->  | FF6: =IF($N$6,($N$6*'CVB Table 2019'!FF6)/100," ") ->  | FG6: =IF($N$6,($N$6*'CVB Table 2019'!FG6)/100," ") ->  | FH6: =IF($N$6,($N$6*'CVB Table 2019'!FH6)/100," ") ->  | FI6: =IF($N$6,($N$6*'CVB Table 2019'!FI6)/100," ") ->  | FJ6: =IF($N$6,($N$6*'CVB Table 2019'!FJ6)/100," ") ->  | FK6: =IF($N$6,(($N$6*'CVB Table 2019'!FK6)/100)*('CVB Table 2019'!$O$6)/1000," ") ->  | FL6: =IF($N$6,(($N$6*'CVB Table 2019'!FL6)/100)*('CVB Table 2019'!$O$6)/1000," ") ->  | FM6: =IF($N$6,(($N$6*'CVB Table 2019'!FM6)/100)*('CVB Table 2019'!$O$6)/1000," ") ->  | FN6: =IF($N$6,(($N$6*'CVB Table 2019'!FN6)/100)*('CVB Table 2019'!$O$6)/1000," ") ->  | FO6: =IF($N$6,(($N$6*'CVB Table 2019'!FO6)/100)*('CVB Table 2019'!$O$6)/1000," ") ->  | FP6: =IF($N$6,(($N$6*'CVB Table 2019'!FP6)/100)*('CVB Table 2019'!$O$6)/1000," ") ->  | FQ6: =IF($N$6,(($N$6*'CVB Table 2019'!FQ6)/100)*('CVB Table 2019'!$O$6)/1000," ") ->  | FR6: =IF($N$6,(($N$6*'CVB Table 2019'!FR6)/100)*('CVB Table 2019'!$O$6)/1000," ") ->  | FS6: =IF($N$6,(($N$6*'CVB Table 2019'!FS6)/100)*('CVB Table 2019'!$O$6)/1000," ") ->  | FT6: =IF($N$6,(($N$6*'CVB Table 2019'!FT6)/100)*('CVB Table 2019'!$O$6)/1000," ") ->  | FU6: =IF($N$6,(($N$6*'CVB Table 2019'!FU6)/100)*('CVB Table 2019'!$O$6)/1000," ") ->  | FV6: =IF($N$6,(($N$6*'CVB Table 2019'!FV6)/100)*('CVB Table 2019'!$O$6)/1000," ") ->  | FW6: =IF($N$6,(($N$6*'CVB Table 2019'!FW6)/100)*('CVB Table 2019'!$O$6)/1000," ") ->  | FX6: =IF($N$6,(($N$6*'CVB Table 2019'!FX6)/100)*('CVB Table 2019'!$O$6)/1000," ") ->  | FY6: =IF($N$6,(($N$6*'CVB Table 2019'!FY6)/100)*('CVB Table 2019'!$O$6)/1000," ") ->  | FZ6: =IF($N$6,(($N$6*'CVB Table 2019'!FZ6)/100)*('CVB Table 2019'!$O$6)/1000," ") ->  | GA6: =IF($N$6,(($N$6*'CVB Table 2019'!GA6)/100)*('CVB Table 2019'!$O$6)/1000," ") ->  | GB6: =IF($N$6,(($N$6*'CVB Table 2019'!GB6)/100)*('CVB Table 2019'!$O$6)/1000," ") ->  | GC6: =IF($N$6,(($N$6*'CVB Table 2019'!GC6)/100)*('CVB Table 2019'!$O$6)/1000," ") ->  | GD6: =IF($N$6,(($N$6*'CVB Table 2019'!GD6)/100)*('CVB Table 2019'!$O$6)/1000," ") ->  | GE6: =IF($N$6,(($N$6*'CVB Table 2019'!GE6)/100)*('CVB Table 2019'!$O$6)/1000," ") ->  | GF6: =IF($N$6,(($N$6*'CVB Table 2019'!GF6)/100)*('CVB Table 2019'!$O$6)/1000," ") ->  | GG6: =IF($N$6,(($N$6*'CVB Table 2019'!GG6)/100)*('CVB Table 2019'!$O$6)/1000," ") ->  | GH6: =IF($N$6,(($N$6*'CVB Table 2019'!GH6)/100)*('CVB Table 2019'!$O$6)/1000," ") ->  | GI6: =IF($N$6,(($N$6*'CVB Table 2019'!GI6)/100)*('CVB Table 2019'!$O$6)/1000," ") ->  | GJ6: =IF($N$6,(($N$6*'CVB Table 2019'!GJ6)/100)*('CVB Table 2019'!$O$6)/1000," ") ->  | GK6: =IF($N$6,(($N$6*'CVB Table 2019'!GK6)/100)*('CVB Table 2019'!$O$6)/1000," ") ->  | GL6: =IF($N$6,(($N$6*'CVB Table 2019'!GL6)/100)*('CVB Table 2019'!$O$6)/1000," ") ->  | GM6: =IF($N$6,(($N$6*'CVB Table 2019'!GM6)/100)*('CVB Table 2019'!$O$6)/1000," ") ->  | GN6: =IF($N$6,(($N$6*'CVB Table 2019'!GN6)/100)*('CVB Table 2019'!$O$6)/1000," ") ->  | GO6: =IF($N$6,(($N$6*'CVB Table 2019'!GO6)/100)*('CVB Table 2019'!$O$6)/1000," ") ->  | GP6: =IF($N$6,(($N$6*'CVB Table 2019'!GP6)/100)*('CVB Table 2019'!$O$6)/1000," ") ->  | GQ6: =IF($N$6,(($N$6*'CVB Table 2019'!GQ6)/100)*('CVB Table 2019'!$O$6)/1000," ") ->  | GR6: =IF($N$6,(($N$6*'CVB Table 2019'!GR6)/100)*('CVB Table 2019'!$O$6)/1000," ") ->  | GS6: =IF($N$6,(($N$6*'CVB Table 2019'!GS6)/100)*('CVB Table 2019'!$O$6)/1000," ") ->  | GT6: =IF($N$6,(($N$6*'CVB Table 2019'!GT6)/100)*('CVB Table 2019'!$O$6)/1000," ") ->  | GU6: =IF($N$6,(($N$6*'CVB Table 2019'!GU6)/100)*('CVB Table 2019'!$O$6)/1000," ") ->  | GV6: =IF($N$6,(($N$6*'CVB Table 2019'!GV6)/100)*('CVB Table 2019'!$O$6)/1000," ") ->  | GW6: =IF($N$6,(($N$6*'CVB Table 2019'!GW6)/100)*('CVB Table 2019'!$O$6)/1000," ") ->  | GX6: =IF($N$6,(($N$6*'CVB Table 2019'!GX6)/100)*('CVB Table 2019'!$O$6)/1000," ") ->  | GY6: =IF($N$6,($N$6*'CVB Table 2019'!GY6)/100," ") ->  | GZ6: =IF($N$6,($N$6*'CVB Table 2019'!GZ6)/100," ") ->  | HA6: =IF($N$6,($N$6*'CVB Table 2019'!HA6)/100," ") ->  | HB6: =IF($N$6,($N$6*'CVB Table 2019'!HB6)/100," ") ->  | HC6: =IF($N$6,($N$6*'CVB Table 2019'!HC6)/100," ") ->  | HD6: =IF($N$6,($N$6*'CVB Table 2019'!HD6)/100," ") ->  | HE6: =IF($N$6,($N$6*'CVB Table 2019'!HE6)/100," ") ->  | HF6: =IF($N$6,($N$6*'CVB Table 2019'!HF6)/100," ") ->  | HG6: =IF($N$6,($N$6*'CVB Table 2019'!HG6)/100," ") ->  | HH6: =IF($N$6,($N$6*'CVB Table 2019'!HH6)/100," ") ->  | HI6: =IF($N$6,($N$6*'CVB Table 2019'!HI6)/100," ") ->  | HJ6: =IF($N$6,($N$6*'CVB Table 2019'!HJ6)/100," ") ->  | HK6: =IF($N$6,($N$6*'CVB Table 2019'!HK6)/100," ") ->  | HL6: =IF($N$6,($N$6*'CVB Table 2019'!HL6)/100," ") ->  | HM6: =IF($N$6,($N$6*'CVB Table 2019'!HM6)/100," ") ->  | HN6: =IF($N$6,($N$6*'CVB Table 2019'!HN6)/100," ") ->  | HO6: =IF($N$6,($N$6*'CVB Table 2019'!HO6)/100," ") ->  | HP6: =IF($N$6,($N$6*'CVB Table 2019'!HP6)/100," ") ->  | HQ6: =IF($N$6,($N$6*'CVB Table 2019'!HQ6)/100," ") ->  | HR6: =IF($N$6,(($N$6*'CVB Table 2019'!HR6)/100)*('CVB Table 2019'!$O$6)/1000," ") ->  | HS6: =IF($N$6,(($N$6*'CVB Table 2019'!HS6)/100)*('CVB Table 2019'!$O$6)/1000," ") ->  | HT6: =IF($N$6,(($N$6*'CVB Table 2019'!HT6)/100)*('CVB Table 2019'!$O$6)/1000," ") ->  | HU6: =IF($N$6,(($N$6*'CVB Table 2019'!HU6)/100)*('CVB Table 2019'!$O$6)/1000," ") ->  | HV6: =IF($N$6,(($N$6*'CVB Table 2019'!HV6)/100)*('CVB Table 2019'!$O$6)/1000," ") ->  | HW6: =IF($N$6,(($N$6*'CVB Table 2019'!HW6)/100)*('CVB Table 2019'!$O$6)/1000," ") ->  | HX6: =IF($N$6,(($N$6*'CVB Table 2019'!HX6)/100)*('CVB Table 2019'!$O$6)/1000," ") ->  | HY6: =IF($N$6,(($N$6*'CVB Table 2019'!HY6)/100)*('CVB Table 2019'!$O$6)/1000," ") ->  | HZ6: =IF($N$6,(($N$6*'CVB Table 2019'!HZ6)/100)*('CVB Table 2019'!$O$6)/1000," ") ->  | IA6: =IF($N$6,(($N$6*'CVB Table 2019'!IA6)/100)*('CVB Table 2019'!$O$6)/1000," ") ->  | IB6: =IF($N$6,(($N$6*'CVB Table 2019'!IB6)/100)*('CVB Table 2019'!$O$6)/1000," ") ->  | IC6: =IF($N$6,(($N$6*'CVB Table 2019'!IC6)/100)*('CVB Table 2019'!$O$6)/1000," ") ->  | ID6: =IF($N$6,(($N$6*'CVB Table 2019'!ID6)/100)*('CVB Table 2019'!$O$6)/1000," ") ->  | IE6: =IF($N$6,(($N$6*'CVB Table 2019'!IE6)/100)*('CVB Table 2019'!$O$6)/1000," ") ->  | IF6: =IF($N$6,(($N$6*'CVB Table 2019'!IF6)/100)*('CVB Table 2019'!$O$6)/1000," ") ->  | IG6: =IF($N$6,(($N$6*'CVB Table 2019'!IG6)/100)*('CVB Table 2019'!$O$6)/1000," ") ->  | IH6: =IF($N$6,(($N$6*'CVB Table 2019'!IH6)/100)*('CVB Table 2019'!$O$6)/1000," ") ->  | II6: =IF($N$6,(($N$6*'CVB Table 2019'!II6)/100)*('CVB Table 2019'!$O$6)/1000," ") ->  | IJ6: =IF($N$6,(($N$6*'CVB Table 2019'!IJ6)/100)*('CVB Table 2019'!$O$6)/1000," ") ->  | IK6: =IF($N$6,($N$6*'CVB Table 2019'!IK6)/100," ") ->  | IL6: =IF($N$6,($N$6*'CVB Table 2019'!IL6)/100," ") ->  | IM6: =IF($N$6,($N$6*'CVB Table 2019'!IM6)/100," ") ->  | IN6: =IF($N$6,($N$6*'CVB Table 2019'!IN6)/100," ") ->  | IO6: =IF($N$6,($N$6*'CVB Table 2019'!IO6)/100," ") ->  | IP6: =IF($N$6,($N$6*'CVB Table 2019'!IP6)/100," ") ->  | IQ6: =IF($N$6,($N$6*'CVB Table 2019'!IQ6)/100," ") ->  | IR6: =IF($N$6,($N$6*'CVB Table 2019'!IR6)/100," ") ->  | IS6: =IF($N$6,($N$6*'CVB Table 2019'!IS6)/100," ") ->  | IT6: =IF($N$6,($N$6*'CVB Table 2019'!IT6)/100," ") ->  | IU6: =IF($N$6,($N$6*'CVB Table 2019'!IU6)/100," ") ->  | IV6: =IF($N$6,($N$6*'CVB Table 2019'!IV6)/100," ") ->  | IW6: =IF($N$6,($N$6*'CVB Table 2019'!IW6)/100," ") ->  | IX6: =IF($N$6,($N$6*'CVB Table 2019'!IX6)/100," ") ->  | IY6: =IF($N$6,($N$6*'CVB Table 2019'!IY6)/100," ") ->  | IZ6: =IF($N$6,($N$6*'CVB Table 2019'!IZ6)/100," ") ->  | JA6: =IF($N$6,($N$6*'CVB Table 2019'!JA6)/100," ") ->  | JB6: =IF($N$6,($N$6*'CVB Table 2019'!JB6)/100," ") ->  | JC6: =IF($N$6,($N$6*'CVB Table 2019'!JC6)/100," ") ->  | JD6: =IF($N$6,($N$6*'CVB Table 2019'!JD6)/100," ") ->  | JE6: =IF($N$6,($N$6*'CVB Table 2019'!JE6)/100," ") ->  | JF6: =IF($N$6,($N$6*'CVB Table 2019'!JF6)/100," ") ->  | JG6: =IF($N$6,($N$6*'CVB Table 2019'!JG6)/100," ") ->  | JH6: =IF($N$6,($N$6*'CVB Table 2019'!JH6)/100," ") ->  | JI6: =IF($N$6,($N$6*'CVB Table 2019'!JI6)/100," ") ->  | JJ6: =IF($N$6,($N$6*'CVB Table 2019'!JJ6)/100," ") ->  | JK6: =IF($N$6,($N$6*'CVB Table 2019'!JK6)/100," ") ->  | JL6: =IF($N$6,($N$6*'CVB Table 2019'!JL6)/100," ") ->  | JM6: =IF($N$6,($N$6*'CVB Table 2019'!JM6)/100," ") ->  | JN6: =IF($N$6,($N$6*'CVB Table 2019'!JN6)/100," ") ->  | JO6: =IF($N$6,($N$6*'CVB Table 2019'!JO6)/100," ") ->  | JP6: =IF($N$6,($N$6*'CVB Table 2019'!JP6)/100," ") ->  | JQ6: =IF($N$6,($N$6*'CVB Table 2019'!JQ6)/100," ") ->  | JR6: =IF($N$6,($N$6*'CVB Table 2019'!JR6)/100," ") ->  | JS6: =IF($N$6,($N$6*'CVB Table 2019'!JS6)/100," ") ->  | JT6: =IF($N$6,($N$6*'CVB Table 2019'!JT6)/100," ") ->  | JU6: =IF($N$6,(($N$6*'CVB Table 2019'!JU6)/100)*('CVB Table 2019'!$O$6)/1000," ") ->  | JV6: =IF($N$6,(($N$6*'CVB Table 2019'!JV6)/100)*('CVB Table 2019'!$O$6)/1000," ") ->  | JW6: =IF($N$6,(($N$6*'CVB Table 2019'!JW6)/100)*('CVB Table 2019'!$O$6)/1000," ") ->  | JX6: =IF($N$6,(($N$6*'CVB Table 2019'!JX6)/100)*('CVB Table 2019'!$O$6)/1000," ") ->  | JY6: =IF($N$6,(($N$6*'CVB Table 2019'!JY6)/100)*('CVB Table 2019'!$O$6)/1000," ") ->  | JZ6: =IF($N$6,(($N$6*'CVB Table 2019'!JZ6)/100)*('CVB Table 2019'!$O$6)/1000," ") ->  | KA6: =IF($N$6,(($N$6*'CVB Table 2019'!KA6)/100)*('CVB Table 2019'!$O$6)/1000," ") ->  | KB6: =IF($N$6,(($N$6*'CVB Table 2019'!KB6)/100)*('CVB Table 2019'!$O$6)/1000," ") ->  | KC6: =IF($N$6,(($N$6*'CVB Table 2019'!KC6)/100)*('CVB Table 2019'!$O$6)/1000," ") ->  | KD6: =IF($N$6,(($N$6*'CVB Table 2019'!KD6)/100)*('CVB Table 2019'!$O$6)/1000," ") ->  | KE6: =IF($N$6,(($N$6*'CVB Table 2019'!KE6)/100)*('CVB Table 2019'!$O$6)/1000," ") ->  | KF6: =IF($N$6,(($N$6*'CVB Table 2019'!KF6)/100)*('CVB Table 2019'!$O$6)/1000," ") ->  | KG6: =IF($N$6,(($N$6*'CVB Table 2019'!KG6)/100)*('CVB Table 2019'!$O$6)/1000," ") ->  | KH6: =IF($N$6,(($N$6*'CVB Table 2019'!KH6)/100)*('CVB Table 2019'!$O$6)/1000," ") ->  | KI6: =IF($N$6,(($N$6*'CVB Table 2019'!KI6)/100)*('CVB Table 2019'!$O$6)/1000," ") ->  | KJ6: =IF($N$6,(($N$6*'CVB Table 2019'!KJ6)/100)*('CVB Table 2019'!$O$6)/1000," ") ->  | KK6: =IF($N$6,(($N$6*'CVB Table 2019'!KK6)/100)*('CVB Table 2019'!$O$6)/1000," ") ->  | KL6: =IF($N$6,(($N$6*'CVB Table 2019'!KL6)/100)*('CVB Table 2019'!$O$6)/1000," ") ->  | KM6: =IF($N$6,(($N$6*'CVB Table 2019'!KM6)/100)*('CVB Table 2019'!$O$6)/1000," ") ->  | KN6: =IF($N$6,(($N$6*'CVB Table 2019'!KN6)/100)*('CVB Table 2019'!$O$6)/1000," ") ->  | KO6: =IF($N$6,(($N$6*'CVB Table 2019'!KO6)/100)*('CVB Table 2019'!$O$6)/1000," ") ->  | KP6: =IF($N$6,(($N$6*'CVB Table 2019'!KP6)/100)*('CVB Table 2019'!$O$6)/1000," ") ->  | KQ6: =IF($N$6,(($N$6*'CVB Table 2019'!KQ6)/100)*('CVB Table 2019'!$O$6)/1000," ") ->  | KR6: =IF($N$6,(($N$6*'CVB Table 2019'!KR6)/100)*('CVB Table 2019'!$O$6)/1000," ") ->  | KS6: =IF($N$6,(($N$6*'CVB Table 2019'!KS6)/100)*('CVB Table 2019'!$O$6)/1000," ") ->  | KT6: =IF($N$6,(($N$6*'CVB Table 2019'!KT6)/100)*('CVB Table 2019'!$O$6)/1000," ") ->  | KU6: =IF($N$6,(($N$6*'CVB Table 2019'!KU6)/100)*('CVB Table 2019'!$O$6)/1000," ") ->  | KV6: =IF($N$6,(($N$6*'CVB Table 2019'!KV6)/100)*('CVB Table 2019'!$O$6)/1000," ") ->  | KW6: =IF($N$6,(($N$6*'CVB Table 2019'!KW6)/100)*('CVB Table 2019'!$O$6)/1000," ") ->  | KX6: =IF($N$6,(($N$6*'CVB Table 2019'!KX6)/100)*('CVB Table 2019'!$O$6)/1000," ") ->  | KY6: =IF($N$6,(($N$6*'CVB Table 2019'!KY6)/100)*('CVB Table 2019'!$O$6)/1000," ") ->  | KZ6: =IF($N$6,(($N$6*'CVB Table 2019'!KZ6)/100)*('CVB Table 2019'!$O$6)/1000," ") ->  | LA6: =IF($N$6,(($N$6*'CVB Table 2019'!LA6)/100)*('CVB Table 2019'!$O$6)/1000," ") ->  | LB6: =IF($N$6,(($N$6*'CVB Table 2019'!LB6)/100)*('CVB Table 2019'!$O$6)/1000," ") ->  | LC6: =IF($N$6,(($N$6*'CVB Table 2019'!LC6)/100)*('CVB Table 2019'!$O$6)/1000," ") ->  | LD6: =IF($N$6,(($N$6*'CVB Table 2019'!LD6)/100)*('CVB Table 2019'!$O$6)/1000," ") ->  | LE6: =IF($N$6,(($N$6*'CVB Table 2019'!LE6)/100)*('CVB Table 2019'!$O$6)/1000," ") ->  | LF6: =IF($N$6,(($N$6*'CVB Table 2019'!LF6)/100)*('CVB Table 2019'!$O$6)/1000," ") ->  | LG6: =IF($N$6,(($N$6*'CVB Table 2019'!LG6)/100)*('CVB Table 2019'!$O$6)/1000," ") ->  | LH6: =IF($N$6,(($N$6*'CVB Table 2019'!LH6)/100)*('CVB Table 2019'!$O$6)/1000," ") ->  | LI6: =IF($N$6,(($N$6*'CVB Table 2019'!LI6)/100)*('CVB Table 2019'!$O$6)/1000," ") ->  | LJ6: =IF($N$6,(($N$6*'CVB Table 2019'!LJ6)/100)*('CVB Table 2019'!$O$6)/1000," ") ->  | LK6: =IF($N$6,(($N$6*'CVB Table 2019'!LK6)/100)*('CVB Table 2019'!$O$6)/1000," ") ->  | LL6: =IF($N$6,(($N$6*'CVB Table 2019'!LL6)/100)*('CVB Table 2019'!$O$6)/1000," ") ->  | LM6: =IF($N$6,(($N$6*'CVB Table 2019'!LM6)/100)*('CVB Table 2019'!$O$6)/1000," ") ->  | LN6: =IF($N$6,(($N$6*'CVB Table 2019'!LN6)/100)*('CVB Table 2019'!$O$6)/1000," ") ->  | LO6: =IF($N$6,(($N$6*'CVB Table 2019'!LO6)/100)*('CVB Table 2019'!$O$6)/1000," ") ->  | LP6: =IF($N$6,(($N$6*'CVB Table 2019'!LP6)/100)*('CVB Table 2019'!$O$6)/1000," ") ->  | LQ6: =IF($N$6,(($N$6*'CVB Table 2019'!LQ6)/100)*('CVB Table 2019'!$O$6)/1000," ") ->  | LR6: =IF($N$6,(($N$6*'CVB Table 2019'!LR6)/100)*('CVB Table 2019'!$O$6)/1000," ") ->  | LS6: =IF($N$6,(($N$6*'CVB Table 2019'!LS6)/100)*('CVB Table 2019'!$O$6)/1000," ") ->  | LT6: =IF($N$6,($N$6*'CVB Table 2019'!LT6)/100," ") ->  | LU6: =IF($N$6,($N$6*'CVB Table 2019'!LU6)/100," ") ->  | LV6: =IF($N$6,($N$6*'CVB Table 2019'!LV6)/100," ") ->  | LW6: =IF($N$6,($N$6*'CVB Table 2019'!LW6)/100," ") ->  | LX6: =IF($N$6,($N$6*'CVB Table 2019'!LX6)/100," ") ->  | LY6: =IF($N$6,($N$6*'CVB Table 2019'!LY6)/100," ") ->  | LZ6: =IF($N$6,($N$6*'CVB Table 2019'!LZ6)/100," ") ->  | MA6: =IF($N$6,($N$6*'CVB Table 2019'!MA6)/100," ") ->  | MB6: =IF($N$6,($N$6*'CVB Table 2019'!MB6)/100," ") ->  | MC6: =IF($N$6,($N$6*'CVB Table 2019'!MC6)/100," ") ->  | MD6: =IF($N$6,($N$6*'CVB Table 2019'!MD6)/100," ") ->  | ME6: =IF($N$6,($N$6*'CVB Table 2019'!ME6)/100," ") ->  | MF6: =IF($N$6,($N$6*'CVB Table 2019'!MF6)/100," ") ->  | MG6: =IF($N$6,($N$6*'CVB Table 2019'!MG6)/100," ") ->  | MH6: =IF($N$6,($N$6*'CVB Table 2019'!MH6)/100," ") ->  | MI6: =IF($N$6,($N$6*'CVB Table 2019'!MI6)/100," ") ->  | MJ6: =IF($N$6,($N$6*'CVB Table 2019'!MJ6)/100," ") ->  | MK6: =IF($N$6,(($N$6*'CVB Table 2019'!MK6)/100)*('CVB Table 2019'!$O$6)/1000," ") ->  | ML6: =IF($N$6,($N$6*'CVB Table 2019'!ML6)/100," ") ->  | MN6: =IF(N6,($MM$4*('CVB Table 2019'!AI6*0.15)*(N6/100)*(('CVB Table 2019'!O6)/1000)),"") ->  | MO6: =IF(N6,($MM$4*((('CVB Table 2019'!AH6)-('CVB Table 2019'!AI6))*0.8)*(N6/100)*(('CVB Table 2019'!O6)/1000)),"") ->  | MQ6: =IF(N6,($MM$4*('CVB Table 2019'!AI6*0.4)*(N6/100)*(('CVB Table 2019'!O6)/1000)),"") ->  | MR6: =IF(N6,($MM$4*((('CVB Table 2019'!AH6)-('CVB Table 2019'!AI6))*0.8)*(N6/100)*(('CVB Table 2019'!O6)/1000)),"") ->  | MT6: =IF(N6,($MM$4*('CVB Table 2019'!AI6*0.25)*(N6/100)*(('CVB Table 2019'!O6)/1000)),"") ->  | MU6: =IF(N6,($MM$4*((('CVB Table 2019'!AH6)-('CVB Table 2019'!AI6))*0.8)*(N6/100)*(('CVB Table 2019'!O6)/1000)),"") ->  | MX6: =IF(N6,((N6*'CVB Table 2019'!MX6)/100)*('CVB Table 2019'!$O$4)/1000," ") -> 
A7: 1005.313 | B7: vochtrijke krachtvoeders | C7: Bierbostel, traditioneel proces | D7: DS > 250 g/kg | F7: Brewer's grains, traditional process | G7: DM > 250 g/kg | I7: X | O7: =IF($N$7,($N$7*'CVB Table 2019'!O7)/100," ") ->  | P7: =IF($N$7,(($N$7*'CVB Table 2019'!P7)/100)*('CVB Table 2019'!$O$7)/1000," ") ->  | Q7: =IF($N$7,(($N$7*'CVB Table 2019'!Q7)/100)*('CVB Table 2019'!$O$7)/1000," ") ->  | R7: =IF($N$7,(($N$7*'CVB Table 2019'!R7)/100)*('CVB Table 2019'!$O$7)/1000," ") ->  | S7: =IF($N$7,(($N$7*'CVB Table 2019'!S7)/100)*('CVB Table 2019'!$O$7)/1000," ") ->  | T7: =IF($N$7,(($N$7*'CVB Table 2019'!T7)/100)*('CVB Table 2019'!$O$7)/1000," ") ->  | U7: =IF($N$7,(($N$7*'CVB Table 2019'!U7)/100)*('CVB Table 2019'!$O$7)/1000," ") ->  | V7: =IF($N$7,(($N$7*'CVB Table 2019'!V7)/100)*('CVB Table 2019'!$O$7)/1000," ") ->  | W7: =IF($N$7,(($N$7*'CVB Table 2019'!W7)/100)*('CVB Table 2019'!$O$7)/1000," ") ->  | X7: =IF($N$7,(($N$7*'CVB Table 2019'!X7)/100)*('CVB Table 2019'!$O$7)/1000," ") ->  | Y7: =IF($N$7,(($N$7*'CVB Table 2019'!Y7)/100)*('CVB Table 2019'!$O$7)/1000," ") ->  | Z7: =IF($N$7,(($N$7*'CVB Table 2019'!Z7)/100)*('CVB Table 2019'!$O$7)/1000," ") ->  | AA7: =IF($N$7,(($N$7*'CVB Table 2019'!AA7)/100)*('CVB Table 2019'!$O$7)/1000," ") ->  | AB7: =IF($N$7,(($N$7*'CVB Table 2019'!AB7)/100)*('CVB Table 2019'!$O$7)/1000," ") ->  | AC7: =IF($N$7,(($N$7*'CVB Table 2019'!AC7)/100)*('CVB Table 2019'!$O$7)/1000," ") ->  | AD7: =IF($N$7,(($N$7*'CVB Table 2019'!AD7)/100)*('CVB Table 2019'!$O$7)/1000," ") ->  | AE7: =IF($N$7,(($N$7*'CVB Table 2019'!AE7)/100)*('CVB Table 2019'!$O$7)/1000," ") ->  | AF7: =IF($N$7,(($N$7*'CVB Table 2019'!AF7)/100)*('CVB Table 2019'!$O$7)/1000," ") ->  | AG7: =IF($N$7,(($N$7*'CVB Table 2019'!AG7)/100)*('CVB Table 2019'!$O$7)/1000," ") ->  | AH7: =IF($N$7,(($N$7*'CVB Table 2019'!AH7)/100)*('CVB Table 2019'!$O$7)/1000," ") ->  | AI7: =IF($N$7,(($N$7*'CVB Table 2019'!AI7)/100)*('CVB Table 2019'!$O$7)/1000," ") ->  | AJ7: =IF($N$7,(($N$7*'CVB Table 2019'!AJ7)/100)*('CVB Table 2019'!$O$7)/1000," ") ->  | AK7: =IF($N$7,(($N$7*'CVB Table 2019'!AK7)/100)*('CVB Table 2019'!$O$7)/1000," ") ->  | AL7: =IF($N$7,(($N$7*'CVB Table 2019'!AL7)/100)*('CVB Table 2019'!$O$7)/1000," ") ->  | AM7: =IF($N$7,(($N$7*'CVB Table 2019'!AM7)/100)*('CVB Table 2019'!$O$7)/1000," ") ->  | AN7: =IF($N$7,(($N$7*'CVB Table 2019'!AN7)/100)*('CVB Table 2019'!$O$7)/1000," ") ->  | AO7: =IF($N$7,(($N$7*'CVB Table 2019'!AO7)/100)*('CVB Table 2019'!$O$7)/1000," ") ->  | AP7: =IF($N$7,(($N$7*'CVB Table 2019'!AP7)/100)*('CVB Table 2019'!$O$7)/1000," ") ->  | AQ7: =IF($N$7,(($N$7*'CVB Table 2019'!AQ7)/100)*('CVB Table 2019'!$O$7)/1000," ") ->  | AR7: =IF($N$7,(($N$7*'CVB Table 2019'!AR7)/100)*('CVB Table 2019'!$O$7)/1000," ") ->  | AS7: =IF($N$7,(($N$7*'CVB Table 2019'!AS7)/100)*('CVB Table 2019'!$O$7)/1000," ") ->  | AT7: =IF($N$7,(($N$7*'CVB Table 2019'!AT7)/100)*('CVB Table 2019'!$O$7)/1000," ") ->  | AU7: =IF($N$7,(($N$7*'CVB Table 2019'!AU7)/100)*('CVB Table 2019'!$O$7)/1000," ") ->  | AV7: =IF($N$7,(($N$7*'CVB Table 2019'!AV7)/100)*('CVB Table 2019'!$O$7)/1000," ") ->  | AW7: =IF($N$7,(($N$7*'CVB Table 2019'!AW7)/100)*('CVB Table 2019'!$O$7)/1000," ") ->  | AX7: =IF($N$7,(($N$7*'CVB Table 2019'!AX7)/100)*('CVB Table 2019'!$O$7)/1000," ") ->  | AY7: =IF($N$7,(($N$7*'CVB Table 2019'!AY7)/100)*('CVB Table 2019'!$O$7)/1000," ") ->  | AZ7: =IF($N$7,(($N$7*'CVB Table 2019'!AZ7)/100)*('CVB Table 2019'!$O$7)/1000," ") ->  | BA7: =IF($N$7,(($N$7*'CVB Table 2019'!BA7)/100)*('CVB Table 2019'!$O$7)/1000," ") ->  | BB7: =IF($N$7,(($N$7*'CVB Table 2019'!BB7)/100)*('CVB Table 2019'!$O$7)/1000," ") ->  | BC7: =IF($N$7,(($N$7*'CVB Table 2019'!BC7)/100)*('CVB Table 2019'!$O$7)/1000," ") ->  | BD7: =IF($N$7,($N$7*'CVB Table 2019'!BD7)/100," ") ->  | BE7: =IF($N$7,($N$7*'CVB Table 2019'!BE7)/100," ") ->  | BF7: =IF($N$7,($N$7*'CVB Table 2019'!BF7)/100," ") ->  | BG7: =IF($N$7,($N$7*'CVB Table 2019'!BG7)/100," ") ->  | BH7: =IF($N$7,($N$7*'CVB Table 2019'!BH7)/100," ") ->  | BI7: =IF($N$7,($N$7*'CVB Table 2019'!BI7)/100," ") ->  | BJ7: =IF($N$7,($N$7*'CVB Table 2019'!BJ7)/100," ") ->  | BK7: =IF($N$7,($N$7*'CVB Table 2019'!BK7)/100," ") ->  | BL7: =IF($N$7,($N$7*'CVB Table 2019'!BL7)/100," ") ->  | BM7: =IF($N$7,($N$7*'CVB Table 2019'!BM7)/100," ") ->  | BN7: =IF($N$7,($N$7*'CVB Table 2019'!BN7)/100," ") ->  | BO7: =IF($N$7,($N$7*'CVB Table 2019'!BO7)/100," ") ->  | BP7: =IF($N$7,($N$7*'CVB Table 2019'!BP7)/100," ") ->  | BQ7: =IF($N$7,($N$7*'CVB Table 2019'!BQ7)/100," ") ->  | BR7: =IF($N$7,($N$7*'CVB Table 2019'!BR7)/100," ") ->  | BS7: =IF($N$7,($N$7*'CVB Table 2019'!BS7)/100," ") ->  | BT7: =IF($N$7,($N$7*'CVB Table 2019'!BT7)/100," ") ->  | BU7: =IF($N$7,($N$7*'CVB Table 2019'!BU7)/100," ") ->  | BV7: =IF($N$7,($N$7*'CVB Table 2019'!BV7)/100," ") ->  | BW7: =IF($N$7,($N$7*'CVB Table 2019'!BW7)/100," ") ->  | BX7: =IF($N$7,($N$7*'CVB Table 2019'!BX7)/100," ") ->  | BY7: =IF($N$7,($N$7*'CVB Table 2019'!BY7)/100," ") ->  | BZ7: =IF($N$7,($N$7*'CVB Table 2019'!BZ7)/100," ") ->  | CA7: =IF($N$7,($N$7*'CVB Table 2019'!CA7)/100," ") ->  | CB7: =IF($N$7,($N$7*'CVB Table 2019'!CB7)/100," ") ->  | CC7: =IF($N$7,($N$7*'CVB Table 2019'!CC7)/100," ") ->  | CD7: =IF($N$7,($N$7*'CVB Table 2019'!CD7)/100," ") ->  | CE7: =IF($N$7,($N$7*'CVB Table 2019'!CE7)/100," ") ->  | CF7: =IF($N$7,($N$7*'CVB Table 2019'!CF7)/100," ") ->  | CG7: =IF($N$7,($N$7*'CVB Table 2019'!CG7)/100," ") ->  | CH7: =IF($N$7,($N$7*'CVB Table 2019'!CH7)/100," ") ->  | CI7: =IF($N$7,($N$7*'CVB Table 2019'!CI7)/100," ") ->  | CJ7: =IF($N$7,(($N$7*'CVB Table 2019'!CJ7)/100)*('CVB Table 2019'!$O$7)/1000," ") ->  | CK7: =IF($N$7,(($N$7*'CVB Table 2019'!CK7)/100)*('CVB Table 2019'!$O$7)/1000," ") ->  | CL7: =IF($N$7,(($N$7*'CVB Table 2019'!CL7)/100)*('CVB Table 2019'!$O$7)/1000," ") ->  | CM7: =IF($N$7,(($N$7*'CVB Table 2019'!CM7)/100)*('CVB Table 2019'!$O$7)/1000," ") ->  | CN7: =IF($N$7,(($N$7*'CVB Table 2019'!CN7)/100)*('CVB Table 2019'!$O$7)/1000," ") ->  | CO7: =IF($N$7,(($N$7*'CVB Table 2019'!CO7)/100)*('CVB Table 2019'!$O$7)/1000," ") ->  | CP7: =IF($N$7,($N$7*'CVB Table 2019'!CP7)/100," ") ->  | CQ7: =IF($N$7,($N$7*'CVB Table 2019'!CQ7)/100," ") ->  | CR7: =IF($N$7,($N$7*'CVB Table 2019'!CR7)/100," ") ->  | CS7: =IF($N$7,(($N$7*'CVB Table 2019'!CS7)/100)*('CVB Table 2019'!$O$7)/1000," ") ->  | CT7: =IF($N$7,(($N$7*'CVB Table 2019'!CT7)/100)*('CVB Table 2019'!$O$7)/1000," ") ->  | CU7: =IF($N$7,($N$7*'CVB Table 2019'!CU7)/100," ") ->  | CV7: =IF($N$7,(($N$7*'CVB Table 2019'!CV7)/100)*('CVB Table 2019'!$O$7)/1000," ") ->  | CW7: =IF($N$7,(($N$7*'CVB Table 2019'!CW7)/100)*('CVB Table 2019'!$O$7)/1000," ") ->  | CX7: =IF($N$7,(($N$7*'CVB Table 2019'!CX7)/100)*('CVB Table 2019'!$O$7)/1000," ") ->  | CY7: =IF($N$7,(($N$7*'CVB Table 2019'!CY7)/100)*('CVB Table 2019'!$O$7)/1000," ") ->  | CZ7: =IF($N$7,(($N$7*'CVB Table 2019'!CZ7)/100)*('CVB Table 2019'!$O$7)/1000," ") ->  | DA7: =IF($N$7,($N$7*'CVB Table 2019'!DA7)/100," ") ->  | DB7: =IF($N$7,($N$7*'CVB Table 2019'!DB7)/100," ") ->  | DC7: =IF($N$7,($N$7*'CVB Table 2019'!DC7)/100," ") ->  | DD7: =IF($N$7,($N$7*'CVB Table 2019'!DD7)/100," ") ->  | DE7: =IF(N7,((N7*'CVB Table 2019'!DE7)/100)*('CVB Table 2019'!O7)/1000," ") ->  | DF7: =IF($N$7,($N$7*'CVB Table 2019'!DF7)/100," ") ->  | DG7: =IF($N$7,($N$7*'CVB Table 2019'!DG7)/100," ") ->  | DH7: =IF($N$7,($N$7*'CVB Table 2019'!DH7)/100," ") ->  | DI7: =IF($N$7,($N$7*'CVB Table 2019'!DI7)/100," ") ->  | DJ7: =IF($N$7,($N$7*'CVB Table 2019'!DJ7)/100," ") ->  | DK7: =IF($N$7,($N$7*'CVB Table 2019'!DK7)/100," ") ->  | DL7: =IF($N$7,($N$7*'CVB Table 2019'!DL7)/100," ") ->  | DM7: =IF(N7,((N7*'CVB Table 2019'!DM7)/100)*('CVB Table 2019'!O7)/1000," ") ->  | DN7: =IF($N$7,($N$7*'CVB Table 2019'!DN7)/100," ") ->  | DO7: =IF(N7,((N7*'CVB Table 2019'!DO7)/100)*('CVB Table 2019'!O7)/1000," ") ->  | DP7: =IF($N$7,($N$7*'CVB Table 2019'!DP7)/100," ") ->  | DQ7: =IF($N$7,($N$7*'CVB Table 2019'!DQ7)/100," ") ->  | DR7: =IF($N$7,($N$7*'CVB Table 2019'!DR7)/100," ") ->  | DS7: =IF($N$7,($N$7*'CVB Table 2019'!DS7)/100," ") ->  | DT7: =IF(N7,((N7*'CVB Table 2019'!DT7)/100)*('CVB Table 2019'!O7)/1000," ") ->  | DU7: =IF($N$7,($N$7*'CVB Table 2019'!DU7)/100," ") ->  | DV7: =IF(N7,((N7*'CVB Table 2019'!DV7)/100)*('CVB Table 2019'!O7)/1000," ") ->  | DW7: =IF($N$7,(($N$7*'CVB Table 2019'!DW7)/100)*('CVB Table 2019'!$O$7)/1000," ") ->  | DX7: =IF($N$7,(($N$7*'CVB Table 2019'!DX7)/100)*('CVB Table 2019'!$O$7)/1000," ") ->  | DY7: =IF($N$7,($N$7*'CVB Table 2019'!DY7)/100," ") ->  | DZ7: =IF($N$7,($N$7*'CVB Table 2019'!DZ7)/100," ") ->  | EA7: =IF($N$7,($N$7*'CVB Table 2019'!EA7)/100," ") ->  | EB7: =IF($N$7,($N$7*'CVB Table 2019'!EB7)/100," ") ->  | EC7: =IF($N$7,($N$7*'CVB Table 2019'!EC7)/100," ") ->  | ED7: =IF($N$7,($N$7*'CVB Table 2019'!ED7)/100," ") ->  | EE7: =IF($N$7,($N$7*'CVB Table 2019'!EE7)/100," ") ->  | EF7: =IF($N$7,($N$7*'CVB Table 2019'!EF7)/100," ") ->  | EG7: =IF($N$7,($N$7*'CVB Table 2019'!EG7)/100," ") ->  | EH7: =IF($N$7,($N$7*'CVB Table 2019'!EH7)/100," ") ->  | EI7: =IF($N$7,($N$7*'CVB Table 2019'!EI7)/100," ") ->  | EJ7: =IF($N$7,($N$7*'CVB Table 2019'!EJ7)/100," ") ->  | EK7: =IF($N$7,($N$7*'CVB Table 2019'!EK7)/100," ") ->  | EL7: =IF($N$7,($N$7*'CVB Table 2019'!EL7)/100," ") ->  | EM7: =IF($N$7,($N$7*'CVB Table 2019'!EM7)/100," ") ->  | EN7: =IF($N$7,($N$7*'CVB Table 2019'!EN7)/100," ") ->  | EO7: =IF($N$7,($N$7*'CVB Table 2019'!EO7)/100," ") ->  | EP7: =IF($N$7,($N$7*'CVB Table 2019'!EP7)/100," ") ->  | EQ7: =IF($N$7,($N$7*'CVB Table 2019'!EQ7)/100," ") ->  | ER7: =IF($N$7,($N$7*'CVB Table 2019'!ER7)/100," ") ->  | ES7: =IF($N$7,($N$7*'CVB Table 2019'!ES7)/100," ") ->  | ET7: =IF($N$7,($N$7*'CVB Table 2019'!ET7)/100," ") ->  | EU7: =IF($N$7,($N$7*'CVB Table 2019'!EU7)/100," ") ->  | EV7: =IF($N$7,($N$7*'CVB Table 2019'!EV7)/100," ") ->  | EW7: =IF($N$7,($N$7*'CVB Table 2019'!EW7)/100," ") ->  | EX7: =IF($N$7,($N$7*'CVB Table 2019'!EX7)/100," ") ->  | EY7: =IF($N$7,($N$7*'CVB Table 2019'!EY7)/100," ") ->  | EZ7: =IF($N$7,($N$7*'CVB Table 2019'!EZ7)/100," ") ->  | FA7: =IF($N$7,($N$7*'CVB Table 2019'!FA7)/100," ") ->  | FB7: =IF($N$7,($N$7*'CVB Table 2019'!FB7)/100," ") ->  | FC7: =IF($N$7,($N$7*'CVB Table 2019'!FC7)/100," ") ->  | FD7: =IF($N$7,($N$7*'CVB Table 2019'!FD7)/100," ") ->  | FE7: =IF($N$7,($N$7*'CVB Table 2019'!FE7)/100," ") ->  | FF7: =IF($N$7,($N$7*'CVB Table 2019'!FF7)/100," ") ->  | FG7: =IF($N$7,($N$7*'CVB Table 2019'!FG7)/100," ") ->  | FH7: =IF($N$7,($N$7*'CVB Table 2019'!FH7)/100," ") ->  | FI7: =IF($N$7,($N$7*'CVB Table 2019'!FI7)/100," ") ->  | FJ7: =IF($N$7,($N$7*'CVB Table 2019'!FJ7)/100," ") ->  | FK7: =IF($N$7,(($N$7*'CVB Table 2019'!FK7)/100)*('CVB Table 2019'!$O$7)/1000," ") ->  | FL7: =IF($N$7,(($N$7*'CVB Table 2019'!FL7)/100)*('CVB Table 2019'!$O$7)/1000," ") ->  | FM7: =IF($N$7,(($N$7*'CVB Table 2019'!FM7)/100)*('CVB Table 2019'!$O$7)/1000," ") ->  | FN7: =IF($N$7,(($N$7*'CVB Table 2019'!FN7)/100)*('CVB Table 2019'!$O$7)/1000," ") ->  | FO7: =IF($N$7,(($N$7*'CVB Table 2019'!FO7)/100)*('CVB Table 2019'!$O$7)/1000," ") ->  | FP7: =IF($N$7,(($N$7*'CVB Table 2019'!FP7)/100)*('CVB Table 2019'!$O$7)/1000," ") ->  | FQ7: =IF($N$7,(($N$7*'CVB Table 2019'!FQ7)/100)*('CVB Table 2019'!$O$7)/1000," ") ->  | FR7: =IF($N$7,(($N$7*'CVB Table 2019'!FR7)/100)*('CVB Table 2019'!$O$7)/1000," ") ->  | FS7: =IF($N$7,(($N$7*'CVB Table 2019'!FS7)/100)*('CVB Table 2019'!$O$7)/1000," ") ->  | FT7: =IF($N$7,(($N$7*'CVB Table 2019'!FT7)/100)*('CVB Table 2019'!$O$7)/1000," ") ->  | FU7: =IF($N$7,(($N$7*'CVB Table 2019'!FU7)/100)*('CVB Table 2019'!$O$7)/1000," ") ->  | FV7: =IF($N$7,(($N$7*'CVB Table 2019'!FV7)/100)*('CVB Table 2019'!$O$7)/1000," ") ->  | FW7: =IF($N$7,(($N$7*'CVB Table 2019'!FW7)/100)*('CVB Table 2019'!$O$7)/1000," ") ->  | FX7: =IF($N$7,(($N$7*'CVB Table 2019'!FX7)/100)*('CVB Table 2019'!$O$7)/1000," ") ->  | FY7: =IF($N$7,(($N$7*'CVB Table 2019'!FY7)/100)*('CVB Table 2019'!$O$7)/1000," ") ->  | FZ7: =IF($N$7,(($N$7*'CVB Table 2019'!FZ7)/100)*('CVB Table 2019'!$O$7)/1000," ") ->  | GA7: =IF($N$7,(($N$7*'CVB Table 2019'!GA7)/100)*('CVB Table 2019'!$O$7)/1000," ") ->  | GB7: =IF($N$7,(($N$7*'CVB Table 2019'!GB7)/100)*('CVB Table 2019'!$O$7)/1000," ") ->  | GC7: =IF($N$7,(($N$7*'CVB Table 2019'!GC7)/100)*('CVB Table 2019'!$O$7)/1000," ") ->  | GD7: =IF($N$7,(($N$7*'CVB Table 2019'!GD7)/100)*('CVB Table 2019'!$O$7)/1000," ") ->  | GE7: =IF($N$7,(($N$7*'CVB Table 2019'!GE7)/100)*('CVB Table 2019'!$O$7)/1000," ") ->  | GF7: =IF($N$7,(($N$7*'CVB Table 2019'!GF7)/100)*('CVB Table 2019'!$O$7)/1000," ") ->  | GG7: =IF($N$7,(($N$7*'CVB Table 2019'!GG7)/100)*('CVB Table 2019'!$O$7)/1000," ") ->  | GH7: =IF($N$7,(($N$7*'CVB Table 2019'!GH7)/100)*('CVB Table 2019'!$O$7)/1000," ") ->  | GI7: =IF($N$7,(($N$7*'CVB Table 2019'!GI7)/100)*('CVB Table 2019'!$O$7)/1000," ") ->  | GJ7: =IF($N$7,(($N$7*'CVB Table 2019'!GJ7)/100)*('CVB Table 2019'!$O$7)/1000," ") ->  | GK7: =IF($N$7,(($N$7*'CVB Table 2019'!GK7)/100)*('CVB Table 2019'!$O$7)/1000," ") ->  | GL7: =IF($N$7,(($N$7*'CVB Table 2019'!GL7)/100)*('CVB Table 2019'!$O$7)/1000," ") ->  | GM7: =IF($N$7,(($N$7*'CVB Table 2019'!GM7)/100)*('CVB Table 2019'!$O$7)/1000," ") ->  | GN7: =IF($N$7,(($N$7*'CVB Table 2019'!GN7)/100)*('CVB Table 2019'!$O$7)/1000," ") ->  | GO7: =IF($N$7,(($N$7*'CVB Table 2019'!GO7)/100)*('CVB Table 2019'!$O$7)/1000," ") ->  | GP7: =IF($N$7,(($N$7*'CVB Table 2019'!GP7)/100)*('CVB Table 2019'!$O$7)/1000," ") ->  | GQ7: =IF($N$7,(($N$7*'CVB Table 2019'!GQ7)/100)*('CVB Table 2019'!$O$7)/1000," ") ->  | GR7: =IF($N$7,(($N$7*'CVB Table 2019'!GR7)/100)*('CVB Table 2019'!$O$7)/1000," ") ->  | GS7: =IF($N$7,(($N$7*'CVB Table 2019'!GS7)/100)*('CVB Table 2019'!$O$7)/1000," ") ->  | GT7: =IF($N$7,(($N$7*'CVB Table 2019'!GT7)/100)*('CVB Table 2019'!$O$7)/1000," ") ->  | GU7: =IF($N$7,(($N$7*'CVB Table 2019'!GU7)/100)*('CVB Table 2019'!$O$7)/1000," ") ->  | GV7: =IF($N$7,(($N$7*'CVB Table 2019'!GV7)/100)*('CVB Table 2019'!$O$7)/1000," ") ->  | GW7: =IF($N$7,(($N$7*'CVB Table 2019'!GW7)/100)*('CVB Table 2019'!$O$7)/1000," ") ->  | GX7: =IF($N$7,(($N$7*'CVB Table 2019'!GX7)/100)*('CVB Table 2019'!$O$7)/1000," ") ->  | GY7: =IF($N$7,($N$7*'CVB Table 2019'!GY7)/100," ") ->  | GZ7: =IF($N$7,($N$7*'CVB Table 2019'!GZ7)/100," ") ->  | HA7: =IF($N$7,($N$7*'CVB Table 2019'!HA7)/100," ") ->  | HB7: =IF($N$7,($N$7*'CVB Table 2019'!HB7)/100," ") ->  | HC7: =IF($N$7,($N$7*'CVB Table 2019'!HC7)/100," ") ->  | HD7: =IF($N$7,($N$7*'CVB Table 2019'!HD7)/100," ") ->  | HE7: =IF($N$7,($N$7*'CVB Table 2019'!HE7)/100," ") ->  | HF7: =IF($N$7,($N$7*'CVB Table 2019'!HF7)/100," ") ->  | HG7: =IF($N$7,($N$7*'CVB Table 2019'!HG7)/100," ") ->  | HH7: =IF($N$7,($N$7*'CVB Table 2019'!HH7)/100," ") ->  | HI7: =IF($N$7,($N$7*'CVB Table 2019'!HI7)/100," ") ->  | HJ7: =IF($N$7,($N$7*'CVB Table 2019'!HJ7)/100," ") ->  | HK7: =IF($N$7,($N$7*'CVB Table 2019'!HK7)/100," ") ->  | HL7: =IF($N$7,($N$7*'CVB Table 2019'!HL7)/100," ") ->  | HM7: =IF($N$7,($N$7*'CVB Table 2019'!HM7)/100," ") ->  | HN7: =IF($N$7,($N$7*'CVB Table 2019'!HN7)/100," ") ->  | HO7: =IF($N$7,($N$7*'CVB Table 2019'!HO7)/100," ") ->  | HP7: =IF($N$7,($N$7*'CVB Table 2019'!HP7)/100," ") ->  | HQ7: =IF($N$7,($N$7*'CVB Table 2019'!HQ7)/100," ") ->  | HR7: =IF($N$7,(($N$7*'CVB Table 2019'!HR7)/100)*('CVB Table 2019'!$O$7)/1000," ") ->  | HS7: =IF($N$7,(($N$7*'CVB Table 2019'!HS7)/100)*('CVB Table 2019'!$O$7)/1000," ") ->  | HT7: =IF($N$7,(($N$7*'CVB Table 2019'!HT7)/100)*('CVB Table 2019'!$O$7)/1000," ") ->  | HU7: =IF($N$7,(($N$7*'CVB Table 2019'!HU7)/100)*('CVB Table 2019'!$O$7)/1000," ") ->  | HV7: =IF($N$7,(($N$7*'CVB Table 2019'!HV7)/100)*('CVB Table 2019'!$O$7)/1000," ") ->  | HW7: =IF($N$7,(($N$7*'CVB Table 2019'!HW7)/100)*('CVB Table 2019'!$O$7)/1000," ") ->  | HX7: =IF($N$7,(($N$7*'CVB Table 2019'!HX7)/100)*('CVB Table 2019'!$O$7)/1000," ") ->  | HY7: =IF($N$7,(($N$7*'CVB Table 2019'!HY7)/100)*('CVB Table 2019'!$O$7)/1000," ") ->  | HZ7: =IF($N$7,(($N$7*'CVB Table 2019'!HZ7)/100)*('CVB Table 2019'!$O$7)/1000," ") ->  | IA7: =IF($N$7,(($N$7*'CVB Table 2019'!IA7)/100)*('CVB Table 2019'!$O$7)/1000," ") ->  | IB7: =IF($N$7,(($N$7*'CVB Table 2019'!IB7)/100)*('CVB Table 2019'!$O$7)/1000," ") ->  | IC7: =IF($N$7,(($N$7*'CVB Table 2019'!IC7)/100)*('CVB Table 2019'!$O$7)/1000," ") ->  | ID7: =IF($N$7,(($N$7*'CVB Table 2019'!ID7)/100)*('CVB Table 2019'!$O$7)/1000," ") ->  | IE7: =IF($N$7,(($N$7*'CVB Table 2019'!IE7)/100)*('CVB Table 2019'!$O$7)/1000," ") ->  | IF7: =IF($N$7,(($N$7*'CVB Table 2019'!IF7)/100)*('CVB Table 2019'!$O$7)/1000," ") ->  | IG7: =IF($N$7,(($N$7*'CVB Table 2019'!IG7)/100)*('CVB Table 2019'!$O$7)/1000," ") ->  | IH7: =IF($N$7,(($N$7*'CVB Table 2019'!IH7)/100)*('CVB Table 2019'!$O$7)/1000," ") ->  | II7: =IF($N$7,(($N$7*'CVB Table 2019'!II7)/100)*('CVB Table 2019'!$O$7)/1000," ") ->  | IJ7: =IF($N$7,(($N$7*'CVB Table 2019'!IJ7)/100)*('CVB Table 2019'!$O$7)/1000," ") ->  | IK7: =IF($N$7,($N$7*'CVB Table 2019'!IK7)/100," ") ->  | IL7: =IF($N$7,($N$7*'CVB Table 2019'!IL7)/100," ") ->  | IM7: =IF($N$7,($N$7*'CVB Table 2019'!IM7)/100," ") ->  | IN7: =IF($N$7,($N$7*'CVB Table 2019'!IN7)/100," ") ->  | IO7: =IF($N$7,($N$7*'CVB Table 2019'!IO7)/100," ") ->  | IP7: =IF($N$7,($N$7*'CVB Table 2019'!IP7)/100," ") ->  | IQ7: =IF($N$7,($N$7*'CVB Table 2019'!IQ7)/100," ") ->  | IR7: =IF($N$7,($N$7*'CVB Table 2019'!IR7)/100," ") ->  | IS7: =IF($N$7,($N$7*'CVB Table 2019'!IS7)/100," ") ->  | IT7: =IF($N$7,($N$7*'CVB Table 2019'!IT7)/100," ") ->  | IU7: =IF($N$7,($N$7*'CVB Table 2019'!IU7)/100," ") ->  | IV7: =IF($N$7,($N$7*'CVB Table 2019'!IV7)/100," ") ->  | IW7: =IF($N$7,($N$7*'CVB Table 2019'!IW7)/100," ") ->  | IX7: =IF($N$7,($N$7*'CVB Table 2019'!IX7)/100," ") ->  | IY7: =IF($N$7,($N$7*'CVB Table 2019'!IY7)/100," ") ->  | IZ7: =IF($N$7,($N$7*'CVB Table 2019'!IZ7)/100," ") ->  | JA7: =IF($N$7,($N$7*'CVB Table 2019'!JA7)/100," ") ->  | JB7: =IF($N$7,($N$7*'CVB Table 2019'!JB7)/100," ") ->  | JC7: =IF($N$7,($N$7*'CVB Table 2019'!JC7)/100," ") ->  | JD7: =IF($N$7,($N$7*'CVB Table 2019'!JD7)/100," ") ->  | JE7: =IF($N$7,($N$7*'CVB Table 2019'!JE7)/100," ") ->  | JF7: =IF($N$7,($N$7*'CVB Table 2019'!JF7)/100," ") ->  | JG7: =IF($N$7,($N$7*'CVB Table 2019'!JG7)/100," ") ->  | JH7: =IF($N$7,($N$7*'CVB Table 2019'!JH7)/100," ") ->  | JI7: =IF($N$7,($N$7*'CVB Table 2019'!JI7)/100," ") ->  | JJ7: =IF($N$7,($N$7*'CVB Table 2019'!JJ7)/100," ") ->  | JK7: =IF($N$7,($N$7*'CVB Table 2019'!JK7)/100," ") ->  | JL7: =IF($N$7,($N$7*'CVB Table 2019'!JL7)/100," ") ->  | JM7: =IF($N$7,($N$7*'CVB Table 2019'!JM7)/100," ") ->  | JN7: =IF($N$7,($N$7*'CVB Table 2019'!JN7)/100," ") ->  | JO7: =IF($N$7,($N$7*'CVB Table 2019'!JO7)/100," ") ->  | JP7: =IF($N$7,($N$7*'CVB Table 2019'!JP7)/100," ") ->  | JQ7: =IF($N$7,($N$7*'CVB Table 2019'!JQ7)/100," ") ->  | JR7: =IF($N$7,($N$7*'CVB Table 2019'!JR7)/100," ") ->  | JS7: =IF($N$7,($N$7*'CVB Table 2019'!JS7)/100," ") ->  | JT7: =IF($N$7,($N$7*'CVB Table 2019'!JT7)/100," ") ->  | JU7: =IF($N$7,(($N$7*'CVB Table 2019'!JU7)/100)*('CVB Table 2019'!$O$7)/1000," ") ->  | JV7: =IF($N$7,(($N$7*'CVB Table 2019'!JV7)/100)*('CVB Table 2019'!$O$7)/1000," ") ->  | JW7: =IF($N$7,(($N$7*'CVB Table 2019'!JW7)/100)*('CVB Table 2019'!$O$7)/1000," ") ->  | JX7: =IF($N$7,(($N$7*'CVB Table 2019'!JX7)/100)*('CVB Table 2019'!$O$7)/1000," ") ->  | JY7: =IF($N$7,(($N$7*'CVB Table 2019'!JY7)/100)*('CVB Table 2019'!$O$7)/1000," ") ->  | JZ7: =IF($N$7,(($N$7*'CVB Table 2019'!JZ7)/100)*('CVB Table 2019'!$O$7)/1000," ") ->  | KA7: =IF($N$7,(($N$7*'CVB Table 2019'!KA7)/100)*('CVB Table 2019'!$O$7)/1000," ") ->  | KB7: =IF($N$7,(($N$7*'CVB Table 2019'!KB7)/100)*('CVB Table 2019'!$O$7)/1000," ") ->  | KC7: =IF($N$7,(($N$7*'CVB Table 2019'!KC7)/100)*('CVB Table 2019'!$O$7)/1000," ") ->  | KD7: =IF($N$7,(($N$7*'CVB Table 2019'!KD7)/100)*('CVB Table 2019'!$O$7)/1000," ") ->  | KE7: =IF($N$7,(($N$7*'CVB Table 2019'!KE7)/100)*('CVB Table 2019'!$O$7)/1000," ") ->  | KF7: =IF($N$7,(($N$7*'CVB Table 2019'!KF7)/100)*('CVB Table 2019'!$O$7)/1000," ") ->  | KG7: =IF($N$7,(($N$7*'CVB Table 2019'!KG7)/100)*('CVB Table 2019'!$O$7)/1000," ") ->  | KH7: =IF($N$7,(($N$7*'CVB Table 2019'!KH7)/100)*('CVB Table 2019'!$O$7)/1000," ") ->  | KI7: =IF($N$7,(($N$7*'CVB Table 2019'!KI7)/100)*('CVB Table 2019'!$O$7)/1000," ") ->  | KJ7: =IF($N$7,(($N$7*'CVB Table 2019'!KJ7)/100)*('CVB Table 2019'!$O$7)/1000," ") ->  | KK7: =IF($N$7,(($N$7*'CVB Table 2019'!KK7)/100)*('CVB Table 2019'!$O$7)/1000," ") ->  | KL7: =IF($N$7,(($N$7*'CVB Table 2019'!KL7)/100)*('CVB Table 2019'!$O$7)/1000," ") ->  | KM7: =IF($N$7,(($N$7*'CVB Table 2019'!KM7)/100)*('CVB Table 2019'!$O$7)/1000," ") ->  | KN7: =IF($N$7,(($N$7*'CVB Table 2019'!KN7)/100)*('CVB Table 2019'!$O$7)/1000," ") ->  | KO7: =IF($N$7,(($N$7*'CVB Table 2019'!KO7)/100)*('CVB Table 2019'!$O$7)/1000," ") ->  | KP7: =IF($N$7,(($N$7*'CVB Table 2019'!KP7)/100)*('CVB Table 2019'!$O$7)/1000," ") ->  | KQ7: =IF($N$7,(($N$7*'CVB Table 2019'!KQ7)/100)*('CVB Table 2019'!$O$7)/1000," ") ->  | KR7: =IF($N$7,(($N$7*'CVB Table 2019'!KR7)/100)*('CVB Table 2019'!$O$7)/1000," ") ->  | KS7: =IF($N$7,(($N$7*'CVB Table 2019'!KS7)/100)*('CVB Table 2019'!$O$7)/1000," ") ->  | KT7: =IF($N$7,(($N$7*'CVB Table 2019'!KT7)/100)*('CVB Table 2019'!$O$7)/1000," ") ->  | KU7: =IF($N$7,(($N$7*'CVB Table 2019'!KU7)/100)*('CVB Table 2019'!$O$7)/1000," ") ->  | KV7: =IF($N$7,(($N$7*'CVB Table 2019'!KV7)/100)*('CVB Table 2019'!$O$7)/1000," ") ->  | KW7: =IF($N$7,(($N$7*'CVB Table 2019'!KW7)/100)*('CVB Table 2019'!$O$7)/1000," ") ->  | KX7: =IF($N$7,(($N$7*'CVB Table 2019'!KX7)/100)*('CVB Table 2019'!$O$7)/1000," ") ->  | KY7: =IF($N$7,(($N$7*'CVB Table 2019'!KY7)/100)*('CVB Table 2019'!$O$7)/1000," ") ->  | KZ7: =IF($N$7,(($N$7*'CVB Table 2019'!KZ7)/100)*('CVB Table 2019'!$O$7)/1000," ") ->  | LA7: =IF($N$7,(($N$7*'CVB Table 2019'!LA7)/100)*('CVB Table 2019'!$O$7)/1000," ") ->  | LB7: =IF($N$7,(($N$7*'CVB Table 2019'!LB7)/100)*('CVB Table 2019'!$O$7)/1000," ") ->  | LC7: =IF($N$7,(($N$7*'CVB Table 2019'!LC7)/100)*('CVB Table 2019'!$O$7)/1000," ") ->  | LD7: =IF($N$7,(($N$7*'CVB Table 2019'!LD7)/100)*('CVB Table 2019'!$O$7)/1000," ") ->  | LE7: =IF($N$7,(($N$7*'CVB Table 2019'!LE7)/100)*('CVB Table 2019'!$O$7)/1000," ") ->  | LF7: =IF($N$7,(($N$7*'CVB Table 2019'!LF7)/100)*('CVB Table 2019'!$O$7)/1000," ") ->  | LG7: =IF($N$7,(($N$7*'CVB Table 2019'!LG7)/100)*('CVB Table 2019'!$O$7)/1000," ") ->  | LH7: =IF($N$7,(($N$7*'CVB Table 2019'!LH7)/100)*('CVB Table 2019'!$O$7)/1000," ") ->  | LI7: =IF($N$7,(($N$7*'CVB Table 2019'!LI7)/100)*('CVB Table 2019'!$O$7)/1000," ") ->  | LJ7: =IF($N$7,(($N$7*'CVB Table 2019'!LJ7)/100)*('CVB Table 2019'!$O$7)/1000," ") ->  | LK7: =IF($N$7,(($N$7*'CVB Table 2019'!LK7)/100)*('CVB Table 2019'!$O$7)/1000," ") ->  | LL7: =IF($N$7,(($N$7*'CVB Table 2019'!LL7)/100)*('CVB Table 2019'!$O$7)/1000," ") ->  | LM7: =IF($N$7,(($N$7*'CVB Table 2019'!LM7)/100)*('CVB Table 2019'!$O$7)/1000," ") ->  | LN7: =IF($N$7,(($N$7*'CVB Table 2019'!LN7)/100)*('CVB Table 2019'!$O$7)/1000," ") ->  | LO7: =IF($N$7,(($N$7*'CVB Table 2019'!LO7)/100)*('CVB Table 2019'!$O$7)/1000," ") ->  | LP7: =IF($N$7,(($N$7*'CVB Table 2019'!LP7)/100)*('CVB Table 2019'!$O$7)/1000," ") ->  | LQ7: =IF($N$7,(($N$7*'CVB Table 2019'!LQ7)/100)*('CVB Table 2019'!$O$7)/1000," ") ->  | LR7: =IF($N$7,(($N$7*'CVB Table 2019'!LR7)/100)*('CVB Table 2019'!$O$7)/1000," ") ->  | LS7: =IF($N$7,(($N$7*'CVB Table 2019'!LS7)/100)*('CVB Table 2019'!$O$7)/1000," ") ->  | LT7: =IF($N$7,($N$7*'CVB Table 2019'!LT7)/100," ") ->  | LU7: =IF($N$7,($N$7*'CVB Table 2019'!LU7)/100," ") ->  | LV7: =IF($N$7,($N$7*'CVB Table 2019'!LV7)/100," ") ->  | LW7: =IF($N$7,($N$7*'CVB Table 2019'!LW7)/100," ") ->  | LX7: =IF($N$7,($N$7*'CVB Table 2019'!LX7)/100," ") ->  | LY7: =IF($N$7,($N$7*'CVB Table 2019'!LY7)/100," ") ->  | LZ7: =IF($N$7,($N$7*'CVB Table 2019'!LZ7)/100," ") ->  | MA7: =IF($N$7,($N$7*'CVB Table 2019'!MA7)/100," ") ->  | MB7: =IF($N$7,($N$7*'CVB Table 2019'!MB7)/100," ") ->  | MC7: =IF($N$7,($N$7*'CVB Table 2019'!MC7)/100," ") ->  | MD7: =IF($N$7,($N$7*'CVB Table 2019'!MD7)/100," ") ->  | ME7: =IF($N$7,($N$7*'CVB Table 2019'!ME7)/100," ") ->  | MF7: =IF($N$7,($N$7*'CVB Table 2019'!MF7)/100," ") ->  | MG7: =IF($N$7,($N$7*'CVB Table 2019'!MG7)/100," ") ->  | MH7: =IF($N$7,($N$7*'CVB Table 2019'!MH7)/100," ") ->  | MI7: =IF($N$7,($N$7*'CVB Table 2019'!MI7)/100," ") ->  | MJ7: =IF($N$7,($N$7*'CVB Table 2019'!MJ7)/100," ") ->  | MK7: =IF($N$7,(($N$7*'CVB Table 2019'!MK7)/100)*('CVB Table 2019'!$O$7)/1000," ") ->  | ML7: =IF($N$7,($N$7*'CVB Table 2019'!ML7)/100," ") ->  | MN7: =IF(N7,($MM$4*('CVB Table 2019'!AI7*0.15)*(N7/100)*(('CVB Table 2019'!O7)/1000)),"") ->  | MO7: =IF(N7,($MM$4*((('CVB Table 2019'!AH7)-('CVB Table 2019'!AI7))*0.8)*(N7/100)*(('CVB Table 2019'!O7)/1000)),"") ->  | MQ7: =IF(N7,($MM$4*('CVB Table 2019'!AI7*0.4)*(N7/100)*(('CVB Table 2019'!O7)/1000)),"") ->  | MR7: =IF(N7,($MM$4*((('CVB Table 2019'!AH7)-('CVB Table 2019'!AI7))*0.8)*(N7/100)*(('CVB Table 2019'!O7)/1000)),"") ->  | MT7: =IF(N7,($MM$4*('CVB Table 2019'!AI7*0.25)*(N7/100)*(('CVB Table 2019'!O7)/1000)),"") ->  | MU7: =IF(N7,($MM$4*((('CVB Table 2019'!AH7)-('CVB Table 2019'!AI7))*0.8)*(N7/100)*(('CVB Table 2019'!O7)/1000)),"") ->  | MX7: =IF(N7,((N7*'CVB Table 2019'!MX7)/100)*('CVB Table 2019'!$O$4)/1000," ") -> 
A8: 6022.305 | B8: mengvoergrondstoffen | C8: Citruspulp | F8: Citrus pulp | I8: X | M8: 162 | O8: =IF($N$8,($N$8*'CVB Table 2019'!O8)/100," ") ->  | P8: =IF($N$8,(($N$8*'CVB Table 2019'!P8)/100)*('CVB Table 2019'!$O$8)/1000," ") ->  | Q8: =IF($N$8,(($N$8*'CVB Table 2019'!Q8)/100)*('CVB Table 2019'!$O$8)/1000," ") ->  | R8: =IF($N$8,(($N$8*'CVB Table 2019'!R8)/100)*('CVB Table 2019'!$O$8)/1000," ") ->  | S8: =IF($N$8,(($N$8*'CVB Table 2019'!S8)/100)*('CVB Table 2019'!$O$8)/1000," ") ->  | T8: =IF($N$8,(($N$8*'CVB Table 2019'!T8)/100)*('CVB Table 2019'!$O$8)/1000," ") ->  | U8: =IF($N$8,(($N$8*'CVB Table 2019'!U8)/100)*('CVB Table 2019'!$O$8)/1000," ") ->  | V8: =IF($N$8,(($N$8*'CVB Table 2019'!V8)/100)*('CVB Table 2019'!$O$8)/1000," ") ->  | W8: =IF($N$8,(($N$8*'CVB Table 2019'!W8)/100)*('CVB Table 2019'!$O$8)/1000," ") ->  | X8: =IF($N$8,(($N$8*'CVB Table 2019'!X8)/100)*('CVB Table 2019'!$O$8)/1000," ") ->  | Y8: =IF($N$8,(($N$8*'CVB Table 2019'!Y8)/100)*('CVB Table 2019'!$O$8)/1000," ") ->  | Z8: =IF($N$8,(($N$8*'CVB Table 2019'!Z8)/100)*('CVB Table 2019'!$O$8)/1000," ") ->  | AA8: =IF($N$8,(($N$8*'CVB Table 2019'!AA8)/100)*('CVB Table 2019'!$O$8)/1000," ") ->  | AB8: =IF($N$8,(($N$8*'CVB Table 2019'!AB8)/100)*('CVB Table 2019'!$O$8)/1000," ") ->  | AC8: =IF($N$8,(($N$8*'CVB Table 2019'!AC8)/100)*('CVB Table 2019'!$O$8)/1000," ") ->  | AD8: =IF($N$8,(($N$8*'CVB Table 2019'!AD8)/100)*('CVB Table 2019'!$O$8)/1000," ") ->  | AE8: =IF($N$8,(($N$8*'CVB Table 2019'!AE8)/100)*('CVB Table 2019'!$O$8)/1000," ") ->  | AF8: =IF($N$8,(($N$8*'CVB Table 2019'!AF8)/100)*('CVB Table 2019'!$O$8)/1000," ") ->  | AG8: =IF($N$8,(($N$8*'CVB Table 2019'!AG8)/100)*('CVB Table 2019'!$O$8)/1000," ") ->  | AH8: =IF($N$8,(($N$8*'CVB Table 2019'!AH8)/100)*('CVB Table 2019'!$O$8)/1000," ") ->  | AI8: =IF($N$8,(($N$8*'CVB Table 2019'!AI8)/100)*('CVB Table 2019'!$O$8)/1000," ") ->  | AJ8: =IF($N$8,(($N$8*'CVB Table 2019'!AJ8)/100)*('CVB Table 2019'!$O$8)/1000," ") ->  | AK8: =IF($N$8,(($N$8*'CVB Table 2019'!AK8)/100)*('CVB Table 2019'!$O$8)/1000," ") ->  | AL8: =IF($N$8,(($N$8*'CVB Table 2019'!AL8)/100)*('CVB Table 2019'!$O$8)/1000," ") ->  | AM8: =IF($N$8,(($N$8*'CVB Table 2019'!AM8)/100)*('CVB Table 2019'!$O$8)/1000," ") ->  | AN8: =IF($N$8,(($N$8*'CVB Table 2019'!AN8)/100)*('CVB Table 2019'!$O$8)/1000," ") ->  | AO8: =IF($N$8,(($N$8*'CVB Table 2019'!AO8)/100)*('CVB Table 2019'!$O$8)/1000," ") ->  | AP8: =IF($N$8,(($N$8*'CVB Table 2019'!AP8)/100)*('CVB Table 2019'!$O$8)/1000," ") ->  | AQ8: =IF($N$8,(($N$8*'CVB Table 2019'!AQ8)/100)*('CVB Table 2019'!$O$8)/1000," ") ->  | AR8: =IF($N$8,(($N$8*'CVB Table 2019'!AR8)/100)*('CVB Table 2019'!$O$8)/1000," ") ->  | AS8: =IF($N$8,(($N$8*'CVB Table 2019'!AS8)/100)*('CVB Table 2019'!$O$8)/1000," ") ->  | AT8: =IF($N$8,(($N$8*'CVB Table 2019'!AT8)/100)*('CVB Table 2019'!$O$8)/1000," ") ->  | AU8: =IF($N$8,(($N$8*'CVB Table 2019'!AU8)/100)*('CVB Table 2019'!$O$8)/1000," ") ->  | AV8: =IF($N$8,(($N$8*'CVB Table 2019'!AV8)/100)*('CVB Table 2019'!$O$8)/1000," ") ->  | AW8: =IF($N$8,(($N$8*'CVB Table 2019'!AW8)/100)*('CVB Table 2019'!$O$8)/1000," ") ->  | AX8: =IF($N$8,(($N$8*'CVB Table 2019'!AX8)/100)*('CVB Table 2019'!$O$8)/1000," ") ->  | AY8: =IF($N$8,(($N$8*'CVB Table 2019'!AY8)/100)*('CVB Table 2019'!$O$8)/1000," ") ->  | AZ8: =IF($N$8,(($N$8*'CVB Table 2019'!AZ8)/100)*('CVB Table 2019'!$O$8)/1000," ") ->  | BA8: =IF($N$8,(($N$8*'CVB Table 2019'!BA8)/100)*('CVB Table 2019'!$O$8)/1000," ") ->  | BB8: =IF($N$8,(($N$8*'CVB Table 2019'!BB8)/100)*('CVB Table 2019'!$O$8)/1000," ") ->  | BC8: =IF($N$8,(($N$8*'CVB Table 2019'!BC8)/100)*('CVB Table 2019'!$O$8)/1000," ") ->  | BD8: =IF($N$8,($N$8*'CVB Table 2019'!BD8)/100," ") ->  | BE8: =IF($N$8,($N$8*'CVB Table 2019'!BE8)/100," ") ->  | BF8: =IF($N$8,($N$8*'CVB Table 2019'!BF8)/100," ") ->  | BG8: =IF($N$8,($N$8*'CVB Table 2019'!BG8)/100," ") ->  | BH8: =IF($N$8,($N$8*'CVB Table 2019'!BH8)/100," ") ->  | BI8: =IF($N$8,($N$8*'CVB Table 2019'!BI8)/100," ") ->  | BJ8: =IF($N$8,($N$8*'CVB Table 2019'!BJ8)/100," ") ->  | BK8: =IF($N$8,($N$8*'CVB Table 2019'!BK8)/100," ") ->  | BL8: =IF($N$8,($N$8*'CVB Table 2019'!BL8)/100," ") ->  | BM8: =IF($N$8,($N$8*'CVB Table 2019'!BM8)/100," ") ->  | BN8: =IF($N$8,($N$8*'CVB Table 2019'!BN8)/100," ") ->  | BO8: =IF($N$8,($N$8*'CVB Table 2019'!BO8)/100," ") ->  | BP8: =IF($N$8,($N$8*'CVB Table 2019'!BP8)/100," ") ->  | BQ8: =IF($N$8,($N$8*'CVB Table 2019'!BQ8)/100," ") ->  | BR8: =IF($N$8,($N$8*'CVB Table 2019'!BR8)/100," ") ->  | BS8: =IF($N$8,($N$8*'CVB Table 2019'!BS8)/100," ") ->  | BT8: =IF($N$8,($N$8*'CVB Table 2019'!BT8)/100," ") ->  | BU8: =IF($N$8,($N$8*'CVB Table 2019'!BU8)/100," ") ->  | BV8: =IF($N$8,($N$8*'CVB Table 2019'!BV8)/100," ") ->  | BW8: =IF($N$8,($N$8*'CVB Table 2019'!BW8)/100," ") ->  | BX8: =IF($N$8,($N$8*'CVB Table 2019'!BX8)/100," ") ->  | BY8: =IF($N$8,($N$8*'CVB Table 2019'!BY8)/100," ") ->  | BZ8: =IF($N$8,($N$8*'CVB Table 2019'!BZ8)/100," ") ->  | CA8: =IF($N$8,($N$8*'CVB Table 2019'!CA8)/100," ") ->  | CB8: =IF($N$8,($N$8*'CVB Table 2019'!CB8)/100," ") ->  | CC8: =IF($N$8,($N$8*'CVB Table 2019'!CC8)/100," ") ->  | CD8: =IF($N$8,($N$8*'CVB Table 2019'!CD8)/100," ") ->  | CE8: =IF($N$8,($N$8*'CVB Table 2019'!CE8)/100," ") ->  | CF8: =IF($N$8,($N$8*'CVB Table 2019'!CF8)/100," ") ->  | CG8: =IF($N$8,($N$8*'CVB Table 2019'!CG8)/100," ") ->  | CH8: =IF($N$8,($N$8*'CVB Table 2019'!CH8)/100," ") ->  | CI8: =IF($N$8,($N$8*'CVB Table 2019'!CI8)/100," ") ->  | CJ8: =IF($N$8,(($N$8*'CVB Table 2019'!CJ8)/100)*('CVB Table 2019'!$O$8)/1000," ") ->  | CK8: =IF($N$8,(($N$8*'CVB Table 2019'!CK8)/100)*('CVB Table 2019'!$O$8)/1000," ") ->  | CL8: =IF($N$8,(($N$8*'CVB Table 2019'!CL8)/100)*('CVB Table 2019'!$O$8)/1000," ") ->  | CM8: =IF($N$8,(($N$8*'CVB Table 2019'!CM8)/100)*('CVB Table 2019'!$O$8)/1000," ") ->  | CN8: =IF($N$8,(($N$8*'CVB Table 2019'!CN8)/100)*('CVB Table 2019'!$O$8)/1000," ") ->  | CO8: =IF($N$8,(($N$8*'CVB Table 2019'!CO8)/100)*('CVB Table 2019'!$O$8)/1000," ") ->  | CP8: =IF($N$8,($N$8*'CVB Table 2019'!CP8)/100," ") ->  | CQ8: =IF($N$8,($N$8*'CVB Table 2019'!CQ8)/100," ") ->  | CR8: =IF($N$8,($N$8*'CVB Table 2019'!CR8)/100," ") ->  | CS8: =IF($N$8,(($N$8*'CVB Table 2019'!CS8)/100)*('CVB Table 2019'!$O$8)/1000," ") ->  | CT8: =IF($N$8,(($N$8*'CVB Table 2019'!CT8)/100)*('CVB Table 2019'!$O$8)/1000," ") ->  | CU8: =IF($N$8,($N$8*'CVB Table 2019'!CU8)/100," ") ->  | CV8: =IF($N$8,(($N$8*'CVB Table 2019'!CV8)/100)*('CVB Table 2019'!$O$8)/1000," ") ->  | CW8: =IF($N$8,(($N$8*'CVB Table 2019'!CW8)/100)*('CVB Table 2019'!$O$8)/1000," ") ->  | CX8: =IF($N$8,(($N$8*'CVB Table 2019'!CX8)/100)*('CVB Table 2019'!$O$8)/1000," ") ->  | CY8: =IF($N$8,(($N$8*'CVB Table 2019'!CY8)/100)*('CVB Table 2019'!$O$8)/1000," ") ->  | CZ8: =IF($N$8,(($N$8*'CVB Table 2019'!CZ8)/100)*('CVB Table 2019'!$O$8)/1000," ") ->  | DA8: =IF($N$8,($N$8*'CVB Table 2019'!DA8)/100," ") ->  | DB8: =IF($N$8,($N$8*'CVB Table 2019'!DB8)/100," ") ->  | DC8: =IF($N$8,($N$8*'CVB Table 2019'!DC8)/100," ") ->  | DD8: =IF($N$8,($N$8*'CVB Table 2019'!DD8)/100," ") ->  | DE8: =IF(N8,((N8*'CVB Table 2019'!DE8)/100)*('CVB Table 2019'!O8)/1000," ") ->  | DF8: =IF($N$8,($N$8*'CVB Table 2019'!DF8)/100," ") ->  | DG8: =IF($N$8,($N$8*'CVB Table 2019'!DG8)/100," ") ->  | DH8: =IF($N$8,($N$8*'CVB Table 2019'!DH8)/100," ") ->  | DI8: =IF($N$8,($N$8*'CVB Table 2019'!DI8)/100," ") ->  | DJ8: =IF($N$8,($N$8*'CVB Table 2019'!DJ8)/100," ") ->  | DK8: =IF($N$8,($N$8*'CVB Table 2019'!DK8)/100," ") ->  | DL8: =IF($N$8,($N$8*'CVB Table 2019'!DL8)/100," ") ->  | DM8: =IF(N8,((N8*'CVB Table 2019'!DM8)/100)*('CVB Table 2019'!O8)/1000," ") ->  | DN8: =IF($N$8,($N$8*'CVB Table 2019'!DN8)/100," ") ->  | DO8: =IF(N8,((N8*'CVB Table 2019'!DO8)/100)*('CVB Table 2019'!O8)/1000," ") ->  | DP8: =IF($N$8,($N$8*'CVB Table 2019'!DP8)/100," ") ->  | DQ8: =IF($N$8,($N$8*'CVB Table 2019'!DQ8)/100," ") ->  | DR8: =IF($N$8,($N$8*'CVB Table 2019'!DR8)/100," ") ->  | DS8: =IF($N$8,($N$8*'CVB Table 2019'!DS8)/100," ") ->  | DT8: =IF(N8,((N8*'CVB Table 2019'!DT8)/100)*('CVB Table 2019'!O8)/1000," ") ->  | DU8: =IF($N$8,($N$8*'CVB Table 2019'!DU8)/100," ") ->  | DV8: =IF(N8,((N8*'CVB Table 2019'!DV8)/100)*('CVB Table 2019'!O8)/1000," ") ->  | DW8: =IF($N$8,(($N$8*'CVB Table 2019'!DW8)/100)*('CVB Table 2019'!$O$8)/1000," ") ->  | DX8: =IF($N$8,(($N$8*'CVB Table 2019'!DX8)/100)*('CVB Table 2019'!$O$8)/1000," ") ->  | DY8: =IF($N$8,($N$8*'CVB Table 2019'!DY8)/100," ") ->  | DZ8: =IF($N$8,($N$8*'CVB Table 2019'!DZ8)/100," ") ->  | EA8: =IF($N$8,($N$8*'CVB Table 2019'!EA8)/100," ") ->  | EB8: =IF($N$8,($N$8*'CVB Table 2019'!EB8)/100," ") ->  | EC8: =IF($N$8,($N$8*'CVB Table 2019'!EC8)/100," ") ->  | ED8: =IF($N$8,($N$8*'CVB Table 2019'!ED8)/100," ") ->  | EE8: =IF($N$8,($N$8*'CVB Table 2019'!EE8)/100," ") ->  | EF8: =IF($N$8,($N$8*'CVB Table 2019'!EF8)/100," ") ->  | EG8: =IF($N$8,($N$8*'CVB Table 2019'!EG8)/100," ") ->  | EH8: =IF($N$8,($N$8*'CVB Table 2019'!EH8)/100," ") ->  | EI8: =IF($N$8,($N$8*'CVB Table 2019'!EI8)/100," ") ->  | EJ8: =IF($N$8,($N$8*'CVB Table 2019'!EJ8)/100," ") ->  | EK8: =IF($N$8,($N$8*'CVB Table 2019'!EK8)/100," ") ->  | EL8: =IF($N$8,($N$8*'CVB Table 2019'!EL8)/100," ") ->  | EM8: =IF($N$8,($N$8*'CVB Table 2019'!EM8)/100," ") ->  | EN8: =IF($N$8,($N$8*'CVB Table 2019'!EN8)/100," ") ->  | EO8: =IF($N$8,($N$8*'CVB Table 2019'!EO8)/100," ") ->  | EP8: =IF($N$8,($N$8*'CVB Table 2019'!EP8)/100," ") ->  | EQ8: =IF($N$8,($N$8*'CVB Table 2019'!EQ8)/100," ") ->  | ER8: =IF($N$8,($N$8*'CVB Table 2019'!ER8)/100," ") ->  | ES8: =IF($N$8,($N$8*'CVB Table 2019'!ES8)/100," ") ->  | ET8: =IF($N$8,($N$8*'CVB Table 2019'!ET8)/100," ") ->  | EU8: =IF($N$8,($N$8*'CVB Table 2019'!EU8)/100," ") ->  | EV8: =IF($N$8,($N$8*'CVB Table 2019'!EV8)/100," ") ->  | EW8: =IF($N$8,($N$8*'CVB Table 2019'!EW8)/100," ") ->  | EX8: =IF($N$8,($N$8*'CVB Table 2019'!EX8)/100," ") ->  | EY8: =IF($N$8,($N$8*'CVB Table 2019'!EY8)/100," ") ->  | EZ8: =IF($N$8,($N$8*'CVB Table 2019'!EZ8)/100," ") ->  | FA8: =IF($N$8,($N$8*'CVB Table 2019'!FA8)/100," ") ->  | FB8: =IF($N$8,($N$8*'CVB Table 2019'!FB8)/100," ") ->  | FC8: =IF($N$8,($N$8*'CVB Table 2019'!FC8)/100," ") ->  | FD8: =IF($N$8,($N$8*'CVB Table 2019'!FD8)/100," ") ->  | FE8: =IF($N$8,($N$8*'CVB Table 2019'!FE8)/100," ") ->  | FF8: =IF($N$8,($N$8*'CVB Table 2019'!FF8)/100," ") ->  | FG8: =IF($N$8,($N$8*'CVB Table 2019'!FG8)/100," ") ->  | FH8: =IF($N$8,($N$8*'CVB Table 2019'!FH8)/100," ") ->  | FI8: =IF($N$8,($N$8*'CVB Table 2019'!FI8)/100," ") ->  | FJ8: =IF($N$8,($N$8*'CVB Table 2019'!FJ8)/100," ") ->  | FK8: =IF($N$8,(($N$8*'CVB Table 2019'!FK8)/100)*('CVB Table 2019'!$O$8)/1000," ") ->  | FL8: =IF($N$8,(($N$8*'CVB Table 2019'!FL8)/100)*('CVB Table 2019'!$O$8)/1000," ") ->  | FM8: =IF($N$8,(($N$8*'CVB Table 2019'!FM8)/100)*('CVB Table 2019'!$O$8)/1000," ") ->  | FN8: =IF($N$8,(($N$8*'CVB Table 2019'!FN8)/100)*('CVB Table 2019'!$O$8)/1000," ") ->  | FO8: =IF($N$8,(($N$8*'CVB Table 2019'!FO8)/100)*('CVB Table 2019'!$O$8)/1000," ") ->  | FP8: =IF($N$8,(($N$8*'CVB Table 2019'!FP8)/100)*('CVB Table 2019'!$O$8)/1000," ") ->  | FQ8: =IF($N$8,(($N$8*'CVB Table 2019'!FQ8)/100)*('CVB Table 2019'!$O$8)/1000," ") ->  | FR8: =IF($N$8,(($N$8*'CVB Table 2019'!FR8)/100)*('CVB Table 2019'!$O$8)/1000," ") ->  | FS8: =IF($N$8,(($N$8*'CVB Table 2019'!FS8)/100)*('CVB Table 2019'!$O$8)/1000," ") ->  | FT8: =IF($N$8,(($N$8*'CVB Table 2019'!FT8)/100)*('CVB Table 2019'!$O$8)/1000," ") ->  | FU8: =IF($N$8,(($N$8*'CVB Table 2019'!FU8)/100)*('CVB Table 2019'!$O$8)/1000," ") ->  | FV8: =IF($N$8,(($N$8*'CVB Table 2019'!FV8)/100)*('CVB Table 2019'!$O$8)/1000," ") ->  | FW8: =IF($N$8,(($N$8*'CVB Table 2019'!FW8)/100)*('CVB Table 2019'!$O$8)/1000," ") ->  | FX8: =IF($N$8,(($N$8*'CVB Table 2019'!FX8)/100)*('CVB Table 2019'!$O$8)/1000," ") ->  | FY8: =IF($N$8,(($N$8*'CVB Table 2019'!FY8)/100)*('CVB Table 2019'!$O$8)/1000," ") ->  | FZ8: =IF($N$8,(($N$8*'CVB Table 2019'!FZ8)/100)*('CVB Table 2019'!$O$8)/1000," ") ->  | GA8: =IF($N$8,(($N$8*'CVB Table 2019'!GA8)/100)*('CVB Table 2019'!$O$8)/1000," ") ->  | GB8: =IF($N$8,(($N$8*'CVB Table 2019'!GB8)/100)*('CVB Table 2019'!$O$8)/1000," ") ->  | GC8: =IF($N$8,(($N$8*'CVB Table 2019'!GC8)/100)*('CVB Table 2019'!$O$8)/1000," ") ->  | GD8: =IF($N$8,(($N$8*'CVB Table 2019'!GD8)/100)*('CVB Table 2019'!$O$8)/1000," ") ->  | GE8: =IF($N$8,(($N$8*'CVB Table 2019'!GE8)/100)*('CVB Table 2019'!$O$8)/1000," ") ->  | GF8: =IF($N$8,(($N$8*'CVB Table 2019'!GF8)/100)*('CVB Table 2019'!$O$8)/1000," ") ->  | GG8: =IF($N$8,(($N$8*'CVB Table 2019'!GG8)/100)*('CVB Table 2019'!$O$8)/1000," ") ->  | GH8: =IF($N$8,(($N$8*'CVB Table 2019'!GH8)/100)*('CVB Table 2019'!$O$8)/1000," ") ->  | GI8: =IF($N$8,(($N$8*'CVB Table 2019'!GI8)/100)*('CVB Table 2019'!$O$8)/1000," ") ->  | GJ8: =IF($N$8,(($N$8*'CVB Table 2019'!GJ8)/100)*('CVB Table 2019'!$O$8)/1000," ") ->  | GK8: =IF($N$8,(($N$8*'CVB Table 2019'!GK8)/100)*('CVB Table 2019'!$O$8)/1000," ") ->  | GL8: =IF($N$8,(($N$8*'CVB Table 2019'!GL8)/100)*('CVB Table 2019'!$O$8)/1000," ") ->  | GM8: =IF($N$8,(($N$8*'CVB Table 2019'!GM8)/100)*('CVB Table 2019'!$O$8)/1000," ") ->  | GN8: =IF($N$8,(($N$8*'CVB Table 2019'!GN8)/100)*('CVB Table 2019'!$O$8)/1000," ") ->  | GO8: =IF($N$8,(($N$8*'CVB Table 2019'!GO8)/100)*('CVB Table 2019'!$O$8)/1000," ") ->  | GP8: =IF($N$8,(($N$8*'CVB Table 2019'!GP8)/100)*('CVB Table 2019'!$O$8)/1000," ") ->  | GQ8: =IF($N$8,(($N$8*'CVB Table 2019'!GQ8)/100)*('CVB Table 2019'!$O$8)/1000," ") ->  | GR8: =IF($N$8,(($N$8*'CVB Table 2019'!GR8)/100)*('CVB Table 2019'!$O$8)/1000," ") ->  | GS8: =IF($N$8,(($N$8*'CVB Table 2019'!GS8)/100)*('CVB Table 2019'!$O$8)/1000," ") ->  | GT8: =IF($N$8,(($N$8*'CVB Table 2019'!GT8)/100)*('CVB Table 2019'!$O$8)/1000," ") ->  | GU8: =IF($N$8,(($N$8*'CVB Table 2019'!GU8)/100)*('CVB Table 2019'!$O$8)/1000," ") ->  | GV8: =IF($N$8,(($N$8*'CVB Table 2019'!GV8)/100)*('CVB Table 2019'!$O$8)/1000," ") ->  | GW8: =IF($N$8,(($N$8*'CVB Table 2019'!GW8)/100)*('CVB Table 2019'!$O$8)/1000," ") ->  | GX8: =IF($N$8,(($N$8*'CVB Table 2019'!GX8)/100)*('CVB Table 2019'!$O$8)/1000," ") ->  | GY8: =IF($N$8,($N$8*'CVB Table 2019'!GY8)/100," ") ->  | GZ8: =IF($N$8,($N$8*'CVB Table 2019'!GZ8)/100," ") ->  | HA8: =IF($N$8,($N$8*'CVB Table 2019'!HA8)/100," ") ->  | HB8: =IF($N$8,($N$8*'CVB Table 2019'!HB8)/100," ") ->  | HC8: =IF($N$8,($N$8*'CVB Table 2019'!HC8)/100," ") ->  | HD8: =IF($N$8,($N$8*'CVB Table 2019'!HD8)/100," ") ->  | HE8: =IF($N$8,($N$8*'CVB Table 2019'!HE8)/100," ") ->  | HF8: =IF($N$8,($N$8*'CVB Table 2019'!HF8)/100," ") ->  | HG8: =IF($N$8,($N$8*'CVB Table 2019'!HG8)/100," ") ->  | HH8: =IF($N$8,($N$8*'CVB Table 2019'!HH8)/100," ") ->  | HI8: =IF($N$8,($N$8*'CVB Table 2019'!HI8)/100," ") ->  | HJ8: =IF($N$8,($N$8*'CVB Table 2019'!HJ8)/100," ") ->  | HK8: =IF($N$8,($N$8*'CVB Table 2019'!HK8)/100," ") ->  | HL8: =IF($N$8,($N$8*'CVB Table 2019'!HL8)/100," ") ->  | HM8: =IF($N$8,($N$8*'CVB Table 2019'!HM8)/100," ") ->  | HN8: =IF($N$8,($N$8*'CVB Table 2019'!HN8)/100," ") ->  | HO8: =IF($N$8,($N$8*'CVB Table 2019'!HO8)/100," ") ->  | HP8: =IF($N$8,($N$8*'CVB Table 2019'!HP8)/100," ") ->  | HQ8: =IF($N$8,($N$8*'CVB Table 2019'!HQ8)/100," ") ->  | HR8: =IF($N$8,(($N$8*'CVB Table 2019'!HR8)/100)*('CVB Table 2019'!$O$8)/1000," ") ->  | HS8: =IF($N$8,(($N$8*'CVB Table 2019'!HS8)/100)*('CVB Table 2019'!$O$8)/1000," ") ->  | HT8: =IF($N$8,(($N$8*'CVB Table 2019'!HT8)/100)*('CVB Table 2019'!$O$8)/1000," ") ->  | HU8: =IF($N$8,(($N$8*'CVB Table 2019'!HU8)/100)*('CVB Table 2019'!$O$8)/1000," ") ->  | HV8: =IF($N$8,(($N$8*'CVB Table 2019'!HV8)/100)*('CVB Table 2019'!$O$8)/1000," ") ->  | HW8: =IF($N$8,(($N$8*'CVB Table 2019'!HW8)/100)*('CVB Table 2019'!$O$8)/1000," ") ->  | HX8: =IF($N$8,(($N$8*'CVB Table 2019'!HX8)/100)*('CVB Table 2019'!$O$8)/1000," ") ->  | HY8: =IF($N$8,(($N$8*'CVB Table 2019'!HY8)/100)*('CVB Table 2019'!$O$8)/1000," ") ->  | HZ8: =IF($N$8,(($N$8*'CVB Table 2019'!HZ8)/100)*('CVB Table 2019'!$O$8)/1000," ") ->  | IA8: =IF($N$8,(($N$8*'CVB Table 2019'!IA8)/100)*('CVB Table 2019'!$O$8)/1000," ") ->  | IB8: =IF($N$8,(($N$8*'CVB Table 2019'!IB8)/100)*('CVB Table 2019'!$O$8)/1000," ") ->  | IC8: =IF($N$8,(($N$8*'CVB Table 2019'!IC8)/100)*('CVB Table 2019'!$O$8)/1000," ") ->  | ID8: =IF($N$8,(($N$8*'CVB Table 2019'!ID8)/100)*('CVB Table 2019'!$O$8)/1000," ") ->  | IE8: =IF($N$8,(($N$8*'CVB Table 2019'!IE8)/100)*('CVB Table 2019'!$O$8)/1000," ") ->  | IF8: =IF($N$8,(($N$8*'CVB Table 2019'!IF8)/100)*('CVB Table 2019'!$O$8)/1000," ") ->  | IG8: =IF($N$8,(($N$8*'CVB Table 2019'!IG8)/100)*('CVB Table 2019'!$O$8)/1000," ") ->  | IH8: =IF($N$8,(($N$8*'CVB Table 2019'!IH8)/100)*('CVB Table 2019'!$O$8)/1000," ") ->  | II8: =IF($N$8,(($N$8*'CVB Table 2019'!II8)/100)*('CVB Table 2019'!$O$8)/1000," ") ->  | IJ8: =IF($N$8,(($N$8*'CVB Table 2019'!IJ8)/100)*('CVB Table 2019'!$O$8)/1000," ") ->  | IK8: =IF($N$8,($N$8*'CVB Table 2019'!IK8)/100," ") ->  | IL8: =IF($N$8,($N$8*'CVB Table 2019'!IL8)/100," ") ->  | IM8: =IF($N$8,($N$8*'CVB Table 2019'!IM8)/100," ") ->  | IN8: =IF($N$8,($N$8*'CVB Table 2019'!IN8)/100," ") ->  | IO8: =IF($N$8,($N$8*'CVB Table 2019'!IO8)/100," ") ->  | IP8: =IF($N$8,($N$8*'CVB Table 2019'!IP8)/100," ") ->  | IQ8: =IF($N$8,($N$8*'CVB Table 2019'!IQ8)/100," ") ->  | IR8: =IF($N$8,($N$8*'CVB Table 2019'!IR8)/100," ") ->  | IS8: =IF($N$8,($N$8*'CVB Table 2019'!IS8)/100," ") ->  | IT8: =IF($N$8,($N$8*'CVB Table 2019'!IT8)/100," ") ->  | IU8: =IF($N$8,($N$8*'CVB Table 2019'!IU8)/100," ") ->  | IV8: =IF($N$8,($N$8*'CVB Table 2019'!IV8)/100," ") ->  | IW8: =IF($N$8,($N$8*'CVB Table 2019'!IW8)/100," ") ->  | IX8: =IF($N$8,($N$8*'CVB Table 2019'!IX8)/100," ") ->  | IY8: =IF($N$8,($N$8*'CVB Table 2019'!IY8)/100," ") ->  | IZ8: =IF($N$8,($N$8*'CVB Table 2019'!IZ8)/100," ") ->  | JA8: =IF($N$8,($N$8*'CVB Table 2019'!JA8)/100," ") ->  | JB8: =IF($N$8,($N$8*'CVB Table 2019'!JB8)/100," ") ->  | JC8: =IF($N$8,($N$8*'CVB Table 2019'!JC8)/100," ") ->  | JD8: =IF($N$8,($N$8*'CVB Table 2019'!JD8)/100," ") ->  | JE8: =IF($N$8,($N$8*'CVB Table 2019'!JE8)/100," ") ->  | JF8: =IF($N$8,($N$8*'CVB Table 2019'!JF8)/100," ") ->  | JG8: =IF($N$8,($N$8*'CVB Table 2019'!JG8)/100," ") ->  | JH8: =IF($N$8,($N$8*'CVB Table 2019'!JH8)/100," ") ->  | JI8: =IF($N$8,($N$8*'CVB Table 2019'!JI8)/100," ") ->  | JJ8: =IF($N$8,($N$8*'CVB Table 2019'!JJ8)/100," ") ->  | JK8: =IF($N$8,($N$8*'CVB Table 2019'!JK8)/100," ") ->  | JL8: =IF($N$8,($N$8*'CVB Table 2019'!JL8)/100," ") ->  | JM8: =IF($N$8,($N$8*'CVB Table 2019'!JM8)/100," ") ->  | JN8: =IF($N$8,($N$8*'CVB Table 2019'!JN8)/100," ") ->  | JO8: =IF($N$8,($N$8*'CVB Table 2019'!JO8)/100," ") ->  | JP8: =IF($N$8,($N$8*'CVB Table 2019'!JP8)/100," ") ->  | JQ8: =IF($N$8,($N$8*'CVB Table 2019'!JQ8)/100," ") ->  | JR8: =IF($N$8,($N$8*'CVB Table 2019'!JR8)/100," ") ->  | JS8: =IF($N$8,($N$8*'CVB Table 2019'!JS8)/100," ") ->  | JT8: =IF($N$8,($N$8*'CVB Table 2019'!JT8)/100," ") ->  | JU8: =IF($N$8,(($N$8*'CVB Table 2019'!JU8)/100)*('CVB Table 2019'!$O$8)/1000," ") ->  | JV8: =IF($N$8,(($N$8*'CVB Table 2019'!JV8)/100)*('CVB Table 2019'!$O$8)/1000," ") ->  | JW8: =IF($N$8,(($N$8*'CVB Table 2019'!JW8)/100)*('CVB Table 2019'!$O$8)/1000," ") ->  | JX8: =IF($N$8,(($N$8*'CVB Table 2019'!JX8)/100)*('CVB Table 2019'!$O$8)/1000," ") ->  | JY8: =IF($N$8,(($N$8*'CVB Table 2019'!JY8)/100)*('CVB Table 2019'!$O$8)/1000," ") ->  | JZ8: =IF($N$8,(($N$8*'CVB Table 2019'!JZ8)/100)*('CVB Table 2019'!$O$8)/1000," ") ->  | KA8: =IF($N$8,(($N$8*'CVB Table 2019'!KA8)/100)*('CVB Table 2019'!$O$8)/1000," ") ->  | KB8: =IF($N$8,(($N$8*'CVB Table 2019'!KB8)/100)*('CVB Table 2019'!$O$8)/1000," ") ->  | KC8: =IF($N$8,(($N$8*'CVB Table 2019'!KC8)/100)*('CVB Table 2019'!$O$8)/1000," ") ->  | KD8: =IF($N$8,(($N$8*'CVB Table 2019'!KD8)/100)*('CVB Table 2019'!$O$8)/1000," ") ->  | KE8: =IF($N$8,(($N$8*'CVB Table 2019'!KE8)/100)*('CVB Table 2019'!$O$8)/1000," ") ->  | KF8: =IF($N$8,(($N$8*'CVB Table 2019'!KF8)/100)*('CVB Table 2019'!$O$8)/1000," ") ->  | KG8: =IF($N$8,(($N$8*'CVB Table 2019'!KG8)/100)*('CVB Table 2019'!$O$8)/1000," ") ->  | KH8: =IF($N$8,(($N$8*'CVB Table 2019'!KH8)/100)*('CVB Table 2019'!$O$8)/1000," ") ->  | KI8: =IF($N$8,(($N$8*'CVB Table 2019'!KI8)/100)*('CVB Table 2019'!$O$8)/1000," ") ->  | KJ8: =IF($N$8,(($N$8*'CVB Table 2019'!KJ8)/100)*('CVB Table 2019'!$O$8)/1000," ") ->  | KK8: =IF($N$8,(($N$8*'CVB Table 2019'!KK8)/100)*('CVB Table 2019'!$O$8)/1000," ") ->  | KL8: =IF($N$8,(($N$8*'CVB Table 2019'!KL8)/100)*('CVB Table 2019'!$O$8)/1000," ") ->  | KM8: =IF($N$8,(($N$8*'CVB Table 2019'!KM8)/100)*('CVB Table 2019'!$O$8)/1000," ") ->  | KN8: =IF($N$8,(($N$8*'CVB Table 2019'!KN8)/100)*('CVB Table 2019'!$O$8)/1000," ") ->  | KO8: =IF($N$8,(($N$8*'CVB Table 2019'!KO8)/100)*('CVB Table 2019'!$O$8)/1000," ") ->  | KP8: =IF($N$8,(($N$8*'CVB Table 2019'!KP8)/100)*('CVB Table 2019'!$O$8)/1000," ") ->  | KQ8: =IF($N$8,(($N$8*'CVB Table 2019'!KQ8)/100)*('CVB Table 2019'!$O$8)/1000," ") ->  | KR8: =IF($N$8,(($N$8*'CVB Table 2019'!KR8)/100)*('CVB Table 2019'!$O$8)/1000," ") ->  | KS8: =IF($N$8,(($N$8*'CVB Table 2019'!KS8)/100)*('CVB Table 2019'!$O$8)/1000," ") ->  | KT8: =IF($N$8,(($N$8*'CVB Table 2019'!KT8)/100)*('CVB Table 2019'!$O$8)/1000," ") ->  | KU8: =IF($N$8,(($N$8*'CVB Table 2019'!KU8)/100)*('CVB Table 2019'!$O$8)/1000," ") ->  | KV8: =IF($N$8,(($N$8*'CVB Table 2019'!KV8)/100)*('CVB Table 2019'!$O$8)/1000," ") ->  | KW8: =IF($N$8,(($N$8*'CVB Table 2019'!KW8)/100)*('CVB Table 2019'!$O$8)/1000," ") ->  | KX8: =IF($N$8,(($N$8*'CVB Table 2019'!KX8)/100)*('CVB Table 2019'!$O$8)/1000," ") ->  | KY8: =IF($N$8,(($N$8*'CVB Table 2019'!KY8)/100)*('CVB Table 2019'!$O$8)/1000," ") ->  | KZ8: =IF($N$8,(($N$8*'CVB Table 2019'!KZ8)/100)*('CVB Table 2019'!$O$8)/1000," ") ->  | LA8: =IF($N$8,(($N$8*'CVB Table 2019'!LA8)/100)*('CVB Table 2019'!$O$8)/1000," ") ->  | LB8: =IF($N$8,(($N$8*'CVB Table 2019'!LB8)/100)*('CVB Table 2019'!$O$8)/1000," ") ->  | LC8: =IF($N$8,(($N$8*'CVB Table 2019'!LC8)/100)*('CVB Table 2019'!$O$8)/1000," ") ->  | LD8: =IF($N$8,(($N$8*'CVB Table 2019'!LD8)/100)*('CVB Table 2019'!$O$8)/1000," ") ->  | LE8: =IF($N$8,(($N$8*'CVB Table 2019'!LE8)/100)*('CVB Table 2019'!$O$8)/1000," ") ->  | LF8: =IF($N$8,(($N$8*'CVB Table 2019'!LF8)/100)*('CVB Table 2019'!$O$8)/1000," ") ->  | LG8: =IF($N$8,(($N$8*'CVB Table 2019'!LG8)/100)*('CVB Table 2019'!$O$8)/1000," ") ->  | LH8: =IF($N$8,(($N$8*'CVB Table 2019'!LH8)/100)*('CVB Table 2019'!$O$8)/1000," ") ->  | LI8: =IF($N$8,(($N$8*'CVB Table 2019'!LI8)/100)*('CVB Table 2019'!$O$8)/1000," ") ->  | LJ8: =IF($N$8,(($N$8*'CVB Table 2019'!LJ8)/100)*('CVB Table 2019'!$O$8)/1000," ") ->  | LK8: =IF($N$8,(($N$8*'CVB Table 2019'!LK8)/100)*('CVB Table 2019'!$O$8)/1000," ") ->  | LL8: =IF($N$8,(($N$8*'CVB Table 2019'!LL8)/100)*('CVB Table 2019'!$O$8)/1000," ") ->  | LM8: =IF($N$8,(($N$8*'CVB Table 2019'!LM8)/100)*('CVB Table 2019'!$O$8)/1000," ") ->  | LN8: =IF($N$8,(($N$8*'CVB Table 2019'!LN8)/100)*('CVB Table 2019'!$O$8)/1000," ") ->  | LO8: =IF($N$8,(($N$8*'CVB Table 2019'!LO8)/100)*('CVB Table 2019'!$O$8)/1000," ") ->  | LP8: =IF($N$8,(($N$8*'CVB Table 2019'!LP8)/100)*('CVB Table 2019'!$O$8)/1000," ") ->  | LQ8: =IF($N$8,(($N$8*'CVB Table 2019'!LQ8)/100)*('CVB Table 2019'!$O$8)/1000," ") ->  | LR8: =IF($N$8,(($N$8*'CVB Table 2019'!LR8)/100)*('CVB Table 2019'!$O$8)/1000," ") ->  | LS8: =IF($N$8,(($N$8*'CVB Table 2019'!LS8)/100)*('CVB Table 2019'!$O$8)/1000," ") ->  | LT8: =IF($N$8,($N$8*'CVB Table 2019'!LT8)/100," ") ->  | LU8: =IF($N$8,($N$8*'CVB Table 2019'!LU8)/100," ") ->  | LV8: =IF($N$8,($N$8*'CVB Table 2019'!LV8)/100," ") ->  | LW8: =IF($N$8,($N$8*'CVB Table 2019'!LW8)/100," ") ->  | LX8: =IF($N$8,($N$8*'CVB Table 2019'!LX8)/100," ") ->  | LY8: =IF($N$8,($N$8*'CVB Table 2019'!LY8)/100," ") ->  | LZ8: =IF($N$8,($N$8*'CVB Table 2019'!LZ8)/100," ") ->  | MA8: =IF($N$8,($N$8*'CVB Table 2019'!MA8)/100," ") ->  | MB8: =IF($N$8,($N$8*'CVB Table 2019'!MB8)/100," ") ->  | MC8: =IF($N$8,($N$8*'CVB Table 2019'!MC8)/100," ") ->  | MD8: =IF($N$8,($N$8*'CVB Table 2019'!MD8)/100," ") ->  | ME8: =IF($N$8,($N$8*'CVB Table 2019'!ME8)/100," ") ->  | MF8: =IF($N$8,($N$8*'CVB Table 2019'!MF8)/100," ") ->  | MG8: =IF($N$8,($N$8*'CVB Table 2019'!MG8)/100," ") ->  | MH8: =IF($N$8,($N$8*'CVB Table 2019'!MH8)/100," ") ->  | MI8: =IF($N$8,($N$8*'CVB Table 2019'!MI8)/100," ") ->  | MJ8: =IF($N$8,($N$8*'CVB Table 2019'!MJ8)/100," ") ->  | MK8: =IF($N$8,(($N$8*'CVB Table 2019'!MK8)/100)*('CVB Table 2019'!$O$8)/1000," ") ->  | ML8: =IF($N$8,($N$8*'CVB Table 2019'!ML8)/100," ") ->  | MN8: =IF(N8,($MM$4*('CVB Table 2019'!AI8*0.15)*(N8/100)*(('CVB Table 2019'!O8)/1000)),"") ->  | MO8: =IF(N8,($MM$4*((('CVB Table 2019'!AH8)-('CVB Table 2019'!AI8))*0.8)*(N8/100)*(('CVB Table 2019'!O8)/1000)),"") ->  | MQ8: =IF(N8,($MM$4*('CVB Table 2019'!AI8*0.4)*(N8/100)*(('CVB Table 2019'!O8)/1000)),"") ->  | MR8: =IF(N8,($MM$4*((('CVB Table 2019'!AH8)-('CVB Table 2019'!AI8))*0.8)*(N8/100)*(('CVB Table 2019'!O8)/1000)),"") ->  | MT8: =IF(N8,($MM$4*('CVB Table 2019'!AI8*0.25)*(N8/100)*(('CVB Table 2019'!O8)/1000)),"") ->  | MU8: =IF(N8,($MM$4*((('CVB Table 2019'!AH8)-('CVB Table 2019'!AI8))*0.8)*(N8/100)*(('CVB Table 2019'!O8)/1000)),"") ->  | MX8: =IF(N8,((N8*'CVB Table 2019'!MX8)/100)*('CVB Table 2019'!$O$4)/1000," ") -> 
A9: 5003.602 | B9: ruwvoeders | C9: Klaver rode, kuil | F9: Clover red, ensiled | I9: X | O9: =IF($N$9,($N$9*'CVB Table 2019'!O9)/100," ") ->  | P9: =IF($N$9,(($N$9*'CVB Table 2019'!P9)/100)*('CVB Table 2019'!$O$9)/1000," ") ->  | Q9: =IF($N$9,(($N$9*'CVB Table 2019'!Q9)/100)*('CVB Table 2019'!$O$9)/1000," ") ->  | R9: =IF($N$9,(($N$9*'CVB Table 2019'!R9)/100)*('CVB Table 2019'!$O$9)/1000," ") ->  | S9: =IF($N$9,(($N$9*'CVB Table 2019'!S9)/100)*('CVB Table 2019'!$O$9)/1000," ") ->  | T9: =IF($N$9,(($N$9*'CVB Table 2019'!T9)/100)*('CVB Table 2019'!$O$9)/1000," ") ->  | U9: =IF($N$9,(($N$9*'CVB Table 2019'!U9)/100)*('CVB Table 2019'!$O$9)/1000," ") ->  | V9: =IF($N$9,(($N$9*'CVB Table 2019'!V9)/100)*('CVB Table 2019'!$O$9)/1000," ") ->  | W9: =IF($N$9,(($N$9*'CVB Table 2019'!W9)/100)*('CVB Table 2019'!$O$9)/1000," ") ->  | X9: =IF($N$9,(($N$9*'CVB Table 2019'!X9)/100)*('CVB Table 2019'!$O$9)/1000," ") ->  | Y9: =IF($N$9,(($N$9*'CVB Table 2019'!Y9)/100)*('CVB Table 2019'!$O$9)/1000," ") ->  | Z9: =IF($N$9,(($N$9*'CVB Table 2019'!Z9)/100)*('CVB Table 2019'!$O$9)/1000," ") ->  | AA9: =IF($N$9,(($N$9*'CVB Table 2019'!AA9)/100)*('CVB Table 2019'!$O$9)/1000," ") ->  | AB9: =IF($N$9,(($N$9*'CVB Table 2019'!AB9)/100)*('CVB Table 2019'!$O$9)/1000," ") ->  | AC9: =IF($N$9,(($N$9*'CVB Table 2019'!AC9)/100)*('CVB Table 2019'!$O$9)/1000," ") ->  | AD9: =IF($N$9,(($N$9*'CVB Table 2019'!AD9)/100)*('CVB Table 2019'!$O$9)/1000," ") ->  | AE9: =IF($N$9,(($N$9*'CVB Table 2019'!AE9)/100)*('CVB Table 2019'!$O$9)/1000," ") ->  | AF9: =IF($N$9,(($N$9*'CVB Table 2019'!AF9)/100)*('CVB Table 2019'!$O$9)/1000," ") ->  | AG9: =IF($N$9,(($N$9*'CVB Table 2019'!AG9)/100)*('CVB Table 2019'!$O$9)/1000," ") ->  | AH9: =IF($N$9,(($N$9*'CVB Table 2019'!AH9)/100)*('CVB Table 2019'!$O$9)/1000," ") ->  | AI9: =IF($N$9,(($N$9*'CVB Table 2019'!AI9)/100)*('CVB Table 2019'!$O$9)/1000," ") ->  | AJ9: =IF($N$9,(($N$9*'CVB Table 2019'!AJ9)/100)*('CVB Table 2019'!$O$9)/1000," ") ->  | AK9: =IF($N$9,(($N$9*'CVB Table 2019'!AK9)/100)*('CVB Table 2019'!$O$9)/1000," ") ->  | AL9: =IF($N$9,(($N$9*'CVB Table 2019'!AL9)/100)*('CVB Table 2019'!$O$9)/1000," ") ->  | AM9: =IF($N$9,(($N$9*'CVB Table 2019'!AM9)/100)*('CVB Table 2019'!$O$9)/1000," ") ->  | AN9: =IF($N$9,(($N$9*'CVB Table 2019'!AN9)/100)*('CVB Table 2019'!$O$9)/1000," ") ->  | AO9: =IF($N$9,(($N$9*'CVB Table 2019'!AO9)/100)*('CVB Table 2019'!$O$9)/1000," ") ->  | AP9: =IF($N$9,(($N$9*'CVB Table 2019'!AP9)/100)*('CVB Table 2019'!$O$9)/1000," ") ->  | AQ9: =IF($N$9,(($N$9*'CVB Table 2019'!AQ9)/100)*('CVB Table 2019'!$O$9)/1000," ") ->  | AR9: =IF($N$9,(($N$9*'CVB Table 2019'!AR9)/100)*('CVB Table 2019'!$O$9)/1000," ") ->  | AS9: =IF($N$9,(($N$9*'CVB Table 2019'!AS9)/100)*('CVB Table 2019'!$O$9)/1000," ") ->  | AT9: =IF($N$9,(($N$9*'CVB Table 2019'!AT9)/100)*('CVB Table 2019'!$O$9)/1000," ") ->  | AU9: =IF($N$9,(($N$9*'CVB Table 2019'!AU9)/100)*('CVB Table 2019'!$O$9)/1000," ") ->  | AV9: =IF($N$9,(($N$9*'CVB Table 2019'!AV9)/100)*('CVB Table 2019'!$O$9)/1000," ") ->  | AW9: =IF($N$9,(($N$9*'CVB Table 2019'!AW9)/100)*('CVB Table 2019'!$O$9)/1000," ") ->  | AX9: =IF($N$9,(($N$9*'CVB Table 2019'!AX9)/100)*('CVB Table 2019'!$O$9)/1000," ") ->  | AY9: =IF($N$9,(($N$9*'CVB Table 2019'!AY9)/100)*('CVB Table 2019'!$O$9)/1000," ") ->  | AZ9: =IF($N$9,(($N$9*'CVB Table 2019'!AZ9)/100)*('CVB Table 2019'!$O$9)/1000," ") ->  | BA9: =IF($N$9,(($N$9*'CVB Table 2019'!BA9)/100)*('CVB Table 2019'!$O$9)/1000," ") ->  | BB9: =IF($N$9,(($N$9*'CVB Table 2019'!BB9)/100)*('CVB Table 2019'!$O$9)/1000," ") ->  | BC9: =IF($N$9,(($N$9*'CVB Table 2019'!BC9)/100)*('CVB Table 2019'!$O$9)/1000," ") ->  | BD9: =IF($N$9,($N$9*'CVB Table 2019'!BD9)/100," ") ->  | BE9: =IF($N$9,($N$9*'CVB Table 2019'!BE9)/100," ") ->  | BF9: =IF($N$9,($N$9*'CVB Table 2019'!BF9)/100," ") ->  | BG9: =IF($N$9,($N$9*'CVB Table 2019'!BG9)/100," ") ->  | BH9: =IF($N$9,($N$9*'CVB Table 2019'!BH9)/100," ") ->  | BI9: =IF($N$9,($N$9*'CVB Table 2019'!BI9)/100," ") ->  | BJ9: =IF($N$9,($N$9*'CVB Table 2019'!BJ9)/100," ") ->  | BK9: =IF($N$9,($N$9*'CVB Table 2019'!BK9)/100," ") ->  | BL9: =IF($N$9,($N$9*'CVB Table 2019'!BL9)/100," ") ->  | BM9: =IF($N$9,($N$9*'CVB Table 2019'!BM9)/100," ") ->  | BN9: =IF($N$9,($N$9*'CVB Table 2019'!BN9)/100," ") ->  | BO9: =IF($N$9,($N$9*'CVB Table 2019'!BO9)/100," ") ->  | BP9: =IF($N$9,($N$9*'CVB Table 2019'!BP9)/100," ") ->  | BQ9: =IF($N$9,($N$9*'CVB Table 2019'!BQ9)/100," ") ->  | BR9: =IF($N$9,($N$9*'CVB Table 2019'!BR9)/100," ") ->  | BS9: =IF($N$9,($N$9*'CVB Table 2019'!BS9)/100," ") ->  | BT9: =IF($N$9,($N$9*'CVB Table 2019'!BT9)/100," ") ->  | BU9: =IF($N$9,($N$9*'CVB Table 2019'!BU9)/100," ") ->  | BV9: =IF($N$9,($N$9*'CVB Table 2019'!BV9)/100," ") ->  | BW9: =IF($N$9,($N$9*'CVB Table 2019'!BW9)/100," ") ->  | BX9: =IF($N$9,($N$9*'CVB Table 2019'!BX9)/100," ") ->  | BY9: =IF($N$9,($N$9*'CVB Table 2019'!BY9)/100," ") ->  | BZ9: =IF($N$9,($N$9*'CVB Table 2019'!BZ9)/100," ") ->  | CA9: =IF($N$9,($N$9*'CVB Table 2019'!CA9)/100," ") ->  | CB9: =IF($N$9,($N$9*'CVB Table 2019'!CB9)/100," ") ->  | CC9: =IF($N$9,($N$9*'CVB Table 2019'!CC9)/100," ") ->  | CD9: =IF($N$9,($N$9*'CVB Table 2019'!CD9)/100," ") ->  | CE9: =IF($N$9,($N$9*'CVB Table 2019'!CE9)/100," ") ->  | CF9: =IF($N$9,($N$9*'CVB Table 2019'!CF9)/100," ") ->  | CG9: =IF($N$9,($N$9*'CVB Table 2019'!CG9)/100," ") ->  | CH9: =IF($N$9,($N$9*'CVB Table 2019'!CH9)/100," ") ->  | CI9: =IF($N$9,($N$9*'CVB Table 2019'!CI9)/100," ") ->  | CJ9: =IF($N$9,(($N$9*'CVB Table 2019'!CJ9)/100)*('CVB Table 2019'!$O$9)/1000," ") ->  | CK9: =IF($N$9,(($N$9*'CVB Table 2019'!CK9)/100)*('CVB Table 2019'!$O$9)/1000," ") ->  | CL9: =IF($N$9,(($N$9*'CVB Table 2019'!CL9)/100)*('CVB Table 2019'!$O$9)/1000," ") ->  | CM9: =IF($N$9,(($N$9*'CVB Table 2019'!CM9)/100)*('CVB Table 2019'!$O$9)/1000," ") ->  | CN9: =IF($N$9,(($N$9*'CVB Table 2019'!CN9)/100)*('CVB Table 2019'!$O$9)/1000," ") ->  | CO9: =IF($N$9,(($N$9*'CVB Table 2019'!CO9)/100)*('CVB Table 2019'!$O$9)/1000," ") ->  | CP9: =IF($N$9,($N$9*'CVB Table 2019'!CP9)/100," ") ->  | CQ9: =IF($N$9,($N$9*'CVB Table 2019'!CQ9)/100," ") ->  | CR9: =IF($N$9,($N$9*'CVB Table 2019'!CR9)/100," ") ->  | CS9: =IF($N$9,(($N$9*'CVB Table 2019'!CS9)/100)*('CVB Table 2019'!$O$9)/1000," ") ->  | CT9: =IF($N$9,(($N$9*'CVB Table 2019'!CT9)/100)*('CVB Table 2019'!$O$9)/1000," ") ->  | CU9: =IF($N$9,($N$9*'CVB Table 2019'!CU9)/100," ") ->  | CV9: =IF($N$9,(($N$9*'CVB Table 2019'!CV9)/100)*('CVB Table 2019'!$O$9)/1000," ") ->  | CW9: =IF($N$9,(($N$9*'CVB Table 2019'!CW9)/100)*('CVB Table 2019'!$O$9)/1000," ") ->  | CX9: =IF($N$9,(($N$9*'CVB Table 2019'!CX9)/100)*('CVB Table 2019'!$O$9)/1000," ") ->  | CY9: =IF($N$9,(($N$9*'CVB Table 2019'!CY9)/100)*('CVB Table 2019'!$O$9)/1000," ") ->  | CZ9: =IF($N$9,(($N$9*'CVB Table 2019'!CZ9)/100)*('CVB Table 2019'!$O$9)/1000," ") ->  | DA9: =IF($N$9,($N$9*'CVB Table 2019'!DA9)/100," ") ->  | DB9: =IF($N$9,($N$9*'CVB Table 2019'!DB9)/100," ") ->  | DC9: =IF($N$9,($N$9*'CVB Table 2019'!DC9)/100," ") ->  | DD9: =IF($N$9,($N$9*'CVB Table 2019'!DD9)/100," ") ->  | DE9: =IF(N9,((N9*'CVB Table 2019'!DE9)/100)*('CVB Table 2019'!O9)/1000," ") ->  | DF9: =IF($N$9,($N$9*'CVB Table 2019'!DF9)/100," ") ->  | DG9: =IF($N$9,($N$9*'CVB Table 2019'!DG9)/100," ") ->  | DH9: =IF($N$9,($N$9*'CVB Table 2019'!DH9)/100," ") ->  | DI9: =IF($N$9,($N$9*'CVB Table 2019'!DI9)/100," ") ->  | DJ9: =IF($N$9,($N$9*'CVB Table 2019'!DJ9)/100," ") ->  | DK9: =IF($N$9,($N$9*'CVB Table 2019'!DK9)/100," ") ->  | DL9: =IF($N$9,($N$9*'CVB Table 2019'!DL9)/100," ") ->  | DM9: =IF(N9,((N9*'CVB Table 2019'!DM9)/100)*('CVB Table 2019'!O9)/1000," ") ->  | DN9: =IF($N$9,($N$9*'CVB Table 2019'!DN9)/100," ") ->  | DO9: =IF(N9,((N9*'CVB Table 2019'!DO9)/100)*('CVB Table 2019'!O9)/1000," ") ->  | DP9: =IF($N$9,($N$9*'CVB Table 2019'!DP9)/100," ") ->  | DQ9: =IF($N$9,($N$9*'CVB Table 2019'!DQ9)/100," ") ->  | DR9: =IF($N$9,($N$9*'CVB Table 2019'!DR9)/100," ") ->  | DS9: =IF($N$9,($N$9*'CVB Table 2019'!DS9)/100," ") ->  | DT9: =IF(N9,((N9*'CVB Table 2019'!DT9)/100)*('CVB Table 2019'!O9)/1000," ") ->  | DU9: =IF($N$9,($N$9*'CVB Table 2019'!DU9)/100," ") ->  | DV9: =IF(N9,((N9*'CVB Table 2019'!DV9)/100)*('CVB Table 2019'!O9)/1000," ") ->  | DW9: =IF($N$9,(($N$9*'CVB Table 2019'!DW9)/100)*('CVB Table 2019'!$O$9)/1000," ") ->  | DX9: =IF($N$9,(($N$9*'CVB Table 2019'!DX9)/100)*('CVB Table 2019'!$O$9)/1000," ") ->  | DY9: =IF($N$9,($N$9*'CVB Table 2019'!DY9)/100," ") ->  | DZ9: =IF($N$9,($N$9*'CVB Table 2019'!DZ9)/100," ") ->  | EA9: =IF($N$9,($N$9*'CVB Table 2019'!EA9)/100," ") ->  | EB9: =IF($N$9,($N$9*'CVB Table 2019'!EB9)/100," ") ->  | EC9: =IF($N$9,($N$9*'CVB Table 2019'!EC9)/100," ") ->  | ED9: =IF($N$9,($N$9*'CVB Table 2019'!ED9)/100," ") ->  | EE9: =IF($N$9,($N$9*'CVB Table 2019'!EE9)/100," ") ->  | EF9: =IF($N$9,($N$9*'CVB Table 2019'!EF9)/100," ") ->  | EG9: =IF($N$9,($N$9*'CVB Table 2019'!EG9)/100," ") ->  | EH9: =IF($N$9,($N$9*'CVB Table 2019'!EH9)/100," ") ->  | EI9: =IF($N$9,($N$9*'CVB Table 2019'!EI9)/100," ") ->  | EJ9: =IF($N$9,($N$9*'CVB Table 2019'!EJ9)/100," ") ->  | EK9: =IF($N$9,($N$9*'CVB Table 2019'!EK9)/100," ") ->  | EL9: =IF($N$9,($N$9*'CVB Table 2019'!EL9)/100," ") ->  | EM9: =IF($N$9,($N$9*'CVB Table 2019'!EM9)/100," ") ->  | EN9: =IF($N$9,($N$9*'CVB Table 2019'!EN9)/100," ") ->  | EO9: =IF($N$9,($N$9*'CVB Table 2019'!EO9)/100," ") ->  | EP9: =IF($N$9,($N$9*'CVB Table 2019'!EP9)/100," ") ->  | EQ9: =IF($N$9,($N$9*'CVB Table 2019'!EQ9)/100," ") ->  | ER9: =IF($N$9,($N$9*'CVB Table 2019'!ER9)/100," ") ->  | ES9: =IF($N$9,($N$9*'CVB Table 2019'!ES9)/100," ") ->  | ET9: =IF($N$9,($N$9*'CVB Table 2019'!ET9)/100," ") ->  | EU9: =IF($N$9,($N$9*'CVB Table 2019'!EU9)/100," ") ->  | EV9: =IF($N$9,($N$9*'CVB Table 2019'!EV9)/100," ") ->  | EW9: =IF($N$9,($N$9*'CVB Table 2019'!EW9)/100," ") ->  | EX9: =IF($N$9,($N$9*'CVB Table 2019'!EX9)/100," ") ->  | EY9: =IF($N$9,($N$9*'CVB Table 2019'!EY9)/100," ") ->  | EZ9: =IF($N$9,($N$9*'CVB Table 2019'!EZ9)/100," ") ->  | FA9: =IF($N$9,($N$9*'CVB Table 2019'!FA9)/100," ") ->  | FB9: =IF($N$9,($N$9*'CVB Table 2019'!FB9)/100," ") ->  | FC9: =IF($N$9,($N$9*'CVB Table 2019'!FC9)/100," ") ->  | FD9: =IF($N$9,($N$9*'CVB Table 2019'!FD9)/100," ") ->  | FE9: =IF($N$9,($N$9*'CVB Table 2019'!FE9)/100," ") ->  | FF9: =IF($N$9,($N$9*'CVB Table 2019'!FF9)/100," ") ->  | FG9: =IF($N$9,($N$9*'CVB Table 2019'!FG9)/100," ") ->  | FH9: =IF($N$9,($N$9*'CVB Table 2019'!FH9)/100," ") ->  | FI9: =IF($N$9,($N$9*'CVB Table 2019'!FI9)/100," ") ->  | FJ9: =IF($N$9,($N$9*'CVB Table 2019'!FJ9)/100," ") ->  | FK9: =IF($N$9,(($N$9*'CVB Table 2019'!FK9)/100)*('CVB Table 2019'!$O$9)/1000," ") ->  | FL9: =IF($N$9,(($N$9*'CVB Table 2019'!FL9)/100)*('CVB Table 2019'!$O$9)/1000," ") ->  | FM9: =IF($N$9,(($N$9*'CVB Table 2019'!FM9)/100)*('CVB Table 2019'!$O$9)/1000," ") ->  | FN9: =IF($N$9,(($N$9*'CVB Table 2019'!FN9)/100)*('CVB Table 2019'!$O$9)/1000," ") ->  | FO9: =IF($N$9,(($N$9*'CVB Table 2019'!FO9)/100)*('CVB Table 2019'!$O$9)/1000," ") ->  | FP9: =IF($N$9,(($N$9*'CVB Table 2019'!FP9)/100)*('CVB Table 2019'!$O$9)/1000," ") ->  | FQ9: =IF($N$9,(($N$9*'CVB Table 2019'!FQ9)/100)*('CVB Table 2019'!$O$9)/1000," ") ->  | FR9: =IF($N$9,(($N$9*'CVB Table 2019'!FR9)/100)*('CVB Table 2019'!$O$9)/1000," ") ->  | FS9: =IF($N$9,(($N$9*'CVB Table 2019'!FS9)/100)*('CVB Table 2019'!$O$9)/1000," ") ->  | FT9: =IF($N$9,(($N$9*'CVB Table 2019'!FT9)/100)*('CVB Table 2019'!$O$9)/1000," ") ->  | FU9: =IF($N$9,(($N$9*'CVB Table 2019'!FU9)/100)*('CVB Table 2019'!$O$9)/1000," ") ->  | FV9: =IF($N$9,(($N$9*'CVB Table 2019'!FV9)/100)*('CVB Table 2019'!$O$9)/1000," ") ->  | FW9: =IF($N$9,(($N$9*'CVB Table 2019'!FW9)/100)*('CVB Table 2019'!$O$9)/1000," ") ->  | FX9: =IF($N$9,(($N$9*'CVB Table 2019'!FX9)/100)*('CVB Table 2019'!$O$9)/1000," ") ->  | FY9: =IF($N$9,(($N$9*'CVB Table 2019'!FY9)/100)*('CVB Table 2019'!$O$9)/1000," ") ->  | FZ9: =IF($N$9,(($N$9*'CVB Table 2019'!FZ9)/100)*('CVB Table 2019'!$O$9)/1000," ") ->  | GA9: =IF($N$9,(($N$9*'CVB Table 2019'!GA9)/100)*('CVB Table 2019'!$O$9)/1000," ") ->  | GB9: =IF($N$9,(($N$9*'CVB Table 2019'!GB9)/100)*('CVB Table 2019'!$O$9)/1000," ") ->  | GC9: =IF($N$9,(($N$9*'CVB Table 2019'!GC9)/100)*('CVB Table 2019'!$O$9)/1000," ") ->  | GD9: =IF($N$9,(($N$9*'CVB Table 2019'!GD9)/100)*('CVB Table 2019'!$O$9)/1000," ") ->  | GE9: =IF($N$9,(($N$9*'CVB Table 2019'!GE9)/100)*('CVB Table 2019'!$O$9)/1000," ") ->  | GF9: =IF($N$9,(($N$9*'CVB Table 2019'!GF9)/100)*('CVB Table 2019'!$O$9)/1000," ") ->  | GG9: =IF($N$9,(($N$9*'CVB Table 2019'!GG9)/100)*('CVB Table 2019'!$O$9)/1000," ") ->  | GH9: =IF($N$9,(($N$9*'CVB Table 2019'!GH9)/100)*('CVB Table 2019'!$O$9)/1000," ") ->  | GI9: =IF($N$9,(($N$9*'CVB Table 2019'!GI9)/100)*('CVB Table 2019'!$O$9)/1000," ") ->  | GJ9: =IF($N$9,(($N$9*'CVB Table 2019'!GJ9)/100)*('CVB Table 2019'!$O$9)/1000," ") ->  | GK9: =IF($N$9,(($N$9*'CVB Table 2019'!GK9)/100)*('CVB Table 2019'!$O$9)/1000," ") ->  | GL9: =IF($N$9,(($N$9*'CVB Table 2019'!GL9)/100)*('CVB Table 2019'!$O$9)/1000," ") ->  | GM9: =IF($N$9,(($N$9*'CVB Table 2019'!GM9)/100)*('CVB Table 2019'!$O$9)/1000," ") ->  | GN9: =IF($N$9,(($N$9*'CVB Table 2019'!GN9)/100)*('CVB Table 2019'!$O$9)/1000," ") ->  | GO9: =IF($N$9,(($N$9*'CVB Table 2019'!GO9)/100)*('CVB Table 2019'!$O$9)/1000," ") ->  | GP9: =IF($N$9,(($N$9*'CVB Table 2019'!GP9)/100)*('CVB Table 2019'!$O$9)/1000," ") ->  | GQ9: =IF($N$9,(($N$9*'CVB Table 2019'!GQ9)/100)*('CVB Table 2019'!$O$9)/1000," ") ->  | GR9: =IF($N$9,(($N$9*'CVB Table 2019'!GR9)/100)*('CVB Table 2019'!$O$9)/1000," ") ->  | GS9: =IF($N$9,(($N$9*'CVB Table 2019'!GS9)/100)*('CVB Table 2019'!$O$9)/1000," ") ->  | GT9: =IF($N$9,(($N$9*'CVB Table 2019'!GT9)/100)*('CVB Table 2019'!$O$9)/1000," ") ->  | GU9: =IF($N$9,(($N$9*'CVB Table 2019'!GU9)/100)*('CVB Table 2019'!$O$9)/1000," ") ->  | GV9: =IF($N$9,(($N$9*'CVB Table 2019'!GV9)/100)*('CVB Table 2019'!$O$9)/1000," ") ->  | GW9: =IF($N$9,(($N$9*'CVB Table 2019'!GW9)/100)*('CVB Table 2019'!$O$9)/1000," ") ->  | GX9: =IF($N$9,(($N$9*'CVB Table 2019'!GX9)/100)*('CVB Table 2019'!$O$9)/1000," ") ->  | GY9: =IF($N$9,($N$9*'CVB Table 2019'!GY9)/100," ") ->  | GZ9: =IF($N$9,($N$9*'CVB Table 2019'!GZ9)/100," ") ->  | HA9: =IF($N$9,($N$9*'CVB Table 2019'!HA9)/100," ") ->  | HB9: =IF($N$9,($N$9*'CVB Table 2019'!HB9)/100," ") ->  | HC9: =IF($N$9,($N$9*'CVB Table 2019'!HC9)/100," ") ->  | HD9: =IF($N$9,($N$9*'CVB Table 2019'!HD9)/100," ") ->  | HE9: =IF($N$9,($N$9*'CVB Table 2019'!HE9)/100," ") ->  | HF9: =IF($N$9,($N$9*'CVB Table 2019'!HF9)/100," ") ->  | HG9: =IF($N$9,($N$9*'CVB Table 2019'!HG9)/100," ") ->  | HH9: =IF($N$9,($N$9*'CVB Table 2019'!HH9)/100," ") ->  | HI9: =IF($N$9,($N$9*'CVB Table 2019'!HI9)/100," ") ->  | HJ9: =IF($N$9,($N$9*'CVB Table 2019'!HJ9)/100," ") ->  | HK9: =IF($N$9,($N$9*'CVB Table 2019'!HK9)/100," ") ->  | HL9: =IF($N$9,($N$9*'CVB Table 2019'!HL9)/100," ") ->  | HM9: =IF($N$9,($N$9*'CVB Table 2019'!HM9)/100," ") ->  | HN9: =IF($N$9,($N$9*'CVB Table 2019'!HN9)/100," ") ->  | HO9: =IF($N$9,($N$9*'CVB Table 2019'!HO9)/100," ") ->  | HP9: =IF($N$9,($N$9*'CVB Table 2019'!HP9)/100," ") ->  | HQ9: =IF($N$9,($N$9*'CVB Table 2019'!HQ9)/100," ") ->  | HR9: =IF($N$9,(($N$9*'CVB Table 2019'!HR9)/100)*('CVB Table 2019'!$O$9)/1000," ") ->  | HS9: =IF($N$9,(($N$9*'CVB Table 2019'!HS9)/100)*('CVB Table 2019'!$O$9)/1000," ") ->  | HT9: =IF($N$9,(($N$9*'CVB Table 2019'!HT9)/100)*('CVB Table 2019'!$O$9)/1000," ") ->  | HU9: =IF($N$9,(($N$9*'CVB Table 2019'!HU9)/100)*('CVB Table 2019'!$O$9)/1000," ") ->  | HV9: =IF($N$9,(($N$9*'CVB Table 2019'!HV9)/100)*('CVB Table 2019'!$O$9)/1000," ") ->  | HW9: =IF($N$9,(($N$9*'CVB Table 2019'!HW9)/100)*('CVB Table 2019'!$O$9)/1000," ") ->  | HX9: =IF($N$9,(($N$9*'CVB Table 2019'!HX9)/100)*('CVB Table 2019'!$O$9)/1000," ") ->  | HY9: =IF($N$9,(($N$9*'CVB Table 2019'!HY9)/100)*('CVB Table 2019'!$O$9)/1000," ") ->  | HZ9: =IF($N$9,(($N$9*'CVB Table 2019'!HZ9)/100)*('CVB Table 2019'!$O$9)/1000," ") ->  | IA9: =IF($N$9,(($N$9*'CVB Table 2019'!IA9)/100)*('CVB Table 2019'!$O$9)/1000," ") ->  | IB9: =IF($N$9,(($N$9*'CVB Table 2019'!IB9)/100)*('CVB Table 2019'!$O$9)/1000," ") ->  | IC9: =IF($N$9,(($N$9*'CVB Table 2019'!IC9)/100)*('CVB Table 2019'!$O$9)/1000," ") ->  | ID9: =IF($N$9,(($N$9*'CVB Table 2019'!ID9)/100)*('CVB Table 2019'!$O$9)/1000," ") ->  | IE9: =IF($N$9,(($N$9*'CVB Table 2019'!IE9)/100)*('CVB Table 2019'!$O$9)/1000," ") ->  | IF9: =IF($N$9,(($N$9*'CVB Table 2019'!IF9)/100)*('CVB Table 2019'!$O$9)/1000," ") ->  | IG9: =IF($N$9,(($N$9*'CVB Table 2019'!IG9)/100)*('CVB Table 2019'!$O$9)/1000," ") ->  | IH9: =IF($N$9,(($N$9*'CVB Table 2019'!IH9)/100)*('CVB Table 2019'!$O$9)/1000," ") ->  | II9: =IF($N$9,(($N$9*'CVB Table 2019'!II9)/100)*('CVB Table 2019'!$O$9)/1000," ") ->  | IJ9: =IF($N$9,(($N$9*'CVB Table 2019'!IJ9)/100)*('CVB Table 2019'!$O$9)/1000," ") ->  | IK9: =IF($N$9,($N$9*'CVB Table 2019'!IK9)/100," ") ->  | IL9: =IF($N$9,($N$9*'CVB Table 2019'!IL9)/100," ") ->  | IM9: =IF($N$9,($N$9*'CVB Table 2019'!IM9)/100," ") ->  | IN9: =IF($N$9,($N$9*'CVB Table 2019'!IN9)/100," ") ->  | IO9: =IF($N$9,($N$9*'CVB Table 2019'!IO9)/100," ") ->  | IP9: =IF($N$9,($N$9*'CVB Table 2019'!IP9)/100," ") ->  | IQ9: =IF($N$9,($N$9*'CVB Table 2019'!IQ9)/100," ") ->  | IR9: =IF($N$9,($N$9*'CVB Table 2019'!IR9)/100," ") ->  | IS9: =IF($N$9,($N$9*'CVB Table 2019'!IS9)/100," ") ->  | IT9: =IF($N$9,($N$9*'CVB Table 2019'!IT9)/100," ") ->  | IU9: =IF($N$9,($N$9*'CVB Table 2019'!IU9)/100," ") ->  | IV9: =IF($N$9,($N$9*'CVB Table 2019'!IV9)/100," ") ->  | IW9: =IF($N$9,($N$9*'CVB Table 2019'!IW9)/100," ") ->  | IX9: =IF($N$9,($N$9*'CVB Table 2019'!IX9)/100," ") ->  | IY9: =IF($N$9,($N$9*'CVB Table 2019'!IY9)/100," ") ->  | IZ9: =IF($N$9,($N$9*'CVB Table 2019'!IZ9)/100," ") ->  | JA9: =IF($N$9,($N$9*'CVB Table 2019'!JA9)/100," ") ->  | JB9: =IF($N$9,($N$9*'CVB Table 2019'!JB9)/100," ") ->  | JC9: =IF($N$9,($N$9*'CVB Table 2019'!JC9)/100," ") ->  | JD9: =IF($N$9,($N$9*'CVB Table 2019'!JD9)/100," ") ->  | JE9: =IF($N$9,($N$9*'CVB Table 2019'!JE9)/100," ") ->  | JF9: =IF($N$9,($N$9*'CVB Table 2019'!JF9)/100," ") ->  | JG9: =IF($N$9,($N$9*'CVB Table 2019'!JG9)/100," ") ->  | JH9: =IF($N$9,($N$9*'CVB Table 2019'!JH9)/100," ") ->  | JI9: =IF($N$9,($N$9*'CVB Table 2019'!JI9)/100," ") ->  | JJ9: =IF($N$9,($N$9*'CVB Table 2019'!JJ9)/100," ") ->  | JK9: =IF($N$9,($N$9*'CVB Table 2019'!JK9)/100," ") ->  | JL9: =IF($N$9,($N$9*'CVB Table 2019'!JL9)/100," ") ->  | JM9: =IF($N$9,($N$9*'CVB Table 2019'!JM9)/100," ") ->  | JN9: =IF($N$9,($N$9*'CVB Table 2019'!JN9)/100," ") ->  | JO9: =IF($N$9,($N$9*'CVB Table 2019'!JO9)/100," ") ->  | JP9: =IF($N$9,($N$9*'CVB Table 2019'!JP9)/100," ") ->  | JQ9: =IF($N$9,($N$9*'CVB Table 2019'!JQ9)/100," ") ->  | JR9: =IF($N$9,($N$9*'CVB Table 2019'!JR9)/100," ") ->  | JS9: =IF($N$9,($N$9*'CVB Table 2019'!JS9)/100," ") ->  | JT9: =IF($N$9,($N$9*'CVB Table 2019'!JT9)/100," ") ->  | JU9: =IF($N$9,(($N$9*'CVB Table 2019'!JU9)/100)*('CVB Table 2019'!$O$9)/1000," ") ->  | JV9: =IF($N$9,(($N$9*'CVB Table 2019'!JV9)/100)*('CVB Table 2019'!$O$9)/1000," ") ->  | JW9: =IF($N$9,(($N$9*'CVB Table 2019'!JW9)/100)*('CVB Table 2019'!$O$9)/1000," ") ->  | JX9: =IF($N$9,(($N$9*'CVB Table 2019'!JX9)/100)*('CVB Table 2019'!$O$9)/1000," ") ->  | JY9: =IF($N$9,(($N$9*'CVB Table 2019'!JY9)/100)*('CVB Table 2019'!$O$9)/1000," ") ->  | JZ9: =IF($N$9,(($N$9*'CVB Table 2019'!JZ9)/100)*('CVB Table 2019'!$O$9)/1000," ") ->  | KA9: =IF($N$9,(($N$9*'CVB Table 2019'!KA9)/100)*('CVB Table 2019'!$O$9)/1000," ") ->  | KB9: =IF($N$9,(($N$9*'CVB Table 2019'!KB9)/100)*('CVB Table 2019'!$O$9)/1000," ") ->  | KC9: =IF($N$9,(($N$9*'CVB Table 2019'!KC9)/100)*('CVB Table 2019'!$O$9)/1000," ") ->  | KD9: =IF($N$9,(($N$9*'CVB Table 2019'!KD9)/100)*('CVB Table 2019'!$O$9)/1000," ") ->  | KE9: =IF($N$9,(($N$9*'CVB Table 2019'!KE9)/100)*('CVB Table 2019'!$O$9)/1000," ") ->  | KF9: =IF($N$9,(($N$9*'CVB Table 2019'!KF9)/100)*('CVB Table 2019'!$O$9)/1000," ") ->  | KG9: =IF($N$9,(($N$9*'CVB Table 2019'!KG9)/100)*('CVB Table 2019'!$O$9)/1000," ") ->  | KH9: =IF($N$9,(($N$9*'CVB Table 2019'!KH9)/100)*('CVB Table 2019'!$O$9)/1000," ") ->  | KI9: =IF($N$9,(($N$9*'CVB Table 2019'!KI9)/100)*('CVB Table 2019'!$O$9)/1000," ") ->  | KJ9: =IF($N$9,(($N$9*'CVB Table 2019'!KJ9)/100)*('CVB Table 2019'!$O$9)/1000," ") ->  | KK9: =IF($N$9,(($N$9*'CVB Table 2019'!KK9)/100)*('CVB Table 2019'!$O$9)/1000," ") ->  | KL9: =IF($N$9,(($N$9*'CVB Table 2019'!KL9)/100)*('CVB Table 2019'!$O$9)/1000," ") ->  | KM9: =IF($N$9,(($N$9*'CVB Table 2019'!KM9)/100)*('CVB Table 2019'!$O$9)/1000," ") ->  | KN9: =IF($N$9,(($N$9*'CVB Table 2019'!KN9)/100)*('CVB Table 2019'!$O$9)/1000," ") ->  | KO9: =IF($N$9,(($N$9*'CVB Table 2019'!KO9)/100)*('CVB Table 2019'!$O$9)/1000," ") ->  | KP9: =IF($N$9,(($N$9*'CVB Table 2019'!KP9)/100)*('CVB Table 2019'!$O$9)/1000," ") ->  | KQ9: =IF($N$9,(($N$9*'CVB Table 2019'!KQ9)/100)*('CVB Table 2019'!$O$9)/1000," ") ->  | KR9: =IF($N$9,(($N$9*'CVB Table 2019'!KR9)/100)*('CVB Table 2019'!$O$9)/1000," ") ->  | KS9: =IF($N$9,(($N$9*'CVB Table 2019'!KS9)/100)*('CVB Table 2019'!$O$9)/1000," ") ->  | KT9: =IF($N$9,(($N$9*'CVB Table 2019'!KT9)/100)*('CVB Table 2019'!$O$9)/1000," ") ->  | KU9: =IF($N$9,(($N$9*'CVB Table 2019'!KU9)/100)*('CVB Table 2019'!$O$9)/1000," ") ->  | KV9: =IF($N$9,(($N$9*'CVB Table 2019'!KV9)/100)*('CVB Table 2019'!$O$9)/1000," ") ->  | KW9: =IF($N$9,(($N$9*'CVB Table 2019'!KW9)/100)*('CVB Table 2019'!$O$9)/1000," ") ->  | KX9: =IF($N$9,(($N$9*'CVB Table 2019'!KX9)/100)*('CVB Table 2019'!$O$9)/1000," ") ->  | KY9: =IF($N$9,(($N$9*'CVB Table 2019'!KY9)/100)*('CVB Table 2019'!$O$9)/1000," ") ->  | KZ9: =IF($N$9,(($N$9*'CVB Table 2019'!KZ9)/100)*('CVB Table 2019'!$O$9)/1000," ") ->  | LA9: =IF($N$9,(($N$9*'CVB Table 2019'!LA9)/100)*('CVB Table 2019'!$O$9)/1000," ") ->  | LB9: =IF($N$9,(($N$9*'CVB Table 2019'!LB9)/100)*('CVB Table 2019'!$O$9)/1000," ") ->  | LC9: =IF($N$9,(($N$9*'CVB Table 2019'!LC9)/100)*('CVB Table 2019'!$O$9)/1000," ") ->  | LD9: =IF($N$9,(($N$9*'CVB Table 2019'!LD9)/100)*('CVB Table 2019'!$O$9)/1000," ") ->  | LE9: =IF($N$9,(($N$9*'CVB Table 2019'!LE9)/100)*('CVB Table 2019'!$O$9)/1000," ") ->  | LF9: =IF($N$9,(($N$9*'CVB Table 2019'!LF9)/100)*('CVB Table 2019'!$O$9)/1000," ") ->  | LG9: =IF($N$9,(($N$9*'CVB Table 2019'!LG9)/100)*('CVB Table 2019'!$O$9)/1000," ") ->  | LH9: =IF($N$9,(($N$9*'CVB Table 2019'!LH9)/100)*('CVB Table 2019'!$O$9)/1000," ") ->  | LI9: =IF($N$9,(($N$9*'CVB Table 2019'!LI9)/100)*('CVB Table 2019'!$O$9)/1000," ") ->  | LJ9: =IF($N$9,(($N$9*'CVB Table 2019'!LJ9)/100)*('CVB Table 2019'!$O$9)/1000," ") ->  | LK9: =IF($N$9,(($N$9*'CVB Table 2019'!LK9)/100)*('CVB Table 2019'!$O$9)/1000," ") ->  | LL9: =IF($N$9,(($N$9*'CVB Table 2019'!LL9)/100)*('CVB Table 2019'!$O$9)/1000," ") ->  | LM9: =IF($N$9,(($N$9*'CVB Table 2019'!LM9)/100)*('CVB Table 2019'!$O$9)/1000," ") ->  | LN9: =IF($N$9,(($N$9*'CVB Table 2019'!LN9)/100)*('CVB Table 2019'!$O$9)/1000," ") ->  | LO9: =IF($N$9,(($N$9*'CVB Table 2019'!LO9)/100)*('CVB Table 2019'!$O$9)/1000," ") ->  | LP9: =IF($N$9,(($N$9*'CVB Table 2019'!LP9)/100)*('CVB Table 2019'!$O$9)/1000," ") ->  | LQ9: =IF($N$9,(($N$9*'CVB Table 2019'!LQ9)/100)*('CVB Table 2019'!$O$9)/1000," ") ->  | LR9: =IF($N$9,(($N$9*'CVB Table 2019'!LR9)/100)*('CVB Table 2019'!$O$9)/1000," ") ->  | LS9: =IF($N$9,(($N$9*'CVB Table 2019'!LS9)/100)*('CVB Table 2019'!$O$9)/1000," ") ->  | LT9: =IF($N$9,($N$9*'CVB Table 2019'!LT9)/100," ") ->  | LU9: =IF($N$9,($N$9*'CVB Table 2019'!LU9)/100," ") ->  | LV9: =IF($N$9,($N$9*'CVB Table 2019'!LV9)/100," ") ->  | LW9: =IF($N$9,($N$9*'CVB Table 2019'!LW9)/100," ") ->  | LX9: =IF($N$9,($N$9*'CVB Table 2019'!LX9)/100," ") ->  | LY9: =IF($N$9,($N$9*'CVB Table 2019'!LY9)/100," ") ->  | LZ9: =IF($N$9,($N$9*'CVB Table 2019'!LZ9)/100," ") ->  | MA9: =IF($N$9,($N$9*'CVB Table 2019'!MA9)/100," ") ->  | MB9: =IF($N$9,($N$9*'CVB Table 2019'!MB9)/100," ") ->  | MC9: =IF($N$9,($N$9*'CVB Table 2019'!MC9)/100," ") ->  | MD9: =IF($N$9,($N$9*'CVB Table 2019'!MD9)/100," ") ->  | ME9: =IF($N$9,($N$9*'CVB Table 2019'!ME9)/100," ") ->  | MF9: =IF($N$9,($N$9*'CVB Table 2019'!MF9)/100," ") ->  | MG9: =IF($N$9,($N$9*'CVB Table 2019'!MG9)/100," ") ->  | MH9: =IF($N$9,($N$9*'CVB Table 2019'!MH9)/100," ") ->  | MI9: =IF($N$9,($N$9*'CVB Table 2019'!MI9)/100," ") ->  | MJ9: =IF($N$9,($N$9*'CVB Table 2019'!MJ9)/100," ") ->  | MK9: =IF($N$9,(($N$9*'CVB Table 2019'!MK9)/100)*('CVB Table 2019'!$O$9)/1000," ") ->  | ML9: =IF($N$9,($N$9*'CVB Table 2019'!ML9)/100," ") ->  | MN9: =IF(N9,($MM$4*('CVB Table 2019'!AI9*0.15)*(N9/100)*(('CVB Table 2019'!O9)/1000)),"") ->  | MO9: =IF(N9,($MM$4*((('CVB Table 2019'!AH9)-('CVB Table 2019'!AI9))*0.8)*(N9/100)*(('CVB Table 2019'!O9)/1000)),"") ->  | MQ9: =IF(N9,($MM$4*('CVB Table 2019'!AI9*0.4)*(N9/100)*(('CVB Table 2019'!O9)/1000)),"") ->  | MR9: =IF(N9,($MM$4*((('CVB Table 2019'!AH9)-('CVB Table 2019'!AI9))*0.8)*(N9/100)*(('CVB Table 2019'!O9)/1000)),"") ->  | MT9: =IF(N9,($MM$4*('CVB Table 2019'!AI9*0.25)*(N9/100)*(('CVB Table 2019'!O9)/1000)),"") ->  | MU9: =IF(N9,($MM$4*((('CVB Table 2019'!AH9)-('CVB Table 2019'!AI9))*0.8)*(N9/100)*(('CVB Table 2019'!O9)/1000)),"") ->  | MX9: =IF(N9,((N9*'CVB Table 2019'!MX9)/100)*('CVB Table 2019'!$O$4)/1000," ") -> 
A10: 5003 | B10: ruwvoeders | C10: Klaver rode, vers | F10: Clover red, fresh | I10: X | O10: =IF($N$10,($N$10*'CVB Table 2019'!O10)/100," ") ->  | P10: =IF($N$10,(($N$10*'CVB Table 2019'!P10)/100)*('CVB Table 2019'!$O$10)/1000," ") ->  | Q10: =IF($N$10,(($N$10*'CVB Table 2019'!Q10)/100)*('CVB Table 2019'!$O$10)/1000," ") ->  | R10: =IF($N$10,(($N$10*'CVB Table 2019'!R10)/100)*('CVB Table 2019'!$O$10)/1000," ") ->  | S10: =IF($N$10,(($N$10*'CVB Table 2019'!S10)/100)*('CVB Table 2019'!$O$10)/1000," ") ->  | T10: =IF($N$10,(($N$10*'CVB Table 2019'!T10)/100)*('CVB Table 2019'!$O$10)/1000," ") ->  | U10: =IF($N$10,(($N$10*'CVB Table 2019'!U10)/100)*('CVB Table 2019'!$O$10)/1000," ") ->  | V10: =IF($N$10,(($N$10*'CVB Table 2019'!V10)/100)*('CVB Table 2019'!$O$10)/1000," ") ->  | W10: =IF($N$10,(($N$10*'CVB Table 2019'!W10)/100)*('CVB Table 2019'!$O$10)/1000," ") ->  | X10: =IF($N$10,(($N$10*'CVB Table 2019'!X10)/100)*('CVB Table 2019'!$O$10)/1000," ") ->  | Y10: =IF($N$10,(($N$10*'CVB Table 2019'!Y10)/100)*('CVB Table 2019'!$O$10)/1000," ") ->  | Z10: =IF($N$10,(($N$10*'CVB Table 2019'!Z10)/100)*('CVB Table 2019'!$O$10)/1000," ") ->  | AA10: =IF($N$10,(($N$10*'CVB Table 2019'!AA10)/100)*('CVB Table 2019'!$O$10)/1000," ") ->  | AB10: =IF($N$10,(($N$10*'CVB Table 2019'!AB10)/100)*('CVB Table 2019'!$O$10)/1000," ") ->  | AC10: =IF($N$10,(($N$10*'CVB Table 2019'!AC10)/100)*('CVB Table 2019'!$O$10)/1000," ") ->  | AD10: =IF($N$10,(($N$10*'CVB Table 2019'!AD10)/100)*('CVB Table 2019'!$O$10)/1000," ") ->  | AE10: =IF($N$10,(($N$10*'CVB Table 2019'!AE10)/100)*('CVB Table 2019'!$O$10)/1000," ") ->  | AF10: =IF($N$10,(($N$10*'CVB Table 2019'!AF10)/100)*('CVB Table 2019'!$O$10)/1000," ") ->  | AG10: =IF($N$10,(($N$10*'CVB Table 2019'!AG10)/100)*('CVB Table 2019'!$O$10)/1000," ") ->  | AH10: =IF($N$10,(($N$10*'CVB Table 2019'!AH10)/100)*('CVB Table 2019'!$O$10)/1000," ") ->  | AI10: =IF($N$10,(($N$10*'CVB Table 2019'!AI10)/100)*('CVB Table 2019'!$O$10)/1000," ") ->  | AJ10: =IF($N$10,(($N$10*'CVB Table 2019'!AJ10)/100)*('CVB Table 2019'!$O$10)/1000," ") ->  | AK10: =IF($N$10,(($N$10*'CVB Table 2019'!AK10)/100)*('CVB Table 2019'!$O$10)/1000," ") ->  | AL10: =IF($N$10,(($N$10*'CVB Table 2019'!AL10)/100)*('CVB Table 2019'!$O$10)/1000," ") ->  | AM10: =IF($N$10,(($N$10*'CVB Table 2019'!AM10)/100)*('CVB Table 2019'!$O$10)/1000," ") ->  | AN10: =IF($N$10,(($N$10*'CVB Table 2019'!AN10)/100)*('CVB Table 2019'!$O$10)/1000," ") ->  | AO10: =IF($N$10,(($N$10*'CVB Table 2019'!AO10)/100)*('CVB Table 2019'!$O$10)/1000," ") ->  | AP10: =IF($N$10,(($N$10*'CVB Table 2019'!AP10)/100)*('CVB Table 2019'!$O$10)/1000," ") ->  | AQ10: =IF($N$10,(($N$10*'CVB Table 2019'!AQ10)/100)*('CVB Table 2019'!$O$10)/1000," ") ->  | AR10: =IF($N$10,(($N$10*'CVB Table 2019'!AR10)/100)*('CVB Table 2019'!$O$10)/1000," ") ->  | AS10: =IF($N$10,(($N$10*'CVB Table 2019'!AS10)/100)*('CVB Table 2019'!$O$10)/1000," ") ->  | AT10: =IF($N$10,(($N$10*'CVB Table 2019'!AT10)/100)*('CVB Table 2019'!$O$10)/1000," ") ->  | AU10: =IF($N$10,(($N$10*'CVB Table 2019'!AU10)/100)*('CVB Table 2019'!$O$10)/1000," ") ->  | AV10: =IF($N$10,(($N$10*'CVB Table 2019'!AV10)/100)*('CVB Table 2019'!$O$10)/1000," ") ->  | AW10: =IF($N$10,(($N$10*'CVB Table 2019'!AW10)/100)*('CVB Table 2019'!$O$10)/1000," ") ->  | AX10: =IF($N$10,(($N$10*'CVB Table 2019'!AX10)/100)*('CVB Table 2019'!$O$10)/1000," ") ->  | AY10: =IF($N$10,(($N$10*'CVB Table 2019'!AY10)/100)*('CVB Table 2019'!$O$10)/1000," ") ->  | AZ10: =IF($N$10,(($N$10*'CVB Table 2019'!AZ10)/100)*('CVB Table 2019'!$O$10)/1000," ") ->  | BA10: =IF($N$10,(($N$10*'CVB Table 2019'!BA10)/100)*('CVB Table 2019'!$O$10)/1000," ") ->  | BB10: =IF($N$10,(($N$10*'CVB Table 2019'!BB10)/100)*('CVB Table 2019'!$O$10)/1000," ") ->  | BC10: =IF($N$10,(($N$10*'CVB Table 2019'!BC10)/100)*('CVB Table 2019'!$O$10)/1000," ") ->  | BD10: =IF($N$10,($N$10*'CVB Table 2019'!BD10)/100," ") ->  | BE10: =IF($N$10,($N$10*'CVB Table 2019'!BE10)/100," ") ->  | BF10: =IF($N$10,($N$10*'CVB Table 2019'!BF10)/100," ") ->  | BG10: =IF($N$10,($N$10*'CVB Table 2019'!BG10)/100," ") ->  | BH10: =IF($N$10,($N$10*'CVB Table 2019'!BH10)/100," ") ->  | BI10: =IF($N$10,($N$10*'CVB Table 2019'!BI10)/100," ") ->  | BJ10: =IF($N$10,($N$10*'CVB Table 2019'!BJ10)/100," ") ->  | BK10: =IF($N$10,($N$10*'CVB Table 2019'!BK10)/100," ") ->  | BL10: =IF($N$10,($N$10*'CVB Table 2019'!BL10)/100," ") ->  | BM10: =IF($N$10,($N$10*'CVB Table 2019'!BM10)/100," ") ->  | BN10: =IF($N$10,($N$10*'CVB Table 2019'!BN10)/100," ") ->  | BO10: =IF($N$10,($N$10*'CVB Table 2019'!BO10)/100," ") ->  | BP10: =IF($N$10,($N$10*'CVB Table 2019'!BP10)/100," ") ->  | BQ10: =IF($N$10,($N$10*'CVB Table 2019'!BQ10)/100," ") ->  | BR10: =IF($N$10,($N$10*'CVB Table 2019'!BR10)/100," ") ->  | BS10: =IF($N$10,($N$10*'CVB Table 2019'!BS10)/100," ") ->  | BT10: =IF($N$10,($N$10*'CVB Table 2019'!BT10)/100," ") ->  | BU10: =IF($N$10,($N$10*'CVB Table 2019'!BU10)/100," ") ->  | BV10: =IF($N$10,($N$10*'CVB Table 2019'!BV10)/100," ") ->  | BW10: =IF($N$10,($N$10*'CVB Table 2019'!BW10)/100," ") ->  | BX10: =IF($N$10,($N$10*'CVB Table 2019'!BX10)/100," ") ->  | BY10: =IF($N$10,($N$10*'CVB Table 2019'!BY10)/100," ") ->  | BZ10: =IF($N$10,($N$10*'CVB Table 2019'!BZ10)/100," ") ->  | CA10: =IF($N$10,($N$10*'CVB Table 2019'!CA10)/100," ") ->  | CB10: =IF($N$10,($N$10*'CVB Table 2019'!CB10)/100," ") ->  | CC10: =IF($N$10,($N$10*'CVB Table 2019'!CC10)/100," ") ->  | CD10: =IF($N$10,($N$10*'CVB Table 2019'!CD10)/100," ") ->  | CE10: =IF($N$10,($N$10*'CVB Table 2019'!CE10)/100," ") ->  | CF10: =IF($N$10,($N$10*'CVB Table 2019'!CF10)/100," ") ->  | CG10: =IF($N$10,($N$10*'CVB Table 2019'!CG10)/100," ") ->  | CH10: =IF($N$10,($N$10*'CVB Table 2019'!CH10)/100," ") ->  | CI10: =IF($N$10,($N$10*'CVB Table 2019'!CI10)/100," ") ->  | CJ10: =IF($N$10,(($N$10*'CVB Table 2019'!CJ10)/100)*('CVB Table 2019'!$O$10)/1000," ") ->  | CK10: =IF($N$10,(($N$10*'CVB Table 2019'!CK10)/100)*('CVB Table 2019'!$O$10)/1000," ") ->  | CL10: =IF($N$10,(($N$10*'CVB Table 2019'!CL10)/100)*('CVB Table 2019'!$O$10)/1000," ") ->  | CM10: =IF($N$10,(($N$10*'CVB Table 2019'!CM10)/100)*('CVB Table 2019'!$O$10)/1000," ") ->  | CN10: =IF($N$10,(($N$10*'CVB Table 2019'!CN10)/100)*('CVB Table 2019'!$O$10)/1000," ") ->  | CO10: =IF($N$10,(($N$10*'CVB Table 2019'!CO10)/100)*('CVB Table 2019'!$O$10)/1000," ") ->  | CP10: =IF($N$10,($N$10*'CVB Table 2019'!CP10)/100," ") ->  | CQ10: =IF($N$10,($N$10*'CVB Table 2019'!CQ10)/100," ") ->  | CR10: =IF($N$10,($N$10*'CVB Table 2019'!CR10)/100," ") ->  | CS10: =IF($N$10,(($N$10*'CVB Table 2019'!CS10)/100)*('CVB Table 2019'!$O$10)/1000," ") ->  | CT10: =IF($N$10,(($N$10*'CVB Table 2019'!CT10)/100)*('CVB Table 2019'!$O$10)/1000," ") ->  | CU10: =IF($N$10,($N$10*'CVB Table 2019'!CU10)/100," ") ->  | CV10: =IF($N$10,(($N$10*'CVB Table 2019'!CV10)/100)*('CVB Table 2019'!$O$10)/1000," ") ->  | CW10: =IF($N$10,(($N$10*'CVB Table 2019'!CW10)/100)*('CVB Table 2019'!$O$10)/1000," ") ->  | CX10: =IF($N$10,(($N$10*'CVB Table 2019'!CX10)/100)*('CVB Table 2019'!$O$10)/1000," ") ->  | CY10: =IF($N$10,(($N$10*'CVB Table 2019'!CY10)/100)*('CVB Table 2019'!$O$10)/1000," ") ->  | CZ10: =IF($N$10,(($N$10*'CVB Table 2019'!CZ10)/100)*('CVB Table 2019'!$O$10)/1000," ") ->  | DA10: =IF($N$10,($N$10*'CVB Table 2019'!DA10)/100," ") ->  | DB10: =IF($N$10,($N$10*'CVB Table 2019'!DB10)/100," ") ->  | DC10: =IF($N$10,($N$10*'CVB Table 2019'!DC10)/100," ") ->  | DD10: =IF($N$10,($N$10*'CVB Table 2019'!DD10)/100," ") ->  | DE10: =IF(N10,((N10*'CVB Table 2019'!DE10)/100)*('CVB Table 2019'!O10)/1000," ") ->  | DF10: =IF($N$10,($N$10*'CVB Table 2019'!DF10)/100," ") ->  | DG10: =IF($N$10,($N$10*'CVB Table 2019'!DG10)/100," ") ->  | DH10: =IF($N$10,($N$10*'CVB Table 2019'!DH10)/100," ") ->  | DI10: =IF($N$10,($N$10*'CVB Table 2019'!DI10)/100," ") ->  | DJ10: =IF($N$10,($N$10*'CVB Table 2019'!DJ10)/100," ") ->  | DK10: =IF($N$10,($N$10*'CVB Table 2019'!DK10)/100," ") ->  | DL10: =IF($N$10,($N$10*'CVB Table 2019'!DL10)/100," ") ->  | DM10: =IF(N10,((N10*'CVB Table 2019'!DM10)/100)*('CVB Table 2019'!O10)/1000," ") ->  | DN10: =IF($N$10,($N$10*'CVB Table 2019'!DN10)/100," ") ->  | DO10: =IF(N10,((N10*'CVB Table 2019'!DO10)/100)*('CVB Table 2019'!O10)/1000," ") ->  | DP10: =IF($N$10,($N$10*'CVB Table 2019'!DP10)/100," ") ->  | DQ10: =IF($N$10,($N$10*'CVB Table 2019'!DQ10)/100," ") ->  | DR10: =IF($N$10,($N$10*'CVB Table 2019'!DR10)/100," ") ->  | DS10: =IF($N$10,($N$10*'CVB Table 2019'!DS10)/100," ") ->  | DT10: =IF(N10,((N10*'CVB Table 2019'!DT10)/100)*('CVB Table 2019'!O10)/1000," ") ->  | DU10: =IF($N$10,($N$10*'CVB Table 2019'!DU10)/100," ") ->  | DV10: =IF(N10,((N10*'CVB Table 2019'!DV10)/100)*('CVB Table 2019'!O10)/1000," ") ->  | DW10: =IF($N$10,(($N$10*'CVB Table 2019'!DW10)/100)*('CVB Table 2019'!$O$10)/1000," ") ->  | DX10: =IF($N$10,(($N$10*'CVB Table 2019'!DX10)/100)*('CVB Table 2019'!$O$10)/1000," ") ->  | DY10: =IF($N$10,($N$10*'CVB Table 2019'!DY10)/100," ") ->  | DZ10: =IF($N$10,($N$10*'CVB Table 2019'!DZ10)/100," ") ->  | EA10: =IF($N$10,($N$10*'CVB Table 2019'!EA10)/100," ") ->  | EB10: =IF($N$10,($N$10*'CVB Table 2019'!EB10)/100," ") ->  | EC10: =IF($N$10,($N$10*'CVB Table 2019'!EC10)/100," ") ->  | ED10: =IF($N$10,($N$10*'CVB Table 2019'!ED10)/100," ") ->  | EE10: =IF($N$10,($N$10*'CVB Table 2019'!EE10)/100," ") ->  | EF10: =IF($N$10,($N$10*'CVB Table 2019'!EF10)/100," ") ->  | EG10: =IF($N$10,($N$10*'CVB Table 2019'!EG10)/100," ") ->  | EH10: =IF($N$10,($N$10*'CVB Table 2019'!EH10)/100," ") ->  | EI10: =IF($N$10,($N$10*'CVB Table 2019'!EI10)/100," ") ->  | EJ10: =IF($N$10,($N$10*'CVB Table 2019'!EJ10)/100," ") ->  | EK10: =IF($N$10,($N$10*'CVB Table 2019'!EK10)/100," ") ->  | EL10: =IF($N$10,($N$10*'CVB Table 2019'!EL10)/100," ") ->  | EM10: =IF($N$10,($N$10*'CVB Table 2019'!EM10)/100," ") ->  | EN10: =IF($N$10,($N$10*'CVB Table 2019'!EN10)/100," ") ->  | EO10: =IF($N$10,($N$10*'CVB Table 2019'!EO10)/100," ") ->  | EP10: =IF($N$10,($N$10*'CVB Table 2019'!EP10)/100," ") ->  | EQ10: =IF($N$10,($N$10*'CVB Table 2019'!EQ10)/100," ") ->  | ER10: =IF($N$10,($N$10*'CVB Table 2019'!ER10)/100," ") ->  | ES10: =IF($N$10,($N$10*'CVB Table 2019'!ES10)/100," ") ->  | ET10: =IF($N$10,($N$10*'CVB Table 2019'!ET10)/100," ") ->  | EU10: =IF($N$10,($N$10*'CVB Table 2019'!EU10)/100," ") ->  | EV10: =IF($N$10,($N$10*'CVB Table 2019'!EV10)/100," ") ->  | EW10: =IF($N$10,($N$10*'CVB Table 2019'!EW10)/100," ") ->  | EX10: =IF($N$10,($N$10*'CVB Table 2019'!EX10)/100," ") ->  | EY10: =IF($N$10,($N$10*'CVB Table 2019'!EY10)/100," ") ->  | EZ10: =IF($N$10,($N$10*'CVB Table 2019'!EZ10)/100," ") ->  | FA10: =IF($N$10,($N$10*'CVB Table 2019'!FA10)/100," ") ->  | FB10: =IF($N$10,($N$10*'CVB Table 2019'!FB10)/100," ") ->  | FC10: =IF($N$10,($N$10*'CVB Table 2019'!FC10)/100," ") ->  | FD10: =IF($N$10,($N$10*'CVB Table 2019'!FD10)/100," ") ->  | FE10: =IF($N$10,($N$10*'CVB Table 2019'!FE10)/100," ") ->  | FF10: =IF($N$10,($N$10*'CVB Table 2019'!FF10)/100," ") ->  | FG10: =IF($N$10,($N$10*'CVB Table 2019'!FG10)/100," ") ->  | FH10: =IF($N$10,($N$10*'CVB Table 2019'!FH10)/100," ") ->  | FI10: =IF($N$10,($N$10*'CVB Table 2019'!FI10)/100," ") ->  | FJ10: =IF($N$10,($N$10*'CVB Table 2019'!FJ10)/100," ") ->  | FK10: =IF($N$10,(($N$10*'CVB Table 2019'!FK10)/100)*('CVB Table 2019'!$O$10)/1000," ") ->  | FL10: =IF($N$10,(($N$10*'CVB Table 2019'!FL10)/100)*('CVB Table 2019'!$O$10)/1000," ") ->  | FM10: =IF($N$10,(($N$10*'CVB Table 2019'!FM10)/100)*('CVB Table 2019'!$O$10)/1000," ") ->  | FN10: =IF($N$10,(($N$10*'CVB Table 2019'!FN10)/100)*('CVB Table 2019'!$O$10)/1000," ") ->  | FO10: =IF($N$10,(($N$10*'CVB Table 2019'!FO10)/100)*('CVB Table 2019'!$O$10)/1000," ") ->  | FP10: =IF($N$10,(($N$10*'CVB Table 2019'!FP10)/100)*('CVB Table 2019'!$O$10)/1000," ") ->  | FQ10: =IF($N$10,(($N$10*'CVB Table 2019'!FQ10)/100)*('CVB Table 2019'!$O$10)/1000," ") ->  | FR10: =IF($N$10,(($N$10*'CVB Table 2019'!FR10)/100)*('CVB Table 2019'!$O$10)/1000," ") ->  | FS10: =IF($N$10,(($N$10*'CVB Table 2019'!FS10)/100)*('CVB Table 2019'!$O$10)/1000," ") ->  | FT10: =IF($N$10,(($N$10*'CVB Table 2019'!FT10)/100)*('CVB Table 2019'!$O$10)/1000," ") ->  | FU10: =IF($N$10,(($N$10*'CVB Table 2019'!FU10)/100)*('CVB Table 2019'!$O$10)/1000," ") ->  | FV10: =IF($N$10,(($N$10*'CVB Table 2019'!FV10)/100)*('CVB Table 2019'!$O$10)/1000," ") ->  | FW10: =IF($N$10,(($N$10*'CVB Table 2019'!FW10)/100)*('CVB Table 2019'!$O$10)/1000," ") ->  | FX10: =IF($N$10,(($N$10*'CVB Table 2019'!FX10)/100)*('CVB Table 2019'!$O$10)/1000," ") ->  | FY10: =IF($N$10,(($N$10*'CVB Table 2019'!FY10)/100)*('CVB Table 2019'!$O$10)/1000," ") ->  | FZ10: =IF($N$10,(($N$10*'CVB Table 2019'!FZ10)/100)*('CVB Table 2019'!$O$10)/1000," ") ->  | GA10: =IF($N$10,(($N$10*'CVB Table 2019'!GA10)/100)*('CVB Table 2019'!$O$10)/1000," ") ->  | GB10: =IF($N$10,(($N$10*'CVB Table 2019'!GB10)/100)*('CVB Table 2019'!$O$10)/1000," ") ->  | GC10: =IF($N$10,(($N$10*'CVB Table 2019'!GC10)/100)*('CVB Table 2019'!$O$10)/1000," ") ->  | GD10: =IF($N$10,(($N$10*'CVB Table 2019'!GD10)/100)*('CVB Table 2019'!$O$10)/1000," ") ->  | GE10: =IF($N$10,(($N$10*'CVB Table 2019'!GE10)/100)*('CVB Table 2019'!$O$10)/1000," ") ->  | GF10: =IF($N$10,(($N$10*'CVB Table 2019'!GF10)/100)*('CVB Table 2019'!$O$10)/1000," ") ->  | GG10: =IF($N$10,(($N$10*'CVB Table 2019'!GG10)/100)*('CVB Table 2019'!$O$10)/1000," ") ->  | GH10: =IF($N$10,(($N$10*'CVB Table 2019'!GH10)/100)*('CVB Table 2019'!$O$10)/1000," ") ->  | GI10: =IF($N$10,(($N$10*'CVB Table 2019'!GI10)/100)*('CVB Table 2019'!$O$10)/1000," ") ->  | GJ10: =IF($N$10,(($N$10*'CVB Table 2019'!GJ10)/100)*('CVB Table 2019'!$O$10)/1000," ") ->  | GK10: =IF($N$10,(($N$10*'CVB Table 2019'!GK10)/100)*('CVB Table 2019'!$O$10)/1000," ") ->  | GL10: =IF($N$10,(($N$10*'CVB Table 2019'!GL10)/100)*('CVB Table 2019'!$O$10)/1000," ") ->  | GM10: =IF($N$10,(($N$10*'CVB Table 2019'!GM10)/100)*('CVB Table 2019'!$O$10)/1000," ") ->  | GN10: =IF($N$10,(($N$10*'CVB Table 2019'!GN10)/100)*('CVB Table 2019'!$O$10)/1000," ") ->  | GO10: =IF($N$10,(($N$10*'CVB Table 2019'!GO10)/100)*('CVB Table 2019'!$O$10)/1000," ") ->  | GP10: =IF($N$10,(($N$10*'CVB Table 2019'!GP10)/100)*('CVB Table 2019'!$O$10)/1000," ") ->  | GQ10: =IF($N$10,(($N$10*'CVB Table 2019'!GQ10)/100)*('CVB Table 2019'!$O$10)/1000," ") ->  | GR10: =IF($N$10,(($N$10*'CVB Table 2019'!GR10)/100)*('CVB Table 2019'!$O$10)/1000," ") ->  | GS10: =IF($N$10,(($N$10*'CVB Table 2019'!GS10)/100)*('CVB Table 2019'!$O$10)/1000," ") ->  | GT10: =IF($N$10,(($N$10*'CVB Table 2019'!GT10)/100)*('CVB Table 2019'!$O$10)/1000," ") ->  | GU10: =IF($N$10,(($N$10*'CVB Table 2019'!GU10)/100)*('CVB Table 2019'!$O$10)/1000," ") ->  | GV10: =IF($N$10,(($N$10*'CVB Table 2019'!GV10)/100)*('CVB Table 2019'!$O$10)/1000," ") ->  | GW10: =IF($N$10,(($N$10*'CVB Table 2019'!GW10)/100)*('CVB Table 2019'!$O$10)/1000," ") ->  | GX10: =IF($N$10,(($N$10*'CVB Table 2019'!GX10)/100)*('CVB Table 2019'!$O$10)/1000," ") ->  | GY10: =IF($N$10,($N$10*'CVB Table 2019'!GY10)/100," ") ->  | GZ10: =IF($N$10,($N$10*'CVB Table 2019'!GZ10)/100," ") ->  | HA10: =IF($N$10,($N$10*'CVB Table 2019'!HA10)/100," ") ->  | HB10: =IF($N$10,($N$10*'CVB Table 2019'!HB10)/100," ") ->  | HC10: =IF($N$10,($N$10*'CVB Table 2019'!HC10)/100," ") ->  | HD10: =IF($N$10,($N$10*'CVB Table 2019'!HD10)/100," ") ->  | HE10: =IF($N$10,($N$10*'CVB Table 2019'!HE10)/100," ") ->  | HF10: =IF($N$10,($N$10*'CVB Table 2019'!HF10)/100," ") ->  | HG10: =IF($N$10,($N$10*'CVB Table 2019'!HG10)/100," ") ->  | HH10: =IF($N$10,($N$10*'CVB Table 2019'!HH10)/100," ") ->  | HI10: =IF($N$10,($N$10*'CVB Table 2019'!HI10)/100," ") ->  | HJ10: =IF($N$10,($N$10*'CVB Table 2019'!HJ10)/100," ") ->  | HK10: =IF($N$10,($N$10*'CVB Table 2019'!HK10)/100," ") ->  | HL10: =IF($N$10,($N$10*'CVB Table 2019'!HL10)/100," ") ->  | HM10: =IF($N$10,($N$10*'CVB Table 2019'!HM10)/100," ") ->  | HN10: =IF($N$10,($N$10*'CVB Table 2019'!HN10)/100," ") ->  | HO10: =IF($N$10,($N$10*'CVB Table 2019'!HO10)/100," ") ->  | HP10: =IF($N$10,($N$10*'CVB Table 2019'!HP10)/100," ") ->  | HQ10: =IF($N$10,($N$10*'CVB Table 2019'!HQ10)/100," ") ->  | HR10: =IF($N$10,(($N$10*'CVB Table 2019'!HR10)/100)*('CVB Table 2019'!$O$10)/1000," ") ->  | HS10: =IF($N$10,(($N$10*'CVB Table 2019'!HS10)/100)*('CVB Table 2019'!$O$10)/1000," ") ->  | HT10: =IF($N$10,(($N$10*'CVB Table 2019'!HT10)/100)*('CVB Table 2019'!$O$10)/1000," ") ->  | HU10: =IF($N$10,(($N$10*'CVB Table 2019'!HU10)/100)*('CVB Table 2019'!$O$10)/1000," ") ->  | HV10: =IF($N$10,(($N$10*'CVB Table 2019'!HV10)/100)*('CVB Table 2019'!$O$10)/1000," ") ->  | HW10: =IF($N$10,(($N$10*'CVB Table 2019'!HW10)/100)*('CVB Table 2019'!$O$10)/1000," ") ->  | HX10: =IF($N$10,(($N$10*'CVB Table 2019'!HX10)/100)*('CVB Table 2019'!$O$10)/1000," ") ->  | HY10: =IF($N$10,(($N$10*'CVB Table 2019'!HY10)/100)*('CVB Table 2019'!$O$10)/1000," ") ->  | HZ10: =IF($N$10,(($N$10*'CVB Table 2019'!HZ10)/100)*('CVB Table 2019'!$O$10)/1000," ") ->  | IA10: =IF($N$10,(($N$10*'CVB Table 2019'!IA10)/100)*('CVB Table 2019'!$O$10)/1000," ") ->  | IB10: =IF($N$10,(($N$10*'CVB Table 2019'!IB10)/100)*('CVB Table 2019'!$O$10)/1000," ") ->  | IC10: =IF($N$10,(($N$10*'CVB Table 2019'!IC10)/100)*('CVB Table 2019'!$O$10)/1000," ") ->  | ID10: =IF($N$10,(($N$10*'CVB Table 2019'!ID10)/100)*('CVB Table 2019'!$O$10)/1000," ") ->  | IE10: =IF($N$10,(($N$10*'CVB Table 2019'!IE10)/100)*('CVB Table 2019'!$O$10)/1000," ") ->  | IF10: =IF($N$10,(($N$10*'CVB Table 2019'!IF10)/100)*('CVB Table 2019'!$O$10)/1000," ") ->  | IG10: =IF($N$10,(($N$10*'CVB Table 2019'!IG10)/100)*('CVB Table 2019'!$O$10)/1000," ") ->  | IH10: =IF($N$10,(($N$10*'CVB Table 2019'!IH10)/100)*('CVB Table 2019'!$O$10)/1000," ") ->  | II10: =IF($N$10,(($N$10*'CVB Table 2019'!II10)/100)*('CVB Table 2019'!$O$10)/1000," ") ->  | IJ10: =IF($N$10,(($N$10*'CVB Table 2019'!IJ10)/100)*('CVB Table 2019'!$O$10)/1000," ") ->  | IK10: =IF($N$10,($N$10*'CVB Table 2019'!IK10)/100," ") ->  | IL10: =IF($N$10,($N$10*'CVB Table 2019'!IL10)/100," ") ->  | IM10: =IF($N$10,($N$10*'CVB Table 2019'!IM10)/100," ") ->  | IN10: =IF($N$10,($N$10*'CVB Table 2019'!IN10)/100," ") ->  | IO10: =IF($N$10,($N$10*'CVB Table 2019'!IO10)/100," ") ->  | IP10: =IF($N$10,($N$10*'CVB Table 2019'!IP10)/100," ") ->  | IQ10: =IF($N$10,($N$10*'CVB Table 2019'!IQ10)/100," ") ->  | IR10: =IF($N$10,($N$10*'CVB Table 2019'!IR10)/100," ") ->  | IS10: =IF($N$10,($N$10*'CVB Table 2019'!IS10)/100," ") ->  | IT10: =IF($N$10,($N$10*'CVB Table 2019'!IT10)/100," ") ->  | IU10: =IF($N$10,($N$10*'CVB Table 2019'!IU10)/100," ") ->  | IV10: =IF($N$10,($N$10*'CVB Table 2019'!IV10)/100," ") ->  | IW10: =IF($N$10,($N$10*'CVB Table 2019'!IW10)/100," ") ->  | IX10: =IF($N$10,($N$10*'CVB Table 2019'!IX10)/100," ") ->  | IY10: =IF($N$10,($N$10*'CVB Table 2019'!IY10)/100," ") ->  | IZ10: =IF($N$10,($N$10*'CVB Table 2019'!IZ10)/100," ") ->  | JA10: =IF($N$10,($N$10*'CVB Table 2019'!JA10)/100," ") ->  | JB10: =IF($N$10,($N$10*'CVB Table 2019'!JB10)/100," ") ->  | JC10: =IF($N$10,($N$10*'CVB Table 2019'!JC10)/100," ") ->  | JD10: =IF($N$10,($N$10*'CVB Table 2019'!JD10)/100," ") ->  | JE10: =IF($N$10,($N$10*'CVB Table 2019'!JE10)/100," ") ->  | JF10: =IF($N$10,($N$10*'CVB Table 2019'!JF10)/100," ") ->  | JG10: =IF($N$10,($N$10*'CVB Table 2019'!JG10)/100," ") ->  | JH10: =IF($N$10,($N$10*'CVB Table 2019'!JH10)/100," ") ->  | JI10: =IF($N$10,($N$10*'CVB Table 2019'!JI10)/100," ") ->  | JJ10: =IF($N$10,($N$10*'CVB Table 2019'!JJ10)/100," ") ->  | JK10: =IF($N$10,($N$10*'CVB Table 2019'!JK10)/100," ") ->  | JL10: =IF($N$10,($N$10*'CVB Table 2019'!JL10)/100," ") ->  | JM10: =IF($N$10,($N$10*'CVB Table 2019'!JM10)/100," ") ->  | JN10: =IF($N$10,($N$10*'CVB Table 2019'!JN10)/100," ") ->  | JO10: =IF($N$10,($N$10*'CVB Table 2019'!JO10)/100," ") ->  | JP10: =IF($N$10,($N$10*'CVB Table 2019'!JP10)/100," ") ->  | JQ10: =IF($N$10,($N$10*'CVB Table 2019'!JQ10)/100," ") ->  | JR10: =IF($N$10,($N$10*'CVB Table 2019'!JR10)/100," ") ->  | JS10: =IF($N$10,($N$10*'CVB Table 2019'!JS10)/100," ") ->  | JT10: =IF($N$10,($N$10*'CVB Table 2019'!JT10)/100," ") ->  | JU10: =IF($N$10,(($N$10*'CVB Table 2019'!JU10)/100)*('CVB Table 2019'!$O$10)/1000," ") ->  | JV10: =IF($N$10,(($N$10*'CVB Table 2019'!JV10)/100)*('CVB Table 2019'!$O$10)/1000," ") ->  | JW10: =IF($N$10,(($N$10*'CVB Table 2019'!JW10)/100)*('CVB Table 2019'!$O$10)/1000," ") ->  | JX10: =IF($N$10,(($N$10*'CVB Table 2019'!JX10)/100)*('CVB Table 2019'!$O$10)/1000," ") ->  | JY10: =IF($N$10,(($N$10*'CVB Table 2019'!JY10)/100)*('CVB Table 2019'!$O$10)/1000," ") ->  | JZ10: =IF($N$10,(($N$10*'CVB Table 2019'!JZ10)/100)*('CVB Table 2019'!$O$10)/1000," ") ->  | KA10: =IF($N$10,(($N$10*'CVB Table 2019'!KA10)/100)*('CVB Table 2019'!$O$10)/1000," ") ->  | KB10: =IF($N$10,(($N$10*'CVB Table 2019'!KB10)/100)*('CVB Table 2019'!$O$10)/1000," ") ->  | KC10: =IF($N$10,(($N$10*'CVB Table 2019'!KC10)/100)*('CVB Table 2019'!$O$10)/1000," ") ->  | KD10: =IF($N$10,(($N$10*'CVB Table 2019'!KD10)/100)*('CVB Table 2019'!$O$10)/1000," ") ->  | KE10: =IF($N$10,(($N$10*'CVB Table 2019'!KE10)/100)*('CVB Table 2019'!$O$10)/1000," ") ->  | KF10: =IF($N$10,(($N$10*'CVB Table 2019'!KF10)/100)*('CVB Table 2019'!$O$10)/1000," ") ->  | KG10: =IF($N$10,(($N$10*'CVB Table 2019'!KG10)/100)*('CVB Table 2019'!$O$10)/1000," ") ->  | KH10: =IF($N$10,(($N$10*'CVB Table 2019'!KH10)/100)*('CVB Table 2019'!$O$10)/1000," ") ->  | KI10: =IF($N$10,(($N$10*'CVB Table 2019'!KI10)/100)*('CVB Table 2019'!$O$10)/1000," ") ->  | KJ10: =IF($N$10,(($N$10*'CVB Table 2019'!KJ10)/100)*('CVB Table 2019'!$O$10)/1000," ") ->  | KK10: =IF($N$10,(($N$10*'CVB Table 2019'!KK10)/100)*('CVB Table 2019'!$O$10)/1000," ") ->  | KL10: =IF($N$10,(($N$10*'CVB Table 2019'!KL10)/100)*('CVB Table 2019'!$O$10)/1000," ") ->  | KM10: =IF($N$10,(($N$10*'CVB Table 2019'!KM10)/100)*('CVB Table 2019'!$O$10)/1000," ") ->  | KN10: =IF($N$10,(($N$10*'CVB Table 2019'!KN10)/100)*('CVB Table 2019'!$O$10)/1000," ") ->  | KO10: =IF($N$10,(($N$10*'CVB Table 2019'!KO10)/100)*('CVB Table 2019'!$O$10)/1000," ") ->  | KP10: =IF($N$10,(($N$10*'CVB Table 2019'!KP10)/100)*('CVB Table 2019'!$O$10)/1000," ") ->  | KQ10: =IF($N$10,(($N$10*'CVB Table 2019'!KQ10)/100)*('CVB Table 2019'!$O$10)/1000," ") ->  | KR10: =IF($N$10,(($N$10*'CVB Table 2019'!KR10)/100)*('CVB Table 2019'!$O$10)/1000," ") ->  | KS10: =IF($N$10,(($N$10*'CVB Table 2019'!KS10)/100)*('CVB Table 2019'!$O$10)/1000," ") ->  | KT10: =IF($N$10,(($N$10*'CVB Table 2019'!KT10)/100)*('CVB Table 2019'!$O$10)/1000," ") ->  | KU10: =IF($N$10,(($N$10*'CVB Table 2019'!KU10)/100)*('CVB Table 2019'!$O$10)/1000," ") ->  | KV10: =IF($N$10,(($N$10*'CVB Table 2019'!KV10)/100)*('CVB Table 2019'!$O$10)/1000," ") ->  | KW10: =IF($N$10,(($N$10*'CVB Table 2019'!KW10)/100)*('CVB Table 2019'!$O$10)/1000," ") ->  | KX10: =IF($N$10,(($N$10*'CVB Table 2019'!KX10)/100)*('CVB Table 2019'!$O$10)/1000," ") ->  | KY10: =IF($N$10,(($N$10*'CVB Table 2019'!KY10)/100)*('CVB Table 2019'!$O$10)/1000," ") ->  | KZ10: =IF($N$10,(($N$10*'CVB Table 2019'!KZ10)/100)*('CVB Table 2019'!$O$10)/1000," ") ->  | LA10: =IF($N$10,(($N$10*'CVB Table 2019'!LA10)/100)*('CVB Table 2019'!$O$10)/1000," ") ->  | LB10: =IF($N$10,(($N$10*'CVB Table 2019'!LB10)/100)*('CVB Table 2019'!$O$10)/1000," ") ->  | LC10: =IF($N$10,(($N$10*'CVB Table 2019'!LC10)/100)*('CVB Table 2019'!$O$10)/1000," ") ->  | LD10: =IF($N$10,(($N$10*'CVB Table 2019'!LD10)/100)*('CVB Table 2019'!$O$10)/1000," ") ->  | LE10: =IF($N$10,(($N$10*'CVB Table 2019'!LE10)/100)*('CVB Table 2019'!$O$10)/1000," ") ->  | LF10: =IF($N$10,(($N$10*'CVB Table 2019'!LF10)/100)*('CVB Table 2019'!$O$10)/1000," ") ->  | LG10: =IF($N$10,(($N$10*'CVB Table 2019'!LG10)/100)*('CVB Table 2019'!$O$10)/1000," ") ->  | LH10: =IF($N$10,(($N$10*'CVB Table 2019'!LH10)/100)*('CVB Table 2019'!$O$10)/1000," ") ->  | LI10: =IF($N$10,(($N$10*'CVB Table 2019'!LI10)/100)*('CVB Table 2019'!$O$10)/1000," ") ->  | LJ10: =IF($N$10,(($N$10*'CVB Table 2019'!LJ10)/100)*('CVB Table 2019'!$O$10)/1000," ") ->  | LK10: =IF($N$10,(($N$10*'CVB Table 2019'!LK10)/100)*('CVB Table 2019'!$O$10)/1000," ") ->  | LL10: =IF($N$10,(($N$10*'CVB Table 2019'!LL10)/100)*('CVB Table 2019'!$O$10)/1000," ") ->  | LM10: =IF($N$10,(($N$10*'CVB Table 2019'!LM10)/100)*('CVB Table 2019'!$O$10)/1000," ") ->  | LN10: =IF($N$10,(($N$10*'CVB Table 2019'!LN10)/100)*('CVB Table 2019'!$O$10)/1000," ") ->  | LO10: =IF($N$10,(($N$10*'CVB Table 2019'!LO10)/100)*('CVB Table 2019'!$O$10)/1000," ") ->  | LP10: =IF($N$10,(($N$10*'CVB Table 2019'!LP10)/100)*('CVB Table 2019'!$O$10)/1000," ") ->  | LQ10: =IF($N$10,(($N$10*'CVB Table 2019'!LQ10)/100)*('CVB Table 2019'!$O$10)/1000," ") ->  | LR10: =IF($N$10,(($N$10*'CVB Table 2019'!LR10)/100)*('CVB Table 2019'!$O$10)/1000," ") ->  | LS10: =IF($N$10,(($N$10*'CVB Table 2019'!LS10)/100)*('CVB Table 2019'!$O$10)/1000," ") ->  | LT10: =IF($N$10,($N$10*'CVB Table 2019'!LT10)/100," ") ->  | LU10: =IF($N$10,($N$10*'CVB Table 2019'!LU10)/100," ") ->  | LV10: =IF($N$10,($N$10*'CVB Table 2019'!LV10)/100," ") ->  | LW10: =IF($N$10,($N$10*'CVB Table 2019'!LW10)/100," ") ->  | LX10: =IF($N$10,($N$10*'CVB Table 2019'!LX10)/100," ") ->  | LY10: =IF($N$10,($N$10*'CVB Table 2019'!LY10)/100," ") ->  | LZ10: =IF($N$10,($N$10*'CVB Table 2019'!LZ10)/100," ") ->  | MA10: =IF($N$10,($N$10*'CVB Table 2019'!MA10)/100," ") ->  | MB10: =IF($N$10,($N$10*'CVB Table 2019'!MB10)/100," ") ->  | MC10: =IF($N$10,($N$10*'CVB Table 2019'!MC10)/100," ") ->  | MD10: =IF($N$10,($N$10*'CVB Table 2019'!MD10)/100," ") ->  | ME10: =IF($N$10,($N$10*'CVB Table 2019'!ME10)/100," ") ->  | MF10: =IF($N$10,($N$10*'CVB Table 2019'!MF10)/100," ") ->  | MG10: =IF($N$10,($N$10*'CVB Table 2019'!MG10)/100," ") ->  | MH10: =IF($N$10,($N$10*'CVB Table 2019'!MH10)/100," ") ->  | MI10: =IF($N$10,($N$10*'CVB Table 2019'!MI10)/100," ") ->  | MJ10: =IF($N$10,($N$10*'CVB Table 2019'!MJ10)/100," ") ->  | MK10: =IF($N$10,(($N$10*'CVB Table 2019'!MK10)/100)*('CVB Table 2019'!$O$10)/1000," ") ->  | ML10: =IF($N$10,($N$10*'CVB Table 2019'!ML10)/100," ") ->  | MN10: =IF(N10,($MM$4*('CVB Table 2019'!AI10*0.15)*(N10/100)*(('CVB Table 2019'!O10)/1000)),"") ->  | MO10: =IF(N10,($MM$4*((('CVB Table 2019'!AH10)-('CVB Table 2019'!AI10))*0.8)*(N10/100)*(('CVB Table 2019'!O10)/1000)),"") ->  | MQ10: =IF(N10,($MM$4*('CVB Table 2019'!AI10*0.4)*(N10/100)*(('CVB Table 2019'!O10)/1000)),"") ->  | MR10: =IF(N10,($MM$4*((('CVB Table 2019'!AH10)-('CVB Table 2019'!AI10))*0.8)*(N10/100)*(('CVB Table 2019'!O10)/1000)),"") ->  | MT10: =IF(N10,($MM$4*('CVB Table 2019'!AI10*0.25)*(N10/100)*(('CVB Table 2019'!O10)/1000)),"") ->  | MU10: =IF(N10,($MM$4*((('CVB Table 2019'!AH10)-('CVB Table 2019'!AI10))*0.8)*(N10/100)*(('CVB Table 2019'!O10)/1000)),"") ->  | MX10: =IF(N10,((N10*'CVB Table 2019'!MX10)/100)*('CVB Table 2019'!$O$4)/1000," ") -> 
A11: 3015.401 | B11: mengvoergrondstoffen | C11: Kokosschilfers | D11: RVET < 100 g/kg | F11: Copra cake | G11: CFAT < 100 g/kg | I11: X | M11: 250 | O11: =IF($N$11,($N$11*'CVB Table 2019'!O11)/100," ") ->  | P11: =IF($N$11,(($N$11*'CVB Table 2019'!P11)/100)*('CVB Table 2019'!$O$11)/1000," ") ->  | Q11: =IF($N$11,(($N$11*'CVB Table 2019'!Q11)/100)*('CVB Table 2019'!$O$11)/1000," ") ->  | R11: =IF($N$11,(($N$11*'CVB Table 2019'!R11)/100)*('CVB Table 2019'!$O$11)/1000," ") ->  | S11: =IF($N$11,(($N$11*'CVB Table 2019'!S11)/100)*('CVB Table 2019'!$O$11)/1000," ") ->  | T11: =IF($N$11,(($N$11*'CVB Table 2019'!T11)/100)*('CVB Table 2019'!$O$11)/1000," ") ->  | U11: =IF($N$11,(($N$11*'CVB Table 2019'!U11)/100)*('CVB Table 2019'!$O$11)/1000," ") ->  | V11: =IF($N$11,(($N$11*'CVB Table 2019'!V11)/100)*('CVB Table 2019'!$O$11)/1000," ") ->  | W11: =IF($N$11,(($N$11*'CVB Table 2019'!W11)/100)*('CVB Table 2019'!$O$11)/1000," ") ->  | X11: =IF($N$11,(($N$11*'CVB Table 2019'!X11)/100)*('CVB Table 2019'!$O$11)/1000," ") ->  | Y11: =IF($N$11,(($N$11*'CVB Table 2019'!Y11)/100)*('CVB Table 2019'!$O$11)/1000," ") ->  | Z11: =IF($N$11,(($N$11*'CVB Table 2019'!Z11)/100)*('CVB Table 2019'!$O$11)/1000," ") ->  | AA11: =IF($N$11,(($N$11*'CVB Table 2019'!AA11)/100)*('CVB Table 2019'!$O$11)/1000," ") ->  | AB11: =IF($N$11,(($N$11*'CVB Table 2019'!AB11)/100)*('CVB Table 2019'!$O$11)/1000," ") ->  | AC11: =IF($N$11,(($N$11*'CVB Table 2019'!AC11)/100)*('CVB Table 2019'!$O$11)/1000," ") ->  | AD11: =IF($N$11,(($N$11*'CVB Table 2019'!AD11)/100)*('CVB Table 2019'!$O$11)/1000," ") ->  | AE11: =IF($N$11,(($N$11*'CVB Table 2019'!AE11)/100)*('CVB Table 2019'!$O$11)/1000," ") ->  | AF11: =IF($N$11,(($N$11*'CVB Table 2019'!AF11)/100)*('CVB Table 2019'!$O$11)/1000," ") ->  | AG11: =IF($N$11,(($N$11*'CVB Table 2019'!AG11)/100)*('CVB Table 2019'!$O$11)/1000," ") ->  | AH11: =IF($N$11,(($N$11*'CVB Table 2019'!AH11)/100)*('CVB Table 2019'!$O$11)/1000," ") ->  | AI11: =IF($N$11,(($N$11*'CVB Table 2019'!AI11)/100)*('CVB Table 2019'!$O$11)/1000," ") ->  | AJ11: =IF($N$11,(($N$11*'CVB Table 2019'!AJ11)/100)*('CVB Table 2019'!$O$11)/1000," ") ->  | AK11: =IF($N$11,(($N$11*'CVB Table 2019'!AK11)/100)*('CVB Table 2019'!$O$11)/1000," ") ->  | AL11: =IF($N$11,(($N$11*'CVB Table 2019'!AL11)/100)*('CVB Table 2019'!$O$11)/1000," ") ->  | AM11: =IF($N$11,(($N$11*'CVB Table 2019'!AM11)/100)*('CVB Table 2019'!$O$11)/1000," ") ->  | AN11: =IF($N$11,(($N$11*'CVB Table 2019'!AN11)/100)*('CVB Table 2019'!$O$11)/1000," ") ->  | AO11: =IF($N$11,(($N$11*'CVB Table 2019'!AO11)/100)*('CVB Table 2019'!$O$11)/1000," ") ->  | AP11: =IF($N$11,(($N$11*'CVB Table 2019'!AP11)/100)*('CVB Table 2019'!$O$11)/1000," ") ->  | AQ11: =IF($N$11,(($N$11*'CVB Table 2019'!AQ11)/100)*('CVB Table 2019'!$O$11)/1000," ") ->  | AR11: =IF($N$11,(($N$11*'CVB Table 2019'!AR11)/100)*('CVB Table 2019'!$O$11)/1000," ") ->  | AS11: =IF($N$11,(($N$11*'CVB Table 2019'!AS11)/100)*('CVB Table 2019'!$O$11)/1000," ") ->  | AT11: =IF($N$11,(($N$11*'CVB Table 2019'!AT11)/100)*('CVB Table 2019'!$O$11)/1000," ") ->  | AU11: =IF($N$11,(($N$11*'CVB Table 2019'!AU11)/100)*('CVB Table 2019'!$O$11)/1000," ") ->  | AV11: =IF($N$11,(($N$11*'CVB Table 2019'!AV11)/100)*('CVB Table 2019'!$O$11)/1000," ") ->  | AW11: =IF($N$11,(($N$11*'CVB Table 2019'!AW11)/100)*('CVB Table 2019'!$O$11)/1000," ") ->  | AX11: =IF($N$11,(($N$11*'CVB Table 2019'!AX11)/100)*('CVB Table 2019'!$O$11)/1000," ") ->  | AY11: =IF($N$11,(($N$11*'CVB Table 2019'!AY11)/100)*('CVB Table 2019'!$O$11)/1000," ") ->  | AZ11: =IF($N$11,(($N$11*'CVB Table 2019'!AZ11)/100)*('CVB Table 2019'!$O$11)/1000," ") ->  | BA11: =IF($N$11,(($N$11*'CVB Table 2019'!BA11)/100)*('CVB Table 2019'!$O$11)/1000," ") ->  | BB11: =IF($N$11,(($N$11*'CVB Table 2019'!BB11)/100)*('CVB Table 2019'!$O$11)/1000," ") ->  | BC11: =IF($N$11,(($N$11*'CVB Table 2019'!BC11)/100)*('CVB Table 2019'!$O$11)/1000," ") ->  | BD11: =IF($N$11,($N$11*'CVB Table 2019'!BD11)/100," ") ->  | BE11: =IF($N$11,($N$11*'CVB Table 2019'!BE11)/100," ") ->  | BF11: =IF($N$11,($N$11*'CVB Table 2019'!BF11)/100," ") ->  | BG11: =IF($N$11,($N$11*'CVB Table 2019'!BG11)/100," ") ->  | BH11: =IF($N$11,($N$11*'CVB Table 2019'!BH11)/100," ") ->  | BI11: =IF($N$11,($N$11*'CVB Table 2019'!BI11)/100," ") ->  | BJ11: =IF($N$11,($N$11*'CVB Table 2019'!BJ11)/100," ") ->  | BK11: =IF($N$11,($N$11*'CVB Table 2019'!BK11)/100," ") ->  | BL11: =IF($N$11,($N$11*'CVB Table 2019'!BL11)/100," ") ->  | BM11: =IF($N$11,($N$11*'CVB Table 2019'!BM11)/100," ") ->  | BN11: =IF($N$11,($N$11*'CVB Table 2019'!BN11)/100," ") ->  | BO11: =IF($N$11,($N$11*'CVB Table 2019'!BO11)/100," ") ->  | BP11: =IF($N$11,($N$11*'CVB Table 2019'!BP11)/100," ") ->  | BQ11: =IF($N$11,($N$11*'CVB Table 2019'!BQ11)/100," ") ->  | BR11: =IF($N$11,($N$11*'CVB Table 2019'!BR11)/100," ") ->  | BS11: =IF($N$11,($N$11*'CVB Table 2019'!BS11)/100," ") ->  | BT11: =IF($N$11,($N$11*'CVB Table 2019'!BT11)/100," ") ->  | BU11: =IF($N$11,($N$11*'CVB Table 2019'!BU11)/100," ") ->  | BV11: =IF($N$11,($N$11*'CVB Table 2019'!BV11)/100," ") ->  | BW11: =IF($N$11,($N$11*'CVB Table 2019'!BW11)/100," ") ->  | BX11: =IF($N$11,($N$11*'CVB Table 2019'!BX11)/100," ") ->  | BY11: =IF($N$11,($N$11*'CVB Table 2019'!BY11)/100," ") ->  | BZ11: =IF($N$11,($N$11*'CVB Table 2019'!BZ11)/100," ") ->  | CA11: =IF($N$11,($N$11*'CVB Table 2019'!CA11)/100," ") ->  | CB11: =IF($N$11,($N$11*'CVB Table 2019'!CB11)/100," ") ->  | CC11: =IF($N$11,($N$11*'CVB Table 2019'!CC11)/100," ") ->  | CD11: =IF($N$11,($N$11*'CVB Table 2019'!CD11)/100," ") ->  | CE11: =IF($N$11,($N$11*'CVB Table 2019'!CE11)/100," ") ->  | CF11: =IF($N$11,($N$11*'CVB Table 2019'!CF11)/100," ") ->  | CG11: =IF($N$11,($N$11*'CVB Table 2019'!CG11)/100," ") ->  | CH11: =IF($N$11,($N$11*'CVB Table 2019'!CH11)/100," ") ->  | CI11: =IF($N$11,($N$11*'CVB Table 2019'!CI11)/100," ") ->  | CJ11: =IF($N$11,(($N$11*'CVB Table 2019'!CJ11)/100)*('CVB Table 2019'!$O$11)/1000," ") ->  | CK11: =IF($N$11,(($N$11*'CVB Table 2019'!CK11)/100)*('CVB Table 2019'!$O$11)/1000," ") ->  | CL11: =IF($N$11,(($N$11*'CVB Table 2019'!CL11)/100)*('CVB Table 2019'!$O$11)/1000," ") ->  | CM11: =IF($N$11,(($N$11*'CVB Table 2019'!CM11)/100)*('CVB Table 2019'!$O$11)/1000," ") ->  | CN11: =IF($N$11,(($N$11*'CVB Table 2019'!CN11)/100)*('CVB Table 2019'!$O$11)/1000," ") ->  | CO11: =IF($N$11,(($N$11*'CVB Table 2019'!CO11)/100)*('CVB Table 2019'!$O$11)/1000," ") ->  | CP11: =IF($N$11,($N$11*'CVB Table 2019'!CP11)/100," ") ->  | CQ11: =IF($N$11,($N$11*'CVB Table 2019'!CQ11)/100," ") ->  | CR11: =IF($N$11,($N$11*'CVB Table 2019'!CR11)/100," ") ->  | CS11: =IF($N$11,(($N$11*'CVB Table 2019'!CS11)/100)*('CVB Table 2019'!$O$11)/1000," ") ->  | CT11: =IF($N$11,(($N$11*'CVB Table 2019'!CT11)/100)*('CVB Table 2019'!$O$11)/1000," ") ->  | CU11: =IF($N$11,($N$11*'CVB Table 2019'!CU11)/100," ") ->  | CV11: =IF($N$11,(($N$11*'CVB Table 2019'!CV11)/100)*('CVB Table 2019'!$O$11)/1000," ") ->  | CW11: =IF($N$11,(($N$11*'CVB Table 2019'!CW11)/100)*('CVB Table 2019'!$O$11)/1000," ") ->  | CX11: =IF($N$11,(($N$11*'CVB Table 2019'!CX11)/100)*('CVB Table 2019'!$O$11)/1000," ") ->  | CY11: =IF($N$11,(($N$11*'CVB Table 2019'!CY11)/100)*('CVB Table 2019'!$O$11)/1000," ") ->  | CZ11: =IF($N$11,(($N$11*'CVB Table 2019'!CZ11)/100)*('CVB Table 2019'!$O$11)/1000," ") ->  | DA11: =IF($N$11,($N$11*'CVB Table 2019'!DA11)/100," ") ->  | DB11: =IF($N$11,($N$11*'CVB Table 2019'!DB11)/100," ") ->  | DC11: =IF($N$11,($N$11*'CVB Table 2019'!DC11)/100," ") ->  | DD11: =IF($N$11,($N$11*'CVB Table 2019'!DD11)/100," ") ->  | DE11: =IF(N11,((N11*'CVB Table 2019'!DE11)/100)*('CVB Table 2019'!O11)/1000," ") ->  | DF11: =IF($N$11,($N$11*'CVB Table 2019'!DF11)/100," ") ->  | DG11: =IF($N$11,($N$11*'CVB Table 2019'!DG11)/100," ") ->  | DH11: =IF($N$11,($N$11*'CVB Table 2019'!DH11)/100," ") ->  | DI11: =IF($N$11,($N$11*'CVB Table 2019'!DI11)/100," ") ->  | DJ11: =IF($N$11,($N$11*'CVB Table 2019'!DJ11)/100," ") ->  | DK11: =IF($N$11,($N$11*'CVB Table 2019'!DK11)/100," ") ->  | DL11: =IF($N$11,($N$11*'CVB Table 2019'!DL11)/100," ") ->  | DM11: =IF(N11,((N11*'CVB Table 2019'!DM11)/100)*('CVB Table 2019'!O11)/1000," ") ->  | DN11: =IF($N$11,($N$11*'CVB Table 2019'!DN11)/100," ") ->  | DO11: =IF(N11,((N11*'CVB Table 2019'!DO11)/100)*('CVB Table 2019'!O11)/1000," ") ->  | DP11: =IF($N$11,($N$11*'CVB Table 2019'!DP11)/100," ") ->  | DQ11: =IF($N$11,($N$11*'CVB Table 2019'!DQ11)/100," ") ->  | DR11: =IF($N$11,($N$11*'CVB Table 2019'!DR11)/100," ") ->  | DS11: =IF($N$11,($N$11*'CVB Table 2019'!DS11)/100," ") ->  | DT11: =IF(N11,((N11*'CVB Table 2019'!DT11)/100)*('CVB Table 2019'!O11)/1000," ") ->  | DU11: =IF($N$11,($N$11*'CVB Table 2019'!DU11)/100," ") ->  | DV11: =IF(N11,((N11*'CVB Table 2019'!DV11)/100)*('CVB Table 2019'!O11)/1000," ") ->  | DW11: =IF($N$11,(($N$11*'CVB Table 2019'!DW11)/100)*('CVB Table 2019'!$O$11)/1000," ") ->  | DX11: =IF($N$11,(($N$11*'CVB Table 2019'!DX11)/100)*('CVB Table 2019'!$O$11)/1000," ") ->  | DY11: =IF($N$11,($N$11*'CVB Table 2019'!DY11)/100," ") ->  | DZ11: =IF($N$11,($N$11*'CVB Table 2019'!DZ11)/100," ") ->  | EA11: =IF($N$11,($N$11*'CVB Table 2019'!EA11)/100," ") ->  | EB11: =IF($N$11,($N$11*'CVB Table 2019'!EB11)/100," ") ->  | EC11: =IF($N$11,($N$11*'CVB Table 2019'!EC11)/100," ") ->  | ED11: =IF($N$11,($N$11*'CVB Table 2019'!ED11)/100," ") ->  | EE11: =IF($N$11,($N$11*'CVB Table 2019'!EE11)/100," ") ->  | EF11: =IF($N$11,($N$11*'CVB Table 2019'!EF11)/100," ") ->  | EG11: =IF($N$11,($N$11*'CVB Table 2019'!EG11)/100," ") ->  | EH11: =IF($N$11,($N$11*'CVB Table 2019'!EH11)/100," ") ->  | EI11: =IF($N$11,($N$11*'CVB Table 2019'!EI11)/100," ") ->  | EJ11: =IF($N$11,($N$11*'CVB Table 2019'!EJ11)/100," ") ->  | EK11: =IF($N$11,($N$11*'CVB Table 2019'!EK11)/100," ") ->  | EL11: =IF($N$11,($N$11*'CVB Table 2019'!EL11)/100," ") ->  | EM11: =IF($N$11,($N$11*'CVB Table 2019'!EM11)/100," ") ->  | EN11: =IF($N$11,($N$11*'CVB Table 2019'!EN11)/100," ") ->  | EO11: =IF($N$11,($N$11*'CVB Table 2019'!EO11)/100," ") ->  | EP11: =IF($N$11,($N$11*'CVB Table 2019'!EP11)/100," ") ->  | EQ11: =IF($N$11,($N$11*'CVB Table 2019'!EQ11)/100," ") ->  | ER11: =IF($N$11,($N$11*'CVB Table 2019'!ER11)/100," ") ->  | ES11: =IF($N$11,($N$11*'CVB Table 2019'!ES11)/100," ") ->  | ET11: =IF($N$11,($N$11*'CVB Table 2019'!ET11)/100," ") ->  | EU11: =IF($N$11,($N$11*'CVB Table 2019'!EU11)/100," ") ->  | EV11: =IF($N$11,($N$11*'CVB Table 2019'!EV11)/100," ") ->  | EW11: =IF($N$11,($N$11*'CVB Table 2019'!EW11)/100," ") ->  | EX11: =IF($N$11,($N$11*'CVB Table 2019'!EX11)/100," ") ->  | EY11: =IF($N$11,($N$11*'CVB Table 2019'!EY11)/100," ") ->  | EZ11: =IF($N$11,($N$11*'CVB Table 2019'!EZ11)/100," ") ->  | FA11: =IF($N$11,($N$11*'CVB Table 2019'!FA11)/100," ") ->  | FB11: =IF($N$11,($N$11*'CVB Table 2019'!FB11)/100," ") ->  | FC11: =IF($N$11,($N$11*'CVB Table 2019'!FC11)/100," ") ->  | FD11: =IF($N$11,($N$11*'CVB Table 2019'!FD11)/100," ") ->  | FE11: =IF($N$11,($N$11*'CVB Table 2019'!FE11)/100," ") ->  | FF11: =IF($N$11,($N$11*'CVB Table 2019'!FF11)/100," ") ->  | FG11: =IF($N$11,($N$11*'CVB Table 2019'!FG11)/100," ") ->  | FH11: =IF($N$11,($N$11*'CVB Table 2019'!FH11)/100," ") ->  | FI11: =IF($N$11,($N$11*'CVB Table 2019'!FI11)/100," ") ->  | FJ11: =IF($N$11,($N$11*'CVB Table 2019'!FJ11)/100," ") ->  | FK11: =IF($N$11,(($N$11*'CVB Table 2019'!FK11)/100)*('CVB Table 2019'!$O$11)/1000," ") ->  | FL11: =IF($N$11,(($N$11*'CVB Table 2019'!FL11)/100)*('CVB Table 2019'!$O$11)/1000," ") ->  | FM11: =IF($N$11,(($N$11*'CVB Table 2019'!FM11)/100)*('CVB Table 2019'!$O$11)/1000," ") ->  | FN11: =IF($N$11,(($N$11*'CVB Table 2019'!FN11)/100)*('CVB Table 2019'!$O$11)/1000," ") ->  | FO11: =IF($N$11,(($N$11*'CVB Table 2019'!FO11)/100)*('CVB Table 2019'!$O$11)/1000," ") ->  | FP11: =IF($N$11,(($N$11*'CVB Table 2019'!FP11)/100)*('CVB Table 2019'!$O$11)/1000," ") ->  | FQ11: =IF($N$11,(($N$11*'CVB Table 2019'!FQ11)/100)*('CVB Table 2019'!$O$11)/1000," ") ->  | FR11: =IF($N$11,(($N$11*'CVB Table 2019'!FR11)/100)*('CVB Table 2019'!$O$11)/1000," ") ->  | FS11: =IF($N$11,(($N$11*'CVB Table 2019'!FS11)/100)*('CVB Table 2019'!$O$11)/1000," ") ->  | FT11: =IF($N$11,(($N$11*'CVB Table 2019'!FT11)/100)*('CVB Table 2019'!$O$11)/1000," ") ->  | FU11: =IF($N$11,(($N$11*'CVB Table 2019'!FU11)/100)*('CVB Table 2019'!$O$11)/1000," ") ->  | FV11: =IF($N$11,(($N$11*'CVB Table 2019'!FV11)/100)*('CVB Table 2019'!$O$11)/1000," ") ->  | FW11: =IF($N$11,(($N$11*'CVB Table 2019'!FW11)/100)*('CVB Table 2019'!$O$11)/1000," ") ->  | FX11: =IF($N$11,(($N$11*'CVB Table 2019'!FX11)/100)*('CVB Table 2019'!$O$11)/1000," ") ->  | FY11: =IF($N$11,(($N$11*'CVB Table 2019'!FY11)/100)*('CVB Table 2019'!$O$11)/1000," ") ->  | FZ11: =IF($N$11,(($N$11*'CVB Table 2019'!FZ11)/100)*('CVB Table 2019'!$O$11)/1000," ") ->  | GA11: =IF($N$11,(($N$11*'CVB Table 2019'!GA11)/100)*('CVB Table 2019'!$O$11)/1000," ") ->  | GB11: =IF($N$11,(($N$11*'CVB Table 2019'!GB11)/100)*('CVB Table 2019'!$O$11)/1000," ") ->  | GC11: =IF($N$11,(($N$11*'CVB Table 2019'!GC11)/100)*('CVB Table 2019'!$O$11)/1000," ") ->  | GD11: =IF($N$11,(($N$11*'CVB Table 2019'!GD11)/100)*('CVB Table 2019'!$O$11)/1000," ") ->  | GE11: =IF($N$11,(($N$11*'CVB Table 2019'!GE11)/100)*('CVB Table 2019'!$O$11)/1000," ") ->  | GF11: =IF($N$11,(($N$11*'CVB Table 2019'!GF11)/100)*('CVB Table 2019'!$O$11)/1000," ") ->  | GG11: =IF($N$11,(($N$11*'CVB Table 2019'!GG11)/100)*('CVB Table 2019'!$O$11)/1000," ") ->  | GH11: =IF($N$11,(($N$11*'CVB Table 2019'!GH11)/100)*('CVB Table 2019'!$O$11)/1000," ") ->  | GI11: =IF($N$11,(($N$11*'CVB Table 2019'!GI11)/100)*('CVB Table 2019'!$O$11)/1000," ") ->  | GJ11: =IF($N$11,(($N$11*'CVB Table 2019'!GJ11)/100)*('CVB Table 2019'!$O$11)/1000," ") ->  | GK11: =IF($N$11,(($N$11*'CVB Table 2019'!GK11)/100)*('CVB Table 2019'!$O$11)/1000," ") ->  | GL11: =IF($N$11,(($N$11*'CVB Table 2019'!GL11)/100)*('CVB Table 2019'!$O$11)/1000," ") ->  | GM11: =IF($N$11,(($N$11*'CVB Table 2019'!GM11)/100)*('CVB Table 2019'!$O$11)/1000," ") ->  | GN11: =IF($N$11,(($N$11*'CVB Table 2019'!GN11)/100)*('CVB Table 2019'!$O$11)/1000," ") ->  | GO11: =IF($N$11,(($N$11*'CVB Table 2019'!GO11)/100)*('CVB Table 2019'!$O$11)/1000," ") ->  | GP11: =IF($N$11,(($N$11*'CVB Table 2019'!GP11)/100)*('CVB Table 2019'!$O$11)/1000," ") ->  | GQ11: =IF($N$11,(($N$11*'CVB Table 2019'!GQ11)/100)*('CVB Table 2019'!$O$11)/1000," ") ->  | GR11: =IF($N$11,(($N$11*'CVB Table 2019'!GR11)/100)*('CVB Table 2019'!$O$11)/1000," ") ->  | GS11: =IF($N$11,(($N$11*'CVB Table 2019'!GS11)/100)*('CVB Table 2019'!$O$11)/1000," ") ->  | GT11: =IF($N$11,(($N$11*'CVB Table 2019'!GT11)/100)*('CVB Table 2019'!$O$11)/1000," ") ->  | GU11: =IF($N$11,(($N$11*'CVB Table 2019'!GU11)/100)*('CVB Table 2019'!$O$11)/1000," ") ->  | GV11: =IF($N$11,(($N$11*'CVB Table 2019'!GV11)/100)*('CVB Table 2019'!$O$11)/1000," ") ->  | GW11: =IF($N$11,(($N$11*'CVB Table 2019'!GW11)/100)*('CVB Table 2019'!$O$11)/1000," ") ->  | GX11: =IF($N$11,(($N$11*'CVB Table 2019'!GX11)/100)*('CVB Table 2019'!$O$11)/1000," ") ->  | GY11: =IF($N$11,($N$11*'CVB Table 2019'!GY11)/100," ") ->  | GZ11: =IF($N$11,($N$11*'CVB Table 2019'!GZ11)/100," ") ->  | HA11: =IF($N$11,($N$11*'CVB Table 2019'!HA11)/100," ") ->  | HB11: =IF($N$11,($N$11*'CVB Table 2019'!HB11)/100," ") ->  | HC11: =IF($N$11,($N$11*'CVB Table 2019'!HC11)/100," ") ->  | HD11: =IF($N$11,($N$11*'CVB Table 2019'!HD11)/100," ") ->  | HE11: =IF($N$11,($N$11*'CVB Table 2019'!HE11)/100," ") ->  | HF11: =IF($N$11,($N$11*'CVB Table 2019'!HF11)/100," ") ->  | HG11: =IF($N$11,($N$11*'CVB Table 2019'!HG11)/100," ") ->  | HH11: =IF($N$11,($N$11*'CVB Table 2019'!HH11)/100," ") ->  | HI11: =IF($N$11,($N$11*'CVB Table 2019'!HI11)/100," ") ->  | HJ11: =IF($N$11,($N$11*'CVB Table 2019'!HJ11)/100," ") ->  | HK11: =IF($N$11,($N$11*'CVB Table 2019'!HK11)/100," ") ->  | HL11: =IF($N$11,($N$11*'CVB Table 2019'!HL11)/100," ") ->  | HM11: =IF($N$11,($N$11*'CVB Table 2019'!HM11)/100," ") ->  | HN11: =IF($N$11,($N$11*'CVB Table 2019'!HN11)/100," ") ->  | HO11: =IF($N$11,($N$11*'CVB Table 2019'!HO11)/100," ") ->  | HP11: =IF($N$11,($N$11*'CVB Table 2019'!HP11)/100," ") ->  | HQ11: =IF($N$11,($N$11*'CVB Table 2019'!HQ11)/100," ") ->  | HR11: =IF($N$11,(($N$11*'CVB Table 2019'!HR11)/100)*('CVB Table 2019'!$O$11)/1000," ") ->  | HS11: =IF($N$11,(($N$11*'CVB Table 2019'!HS11)/100)*('CVB Table 2019'!$O$11)/1000," ") ->  | HT11: =IF($N$11,(($N$11*'CVB Table 2019'!HT11)/100)*('CVB Table 2019'!$O$11)/1000," ") ->  | HU11: =IF($N$11,(($N$11*'CVB Table 2019'!HU11)/100)*('CVB Table 2019'!$O$11)/1000," ") ->  | HV11: =IF($N$11,(($N$11*'CVB Table 2019'!HV11)/100)*('CVB Table 2019'!$O$11)/1000," ") ->  | HW11: =IF($N$11,(($N$11*'CVB Table 2019'!HW11)/100)*('CVB Table 2019'!$O$11)/1000," ") ->  | HX11: =IF($N$11,(($N$11*'CVB Table 2019'!HX11)/100)*('CVB Table 2019'!$O$11)/1000," ") ->  | HY11: =IF($N$11,(($N$11*'CVB Table 2019'!HY11)/100)*('CVB Table 2019'!$O$11)/1000," ") ->  | HZ11: =IF($N$11,(($N$11*'CVB Table 2019'!HZ11)/100)*('CVB Table 2019'!$O$11)/1000," ") ->  | IA11: =IF($N$11,(($N$11*'CVB Table 2019'!IA11)/100)*('CVB Table 2019'!$O$11)/1000," ") ->  | IB11: =IF($N$11,(($N$11*'CVB Table 2019'!IB11)/100)*('CVB Table 2019'!$O$11)/1000," ") ->  | IC11: =IF($N$11,(($N$11*'CVB Table 2019'!IC11)/100)*('CVB Table 2019'!$O$11)/1000," ") ->  | ID11: =IF($N$11,(($N$11*'CVB Table 2019'!ID11)/100)*('CVB Table 2019'!$O$11)/1000," ") ->  | IE11: =IF($N$11,(($N$11*'CVB Table 2019'!IE11)/100)*('CVB Table 2019'!$O$11)/1000," ") ->  | IF11: =IF($N$11,(($N$11*'CVB Table 2019'!IF11)/100)*('CVB Table 2019'!$O$11)/1000," ") ->  | IG11: =IF($N$11,(($N$11*'CVB Table 2019'!IG11)/100)*('CVB Table 2019'!$O$11)/1000," ") ->  | IH11: =IF($N$11,(($N$11*'CVB Table 2019'!IH11)/100)*('CVB Table 2019'!$O$11)/1000," ") ->  | II11: =IF($N$11,(($N$11*'CVB Table 2019'!II11)/100)*('CVB Table 2019'!$O$11)/1000," ") ->  | IJ11: =IF($N$11,(($N$11*'CVB Table 2019'!IJ11)/100)*('CVB Table 2019'!$O$11)/1000," ") ->  | IK11: =IF($N$11,($N$11*'CVB Table 2019'!IK11)/100," ") ->  | IL11: =IF($N$11,($N$11*'CVB Table 2019'!IL11)/100," ") ->  | IM11: =IF($N$11,($N$11*'CVB Table 2019'!IM11)/100," ") ->  | IN11: =IF($N$11,($N$11*'CVB Table 2019'!IN11)/100," ") ->  | IO11: =IF($N$11,($N$11*'CVB Table 2019'!IO11)/100," ") ->  | IP11: =IF($N$11,($N$11*'CVB Table 2019'!IP11)/100," ") ->  | IQ11: =IF($N$11,($N$11*'CVB Table 2019'!IQ11)/100," ") ->  | IR11: =IF($N$11,($N$11*'CVB Table 2019'!IR11)/100," ") ->  | IS11: =IF($N$11,($N$11*'CVB Table 2019'!IS11)/100," ") ->  | IT11: =IF($N$11,($N$11*'CVB Table 2019'!IT11)/100," ") ->  | IU11: =IF($N$11,($N$11*'CVB Table 2019'!IU11)/100," ") ->  | IV11: =IF($N$11,($N$11*'CVB Table 2019'!IV11)/100," ") ->  | IW11: =IF($N$11,($N$11*'CVB Table 2019'!IW11)/100," ") ->  | IX11: =IF($N$11,($N$11*'CVB Table 2019'!IX11)/100," ") ->  | IY11: =IF($N$11,($N$11*'CVB Table 2019'!IY11)/100," ") ->  | IZ11: =IF($N$11,($N$11*'CVB Table 2019'!IZ11)/100," ") ->  | JA11: =IF($N$11,($N$11*'CVB Table 2019'!JA11)/100," ") ->  | JB11: =IF($N$11,($N$11*'CVB Table 2019'!JB11)/100," ") ->  | JC11: =IF($N$11,($N$11*'CVB Table 2019'!JC11)/100," ") ->  | JD11: =IF($N$11,($N$11*'CVB Table 2019'!JD11)/100," ") ->  | JE11: =IF($N$11,($N$11*'CVB Table 2019'!JE11)/100," ") ->  | JF11: =IF($N$11,($N$11*'CVB Table 2019'!JF11)/100," ") ->  | JG11: =IF($N$11,($N$11*'CVB Table 2019'!JG11)/100," ") ->  | JH11: =IF($N$11,($N$11*'CVB Table 2019'!JH11)/100," ") ->  | JI11: =IF($N$11,($N$11*'CVB Table 2019'!JI11)/100," ") ->  | JJ11: =IF($N$11,($N$11*'CVB Table 2019'!JJ11)/100," ") ->  | JK11: =IF($N$11,($N$11*'CVB Table 2019'!JK11)/100," ") ->  | JL11: =IF($N$11,($N$11*'CVB Table 2019'!JL11)/100," ") ->  | JM11: =IF($N$11,($N$11*'CVB Table 2019'!JM11)/100," ") ->  | JN11: =IF($N$11,($N$11*'CVB Table 2019'!JN11)/100," ") ->  | JO11: =IF($N$11,($N$11*'CVB Table 2019'!JO11)/100," ") ->  | JP11: =IF($N$11,($N$11*'CVB Table 2019'!JP11)/100," ") ->  | JQ11: =IF($N$11,($N$11*'CVB Table 2019'!JQ11)/100," ") ->  | JR11: =IF($N$11,($N$11*'CVB Table 2019'!JR11)/100," ") ->  | JS11: =IF($N$11,($N$11*'CVB Table 2019'!JS11)/100," ") ->  | JT11: =IF($N$11,($N$11*'CVB Table 2019'!JT11)/100," ") ->  | JU11: =IF($N$11,(($N$11*'CVB Table 2019'!JU11)/100)*('CVB Table 2019'!$O$11)/1000," ") ->  | JV11: =IF($N$11,(($N$11*'CVB Table 2019'!JV11)/100)*('CVB Table 2019'!$O$11)/1000," ") ->  | JW11: =IF($N$11,(($N$11*'CVB Table 2019'!JW11)/100)*('CVB Table 2019'!$O$11)/1000," ") ->  | JX11: =IF($N$11,(($N$11*'CVB Table 2019'!JX11)/100)*('CVB Table 2019'!$O$11)/1000," ") ->  | JY11: =IF($N$11,(($N$11*'CVB Table 2019'!JY11)/100)*('CVB Table 2019'!$O$11)/1000," ") ->  | JZ11: =IF($N$11,(($N$11*'CVB Table 2019'!JZ11)/100)*('CVB Table 2019'!$O$11)/1000," ") ->  | KA11: =IF($N$11,(($N$11*'CVB Table 2019'!KA11)/100)*('CVB Table 2019'!$O$11)/1000," ") ->  | KB11: =IF($N$11,(($N$11*'CVB Table 2019'!KB11)/100)*('CVB Table 2019'!$O$11)/1000," ") ->  | KC11: =IF($N$11,(($N$11*'CVB Table 2019'!KC11)/100)*('CVB Table 2019'!$O$11)/1000," ") ->  | KD11: =IF($N$11,(($N$11*'CVB Table 2019'!KD11)/100)*('CVB Table 2019'!$O$11)/1000," ") ->  | KE11: =IF($N$11,(($N$11*'CVB Table 2019'!KE11)/100)*('CVB Table 2019'!$O$11)/1000," ") ->  | KF11: =IF($N$11,(($N$11*'CVB Table 2019'!KF11)/100)*('CVB Table 2019'!$O$11)/1000," ") ->  | KG11: =IF($N$11,(($N$11*'CVB Table 2019'!KG11)/100)*('CVB Table 2019'!$O$11)/1000," ") ->  | KH11: =IF($N$11,(($N$11*'CVB Table 2019'!KH11)/100)*('CVB Table 2019'!$O$11)/1000," ") ->  | KI11: =IF($N$11,(($N$11*'CVB Table 2019'!KI11)/100)*('CVB Table 2019'!$O$11)/1000," ") ->  | KJ11: =IF($N$11,(($N$11*'CVB Table 2019'!KJ11)/100)*('CVB Table 2019'!$O$11)/1000," ") ->  | KK11: =IF($N$11,(($N$11*'CVB Table 2019'!KK11)/100)*('CVB Table 2019'!$O$11)/1000," ") ->  | KL11: =IF($N$11,(($N$11*'CVB Table 2019'!KL11)/100)*('CVB Table 2019'!$O$11)/1000," ") ->  | KM11: =IF($N$11,(($N$11*'CVB Table 2019'!KM11)/100)*('CVB Table 2019'!$O$11)/1000," ") ->  | KN11: =IF($N$11,(($N$11*'CVB Table 2019'!KN11)/100)*('CVB Table 2019'!$O$11)/1000," ") ->  | KO11: =IF($N$11,(($N$11*'CVB Table 2019'!KO11)/100)*('CVB Table 2019'!$O$11)/1000," ") ->  | KP11: =IF($N$11,(($N$11*'CVB Table 2019'!KP11)/100)*('CVB Table 2019'!$O$11)/1000," ") ->  | KQ11: =IF($N$11,(($N$11*'CVB Table 2019'!KQ11)/100)*('CVB Table 2019'!$O$11)/1000," ") ->  | KR11: =IF($N$11,(($N$11*'CVB Table 2019'!KR11)/100)*('CVB Table 2019'!$O$11)/1000," ") ->  | KS11: =IF($N$11,(($N$11*'CVB Table 2019'!KS11)/100)*('CVB Table 2019'!$O$11)/1000," ") ->  | KT11: =IF($N$11,(($N$11*'CVB Table 2019'!KT11)/100)*('CVB Table 2019'!$O$11)/1000," ") ->  | KU11: =IF($N$11,(($N$11*'CVB Table 2019'!KU11)/100)*('CVB Table 2019'!$O$11)/1000," ") ->  | KV11: =IF($N$11,(($N$11*'CVB Table 2019'!KV11)/100)*('CVB Table 2019'!$O$11)/1000," ") ->  | KW11: =IF($N$11,(($N$11*'CVB Table 2019'!KW11)/100)*('CVB Table 2019'!$O$11)/1000," ") ->  | KX11: =IF($N$11,(($N$11*'CVB Table 2019'!KX11)/100)*('CVB Table 2019'!$O$11)/1000," ") ->  | KY11: =IF($N$11,(($N$11*'CVB Table 2019'!KY11)/100)*('CVB Table 2019'!$O$11)/1000," ") ->  | KZ11: =IF($N$11,(($N$11*'CVB Table 2019'!KZ11)/100)*('CVB Table 2019'!$O$11)/1000," ") ->  | LA11: =IF($N$11,(($N$11*'CVB Table 2019'!LA11)/100)*('CVB Table 2019'!$O$11)/1000," ") ->  | LB11: =IF($N$11,(($N$11*'CVB Table 2019'!LB11)/100)*('CVB Table 2019'!$O$11)/1000," ") ->  | LC11: =IF($N$11,(($N$11*'CVB Table 2019'!LC11)/100)*('CVB Table 2019'!$O$11)/1000," ") ->  | LD11: =IF($N$11,(($N$11*'CVB Table 2019'!LD11)/100)*('CVB Table 2019'!$O$11)/1000," ") ->  | LE11: =IF($N$11,(($N$11*'CVB Table 2019'!LE11)/100)*('CVB Table 2019'!$O$11)/1000," ") ->  | LF11: =IF($N$11,(($N$11*'CVB Table 2019'!LF11)/100)*('CVB Table 2019'!$O$11)/1000," ") ->  | LG11: =IF($N$11,(($N$11*'CVB Table 2019'!LG11)/100)*('CVB Table 2019'!$O$11)/1000," ") ->  | LH11: =IF($N$11,(($N$11*'CVB Table 2019'!LH11)/100)*('CVB Table 2019'!$O$11)/1000," ") ->  | LI11: =IF($N$11,(($N$11*'CVB Table 2019'!LI11)/100)*('CVB Table 2019'!$O$11)/1000," ") ->  | LJ11: =IF($N$11,(($N$11*'CVB Table 2019'!LJ11)/100)*('CVB Table 2019'!$O$11)/1000," ") ->  | LK11: =IF($N$11,(($N$11*'CVB Table 2019'!LK11)/100)*('CVB Table 2019'!$O$11)/1000," ") ->  | LL11: =IF($N$11,(($N$11*'CVB Table 2019'!LL11)/100)*('CVB Table 2019'!$O$11)/1000," ") ->  | LM11: =IF($N$11,(($N$11*'CVB Table 2019'!LM11)/100)*('CVB Table 2019'!$O$11)/1000," ") ->  | LN11: =IF($N$11,(($N$11*'CVB Table 2019'!LN11)/100)*('CVB Table 2019'!$O$11)/1000," ") ->  | LO11: =IF($N$11,(($N$11*'CVB Table 2019'!LO11)/100)*('CVB Table 2019'!$O$11)/1000," ") ->  | LP11: =IF($N$11,(($N$11*'CVB Table 2019'!LP11)/100)*('CVB Table 2019'!$O$11)/1000," ") ->  | LQ11: =IF($N$11,(($N$11*'CVB Table 2019'!LQ11)/100)*('CVB Table 2019'!$O$11)/1000," ") ->  | LR11: =IF($N$11,(($N$11*'CVB Table 2019'!LR11)/100)*('CVB Table 2019'!$O$11)/1000," ") ->  | LS11: =IF($N$11,(($N$11*'CVB Table 2019'!LS11)/100)*('CVB Table 2019'!$O$11)/1000," ") ->  | LT11: =IF($N$11,($N$11*'CVB Table 2019'!LT11)/100," ") ->  | LU11: =IF($N$11,($N$11*'CVB Table 2019'!LU11)/100," ") ->  | LV11: =IF($N$11,($N$11*'CVB Table 2019'!LV11)/100," ") ->  | LW11: =IF($N$11,($N$11*'CVB Table 2019'!LW11)/100," ") ->  | LX11: =IF($N$11,($N$11*'CVB Table 2019'!LX11)/100," ") ->  | LY11: =IF($N$11,($N$11*'CVB Table 2019'!LY11)/100," ") ->  | LZ11: =IF($N$11,($N$11*'CVB Table 2019'!LZ11)/100," ") ->  | MA11: =IF($N$11,($N$11*'CVB Table 2019'!MA11)/100," ") ->  | MB11: =IF($N$11,($N$11*'CVB Table 2019'!MB11)/100," ") ->  | MC11: =IF($N$11,($N$11*'CVB Table 2019'!MC11)/100," ") ->  | MD11: =IF($N$11,($N$11*'CVB Table 2019'!MD11)/100," ") ->  | ME11: =IF($N$11,($N$11*'CVB Table 2019'!ME11)/100," ") ->  | MF11: =IF($N$11,($N$11*'CVB Table 2019'!MF11)/100," ") ->  | MG11: =IF($N$11,($N$11*'CVB Table 2019'!MG11)/100," ") ->  | MH11: =IF($N$11,($N$11*'CVB Table 2019'!MH11)/100," ") ->  | MI11: =IF($N$11,($N$11*'CVB Table 2019'!MI11)/100," ") ->  | MJ11: =IF($N$11,($N$11*'CVB Table 2019'!MJ11)/100," ") ->  | MK11: =IF($N$11,(($N$11*'CVB Table 2019'!MK11)/100)*('CVB Table 2019'!$O$11)/1000," ") ->  | ML11: =IF($N$11,($N$11*'CVB Table 2019'!ML11)/100," ") ->  | MN11: =IF(N11,($MM$4*('CVB Table 2019'!AI11*0.15)*(N11/100)*(('CVB Table 2019'!O11)/1000)),"") ->  | MO11: =IF(N11,($MM$4*((('CVB Table 2019'!AH11)-('CVB Table 2019'!AI11))*0.8)*(N11/100)*(('CVB Table 2019'!O11)/1000)),"") ->  | MQ11: =IF(N11,($MM$4*('CVB Table 2019'!AI11*0.4)*(N11/100)*(('CVB Table 2019'!O11)/1000)),"") ->  | MR11: =IF(N11,($MM$4*((('CVB Table 2019'!AH11)-('CVB Table 2019'!AI11))*0.8)*(N11/100)*(('CVB Table 2019'!O11)/1000)),"") ->  | MT11: =IF(N11,($MM$4*('CVB Table 2019'!AI11*0.25)*(N11/100)*(('CVB Table 2019'!O11)/1000)),"") ->  | MU11: =IF(N11,($MM$4*((('CVB Table 2019'!AH11)-('CVB Table 2019'!AI11))*0.8)*(N11/100)*(('CVB Table 2019'!O11)/1000)),"") ->  | MX11: =IF(N11,((N11*'CVB Table 2019'!MX11)/100)*('CVB Table 2019'!$O$4)/1000," ") -> 
A12: 1002.517 | B12: vochtrijke krachtvoeders | C12: Corn Cob Mix (CCM), kuil | D12: met spil, RC > 60 g/kg DS | F12: Corn cob mix (CCM), silage | G12: with rachis, CF > 60 g/kg DM | I12: X | O12: =IF($N$12,($N$12*'CVB Table 2019'!O12)/100," ") ->  | P12: =IF($N$12,(($N$12*'CVB Table 2019'!P12)/100)*('CVB Table 2019'!$O$12)/1000," ") ->  | Q12: =IF($N$12,(($N$12*'CVB Table 2019'!Q12)/100)*('CVB Table 2019'!$O$12)/1000," ") ->  | R12: =IF($N$12,(($N$12*'CVB Table 2019'!R12)/100)*('CVB Table 2019'!$O$12)/1000," ") ->  | S12: =IF($N$12,(($N$12*'CVB Table 2019'!S12)/100)*('CVB Table 2019'!$O$12)/1000," ") ->  | T12: =IF($N$12,(($N$12*'CVB Table 2019'!T12)/100)*('CVB Table 2019'!$O$12)/1000," ") ->  | U12: =IF($N$12,(($N$12*'CVB Table 2019'!U12)/100)*('CVB Table 2019'!$O$12)/1000," ") ->  | V12: =IF($N$12,(($N$12*'CVB Table 2019'!V12)/100)*('CVB Table 2019'!$O$12)/1000," ") ->  | W12: =IF($N$12,(($N$12*'CVB Table 2019'!W12)/100)*('CVB Table 2019'!$O$12)/1000," ") ->  | X12: =IF($N$12,(($N$12*'CVB Table 2019'!X12)/100)*('CVB Table 2019'!$O$12)/1000," ") ->  | Y12: =IF($N$12,(($N$12*'CVB Table 2019'!Y12)/100)*('CVB Table 2019'!$O$12)/1000," ") ->  | Z12: =IF($N$12,(($N$12*'CVB Table 2019'!Z12)/100)*('CVB Table 2019'!$O$12)/1000," ") ->  | AA12: =IF($N$12,(($N$12*'CVB Table 2019'!AA12)/100)*('CVB Table 2019'!$O$12)/1000," ") ->  | AB12: =IF($N$12,(($N$12*'CVB Table 2019'!AB12)/100)*('CVB Table 2019'!$O$12)/1000," ") ->  | AC12: =IF($N$12,(($N$12*'CVB Table 2019'!AC12)/100)*('CVB Table 2019'!$O$12)/1000," ") ->  | AD12: =IF($N$12,(($N$12*'CVB Table 2019'!AD12)/100)*('CVB Table 2019'!$O$12)/1000," ") ->  | AE12: =IF($N$12,(($N$12*'CVB Table 2019'!AE12)/100)*('CVB Table 2019'!$O$12)/1000," ") ->  | AF12: =IF($N$12,(($N$12*'CVB Table 2019'!AF12)/100)*('CVB Table 2019'!$O$12)/1000," ") ->  | AG12: =IF($N$12,(($N$12*'CVB Table 2019'!AG12)/100)*('CVB Table 2019'!$O$12)/1000," ") ->  | AH12: =IF($N$12,(($N$12*'CVB Table 2019'!AH12)/100)*('CVB Table 2019'!$O$12)/1000," ") ->  | AI12: =IF($N$12,(($N$12*'CVB Table 2019'!AI12)/100)*('CVB Table 2019'!$O$12)/1000," ") ->  | AJ12: =IF($N$12,(($N$12*'CVB Table 2019'!AJ12)/100)*('CVB Table 2019'!$O$12)/1000," ") ->  | AK12: =IF($N$12,(($N$12*'CVB Table 2019'!AK12)/100)*('CVB Table 2019'!$O$12)/1000," ") ->  | AL12: =IF($N$12,(($N$12*'CVB Table 2019'!AL12)/100)*('CVB Table 2019'!$O$12)/1000," ") ->  | AM12: =IF($N$12,(($N$12*'CVB Table 2019'!AM12)/100)*('CVB Table 2019'!$O$12)/1000," ") ->  | AN12: =IF($N$12,(($N$12*'CVB Table 2019'!AN12)/100)*('CVB Table 2019'!$O$12)/1000," ") ->  | AO12: =IF($N$12,(($N$12*'CVB Table 2019'!AO12)/100)*('CVB Table 2019'!$O$12)/1000," ") ->  | AP12: =IF($N$12,(($N$12*'CVB Table 2019'!AP12)/100)*('CVB Table 2019'!$O$12)/1000," ") ->  | AQ12: =IF($N$12,(($N$12*'CVB Table 2019'!AQ12)/100)*('CVB Table 2019'!$O$12)/1000," ") ->  | AR12: =IF($N$12,(($N$12*'CVB Table 2019'!AR12)/100)*('CVB Table 2019'!$O$12)/1000," ") ->  | AS12: =IF($N$12,(($N$12*'CVB Table 2019'!AS12)/100)*('CVB Table 2019'!$O$12)/1000," ") ->  | AT12: =IF($N$12,(($N$12*'CVB Table 2019'!AT12)/100)*('CVB Table 2019'!$O$12)/1000," ") ->  | AU12: =IF($N$12,(($N$12*'CVB Table 2019'!AU12)/100)*('CVB Table 2019'!$O$12)/1000," ") ->  | AV12: =IF($N$12,(($N$12*'CVB Table 2019'!AV12)/100)*('CVB Table 2019'!$O$12)/1000," ") ->  | AW12: =IF($N$12,(($N$12*'CVB Table 2019'!AW12)/100)*('CVB Table 2019'!$O$12)/1000," ") ->  | AX12: =IF($N$12,(($N$12*'CVB Table 2019'!AX12)/100)*('CVB Table 2019'!$O$12)/1000," ") ->  | AY12: =IF($N$12,(($N$12*'CVB Table 2019'!AY12)/100)*('CVB Table 2019'!$O$12)/1000," ") ->  | AZ12: =IF($N$12,(($N$12*'CVB Table 2019'!AZ12)/100)*('CVB Table 2019'!$O$12)/1000," ") ->  | BA12: =IF($N$12,(($N$12*'CVB Table 2019'!BA12)/100)*('CVB Table 2019'!$O$12)/1000," ") ->  | BB12: =IF($N$12,(($N$12*'CVB Table 2019'!BB12)/100)*('CVB Table 2019'!$O$12)/1000," ") ->  | BC12: =IF($N$12,(($N$12*'CVB Table 2019'!BC12)/100)*('CVB Table 2019'!$O$12)/1000," ") ->  | BD12: =IF($N$12,($N$12*'CVB Table 2019'!BD12)/100," ") ->  | BE12: =IF($N$12,($N$12*'CVB Table 2019'!BE12)/100," ") ->  | BF12: =IF($N$12,($N$12*'CVB Table 2019'!BF12)/100," ") ->  | BG12: =IF($N$12,($N$12*'CVB Table 2019'!BG12)/100," ") ->  | BH12: =IF($N$12,($N$12*'CVB Table 2019'!BH12)/100," ") ->  | BI12: =IF($N$12,($N$12*'CVB Table 2019'!BI12)/100," ") ->  | BJ12: =IF($N$12,($N$12*'CVB Table 2019'!BJ12)/100," ") ->  | BK12: =IF($N$12,($N$12*'CVB Table 2019'!BK12)/100," ") ->  | BL12: =IF($N$12,($N$12*'CVB Table 2019'!BL12)/100," ") ->  | BM12: =IF($N$12,($N$12*'CVB Table 2019'!BM12)/100," ") ->  | BN12: =IF($N$12,($N$12*'CVB Table 2019'!BN12)/100," ") ->  | BO12: =IF($N$12,($N$12*'CVB Table 2019'!BO12)/100," ") ->  | BP12: =IF($N$12,($N$12*'CVB Table 2019'!BP12)/100," ") ->  | BQ12: =IF($N$12,($N$12*'CVB Table 2019'!BQ12)/100," ") ->  | BR12: =IF($N$12,($N$12*'CVB Table 2019'!BR12)/100," ") ->  | BS12: =IF($N$12,($N$12*'CVB Table 2019'!BS12)/100," ") ->  | BT12: =IF($N$12,($N$12*'CVB Table 2019'!BT12)/100," ") ->  | BU12: =IF($N$12,($N$12*'CVB Table 2019'!BU12)/100," ") ->  | BV12: =IF($N$12,($N$12*'CVB Table 2019'!BV12)/100," ") ->  | BW12: =IF($N$12,($N$12*'CVB Table 2019'!BW12)/100," ") ->  | BX12: =IF($N$12,($N$12*'CVB Table 2019'!BX12)/100," ") ->  | BY12: =IF($N$12,($N$12*'CVB Table 2019'!BY12)/100," ") ->  | BZ12: =IF($N$12,($N$12*'CVB Table 2019'!BZ12)/100," ") ->  | CA12: =IF($N$12,($N$12*'CVB Table 2019'!CA12)/100," ") ->  | CB12: =IF($N$12,($N$12*'CVB Table 2019'!CB12)/100," ") ->  | CC12: =IF($N$12,($N$12*'CVB Table 2019'!CC12)/100," ") ->  | CD12: =IF($N$12,($N$12*'CVB Table 2019'!CD12)/100," ") ->  | CE12: =IF($N$12,($N$12*'CVB Table 2019'!CE12)/100," ") ->  | CF12: =IF($N$12,($N$12*'CVB Table 2019'!CF12)/100," ") ->  | CG12: =IF($N$12,($N$12*'CVB Table 2019'!CG12)/100," ") ->  | CH12: =IF($N$12,($N$12*'CVB Table 2019'!CH12)/100," ") ->  | CI12: =IF($N$12,($N$12*'CVB Table 2019'!CI12)/100," ") ->  | CJ12: =IF($N$12,(($N$12*'CVB Table 2019'!CJ12)/100)*('CVB Table 2019'!$O$12)/1000," ") ->  | CK12: =IF($N$12,(($N$12*'CVB Table 2019'!CK12)/100)*('CVB Table 2019'!$O$12)/1000," ") ->  | CL12: =IF($N$12,(($N$12*'CVB Table 2019'!CL12)/100)*('CVB Table 2019'!$O$12)/1000," ") ->  | CM12: =IF($N$12,(($N$12*'CVB Table 2019'!CM12)/100)*('CVB Table 2019'!$O$12)/1000," ") ->  | CN12: =IF($N$12,(($N$12*'CVB Table 2019'!CN12)/100)*('CVB Table 2019'!$O$12)/1000," ") ->  | CO12: =IF($N$12,(($N$12*'CVB Table 2019'!CO12)/100)*('CVB Table 2019'!$O$12)/1000," ") ->  | CP12: =IF($N$12,($N$12*'CVB Table 2019'!CP12)/100," ") ->  | CQ12: =IF($N$12,($N$12*'CVB Table 2019'!CQ12)/100," ") ->  | CR12: =IF($N$12,($N$12*'CVB Table 2019'!CR12)/100," ") ->  | CS12: =IF($N$12,(($N$12*'CVB Table 2019'!CS12)/100)*('CVB Table 2019'!$O$12)/1000," ") ->  | CT12: =IF($N$12,(($N$12*'CVB Table 2019'!CT12)/100)*('CVB Table 2019'!$O$12)/1000," ") ->  | CU12: =IF($N$12,($N$12*'CVB Table 2019'!CU12)/100," ") ->  | CV12: =IF($N$12,(($N$12*'CVB Table 2019'!CV12)/100)*('CVB Table 2019'!$O$12)/1000," ") ->  | CW12: =IF($N$12,(($N$12*'CVB Table 2019'!CW12)/100)*('CVB Table 2019'!$O$12)/1000," ") ->  | CX12: =IF($N$12,(($N$12*'CVB Table 2019'!CX12)/100)*('CVB Table 2019'!$O$12)/1000," ") ->  | CY12: =IF($N$12,(($N$12*'CVB Table 2019'!CY12)/100)*('CVB Table 2019'!$O$12)/1000," ") ->  | CZ12: =IF($N$12,(($N$12*'CVB Table 2019'!CZ12)/100)*('CVB Table 2019'!$O$12)/1000," ") ->  | DA12: =IF($N$12,($N$12*'CVB Table 2019'!DA12)/100," ") ->  | DB12: =IF($N$12,($N$12*'CVB Table 2019'!DB12)/100," ") ->  | DC12: =IF($N$12,($N$12*'CVB Table 2019'!DC12)/100," ") ->  | DD12: =IF($N$12,($N$12*'CVB Table 2019'!DD12)/100," ") ->  | DE12: =IF(N12,((N12*'CVB Table 2019'!DE12)/100)*('CVB Table 2019'!O12)/1000," ") ->  | DF12: =IF($N$12,($N$12*'CVB Table 2019'!DF12)/100," ") ->  | DG12: =IF($N$12,($N$12*'CVB Table 2019'!DG12)/100," ") ->  | DH12: =IF($N$12,($N$12*'CVB Table 2019'!DH12)/100," ") ->  | DI12: =IF($N$12,($N$12*'CVB Table 2019'!DI12)/100," ") ->  | DJ12: =IF($N$12,($N$12*'CVB Table 2019'!DJ12)/100," ") ->  | DK12: =IF($N$12,($N$12*'CVB Table 2019'!DK12)/100," ") ->  | DL12: =IF($N$12,($N$12*'CVB Table 2019'!DL12)/100," ") ->  | DM12: =IF(N12,((N12*'CVB Table 2019'!DM12)/100)*('CVB Table 2019'!O12)/1000," ") ->  | DN12: =IF($N$12,($N$12*'CVB Table 2019'!DN12)/100," ") ->  | DO12: =IF(N12,((N12*'CVB Table 2019'!DO12)/100)*('CVB Table 2019'!O12)/1000," ") ->  | DP12: =IF($N$12,($N$12*'CVB Table 2019'!DP12)/100," ") ->  | DQ12: =IF($N$12,($N$12*'CVB Table 2019'!DQ12)/100," ") ->  | DR12: =IF($N$12,($N$12*'CVB Table 2019'!DR12)/100," ") ->  | DS12: =IF($N$12,($N$12*'CVB Table 2019'!DS12)/100," ") ->  | DT12: =IF(N12,((N12*'CVB Table 2019'!DT12)/100)*('CVB Table 2019'!O12)/1000," ") ->  | DU12: =IF($N$12,($N$12*'CVB Table 2019'!DU12)/100," ") ->  | DV12: =IF(N12,((N12*'CVB Table 2019'!DV12)/100)*('CVB Table 2019'!O12)/1000," ") ->  | DW12: =IF($N$12,(($N$12*'CVB Table 2019'!DW12)/100)*('CVB Table 2019'!$O$12)/1000," ") ->  | DX12: =IF($N$12,(($N$12*'CVB Table 2019'!DX12)/100)*('CVB Table 2019'!$O$12)/1000," ") ->  | DY12: =IF($N$12,($N$12*'CVB Table 2019'!DY12)/100," ") ->  | DZ12: =IF($N$12,($N$12*'CVB Table 2019'!DZ12)/100," ") ->  | EA12: =IF($N$12,($N$12*'CVB Table 2019'!EA12)/100," ") ->  | EB12: =IF($N$12,($N$12*'CVB Table 2019'!EB12)/100," ") ->  | EC12: =IF($N$12,($N$12*'CVB Table 2019'!EC12)/100," ") ->  | ED12: =IF($N$12,($N$12*'CVB Table 2019'!ED12)/100," ") ->  | EE12: =IF($N$12,($N$12*'CVB Table 2019'!EE12)/100," ") ->  | EF12: =IF($N$12,($N$12*'CVB Table 2019'!EF12)/100," ") ->  | EG12: =IF($N$12,($N$12*'CVB Table 2019'!EG12)/100," ") ->  | EH12: =IF($N$12,($N$12*'CVB Table 2019'!EH12)/100," ") ->  | EI12: =IF($N$12,($N$12*'CVB Table 2019'!EI12)/100," ") ->  | EJ12: =IF($N$12,($N$12*'CVB Table 2019'!EJ12)/100," ") ->  | EK12: =IF($N$12,($N$12*'CVB Table 2019'!EK12)/100," ") ->  | EL12: =IF($N$12,($N$12*'CVB Table 2019'!EL12)/100," ") ->  | EM12: =IF($N$12,($N$12*'CVB Table 2019'!EM12)/100," ") ->  | EN12: =IF($N$12,($N$12*'CVB Table 2019'!EN12)/100," ") ->  | EO12: =IF($N$12,($N$12*'CVB Table 2019'!EO12)/100," ") ->  | EP12: =IF($N$12,($N$12*'CVB Table 2019'!EP12)/100," ") ->  | EQ12: =IF($N$12,($N$12*'CVB Table 2019'!EQ12)/100," ") ->  | ER12: =IF($N$12,($N$12*'CVB Table 2019'!ER12)/100," ") ->  | ES12: =IF($N$12,($N$12*'CVB Table 2019'!ES12)/100," ") ->  | ET12: =IF($N$12,($N$12*'CVB Table 2019'!ET12)/100," ") ->  | EU12: =IF($N$12,($N$12*'CVB Table 2019'!EU12)/100," ") ->  | EV12: =IF($N$12,($N$12*'CVB Table 2019'!EV12)/100," ") ->  | EW12: =IF($N$12,($N$12*'CVB Table 2019'!EW12)/100," ") ->  | EX12: =IF($N$12,($N$12*'CVB Table 2019'!EX12)/100," ") ->  | EY12: =IF($N$12,($N$12*'CVB Table 2019'!EY12)/100," ") ->  | EZ12: =IF($N$12,($N$12*'CVB Table 2019'!EZ12)/100," ") ->  | FA12: =IF($N$12,($N$12*'CVB Table 2019'!FA12)/100," ") ->  | FB12: =IF($N$12,($N$12*'CVB Table 2019'!FB12)/100," ") ->  | FC12: =IF($N$12,($N$12*'CVB Table 2019'!FC12)/100," ") ->  | FD12: =IF($N$12,($N$12*'CVB Table 2019'!FD12)/100," ") ->  | FE12: =IF($N$12,($N$12*'CVB Table 2019'!FE12)/100," ") ->  | FF12: =IF($N$12,($N$12*'CVB Table 2019'!FF12)/100," ") ->  | FG12: =IF($N$12,($N$12*'CVB Table 2019'!FG12)/100," ") ->  | FH12: =IF($N$12,($N$12*'CVB Table 2019'!FH12)/100," ") ->  | FI12: =IF($N$12,($N$12*'CVB Table 2019'!FI12)/100," ") ->  | FJ12: =IF($N$12,($N$12*'CVB Table 2019'!FJ12)/100," ") ->  | FK12: =IF($N$12,(($N$12*'CVB Table 2019'!FK12)/100)*('CVB Table 2019'!$O$12)/1000," ") ->  | FL12: =IF($N$12,(($N$12*'CVB Table 2019'!FL12)/100)*('CVB Table 2019'!$O$12)/1000," ") ->  | FM12: =IF($N$12,(($N$12*'CVB Table 2019'!FM12)/100)*('CVB Table 2019'!$O$12)/1000," ") ->  | FN12: =IF($N$12,(($N$12*'CVB Table 2019'!FN12)/100)*('CVB Table 2019'!$O$12)/1000," ") ->  | FO12: =IF($N$12,(($N$12*'CVB Table 2019'!FO12)/100)*('CVB Table 2019'!$O$12)/1000," ") ->  | FP12: =IF($N$12,(($N$12*'CVB Table 2019'!FP12)/100)*('CVB Table 2019'!$O$12)/1000," ") ->  | FQ12: =IF($N$12,(($N$12*'CVB Table 2019'!FQ12)/100)*('CVB Table 2019'!$O$12)/1000," ") ->  | FR12: =IF($N$12,(($N$12*'CVB Table 2019'!FR12)/100)*('CVB Table 2019'!$O$12)/1000," ") ->  | FS12: =IF($N$12,(($N$12*'CVB Table 2019'!FS12)/100)*('CVB Table 2019'!$O$12)/1000," ") ->  | FT12: =IF($N$12,(($N$12*'CVB Table 2019'!FT12)/100)*('CVB Table 2019'!$O$12)/1000," ") ->  | FU12: =IF($N$12,(($N$12*'CVB Table 2019'!FU12)/100)*('CVB Table 2019'!$O$12)/1000," ") ->  | FV12: =IF($N$12,(($N$12*'CVB Table 2019'!FV12)/100)*('CVB Table 2019'!$O$12)/1000," ") ->  | FW12: =IF($N$12,(($N$12*'CVB Table 2019'!FW12)/100)*('CVB Table 2019'!$O$12)/1000," ") ->  | FX12: =IF($N$12,(($N$12*'CVB Table 2019'!FX12)/100)*('CVB Table 2019'!$O$12)/1000," ") ->  | FY12: =IF($N$12,(($N$12*'CVB Table 2019'!FY12)/100)*('CVB Table 2019'!$O$12)/1000," ") ->  | FZ12: =IF($N$12,(($N$12*'CVB Table 2019'!FZ12)/100)*('CVB Table 2019'!$O$12)/1000," ") ->  | GA12: =IF($N$12,(($N$12*'CVB Table 2019'!GA12)/100)*('CVB Table 2019'!$O$12)/1000," ") ->  | GB12: =IF($N$12,(($N$12*'CVB Table 2019'!GB12)/100)*('CVB Table 2019'!$O$12)/1000," ") ->  | GC12: =IF($N$12,(($N$12*'CVB Table 2019'!GC12)/100)*('CVB Table 2019'!$O$12)/1000," ") ->  | GD12: =IF($N$12,(($N$12*'CVB Table 2019'!GD12)/100)*('CVB Table 2019'!$O$12)/1000," ") ->  | GE12: =IF($N$12,(($N$12*'CVB Table 2019'!GE12)/100)*('CVB Table 2019'!$O$12)/1000," ") ->  | GF12: =IF($N$12,(($N$12*'CVB Table 2019'!GF12)/100)*('CVB Table 2019'!$O$12)/1000," ") ->  | GG12: =IF($N$12,(($N$12*'CVB Table 2019'!GG12)/100)*('CVB Table 2019'!$O$12)/1000," ") ->  | GH12: =IF($N$12,(($N$12*'CVB Table 2019'!GH12)/100)*('CVB Table 2019'!$O$12)/1000," ") ->  | GI12: =IF($N$12,(($N$12*'CVB Table 2019'!GI12)/100)*('CVB Table 2019'!$O$12)/1000," ") ->  | GJ12: =IF($N$12,(($N$12*'CVB Table 2019'!GJ12)/100)*('CVB Table 2019'!$O$12)/1000," ") ->  | GK12: =IF($N$12,(($N$12*'CVB Table 2019'!GK12)/100)*('CVB Table 2019'!$O$12)/1000," ") ->  | GL12: =IF($N$12,(($N$12*'CVB Table 2019'!GL12)/100)*('CVB Table 2019'!$O$12)/1000," ") ->  | GM12: =IF($N$12,(($N$12*'CVB Table 2019'!GM12)/100)*('CVB Table 2019'!$O$12)/1000," ") ->  | GN12: =IF($N$12,(($N$12*'CVB Table 2019'!GN12)/100)*('CVB Table 2019'!$O$12)/1000," ") ->  | GO12: =IF($N$12,(($N$12*'CVB Table 2019'!GO12)/100)*('CVB Table 2019'!$O$12)/1000," ") ->  | GP12: =IF($N$12,(($N$12*'CVB Table 2019'!GP12)/100)*('CVB Table 2019'!$O$12)/1000," ") ->  | GQ12: =IF($N$12,(($N$12*'CVB Table 2019'!GQ12)/100)*('CVB Table 2019'!$O$12)/1000," ") ->  | GR12: =IF($N$12,(($N$12*'CVB Table 2019'!GR12)/100)*('CVB Table 2019'!$O$12)/1000," ") ->  | GS12: =IF($N$12,(($N$12*'CVB Table 2019'!GS12)/100)*('CVB Table 2019'!$O$12)/1000," ") ->  | GT12: =IF($N$12,(($N$12*'CVB Table 2019'!GT12)/100)*('CVB Table 2019'!$O$12)/1000," ") ->  | GU12: =IF($N$12,(($N$12*'CVB Table 2019'!GU12)/100)*('CVB Table 2019'!$O$12)/1000," ") ->  | GV12: =IF($N$12,(($N$12*'CVB Table 2019'!GV12)/100)*('CVB Table 2019'!$O$12)/1000," ") ->  | GW12: =IF($N$12,(($N$12*'CVB Table 2019'!GW12)/100)*('CVB Table 2019'!$O$12)/1000," ") ->  | GX12: =IF($N$12,(($N$12*'CVB Table 2019'!GX12)/100)*('CVB Table 2019'!$O$12)/1000," ") ->  | GY12: =IF($N$12,($N$12*'CVB Table 2019'!GY12)/100," ") ->  | GZ12: =IF($N$12,($N$12*'CVB Table 2019'!GZ12)/100," ") ->  | HA12: =IF($N$12,($N$12*'CVB Table 2019'!HA12)/100," ") ->  | HB12: =IF($N$12,($N$12*'CVB Table 2019'!HB12)/100," ") ->  | HC12: =IF($N$12,($N$12*'CVB Table 2019'!HC12)/100," ") ->  | HD12: =IF($N$12,($N$12*'CVB Table 2019'!HD12)/100," ") ->  | HE12: =IF($N$12,($N$12*'CVB Table 2019'!HE12)/100," ") ->  | HF12: =IF($N$12,($N$12*'CVB Table 2019'!HF12)/100," ") ->  | HG12: =IF($N$12,($N$12*'CVB Table 2019'!HG12)/100," ") ->  | HH12: =IF($N$12,($N$12*'CVB Table 2019'!HH12)/100," ") ->  | HI12: =IF($N$12,($N$12*'CVB Table 2019'!HI12)/100," ") ->  | HJ12: =IF($N$12,($N$12*'CVB Table 2019'!HJ12)/100," ") ->  | HK12: =IF($N$12,($N$12*'CVB Table 2019'!HK12)/100," ") ->  | HL12: =IF($N$12,($N$12*'CVB Table 2019'!HL12)/100," ") ->  | HM12: =IF($N$12,($N$12*'CVB Table 2019'!HM12)/100," ") ->  | HN12: =IF($N$12,($N$12*'CVB Table 2019'!HN12)/100," ") ->  | HO12: =IF($N$12,($N$12*'CVB Table 2019'!HO12)/100," ") ->  | HP12: =IF($N$12,($N$12*'CVB Table 2019'!HP12)/100," ") ->  | HQ12: =IF($N$12,($N$12*'CVB Table 2019'!HQ12)/100," ") ->  | HR12: =IF($N$12,(($N$12*'CVB Table 2019'!HR12)/100)*('CVB Table 2019'!$O$12)/1000," ") ->  | HS12: =IF($N$12,(($N$12*'CVB Table 2019'!HS12)/100)*('CVB Table 2019'!$O$12)/1000," ") ->  | HT12: =IF($N$12,(($N$12*'CVB Table 2019'!HT12)/100)*('CVB Table 2019'!$O$12)/1000," ") ->  | HU12: =IF($N$12,(($N$12*'CVB Table 2019'!HU12)/100)*('CVB Table 2019'!$O$12)/1000," ") ->  | HV12: =IF($N$12,(($N$12*'CVB Table 2019'!HV12)/100)*('CVB Table 2019'!$O$12)/1000," ") ->  | HW12: =IF($N$12,(($N$12*'CVB Table 2019'!HW12)/100)*('CVB Table 2019'!$O$12)/1000," ") ->  | HX12: =IF($N$12,(($N$12*'CVB Table 2019'!HX12)/100)*('CVB Table 2019'!$O$12)/1000," ") ->  | HY12: =IF($N$12,(($N$12*'CVB Table 2019'!HY12)/100)*('CVB Table 2019'!$O$12)/1000," ") ->  | HZ12: =IF($N$12,(($N$12*'CVB Table 2019'!HZ12)/100)*('CVB Table 2019'!$O$12)/1000," ") ->  | IA12: =IF($N$12,(($N$12*'CVB Table 2019'!IA12)/100)*('CVB Table 2019'!$O$12)/1000," ") ->  | IB12: =IF($N$12,(($N$12*'CVB Table 2019'!IB12)/100)*('CVB Table 2019'!$O$12)/1000," ") ->  | IC12: =IF($N$12,(($N$12*'CVB Table 2019'!IC12)/100)*('CVB Table 2019'!$O$12)/1000," ") ->  | ID12: =IF($N$12,(($N$12*'CVB Table 2019'!ID12)/100)*('CVB Table 2019'!$O$12)/1000," ") ->  | IE12: =IF($N$12,(($N$12*'CVB Table 2019'!IE12)/100)*('CVB Table 2019'!$O$12)/1000," ") ->  | IF12: =IF($N$12,(($N$12*'CVB Table 2019'!IF12)/100)*('CVB Table 2019'!$O$12)/1000," ") ->  | IG12: =IF($N$12,(($N$12*'CVB Table 2019'!IG12)/100)*('CVB Table 2019'!$O$12)/1000," ") ->  | IH12: =IF($N$12,(($N$12*'CVB Table 2019'!IH12)/100)*('CVB Table 2019'!$O$12)/1000," ") ->  | II12: =IF($N$12,(($N$12*'CVB Table 2019'!II12)/100)*('CVB Table 2019'!$O$12)/1000," ") ->  | IJ12: =IF($N$12,(($N$12*'CVB Table 2019'!IJ12)/100)*('CVB Table 2019'!$O$12)/1000," ") ->  | IK12: =IF($N$12,($N$12*'CVB Table 2019'!IK12)/100," ") ->  | IL12: =IF($N$12,($N$12*'CVB Table 2019'!IL12)/100," ") ->  | IM12: =IF($N$12,($N$12*'CVB Table 2019'!IM12)/100," ") ->  | IN12: =IF($N$12,($N$12*'CVB Table 2019'!IN12)/100," ") ->  | IO12: =IF($N$12,($N$12*'CVB Table 2019'!IO12)/100," ") ->  | IP12: =IF($N$12,($N$12*'CVB Table 2019'!IP12)/100," ") ->  | IQ12: =IF($N$12,($N$12*'CVB Table 2019'!IQ12)/100," ") ->  | IR12: =IF($N$12,($N$12*'CVB Table 2019'!IR12)/100," ") ->  | IS12: =IF($N$12,($N$12*'CVB Table 2019'!IS12)/100," ") ->  | IT12: =IF($N$12,($N$12*'CVB Table 2019'!IT12)/100," ") ->  | IU12: =IF($N$12,($N$12*'CVB Table 2019'!IU12)/100," ") ->  | IV12: =IF($N$12,($N$12*'CVB Table 2019'!IV12)/100," ") ->  | IW12: =IF($N$12,($N$12*'CVB Table 2019'!IW12)/100," ") ->  | IX12: =IF($N$12,($N$12*'CVB Table 2019'!IX12)/100," ") ->  | IY12: =IF($N$12,($N$12*'CVB Table 2019'!IY12)/100," ") ->  | IZ12: =IF($N$12,($N$12*'CVB Table 2019'!IZ12)/100," ") ->  | JA12: =IF($N$12,($N$12*'CVB Table 2019'!JA12)/100," ") ->  | JB12: =IF($N$12,($N$12*'CVB Table 2019'!JB12)/100," ") ->  | JC12: =IF($N$12,($N$12*'CVB Table 2019'!JC12)/100," ") ->  | JD12: =IF($N$12,($N$12*'CVB Table 2019'!JD12)/100," ") ->  | JE12: =IF($N$12,($N$12*'CVB Table 2019'!JE12)/100," ") ->  | JF12: =IF($N$12,($N$12*'CVB Table 2019'!JF12)/100," ") ->  | JG12: =IF($N$12,($N$12*'CVB Table 2019'!JG12)/100," ") ->  | JH12: =IF($N$12,($N$12*'CVB Table 2019'!JH12)/100," ") ->  | JI12: =IF($N$12,($N$12*'CVB Table 2019'!JI12)/100," ") ->  | JJ12: =IF($N$12,($N$12*'CVB Table 2019'!JJ12)/100," ") ->  | JK12: =IF($N$12,($N$12*'CVB Table 2019'!JK12)/100," ") ->  | JL12: =IF($N$12,($N$12*'CVB Table 2019'!JL12)/100," ") ->  | JM12: =IF($N$12,($N$12*'CVB Table 2019'!JM12)/100," ") ->  | JN12: =IF($N$12,($N$12*'CVB Table 2019'!JN12)/100," ") ->  | JO12: =IF($N$12,($N$12*'CVB Table 2019'!JO12)/100," ") ->  | JP12: =IF($N$12,($N$12*'CVB Table 2019'!JP12)/100," ") ->  | JQ12: =IF($N$12,($N$12*'CVB Table 2019'!JQ12)/100," ") ->  | JR12: =IF($N$12,($N$12*'CVB Table 2019'!JR12)/100," ") ->  | JS12: =IF($N$12,($N$12*'CVB Table 2019'!JS12)/100," ") ->  | JT12: =IF($N$12,($N$12*'CVB Table 2019'!JT12)/100," ") ->  | JU12: =IF($N$12,(($N$12*'CVB Table 2019'!JU12)/100)*('CVB Table 2019'!$O$12)/1000," ") ->  | JV12: =IF($N$12,(($N$12*'CVB Table 2019'!JV12)/100)*('CVB Table 2019'!$O$12)/1000," ") ->  | JW12: =IF($N$12,(($N$12*'CVB Table 2019'!JW12)/100)*('CVB Table 2019'!$O$12)/1000," ") ->  | JX12: =IF($N$12,(($N$12*'CVB Table 2019'!JX12)/100)*('CVB Table 2019'!$O$12)/1000," ") ->  | JY12: =IF($N$12,(($N$12*'CVB Table 2019'!JY12)/100)*('CVB Table 2019'!$O$12)/1000," ") ->  | JZ12: =IF($N$12,(($N$12*'CVB Table 2019'!JZ12)/100)*('CVB Table 2019'!$O$12)/1000," ") ->  | KA12: =IF($N$12,(($N$12*'CVB Table 2019'!KA12)/100)*('CVB Table 2019'!$O$12)/1000," ") ->  | KB12: =IF($N$12,(($N$12*'CVB Table 2019'!KB12)/100)*('CVB Table 2019'!$O$12)/1000," ") ->  | KC12: =IF($N$12,(($N$12*'CVB Table 2019'!KC12)/100)*('CVB Table 2019'!$O$12)/1000," ") ->  | KD12: =IF($N$12,(($N$12*'CVB Table 2019'!KD12)/100)*('CVB Table 2019'!$O$12)/1000," ") ->  | KE12: =IF($N$12,(($N$12*'CVB Table 2019'!KE12)/100)*('CVB Table 2019'!$O$12)/1000," ") ->  | KF12: =IF($N$12,(($N$12*'CVB Table 2019'!KF12)/100)*('CVB Table 2019'!$O$12)/1000," ") ->  | KG12: =IF($N$12,(($N$12*'CVB Table 2019'!KG12)/100)*('CVB Table 2019'!$O$12)/1000," ") ->  | KH12: =IF($N$12,(($N$12*'CVB Table 2019'!KH12)/100)*('CVB Table 2019'!$O$12)/1000," ") ->  | KI12: =IF($N$12,(($N$12*'CVB Table 2019'!KI12)/100)*('CVB Table 2019'!$O$12)/1000," ") ->  | KJ12: =IF($N$12,(($N$12*'CVB Table 2019'!KJ12)/100)*('CVB Table 2019'!$O$12)/1000," ") ->  | KK12: =IF($N$12,(($N$12*'CVB Table 2019'!KK12)/100)*('CVB Table 2019'!$O$12)/1000," ") ->  | KL12: =IF($N$12,(($N$12*'CVB Table 2019'!KL12)/100)*('CVB Table 2019'!$O$12)/1000," ") ->  | KM12: =IF($N$12,(($N$12*'CVB Table 2019'!KM12)/100)*('CVB Table 2019'!$O$12)/1000," ") ->  | KN12: =IF($N$12,(($N$12*'CVB Table 2019'!KN12)/100)*('CVB Table 2019'!$O$12)/1000," ") ->  | KO12: =IF($N$12,(($N$12*'CVB Table 2019'!KO12)/100)*('CVB Table 2019'!$O$12)/1000," ") ->  | KP12: =IF($N$12,(($N$12*'CVB Table 2019'!KP12)/100)*('CVB Table 2019'!$O$12)/1000," ") ->  | KQ12: =IF($N$12,(($N$12*'CVB Table 2019'!KQ12)/100)*('CVB Table 2019'!$O$12)/1000," ") ->  | KR12: =IF($N$12,(($N$12*'CVB Table 2019'!KR12)/100)*('CVB Table 2019'!$O$12)/1000," ") ->  | KS12: =IF($N$12,(($N$12*'CVB Table 2019'!KS12)/100)*('CVB Table 2019'!$O$12)/1000," ") ->  | KT12: =IF($N$12,(($N$12*'CVB Table 2019'!KT12)/100)*('CVB Table 2019'!$O$12)/1000," ") ->  | KU12: =IF($N$12,(($N$12*'CVB Table 2019'!KU12)/100)*('CVB Table 2019'!$O$12)/1000," ") ->  | KV12: =IF($N$12,(($N$12*'CVB Table 2019'!KV12)/100)*('CVB Table 2019'!$O$12)/1000," ") ->  | KW12: =IF($N$12,(($N$12*'CVB Table 2019'!KW12)/100)*('CVB Table 2019'!$O$12)/1000," ") ->  | KX12: =IF($N$12,(($N$12*'CVB Table 2019'!KX12)/100)*('CVB Table 2019'!$O$12)/1000," ") ->  | KY12: =IF($N$12,(($N$12*'CVB Table 2019'!KY12)/100)*('CVB Table 2019'!$O$12)/1000," ") ->  | KZ12: =IF($N$12,(($N$12*'CVB Table 2019'!KZ12)/100)*('CVB Table 2019'!$O$12)/1000," ") ->  | LA12: =IF($N$12,(($N$12*'CVB Table 2019'!LA12)/100)*('CVB Table 2019'!$O$12)/1000," ") ->  | LB12: =IF($N$12,(($N$12*'CVB Table 2019'!LB12)/100)*('CVB Table 2019'!$O$12)/1000," ") ->  | LC12: =IF($N$12,(($N$12*'CVB Table 2019'!LC12)/100)*('CVB Table 2019'!$O$12)/1000," ") ->  | LD12: =IF($N$12,(($N$12*'CVB Table 2019'!LD12)/100)*('CVB Table 2019'!$O$12)/1000," ") ->  | LE12: =IF($N$12,(($N$12*'CVB Table 2019'!LE12)/100)*('CVB Table 2019'!$O$12)/1000," ") ->  | LF12: =IF($N$12,(($N$12*'CVB Table 2019'!LF12)/100)*('CVB Table 2019'!$O$12)/1000," ") ->  | LG12: =IF($N$12,(($N$12*'CVB Table 2019'!LG12)/100)*('CVB Table 2019'!$O$12)/1000," ") ->  | LH12: =IF($N$12,(($N$12*'CVB Table 2019'!LH12)/100)*('CVB Table 2019'!$O$12)/1000," ") ->  | LI12: =IF($N$12,(($N$12*'CVB Table 2019'!LI12)/100)*('CVB Table 2019'!$O$12)/1000," ") ->  | LJ12: =IF($N$12,(($N$12*'CVB Table 2019'!LJ12)/100)*('CVB Table 2019'!$O$12)/1000," ") ->  | LK12: =IF($N$12,(($N$12*'CVB Table 2019'!LK12)/100)*('CVB Table 2019'!$O$12)/1000," ") ->  | LL12: =IF($N$12,(($N$12*'CVB Table 2019'!LL12)/100)*('CVB Table 2019'!$O$12)/1000," ") ->  | LM12: =IF($N$12,(($N$12*'CVB Table 2019'!LM12)/100)*('CVB Table 2019'!$O$12)/1000," ") ->  | LN12: =IF($N$12,(($N$12*'CVB Table 2019'!LN12)/100)*('CVB Table 2019'!$O$12)/1000," ") ->  | LO12: =IF($N$12,(($N$12*'CVB Table 2019'!LO12)/100)*('CVB Table 2019'!$O$12)/1000," ") ->  | LP12: =IF($N$12,(($N$12*'CVB Table 2019'!LP12)/100)*('CVB Table 2019'!$O$12)/1000," ") ->  | LQ12: =IF($N$12,(($N$12*'CVB Table 2019'!LQ12)/100)*('CVB Table 2019'!$O$12)/1000," ") ->  | LR12: =IF($N$12,(($N$12*'CVB Table 2019'!LR12)/100)*('CVB Table 2019'!$O$12)/1000," ") ->  | LS12: =IF($N$12,(($N$12*'CVB Table 2019'!LS12)/100)*('CVB Table 2019'!$O$12)/1000," ") ->  | LT12: =IF($N$12,($N$12*'CVB Table 2019'!LT12)/100," ") ->  | LU12: =IF($N$12,($N$12*'CVB Table 2019'!LU12)/100," ") ->  | LV12: =IF($N$12,($N$12*'CVB Table 2019'!LV12)/100," ") ->  | LW12: =IF($N$12,($N$12*'CVB Table 2019'!LW12)/100," ") ->  | LX12: =IF($N$12,($N$12*'CVB Table 2019'!LX12)/100," ") ->  | LY12: =IF($N$12,($N$12*'CVB Table 2019'!LY12)/100," ") ->  | LZ12: =IF($N$12,($N$12*'CVB Table 2019'!LZ12)/100," ") ->  | MA12: =IF($N$12,($N$12*'CVB Table 2019'!MA12)/100," ") ->  | MB12: =IF($N$12,($N$12*'CVB Table 2019'!MB12)/100," ") ->  | MC12: =IF($N$12,($N$12*'CVB Table 2019'!MC12)/100," ") ->  | MD12: =IF($N$12,($N$12*'CVB Table 2019'!MD12)/100," ") ->  | ME12: =IF($N$12,($N$12*'CVB Table 2019'!ME12)/100," ") ->  | MF12: =IF($N$12,($N$12*'CVB Table 2019'!MF12)/100," ") ->  | MG12: =IF($N$12,($N$12*'CVB Table 2019'!MG12)/100," ") ->  | MH12: =IF($N$12,($N$12*'CVB Table 2019'!MH12)/100," ") ->  | MI12: =IF($N$12,($N$12*'CVB Table 2019'!MI12)/100," ") ->  | MJ12: =IF($N$12,($N$12*'CVB Table 2019'!MJ12)/100," ") ->  | MK12: =IF($N$12,(($N$12*'CVB Table 2019'!MK12)/100)*('CVB Table 2019'!$O$12)/1000," ") ->  | ML12: =IF($N$12,($N$12*'CVB Table 2019'!ML12)/100," ") ->  | MN12: =IF(N12,($MM$4*('CVB Table 2019'!AI12*0.15)*(N12/100)*(('CVB Table 2019'!O12)/1000)),"") ->  | MO12: =IF(N12,($MM$4*((('CVB Table 2019'!AH12)-('CVB Table 2019'!AI12))*0.8)*(N12/100)*(('CVB Table 2019'!O12)/1000)),"") ->  | MQ12: =IF(N12,($MM$4*('CVB Table 2019'!AI12*0.4)*(N12/100)*(('CVB Table 2019'!O12)/1000)),"") ->  | MR12: =IF(N12,($MM$4*((('CVB Table 2019'!AH12)-('CVB Table 2019'!AI12))*0.8)*(N12/100)*(('CVB Table 2019'!O12)/1000)),"") ->  | MT12: =IF(N12,($MM$4*('CVB Table 2019'!AI12*0.25)*(N12/100)*(('CVB Table 2019'!O12)/1000)),"") ->  | MU12: =IF(N12,($MM$4*((('CVB Table 2019'!AH12)-('CVB Table 2019'!AI12))*0.8)*(N12/100)*(('CVB Table 2019'!O12)/1000)),"") ->  | MX12: =IF(N12,((N12*'CVB Table 2019'!MX12)/100)*('CVB Table 2019'!$O$4)/1000," ") -> 
